{"text_format":"1","workbook":"xlsx","n_sheets":11,"sheets":["Introduction ","Self assesment","Summary of actions ","Clinical Assesment ","Intervention and Rehabilitation","Governance and safety stadards ","Patient Centred Care ","Education ","Leadership ","Research ","Tables Lists "],"not_rendered":{"charts":16,"images":3,"macros":1,"external_links":0,"defined_names":40,"comments":0,"pivot_tables":7},"unopened":[],"bounds":{"document_bytes":16777216,"sheet_cells":100000,"rows_first":2000,"rows_last":500,"rows_between":2000,"halvings":0,"cell_chars":16384,"cell_head_chars":4096},"cells_cut":0,"cells_raw":0,"read":"whole","date_system":"1900"}

{"sheet":"Introduction ","index":0,"n_rows":33,"n_cols":19,"rows_kept":33,"cut":false,"hidden":false,"merged":[]}
[]
[]
[]
[]
[]
[]
[]
[]
[]
[]
[]
[]
[]
[]
[]
[]
[]
[]
[]
[]
[]
[]
[]
[]
[]
[]
[]
[]
[]
[]
[]
[]
[null,null,null,null,null,null,null,null,null,null,null,null,null,null,null,null,null,null,"rr55"]

{"sheet":"Self assesment","index":1,"n_rows":74,"n_cols":15,"rows_kept":74,"cut":false,"hidden":false,"merged":[[0,1,2,12]]}
[null,"Self Assesment: "]
[]
[]
[]
[null,"Clinical Assesments ","Assesment 1 ","Assesmnet 2 ","Assesment 3 "]
[null,"Subjective history"]
[null,"Airway"]
[null,"Breathing"]
[null,"Circulation"]
[null,"Disability"]
[null,"Exposure"]
[null,"Recognition of deterioration "]
[null,"Fluids"]
[null,"Physical function"]
[null,"Non-physical function"]
[null,"Meaningful occupation"]
[null,"Communication assessment",null,null,null,null,null,null,null,null,null,null,null,null," "]
[null,"Eating, drinking and swallowing"]
[null,"Nutrition"]
[null,"Screening"]
[null,"Clinical reasoning"]
[null,"Interventions and Rehabilitation "]
[null,"Airway"]
[null,"Breathing"]
[null,"Circulation"]
[null,"Deterioration intervention "]
[null,"Fluids"]
[null,"Physical function"]
[null,"Non-physical function"]
[null,"Meaningful occupation"]
[null,"Communication intervention"]
[null,"Eating, drinking and swallowing"]
[null,"Nutrition "]
[null,"Patient transfer"]
[null,"Pharmacology"]
[null,"End of life care"]
[null,"Governace and safety Standards "]
[null,"Person-centred care"]
[null,"Communication"]
[null,"Coordination of care"]
[null,"Multi-professional teamwork"]
[null,"Personalised care"]
[null,"Governance, safety and standards"]
[null,"Legal and ethical"]
[null,"Patient safety, quality, and clinical effectiveness"]
[null,"Professional standards and guidance"]
[null,"Education "]
[null,"Learning and Devleoping "]
[null,"Self Devleopment "]
[null,"Facilitating Leanring "]
[null,"Creating the learning environment "]
[null,"Learning Resources "]
[null,"Learning Culture "]
[null,"Leadership "]
[null,"Leadership Culture "]
[null,"Collaborative working "]
[null,"Compassionate and inclusive leadership "]
[null,"Team Devleopment "]
[null,"Influencing people "]
[null,"Developing teams and individuals "]
[null,"Professional and Organisation leadership "]
[null,"Managing services "]
[null,"Strategice thinking and innovation "]
[null,"Research "]
[null,"Evidence into Practice "]
[null,"Evidence informed practice "]
[null,"Service improvement and evalution "]
[null,"Research Development "]
[null,"Understanding and performing research "]
[null,"Research culture "]
[]
[]
[]
[null,"Supported          Assisted                Foundation ","Enhanced ","Advanced ","Consultant "]

{"sheet":"Summary of actions ","index":2,"n_rows":151,"n_cols":9,"rows_kept":151,"cut":false,"hidden":false,"merged":[[0,0,3,10]]}
["Summary of actions "]
[]
[]
[]
[]
[]
[]
["Clinical Assesment "]
["Count of Capability statement ","Column Labels"]
["Row Labels","Supportive","Assistive","Foundation","Enhanced","Advanced","Consultant","Consultant ","Grand Total"]
["Pending",34,58,159,100,8,1,4,364]
["Airway",2,null,10,3,null,null,null,15]
["Breathing",3,4,24,13,null,null,null,44]
["Circulation",3,3,10,5,null,null,null,21]
["Clinical reasoning ",5,5,8,6,8,1,4,37]
["Communication assesment",null,5,9,8,null,null,null,22]
["Disability",2,1,7,4,null,null,null,14]
["Eating drinkingand swallowing",null,1,11,12,null,null,null,24]
["Exposure",1,2,6,2,null,null,null,11]
["Fluids",2,2,5,9,null,null,null,18]
["Meaningful occupation",null,3,4,1,null,null,null,8]
["Non-physical function",4,15,16,9,null,null,null,44]
["Nutrition",3,6,12,14,null,null,null,35]
["Physical Function",1,8,17,9,null,null,null,35]
["Recognition of deterioration",2,null,1,1,null,null,null,4]
["Screening",6,3,18,4,null,null,null,31]
["Subjective history",null,null,1,null,null,null,null,1]
["Complete",1,null,1,null,null,null,null,2]
["Subjective history",1,null,1,null,null,null,null,2]
["Grand Total",35,58,160,100,8,1,4,366]
[]
[]
[]
["Interventions and Rehabilitation "]
["Count of Capability statement ","Column Labels"]
["Row Labels","Supportive","Assistive","Foundation","Enhanced","Grand Total"]
["Pending",17,66,139,158,380]
["Airway ",null,8,19,21,48]
["Breathing ",null,13,11,22,46]
["Circulation ",null,3,3,4,10]
["Communication intervention",1,2,6,2,11]
["Deterioration intervention",2,null,2,null,4]
["Eating, drinking and swallowing ",2,6,4,5,17]
["End of life care",null,null,null,4,4]
["End of life care ",null,1,6,null,7]
["Fluids ",null,2,5,null,7]
["Meaningful occupation ",2,3,7,7,19]
["Non-physical function",2,5,15,17,39]
["Nutrition ",2,5,21,25,53]
["Patient transfer",null,2,3,1,6]
["Pharmacology",null,null,4,9,13]
["Physical Function ",6,16,33,41,96]
["Complete",null,4,null,6,10]
["Airway ",null,4,null,6,10]
["Grand Total",17,70,139,164,390]
[]
[]
[]
[]
["Governance "]
["Count of Capability statement ","Column Labels"]
["Row Labels","Foundation","Advanced ","Assistive ","Consultant ","Enhanced ","Supportive ","Grand Total"]
["Complete",null,null,null,null,null,2,2]
["Legal & ethical",null,null,null,null,null,2,2]
["Pending",7,14,2,10,9,8,50]
["Legal & ethical",2,3,null,3,2,null,10]
["Patient safety",3,7,1,3,5,4,23]
["Professional standards & Guidance",2,4,1,4,2,4,17]
["Grand Total",7,14,2,10,9,10,52]
[]
[]
[]
[]
[]
[]
[]
[]
[]
["Patient Centred Care "]
["Count of Capability statement ","Column Labels"]
["Row Labels","Foundation","Advanced ","Assistive ","Consultant ","Enhanced ","Supportive ","Grand Total"]
["Pending",22,17,8,18,26,25,116]
["Communication",5,4,1,5,4,9,28]
["Coordination of care",9,3,3,5,8,3,31]
["Multiprofessional teamwork",3,7,1,5,5,4,25]
["Personalised care",5,3,3,3,9,9,32]
["Complete",null,null,null,null,null,1,1]
["Communication",null,null,null,null,null,1,1]
["Grand Total",22,17,8,18,26,26,117]
[]
[]
[]
[]
[]
[]
[]
["Education"]
["Count of Capability statement ","Column Labels"]
["Row Labels","Supportive","Assistive","Foundation","Enhanced","Advanced","Consultant ","Grand Total"]
["Complete",1,null,null,null,null,null,1]
["Self development",1,null,null,null,null,null,1]
["Pending",13,9,17,22,14,17,92]
["Facilitating Learning",3,2,4,6,3,4,22]
["Learning culture ",2,1,3,6,3,5,20]
["Learning resources",3,3,7,7,3,2,25]
["Self development",5,3,3,3,5,6,25]
["Grand Total",14,9,17,22,14,17,93]
[]
[]
[]
[]
[]
[]
[]
[]
[]
[]
[]
[]
[]
[]
["Leadership "]
["Count of Capability statement ","Column Labels"]
["Row Labels","Supportive","Assistive","Foundation","Enhanced","Advanced","Consultant","Grand Total"]
["Pending",11,15,19,33,18,23,119]
["Collaborative working",1,3,2,6,4,5,21]
["Compassionate and inclusive leadership",3,3,5,7,5,3,26]
["Developing teams and individuals",null,1,1,3,3,3,11]
["Influencing people",4,2,3,4,2,4,19]
["Managing services ",2,4,4,9,2,4,25]
["Strategic thinking and innovation",1,2,4,4,2,4,17]
["Complete",1,null,null,null,null,null,1]
["Collaborative working",1,null,null,null,null,null,1]
["Grand Total",12,15,19,33,18,23,120]
[]
[]
[]
[]
[]
[]
["Research "]
["Count of Capability statement ","Column Labels"]
["Row Labels","Supportive","Assistive","Foundation","Enhanced","Advanced","Consultant","Grand Total"]
["Pending",6,9,21,27,19,27,109]
["Evidence-informed practice",null,1,3,3,3,6,16]
["Research culture ",1,2,6,7,6,6,28]
["Service improvement & evaluation",3,3,6,10,4,7,33]
["Understanding and performing research",2,3,6,7,6,8,32]
["Complete",1,null,null,null,null,null,1]
["Evidence-informed practice",1,null,null,null,null,null,1]
["Grand Total",7,9,21,27,19,27,110]

{"sheet":"Clinical Assesment ","index":3,"n_rows":372,"n_cols":13,"rows_kept":372,"cut":false,"hidden":false,"merged":[[0,0,2,10],[0,11,2,22]]}
["Clinical Assesment"]
[]
[]
[]
[]
[null,"Capability statement ","Area ","Level ","Profession","Complete ","Progress","Signed ","Dated","Evidence ","Evidence 2","Evidence 3","Evidence 4"]
[null,"Recognise information from patient notes, including reason for admission, past medical history, previous function, social history, languages spoken, impairments and adaptations, recognising when factors discovered could impact on treatment plans.","Subjective history","Supportive","All Professions",true,{"$f":"IF(Table5[[#This Row],[Complete ]],\"Complete\",\"Pending\")","v":"Complete"},null,"2025-10-07"]
[null,"Assess a patient's previous occupational abilities, roles, routines, values and interests and use the information to inform assessment and intervention.","Subjective history","Foundation","OT",true,{"$f":"IF(Table5[[#This Row],[Complete ]],\"Complete\",\"Pending\")","v":"Complete"},null,"2025-10-07"]
[null,"Apply findings from a holistic person-centred assessment, including a subjective history and interpret potential impact on intervention and management.","Subjective history","Foundation","All Professions",false,{"$f":"IF(Table5[[#This Row],[Complete ]],\"Complete\",\"Pending\")","v":"Pending"}]
[null,"Recognise airway compromise, escalating concerns to relevant multi-professional team members, and where required, ensure airway patency in line with the level of life support training.","Airway","Supportive","All Professions",false,{"$f":"IF(Table5[[#This Row],[Complete ]],\"Complete\",\"Pending\")","v":"Pending"}]
[null,"Recognise different types of airway, including endotracheal tubes, tracheostomy and laryngectomy.","Airway","Supportive","All Professions",false,{"$f":"IF(Table5[[#This Row],[Complete ]],\"Complete\",\"Pending\")","v":"Pending"}]
[null,"Assess the basic effects of intubation, surgery and tracheostomies on upper airway patency and function, interpreting information to inform ongoing intervention and management.","Airway","Foundation","SLT",false,{"$f":"IF(Table5[[#This Row],[Complete ]],\"Complete\",\"Pending\")","v":"Pending"}]
[null,"Utilise a systematic approach to identify airway obstruction and implement a range of airway manoeuvres to ensure patency while awaiting assistance from the multi-professional team.","Airway","Foundation","ODP",false,{"$f":"IF(Table5[[#This Row],[Complete ]],\"Complete\",\"Pending\")","v":"Pending"}]
[null,"Assess artificial airway features, including type, size, length, cuff presence and pressure.","Airway","Foundation","Physio",false,{"$f":"IF(Table5[[#This Row],[Complete ]],\"Complete\",\"Pending\")","v":"Pending"}]
[null,"Assess artificial airway features, including type, size, length, cuff presence and pressure.","Airway","Foundation","OT",false,{"$f":"IF(Table5[[#This Row],[Complete ]],\"Complete\",\"Pending\")","v":"Pending"}]
[null,"Assess artificial airway features, including type, size, length, cuff presence and pressure.","Airway","Foundation","SLT",false,{"$f":"IF(Table5[[#This Row],[Complete ]],\"Complete\",\"Pending\")","v":"Pending"}]
[null,"Assess artificial airway features, including type, size, length, cuff presence and pressure.","Airway","Foundation","ODP",false,{"$f":"IF(Table5[[#This Row],[Complete ]],\"Complete\",\"Pending\")","v":"Pending"}]
[null,"Assess the patency of the patient's airway and initiate treatment or escalate to the multi-professional team as required.","Airway","Foundation","Physio",false,{"$f":"IF(Table5[[#This Row],[Complete ]],\"Complete\",\"Pending\")","v":"Pending"}]
[null,"Assess the patency of the patient's airway and initiate treatment or escalate to the multi-professional team as required.","Airway","Foundation","OT",false,{"$f":"IF(Table5[[#This Row],[Complete ]],\"Complete\",\"Pending\")","v":"Pending"}]
[null,"Assess the patency of the patient's airway and initiate treatment or escalate to the multi-professional team as required.","Airway","Foundation","SLT",false,{"$f":"IF(Table5[[#This Row],[Complete ]],\"Complete\",\"Pending\")","v":"Pending"}]
[null,"Assess the patency of the patient's airway and initiate treatment or escalate to the multi-professional team as required.","Airway","Foundation","ODP",false,{"$f":"IF(Table5[[#This Row],[Complete ]],\"Complete\",\"Pending\")","v":"Pending"}]
[null,"Advise multi-professional team on tracheostomy tube, type and size.","Airway","Enhanced","Physio",false,{"$f":"IF(Table5[[#This Row],[Complete ]],\"Complete\",\"Pending\")","v":"Pending"}]
[null,"Evaluate the impact of intubation, surgery and tracheostomies on upper airway patency and function, including advising on the wider implications on health outcomes for pre-operative patients.","Airway","Enhanced","SLT",false,{"$f":"IF(Table5[[#This Row],[Complete ]],\"Complete\",\"Pending\")","v":"Pending"}]
[null,"Advise multi-professional team on tracheostomy tube, type and size.","Airway","Enhanced","SLT",false,{"$f":"IF(Table5[[#This Row],[Complete ]],\"Complete\",\"Pending\")","v":"Pending"}]
[null,"Recognise whether the patient is spontaneously breathing or receiving invasive or non-invasive ventilatory support.","Breathing","Supportive","All Professions",false,{"$f":"IF(Table5[[#This Row],[Complete ]],\"Complete\",\"Pending\")","v":"Pending"}]
[null,"Recognise the device, type, mode and settings of oxygen therapy being received by a patient, including the importance of maintaining oxygen therapy during interventions.","Breathing","Supportive","All Professions",false,{"$f":"IF(Table5[[#This Row],[Complete ]],\"Complete\",\"Pending\")","v":"Pending"}]
[null,"Measure and record respiratory observations, such as respiratory rate and oxygen saturation, recognising and reporting deviation from normal.","Breathing","Supportive","All Professions",false,{"$f":"IF(Table5[[#This Row],[Complete ]],\"Complete\",\"Pending\")","v":"Pending"}]
[null,"Perform and record basic spirometry for non-intubated patients, including vital capacity and peak expiratory flow.","Breathing","Assistive","Physio",false,{"$f":"IF(Table5[[#This Row],[Complete ]],\"Complete\",\"Pending\")","v":"Pending"}]
[null,"Measure and record respiratory muscle strength for spontaneously breathing patients.","Breathing","Assistive","Physio",false,{"$f":"IF(Table5[[#This Row],[Complete ]],\"Complete\",\"Pending\")","v":"Pending"}]
[null,"Measure and record objective cough strength for spontaneously breathing patients.","Breathing","Assistive","SLT",false,{"$f":"IF(Table5[[#This Row],[Complete ]],\"Complete\",\"Pending\")","v":"Pending"}]
[null,"Measure and record objective cough strength for spontaneously breathing patients.","Breathing","Assistive","ODP",false,{"$f":"IF(Table5[[#This Row],[Complete ]],\"Complete\",\"Pending\")","v":"Pending"}]
[null,"Assess the mode and basic settings of mechanical ventilation.","Breathing","Foundation","All Professions",false,{"$f":"IF(Table5[[#This Row],[Complete ]],\"Complete\",\"Pending\")","v":"Pending"}]
[null,"Interpret respiratory values, including arterial blood gases, end-tidal carbon dioxide and tidal volumes, to inform intervention and management.","Breathing","Foundation","Physio",false,{"$f":"IF(Table5[[#This Row],[Complete ]],\"Complete\",\"Pending\")","v":"Pending"}]
[null,"Interpret respiratory values, including arterial blood gases, end-tidal carbon dioxide and tidal volumes, to inform intervention and management.","Breathing","Foundation","ODP",false,{"$f":"IF(Table5[[#This Row],[Complete ]],\"Complete\",\"Pending\")","v":"Pending"}]
[null,"Assess the respiratory system through observation of appearance and breathing pattern, identifying signs of respiratory distress on a range of skin tones.","Breathing","Foundation","Physio",false,{"$f":"IF(Table5[[#This Row],[Complete ]],\"Complete\",\"Pending\")","v":"Pending"}]
[null,"Assess the respiratory system through observation of appearance and breathing pattern, identifying signs of respiratory distress on a range of skin tones.","Breathing","Foundation","SLT",false,{"$f":"IF(Table5[[#This Row],[Complete ]],\"Complete\",\"Pending\")","v":"Pending"}]
[null,"Assess the respiratory system through observation of appearance and breathing pattern, identifying signs of respiratory distress on a range of skin tones.","Breathing","Foundation","OT",false,{"$f":"IF(Table5[[#This Row],[Complete ]],\"Complete\",\"Pending\")","v":"Pending"}]
[null,"Assess the respiratory system through observation of appearance and breathing pattern, identifying signs of respiratory distress on a range of skin tones.","Breathing","Foundation","ODP",false,{"$f":"IF(Table5[[#This Row],[Complete ]],\"Complete\",\"Pending\")","v":"Pending"}]
[null,"Perform and interpret findings of lung auscultation and thoracic palpation of spontaneously breathing and mechanically ventilated patients.","Breathing","Foundation","Physio",false,{"$f":"IF(Table5[[#This Row],[Complete ]],\"Complete\",\"Pending\")","v":"Pending"}]
[null,"Perform and interpret findings of lung auscultation and thoracic palpation of spontaneously breathing and mechanically ventilated patients.","Breathing","Foundation","ODP",false,{"$f":"IF(Table5[[#This Row],[Complete ]],\"Complete\",\"Pending\")","v":"Pending"}]
[null,"Perform and interpret basic spirometry for patients who are mechanically ventilated or self-ventilating, including those with an artificial airway.","Breathing","Foundation","Physio",false,{"$f":"IF(Table5[[#This Row],[Complete ]],\"Complete\",\"Pending\")","v":"Pending"}]
[null,"Assess the impact of respiratory and oropharyngeal secretions, considering the effectiveness of the patient's cough","Breathing","Foundation","Physio",false,{"$f":"IF(Table5[[#This Row],[Complete ]],\"Complete\",\"Pending\")","v":"Pending"}]
[null,"Assess the impact of respiratory and oropharyngeal secretions, considering the effectiveness of the patient's cough","Breathing","Foundation","SLT",false,{"$f":"IF(Table5[[#This Row],[Complete ]],\"Complete\",\"Pending\")","v":"Pending"}]
[null,"Assess the impact of respiratory and oropharyngeal secretions, considering the effectiveness of the patient's cough","Breathing","Foundation","OT",false,{"$f":"IF(Table5[[#This Row],[Complete ]],\"Complete\",\"Pending\")","v":"Pending"}]
[null,"Assess the impact of respiratory and oropharyngeal secretions, considering the effectiveness of the patient's cough","Breathing","Foundation","ODP",false,{"$f":"IF(Table5[[#This Row],[Complete ]],\"Complete\",\"Pending\")","v":"Pending"}]
[null,"Recognise chest x-ray changes, relevant to professional scope of practice, to inform intervention and management.","Breathing","Foundation","Physio",false,{"$f":"IF(Table5[[#This Row],[Complete ]],\"Complete\",\"Pending\")","v":"Pending"}]
[null,"Recognise chest x-ray changes, relevant to professional scope of practice, to inform intervention and management.","Breathing","Foundation","ODP",false,{"$f":"IF(Table5[[#This Row],[Complete ]],\"Complete\",\"Pending\")","v":"Pending"}]
[null,"Recognise and understand the impact of respiratory pharmacology.","Breathing","Foundation","Physio",false,{"$f":"IF(Table5[[#This Row],[Complete ]],\"Complete\",\"Pending\")","v":"Pending"}]
[null,"Recognise and understand the impact of respiratory pharmacology.","Breathing","Foundation","SLT",false,{"$f":"IF(Table5[[#This Row],[Complete ]],\"Complete\",\"Pending\")","v":"Pending"}]
[null,"Recognise and understand the impact of respiratory pharmacology.","Breathing","Foundation","OT",false,{"$f":"IF(Table5[[#This Row],[Complete ]],\"Complete\",\"Pending\")","v":"Pending"}]
[null,"Recognise and understand the impact of respiratory pharmacology.","Breathing","Foundation","ODP",false,{"$f":"IF(Table5[[#This Row],[Complete ]],\"Complete\",\"Pending\")","v":"Pending"}]
[null,"Assess respiratory muscle strength for intubated and non-intubated patients.","Breathing","Foundation","Physio",false,{"$f":"IF(Table5[[#This Row],[Complete ]],\"Complete\",\"Pending\")","v":"Pending"}]
[null,"Assess oropharyngeal secretion type and volume and aspiration risk, contributing to a multi-treatment and multi-professional approach to management.","Breathing","Foundation","SLT",false,{"$f":"IF(Table5[[#This Row],[Complete ]],\"Complete\",\"Pending\")","v":"Pending"}]
[null,"Assess patient response to oxygen therapy and respiratory support.","Breathing","Foundation","Physio",false,{"$f":"IF(Table5[[#This Row],[Complete ]],\"Complete\",\"Pending\")","v":"Pending"}]
[null,"Assess subjective breathlessness using a variety of methods for patients who are mechanically ventilated or self-ventilating, including those with an artificial airway.","Breathing","Foundation","Physio",false,{"$f":"IF(Table5[[#This Row],[Complete ]],\"Complete\",\"Pending\")","v":"Pending"}]
[null,"Evaluate patient response to oxygen therapy and respiratory support.","Breathing","Enhanced","ODP",false,{"$f":"IF(Table5[[#This Row],[Complete ]],\"Complete\",\"Pending\")","v":"Pending"}]
[null,"Evaluate the patient's breathing pattern through observation and objective markers to identify breathing pattern abnormalities during and after ventilatory support.","Breathing","Enhanced","Physio",false,{"$f":"IF(Table5[[#This Row],[Complete ]],\"Complete\",\"Pending\")","v":"Pending"}]
[null,"Perform and interpret findings of chest wall percussion.","Breathing","Enhanced","Physio",false,{"$f":"IF(Table5[[#This Row],[Complete ]],\"Complete\",\"Pending\")","v":"Pending"}]
[null,"Perform and interpret findings of chest wall percussion.","Breathing","Enhanced","ODP",false,{"$f":"IF(Table5[[#This Row],[Complete ]],\"Complete\",\"Pending\")","v":"Pending"}]
[null,"Interpret invasive and non-invasive ventilator data to evaluate patient-ventilator synchrony and assess readiness for weaning.","Breathing","Enhanced","Physio",false,{"$f":"IF(Table5[[#This Row],[Complete ]],\"Complete\",\"Pending\")","v":"Pending"}]
[null,"Interpret invasive and non-invasive ventilator data to evaluate patient-ventilator synchrony and assess readiness for weaning.","Breathing","Enhanced","ODP",false,{"$f":"IF(Table5[[#This Row],[Complete ]],\"Complete\",\"Pending\")","v":"Pending"}]
[null,"Evaluate cough strength of intubated and non-intubated patients to inform cough augmentation requirements, ability to wean and suitability for extubation and decannulation.","Breathing","Enhanced","Physio",false,{"$f":"IF(Table5[[#This Row],[Complete ]],\"Complete\",\"Pending\")","v":"Pending"}]
[null,"Review the findings of a range of respiratory imaging, alongside clinical assessment, to inform intervention and management, performing thoracic ultrasound following relevant training and accreditation.","Breathing","Enhanced","Physio",false,{"$f":"IF(Table5[[#This Row],[Complete ]],\"Complete\",\"Pending\")","v":"Pending"}]
[null,"Review the findings of a range of respiratory imaging, alongside clinical assessment, to inform intervention and management, performing thoracic ultrasound following relevant training and accreditation.","Breathing","Enhanced","ODP",false,{"$f":"IF(Table5[[#This Row],[Complete ]],\"Complete\",\"Pending\")","v":"Pending"}]
[null,"Evaluate the requirement for ventilator manipulation to optimise swallow, voice and communication.","Breathing","Enhanced","SLT",false,{"$f":"IF(Table5[[#This Row],[Complete ]],\"Complete\",\"Pending\")","v":"Pending"}]
[null,"Evaluate the effectiveness of respiratory pharmacology.","Breathing","Enhanced","Physio",false,{"$f":"IF(Table5[[#This Row],[Complete ]],\"Complete\",\"Pending\")","v":"Pending"}]
[null,"Interpret basic spirometry, including vital capacity and peak expiratory flow.","Breathing","Enhanced","SLT",false,{"$f":"IF(Table5[[#This Row],[Complete ]],\"Complete\",\"Pending\")","v":"Pending"}]
[null,"Evaluate the impact of oropharyngeal secretions on respiratory health and quality of life, utilising instrumental assessments where appropriate to inform a multi-treatment and multi-professional approach to management.","Breathing","Enhanced","SLT",false,{"$f":"IF(Table5[[#This Row],[Complete ]],\"Complete\",\"Pending\")","v":"Pending"}]
[null,"Record invasive and non-invasive cardiovascular observations, recognising and reporting abnormal values.","Circulation","Supportive","All Professions",false,{"$f":"IF(Table5[[#This Row],[Complete ]],\"Complete\",\"Pending\")","v":"Pending"}]
[null,"Measure and record heart rate and blood pressure.","Circulation","Supportive","All Professions",false,{"$f":"IF(Table5[[#This Row],[Complete ]],\"Complete\",\"Pending\")","v":"Pending"}]
[null,"Recognise the equipment required to perform an electrocardiogram, supporting the patient during the procedure.","Circulation","Supportive","ODP",false,{"$f":"IF(Table5[[#This Row],[Complete ]],\"Complete\",\"Pending\")","v":"Pending"}]
[null,"Interpret a range of cardiovascular observations, referring to the multi-professional team for intervention where deviation from normal is identified.","Circulation","Assistive","All Professions",false,{"$f":"IF(Table5[[#This Row],[Complete ]],\"Complete\",\"Pending\")","v":"Pending"}]
[null,"Select equipment and perform a 12-lead electrocardiogram, recording and reporting results to the multi-professional team.","Circulation","Assistive","ODP",false,{"$f":"IF(Table5[[#This Row],[Complete ]],\"Complete\",\"Pending\")","v":"Pending"}]
[null,"Perform and record blood gas measurements, thromboelastography, and other relevant point-of-care blood testing, reporting to the multi-professional team.","Circulation","Assistive","ODP",false,{"$f":"IF(Table5[[#This Row],[Complete ]],\"Complete\",\"Pending\")","v":"Pending"}]
[null,"Recognise cardiovascular pharmacological interventions, such as inotropes, vasoactives and antiarrhythmics, and their effects on the patient.","Circulation","Foundation","All Professions",false,{"$f":"IF(Table5[[#This Row],[Complete ]],\"Complete\",\"Pending\")","v":"Pending"}]
[null,"Recognise abnormal electrocardiogram rhythm strip results and escalate to multi-professional team.","Circulation","Foundation","ODP",false,{"$f":"IF(Table5[[#This Row],[Complete ]],\"Complete\",\"Pending\")","v":"Pending"}]
[null,"Assess a range of cardiovascular observations and indicators of perfusion and cardiovascular function, including arrhythmias, fluid and electrolyte balance, haematological and biochemical values, and shock.","Circulation","Foundation","Physio",false,{"$f":"IF(Table5[[#This Row],[Complete ]],\"Complete\",\"Pending\")","v":"Pending"}]
[null,"Assess a range of cardiovascular observations and indicators of perfusion and cardiovascular function, including arrhythmias, fluid and electrolyte balance, haematological and biochemical values, and shock.","Circulation","Foundation","ODP",false,{"$f":"IF(Table5[[#This Row],[Complete ]],\"Complete\",\"Pending\")","v":"Pending"}]
[null,"Assess a range of cardiovascular observations and indicators of perfusion and cardiovascular function, including arrhythmias, fluid and electrolyte balance, haematological and biochemical values, and shock.","Circulation","Foundation","Dietitian",false,{"$f":"IF(Table5[[#This Row],[Complete ]],\"Complete\",\"Pending\")","v":"Pending"}]
[null,"Initiate and perform blood gas measurements, thromboelastography and other relevant point-of-care blood testing and review results with the multi-professional team.","Circulation","Foundation","ODP",false,{"$f":"IF(Table5[[#This Row],[Complete ]],\"Complete\",\"Pending\")","v":"Pending"}]
[null,"Monitor, interpret and record cardiovascular vital signs, using both invasive and non-invasive techniques.","Circulation","Foundation","ODP",false,{"$f":"IF(Table5[[#This Row],[Complete ]],\"Complete\",\"Pending\")","v":"Pending"}]
[null,"Manage equipment utilised in non-invasive and invasive cardiovascular monitoring.","Circulation","Foundation","ODP",false,{"$f":"IF(Table5[[#This Row],[Complete ]],\"Complete\",\"Pending\")","v":"Pending"}]
[null,"Assess a range of cardiovascular observations, recognising the impact on assessments and interventions.","Circulation","Foundation","SLT",false,{"$f":"IF(Table5[[#This Row],[Complete ]],\"Complete\",\"Pending\")","v":"Pending"}]
[null,"Assess a range of cardiovascular observations, recognising the impact on assessments and interventions.","Circulation","Foundation","OT",false,{"$f":"IF(Table5[[#This Row],[Complete ]],\"Complete\",\"Pending\")","v":"Pending"}]
[null,"Interpret a 12-lead electrocardiogram, making recommendations and implementing interventions in collaboration with the multi-professional team.","Circulation","Enhanced","ODP",false,{"$f":"IF(Table5[[#This Row],[Complete ]],\"Complete\",\"Pending\")","v":"Pending"}]
[null,"Interpret results from blood gas measurements, thromboelastography, and other relevant point-of-care blood testing and initiate relevant interventions in collaboration with the multi-professional team.","Circulation","Enhanced","ODP",false,{"$f":"IF(Table5[[#This Row],[Complete ]],\"Complete\",\"Pending\")","v":"Pending"}]
[null,"Analyse cardiovascular observations, alongside patient baseline and other measurements of cardiovascular output and perfusion, to provide assessment of haemodynamic stability.","Circulation","Enhanced","ODP",false,{"$f":"IF(Table5[[#This Row],[Complete ]],\"Complete\",\"Pending\")","v":"Pending"}]
[null,"Review the findings of a range of cardiovascular investigations, to inform interventions and management.","Circulation","Enhanced","ODP",false,{"$f":"IF(Table5[[#This Row],[Complete ]],\"Complete\",\"Pending\")","v":"Pending"}]
[null,"Review the findings of a range of cardiovascular investigations, to inform interventions and management.","Circulation","Enhanced","Physio",false,{"$f":"IF(Table5[[#This Row],[Complete ]],\"Complete\",\"Pending\")","v":"Pending"}]
[null,"Recognise when a patient is on sedative or analgesic medication.","Disability","Supportive","All Professions",false,{"$f":"IF(Table5[[#This Row],[Complete ]],\"Complete\",\"Pending\")","v":"Pending"}]
[null,"Recognise behaviours that indicate a change in neurological status.","Disability","Supportive","All Professions",false,{"$f":"IF(Table5[[#This Row],[Complete ]],\"Complete\",\"Pending\")","v":"Pending"}]
[null,"Assess pain using a variety of methods, including recognition of non-verbal signs of pain.","Disability","Assistive","All Professions",false,{"$f":"IF(Table5[[#This Row],[Complete ]],\"Complete\",\"Pending\")","v":"Pending"}]
[null,"Assess the impact of sedation, analgesia and neuromuscular blockade, and adapt assessment, intervention and management accordingly.","Disability","Foundation","All Professions",false,{"$f":"IF(Table5[[#This Row],[Complete ]],\"Complete\",\"Pending\")","v":"Pending"}]
[null,"Assess neurological status using standardised assessments, considering the implications for intended interventions and management.","Disability","Foundation","All Professions",false,{"$f":"IF(Table5[[#This Row],[Complete ]],\"Complete\",\"Pending\")","v":"Pending"}]
[null,"Recognise and escalate signs and symptoms of raised intracranial pressure, considering the implications for intended interventions or management plans.","Disability","Foundation","All Professions",false,{"$f":"IF(Table5[[#This Row],[Complete ]],\"Complete\",\"Pending\")","v":"Pending"}]
[null,"Complete a neurological assessment when there is an identified need.","Disability","Foundation","SLT",false,{"$f":"IF(Table5[[#This Row],[Complete ]],\"Complete\",\"Pending\")","v":"Pending"}]
[null,"Complete a neurological assessment when there is an identified need.","Disability","Foundation","OT",false,{"$f":"IF(Table5[[#This Row],[Complete ]],\"Complete\",\"Pending\")","v":"Pending"}]
[null,"Assess the impact of pharmacology and surgery on patients, adapting assessment, intervention and management accordingly.","Disability","Foundation","ODP",false,{"$f":"IF(Table5[[#This Row],[Complete ]],\"Complete\",\"Pending\")","v":"Pending"}]
[null,"Recognise factors impacting consciousness levels and initiate appropriate actions.","Disability","Foundation","ODP",false,{"$f":"IF(Table5[[#This Row],[Complete ]],\"Complete\",\"Pending\")","v":"Pending"}]
[null,"Evaluate the implications of raised intracranial pressure, monitoring the change in this pressure during interventions and alerting the multi-professional team when required.","Disability","Enhanced","All Professions",false,{"$f":"IF(Table5[[#This Row],[Complete ]],\"Complete\",\"Pending\")","v":"Pending"}]
[null,"Evaluate overall neurological presentation, including ongoing effects of pharmacology and interpretation of movement patterns, discussing key findings with the multi-professional team.","Disability","Enhanced","Physio",false,{"$f":"IF(Table5[[#This Row],[Complete ]],\"Complete\",\"Pending\")","v":"Pending"}]
[null,"Evaluate overall neurological presentation, including ongoing effects of pharmacology and interpretation of movement patterns, discussing key findings with the multi-professional team.","Disability","Enhanced","SLT",false,{"$f":"IF(Table5[[#This Row],[Complete ]],\"Complete\",\"Pending\")","v":"Pending"}]
[null,"Evaluate overall neurological presentation, including ongoing effects of pharmacology and interpretation of movement patterns, discussing key findings with the multi-professional team.","Disability","Enhanced","OT",false,{"$f":"IF(Table5[[#This Row],[Complete ]],\"Complete\",\"Pending\")","v":"Pending"}]
[null,"Monitor critical care lines, invasive and non-invasive attachments, and recognise when they could impact on treatment plans.","Exposure","Supportive","All Professions",false,{"$f":"IF(Table5[[#This Row],[Complete ]],\"Complete\",\"Pending\")","v":"Pending"}]
[null,"Recognise skin integrity on a range of skin tones and how skin integrity may impact on planned therapeutic interventions and management.","Exposure","Assistive","All Professions",false,{"$f":"IF(Table5[[#This Row],[Complete ]],\"Complete\",\"Pending\")","v":"Pending"}]
[null,"Support with monitoring patient temperature and applying thermoregulatory devices, recognising and escalating deviation from parameters set by the multi-professional team.","Exposure","Assistive","ODP",false,{"$f":"IF(Table5[[#This Row],[Complete ]],\"Complete\",\"Pending\")","v":"Pending"}]
[null,"Assess and record skin integrity on a range of skin tones , referring to the tissue viability team where appropriate.","Exposure","Foundation","All Professions",false,{"$f":"IF(Table5[[#This Row],[Complete ]],\"Complete\",\"Pending\")","v":"Pending"}]
[null,"Interpret the impact critical care lines and invasive and non-invasive attachments have on assessment, intervention and management.","Exposure","Foundation","All Professions",false,{"$f":"IF(Table5[[#This Row],[Complete ]],\"Complete\",\"Pending\")","v":"Pending"}]
[null,"Assess the range of investigations, such as imaging, undertaken in critical care and consider potential impact of results on intervention and management.","Exposure","Foundation","All Professions",false,{"$f":"IF(Table5[[#This Row],[Complete ]],\"Complete\",\"Pending\")","v":"Pending"}]
[null,"Monitor patient temperature utilising invasive and non-invasive devices and implement thermoregulatory mechanisms, where required, in collaboration with the multi-professional team.","Exposure","Foundation","ODP",false,{"$f":"IF(Table5[[#This Row],[Complete ]],\"Complete\",\"Pending\")","v":"Pending"}]
[null,"Manage insertion and care of nasogastric tubes.","Exposure","Foundation","ODP",false,{"$f":"IF(Table5[[#This Row],[Complete ]],\"Complete\",\"Pending\")","v":"Pending"}]
[null,"Manage drains, monitoring and recording outputs and escalating to multi-professional team where abnormal losses are identified.","Exposure","Foundation","ODP",false,{"$f":"IF(Table5[[#This Row],[Complete ]],\"Complete\",\"Pending\")","v":"Pending"}]
[null,"Evaluate and discuss potential issues arising from critical care lines and invasive and non-invasive attachments with the multi-professional team, to facilitate safe assessment, intervention and management.","Exposure","Enhanced","All Professions",false,{"$f":"IF(Table5[[#This Row],[Complete ]],\"Complete\",\"Pending\")","v":"Pending"}]
[null,"Evaluate findings of investigations, such as imaging, utilising them to support complex decision making, including liaising with multi-professional team where appropriate.","Exposure","Enhanced","All Professions",false,{"$f":"IF(Table5[[#This Row],[Complete ]],\"Complete\",\"Pending\")","v":"Pending"}]
[null,"Recognise patient deterioration and escalate, supporting the multi-professional team with emergency intervention, in line with level of life support training.","Recognition of deterioration","Supportive","All Professions",false,{"$f":"IF(Table5[[#This Row],[Complete ]],\"Complete\",\"Pending\")","v":"Pending"}]
[null,"Utilise national early warning scoring systems to identify patient deterioration and escalate to the multi-professional team.","Recognition of deterioration","Supportive","All Professions",false,{"$f":"IF(Table5[[#This Row],[Complete ]],\"Complete\",\"Pending\")","v":"Pending"}]
[null,"Recognise patient deterioration, responding, escalating and contributing to emergency interventions, in line with level of life support training.","Recognition of deterioration","Foundation","All Professions",false,{"$f":"IF(Table5[[#This Row],[Complete ]],\"Complete\",\"Pending\")","v":"Pending"}]
[null,"Evaluate patient deterioration while recommending and implementing a treatment plan within scope of professional practice.","Recognition of deterioration","Enhanced","All Professions",false,{"$f":"IF(Table5[[#This Row],[Complete ]],\"Complete\",\"Pending\")","v":"Pending"}]
[null,"Record all sources of fluid intake and output accurately.","Fluids","Supportive","All Professions",false,{"$f":"IF(Table5[[#This Row],[Complete ]],\"Complete\",\"Pending\")","v":"Pending"}]
[null,"Record blood results and biochemistry, liaising with the multi-professional team.","Fluids","Supportive","All Professions",false,{"$f":"IF(Table5[[#This Row],[Complete ]],\"Complete\",\"Pending\")","v":"Pending"}]
[null,"Assist in reporting blood and biochemistry results, and recognise when abnormal results could impact on intervention plans.","Fluids","Assistive","All Professions",false,{"$f":"IF(Table5[[#This Row],[Complete ]],\"Complete\",\"Pending\")","v":"Pending"}]
[null,"Report on normal and abnormal fluid balance, urine output and nutrition related biochemistry and recognise when these could impact on nutrition intervention plans.","Fluids","Assistive","Dietitian",false,{"$f":"IF(Table5[[#This Row],[Complete ]],\"Complete\",\"Pending\")","v":"Pending"}]
[null,"Recognise and interpret abnormal biochemistry and blood results, considering the implications for assessment, intervention and management","Fluids","Foundation","All Professions",false,{"$f":"IF(Table5[[#This Row],[Complete ]],\"Complete\",\"Pending\")","v":"Pending"}]
[null,"Assess patients undergoing continuous or intermittent renal replacement therapy, recognising how this may impact assessment, intervention and management.","Fluids","Foundation","All Professions",false,{"$f":"IF(Table5[[#This Row],[Complete ]],\"Complete\",\"Pending\")","v":"Pending"}]
[null,"Assess renal status, considering how acute kidney injury, chronic kidney disease and renal replacement therapy type informs nutrition plans.","Fluids","Foundation","Dietitian",false,{"$f":"IF(Table5[[#This Row],[Complete ]],\"Complete\",\"Pending\")","v":"Pending"}]
[null,"Assess abnormal blood glucose levels and associated hypoglycaemic medications, considering how this informs nutrition intervention plans.","Fluids","Foundation","Dietitian",false,{"$f":"IF(Table5[[#This Row],[Complete ]],\"Complete\",\"Pending\")","v":"Pending"}]
[null,"Monitor and record fluid balance in critically ill patients, escalating abnormalities to the multi-professional team.","Fluids","Foundation","ODP",false,{"$f":"IF(Table5[[#This Row],[Complete ]],\"Complete\",\"Pending\")","v":"Pending"}]
[null,"Discuss abnormal biochemistry and blood results with the multi-professional team to negotiate optimal intervention and management plan.","Fluids","Enhanced","All Professions",false,{"$f":"IF(Table5[[#This Row],[Complete ]],\"Complete\",\"Pending\")","v":"Pending"}]
[null,"Evaluate renal status in complex patients with acute kidney injury and chronic kidney disease, on and off renal replacement therapy, interpreting how this will inform nutrition intervention plans.","Fluids","Enhanced","Dietitian",false,{"$f":"IF(Table5[[#This Row],[Complete ]],\"Complete\",\"Pending\")","v":"Pending"}]
[null,"Interpret markers of renal function and assess the impact for intervention and management.","Fluids","Enhanced","ODP",false,{"$f":"IF(Table5[[#This Row],[Complete ]],\"Complete\",\"Pending\")","v":"Pending"}]
[null,"Interpret markers of renal function and assess the impact for intervention and management.","Fluids","Enhanced","Physio",false,{"$f":"IF(Table5[[#This Row],[Complete ]],\"Complete\",\"Pending\")","v":"Pending"}]
[null,"Interpret markers of liver function and assess the impact for intervention and management.","Fluids","Enhanced","ODP",false,{"$f":"IF(Table5[[#This Row],[Complete ]],\"Complete\",\"Pending\")","v":"Pending"}]
[null,"Interpret markers of liver function and assess the impact for intervention and management.","Fluids","Enhanced","Physio",false,{"$f":"IF(Table5[[#This Row],[Complete ]],\"Complete\",\"Pending\")","v":"Pending"}]
[null,"Interpret markers of liver function and assess the impact for intervention and management.","Fluids","Enhanced","Dietitian",false,{"$f":"IF(Table5[[#This Row],[Complete ]],\"Complete\",\"Pending\")","v":"Pending"}]
[null,"Evaluate abnormal glycaemic control and its treatments, and interpret impact on nutrition intervention plans.","Fluids","Enhanced","Dietitian",false,{"$f":"IF(Table5[[#This Row],[Complete ]],\"Complete\",\"Pending\")","v":"Pending"}]
[null,"Evaluate patient fluid balance and liaise with multi-professional team where intervention is required.","Fluids","Enhanced","ODP",false,{"$f":"IF(Table5[[#This Row],[Complete ]],\"Complete\",\"Pending\")","v":"Pending"}]
[null,"Recognise and record patient position, including whole body and limb positioning.","Physical Function","Supportive","All Professions",false,{"$f":"IF(Table5[[#This Row],[Complete ]],\"Complete\",\"Pending\")","v":"Pending"}]
[null,"Assist with upper limb assessment, recognising any impairments or the presence of oedema.","Physical Function","Assistive","OT",false,{"$f":"IF(Table5[[#This Row],[Complete ]],\"Complete\",\"Pending\")","v":"Pending"}]
[null,"Support with sensory and visual assessments, recognising the impact of sensory and visual changes on function.","Physical Function","Assistive","OT",false,{"$f":"IF(Table5[[#This Row],[Complete ]],\"Complete\",\"Pending\")","v":"Pending"}]
[null,"Measure and report physical function of spontaneously breathing patients.","Physical Function","Assistive","Physio",false,{"$f":"IF(Table5[[#This Row],[Complete ]],\"Complete\",\"Pending\")","v":"Pending"}]
[null,"Measure and report physical function of spontaneously breathing patients.","Physical Function","Assistive","OT",false,{"$f":"IF(Table5[[#This Row],[Complete ]],\"Complete\",\"Pending\")","v":"Pending"}]
[null,"Monitor limb positioning and understand the implications of abnormal posture on the neuromusculoskeletal system.","Physical Function","Assistive","Physio",false,{"$f":"IF(Table5[[#This Row],[Complete ]],\"Complete\",\"Pending\")","v":"Pending"}]
[null,"Monitor limb positioning and understand the implications of abnormal posture on the neuromusculoskeletal system.","Physical Function","Assistive","OT",false,{"$f":"IF(Table5[[#This Row],[Complete ]],\"Complete\",\"Pending\")","v":"Pending"}]
[null,"Monitor limb positioning and understand the implications of abnormal posture on the neuromusculoskeletal system.","Physical Function","Assistive","ODP",false,{"$f":"IF(Table5[[#This Row],[Complete ]],\"Complete\",\"Pending\")","v":"Pending"}]
[null,"Measure active and passive range of movement and muscle strength using standardised assessments.","Physical Function","Assistive","Physio",false,{"$f":"IF(Table5[[#This Row],[Complete ]],\"Complete\",\"Pending\")","v":"Pending"}]
[null,"Assess the impact of patient positioning on key physiological systems.","Physical Function","Foundation","All Professions",false,{"$f":"IF(Table5[[#This Row],[Complete ]],\"Complete\",\"Pending\")","v":"Pending"}]
[null,"Interpret results from physical examinations, recognising the impact on positioning, body functions and implications for assessment and intervention.","Physical Function","Foundation","SLT",false,{"$f":"IF(Table5[[#This Row],[Complete ]],\"Complete\",\"Pending\")","v":"Pending"}]
[null,"Interpret results from physical examinations, recognising the impact on positioning, body functions and implications for assessment and intervention.","Physical Function","Foundation","Dietitian",false,{"$f":"IF(Table5[[#This Row],[Complete ]],\"Complete\",\"Pending\")","v":"Pending"}]
[null,"Assess physical function using a validated outcome measure suitable for the patient's stage of the critical care pathway.","Physical Function","Foundation","Physio",false,{"$f":"IF(Table5[[#This Row],[Complete ]],\"Complete\",\"Pending\")","v":"Pending"}]
[null,"Assess physical function using a validated outcome measure suitable for the patient's stage of the critical care pathway.","Physical Function","Foundation","OT",false,{"$f":"IF(Table5[[#This Row],[Complete ]],\"Complete\",\"Pending\")","v":"Pending"}]
[null,"Measure active and passive range of movement and muscle strength, as appropriate, for both conscious and unconscious patients.","Physical Function","Foundation","OT",false,{"$f":"IF(Table5[[#This Row],[Complete ]],\"Complete\",\"Pending\")","v":"Pending"}]
[null,"Assess upper limb tone within a variety of postural sets.","Physical Function","Foundation","OT",false,{"$f":"IF(Table5[[#This Row],[Complete ]],\"Complete\",\"Pending\")","v":"Pending"}]
[null,"Assess sensory needs using standardised or non-standardised methods.","Physical Function","Foundation","OT",false,{"$f":"IF(Table5[[#This Row],[Complete ]],\"Complete\",\"Pending\")","v":"Pending"}]
[null,"Assess upper limb muscle strength using a variety of methods and consider the impairment on functional and occupational engagement.","Physical Function","Foundation","OT",false,{"$f":"IF(Table5[[#This Row],[Complete ]],\"Complete\",\"Pending\")","v":"Pending"}]
[null,"Assess upper limb proprioception, coordination, sensation and stereognosis using a range of assessment methods.","Physical Function","Foundation","OT",false,{"$f":"IF(Table5[[#This Row],[Complete ]],\"Complete\",\"Pending\")","v":"Pending"}]
[null,"Assess, measure and record upper limb oedema using differing standardised methods, identifying type and underlying pathophysiology.","Physical Function","Foundation","OT",false,{"$f":"IF(Table5[[#This Row],[Complete ]],\"Complete\",\"Pending\")","v":"Pending"}]
[null,"Evaluate the glenohumeral joint for subluxation, range and pain.","Physical Function","Foundation","OT",false,{"$f":"IF(Table5[[#This Row],[Complete ]],\"Complete\",\"Pending\")","v":"Pending"}]
[null,"Assess visual function using validated tools and non-standardised assessments, interpreting the findings on the impact of occupational performance and participation.","Physical Function","Foundation","OT",false,{"$f":"IF(Table5[[#This Row],[Complete ]],\"Complete\",\"Pending\")","v":"Pending"}]
[null,"Assess the patient for the most appropriate seating option.","Physical Function","Foundation","OT",false,{"$f":"IF(Table5[[#This Row],[Complete ]],\"Complete\",\"Pending\")","v":"Pending"}]
[null,"Assess a range of grip types using meaningful activities.","Physical Function","Foundation","OT",false,{"$f":"IF(Table5[[#This Row],[Complete ]],\"Complete\",\"Pending\")","v":"Pending"}]
[null,"Assess neuromusculoskeletal system including muscle strength, tone, sensation, range of motion and movement patterns.","Physical Function","Foundation","Physio",false,{"$f":"IF(Table5[[#This Row],[Complete ]],\"Complete\",\"Pending\")","v":"Pending"}]
[null,"Assess sitting balance, standing balance, posture and gait as appropriate to the patient's level of function.","Physical Function","Foundation","Physio",false,{"$f":"IF(Table5[[#This Row],[Complete ]],\"Complete\",\"Pending\")","v":"Pending"}]
[null,"Initiate assessment of active and passive range of movement for complex patients.","Physical Function","Enhanced","OT",false,{"$f":"IF(Table5[[#This Row],[Complete ]],\"Complete\",\"Pending\")","v":"Pending"}]
[null,"Implement evidence-informed upper limb outcome measures with identified patients.","Physical Function","Enhanced","OT",false,{"$f":"IF(Table5[[#This Row],[Complete ]],\"Complete\",\"Pending\")","v":"Pending"}]
[null,"Evaluate sensory requirements, assessing the impact on the patient's ability to engage in their environment and occupational activities.","Physical Function","Enhanced","OT",false,{"$f":"IF(Table5[[#This Row],[Complete ]],\"Complete\",\"Pending\")","v":"Pending"}]
[null,"Initiate a visual assessment, evaluating the impact of visual deficits on occupational performance and making onward referrals to specialist services as appropriate.","Physical Function","Enhanced","OT",false,{"$f":"IF(Table5[[#This Row],[Complete ]],\"Complete\",\"Pending\")","v":"Pending"}]
[null,"Evaluate patient response to whole-body positioning strategies.","Physical Function","Enhanced","ODP",false,{"$f":"IF(Table5[[#This Row],[Complete ]],\"Complete\",\"Pending\")","v":"Pending"}]
[null,"Evaluate patient response to whole-body positioning strategies.","Physical Function","Enhanced","SLT",false,{"$f":"IF(Table5[[#This Row],[Complete ]],\"Complete\",\"Pending\")","v":"Pending"}]
[null,"Evaluate patient response to whole-body positioning strategies.","Physical Function","Enhanced","Physio",false,{"$f":"IF(Table5[[#This Row],[Complete ]],\"Complete\",\"Pending\")","v":"Pending"}]
[null,"Initiate multi-faceted assessment of physical function for patients with complex needs.","Physical Function","Enhanced","Physio",false,{"$f":"IF(Table5[[#This Row],[Complete ]],\"Complete\",\"Pending\")","v":"Pending"}]
[null,"Differentiate neuromusculoskeletal presentations including intensive care unit acquired weakness, focal neurological deficit, and abnormal movement patterns.","Physical Function","Enhanced","Physio",false,{"$f":"IF(Table5[[#This Row],[Complete ]],\"Complete\",\"Pending\")","v":"Pending"}]
[null,"Recognise the impact of poor sleep quality, sleep deprivation, fatigue and importance of rest on wellbeing and the ability to engage with care.","Non-physical function","Supportive","All Professions",false,{"$f":"IF(Table5[[#This Row],[Complete ]],\"Complete\",\"Pending\")","v":"Pending"}]
[null,"Recognise daily fluctuations in delirium severity through daily behavioural observations and interactions with the patient and multi-professional team.","Non-physical function","Supportive","All Professions",false,{"$f":"IF(Table5[[#This Row],[Complete ]],\"Complete\",\"Pending\")","v":"Pending"}]
[null,"Recognise the barriers to good quality sleep and support with sleep promotion activities.","Non-physical function","Supportive","All Professions",false,{"$f":"IF(Table5[[#This Row],[Complete ]],\"Complete\",\"Pending\")","v":"Pending"}]
[null,"Recognise the impact of critical illness on patient wellbeing, and report concerns to the multi-professional team.","Non-physical function","Supportive","All Professions",false,{"$f":"IF(Table5[[#This Row],[Complete ]],\"Complete\",\"Pending\")","v":"Pending"}]
[null,"Perform a cognitive screen for all relevant patients.","Non-physical function","Assistive","OT",false,{"$f":"IF(Table5[[#This Row],[Complete ]],\"Complete\",\"Pending\")","v":"Pending"}]
[null,"Recognise a patient in a disorder of consciousness and identify possible causes from medical notes.","Non-physical function","Assistive","SLT",false,{"$f":"IF(Table5[[#This Row],[Complete ]],\"Complete\",\"Pending\")","v":"Pending"}]
[null,"Recognise a patient in a disorder of consciousness and identify possible causes from medical notes.","Non-physical function","Assistive","OT",false,{"$f":"IF(Table5[[#This Row],[Complete ]],\"Complete\",\"Pending\")","v":"Pending"}]
[null,"Contribute to adaptation of the critical care environment prior to a disorder of consciousness assessment.","Non-physical function","Assistive","SLT",false,{"$f":"IF(Table5[[#This Row],[Complete ]],\"Complete\",\"Pending\")","v":"Pending"}]
[null,"Contribute to adaptation of the critical care environment prior to a disorder of consciousness assessment.","Non-physical function","Assistive","OT",false,{"$f":"IF(Table5[[#This Row],[Complete ]],\"Complete\",\"Pending\")","v":"Pending"}]
[null,"Recognise a patient's behaviours to support the multi-professional team in a disorder of consciousness assessment.","Non-physical function","Assistive","SLT",false,{"$f":"IF(Table5[[#This Row],[Complete ]],\"Complete\",\"Pending\")","v":"Pending"}]
[null,"Recognise a patient's behaviours to support the multi-professional team in a disorder of consciousness assessment.","Non-physical function","Assistive","OT",false,{"$f":"IF(Table5[[#This Row],[Complete ]],\"Complete\",\"Pending\")","v":"Pending"}]
[null,"Recognise differences between arousal, wakefulness and awareness, discussing the patient's exhibited behaviours.","Non-physical function","Assistive","SLT",false,{"$f":"IF(Table5[[#This Row],[Complete ]],\"Complete\",\"Pending\")","v":"Pending"}]
[null,"Recognise differences between arousal, wakefulness and awareness, discussing the patient's exhibited behaviours.","Non-physical function","Assistive","OT",false,{"$f":"IF(Table5[[#This Row],[Complete ]],\"Complete\",\"Pending\")","v":"Pending"}]
[null,"Recognise when therapy input is no longer required due to palliation.","Non-physical function","Assistive","Physio",false,{"$f":"IF(Table5[[#This Row],[Complete ]],\"Complete\",\"Pending\")","v":"Pending"}]
[null,"Recognise when therapy input is no longer required due to palliation.","Non-physical function","Assistive","SLT",false,{"$f":"IF(Table5[[#This Row],[Complete ]],\"Complete\",\"Pending\")","v":"Pending"}]
[null,"Recognise when therapy input is no longer required due to palliation.","Non-physical function","Assistive","OT",false,{"$f":"IF(Table5[[#This Row],[Complete ]],\"Complete\",\"Pending\")","v":"Pending"}]
[null,"Recognise when therapy input is no longer required due to palliation.","Non-physical function","Assistive","Dietitian",false,{"$f":"IF(Table5[[#This Row],[Complete ]],\"Complete\",\"Pending\")","v":"Pending"}]
[null,"Recognise the impact of sleep deprivation and fatigue on occupational performance and contribute to relevant assessments.","Non-physical function","Assistive","OT",false,{"$f":"IF(Table5[[#This Row],[Complete ]],\"Complete\",\"Pending\")","v":"Pending"}]
[null,"Monitor level of psychological distress in relation to eating, drinking, swallowing and communication, reporting concerns to relevant multi-professional team members.","Non-physical function","Assistive","SLT",false,{"$f":"IF(Table5[[#This Row],[Complete ]],\"Complete\",\"Pending\")","v":"Pending"}]
[null,"Assess consciousness level, agitation level and delirium using standardised assessments.","Non-physical function","Foundation","All Professions",false,{"$f":"IF(Table5[[#This Row],[Complete ]],\"Complete\",\"Pending\")","v":"Pending"}]
[null,"Assess cognitive and perceptual deficits using various standardised and non-standardised assessments.","Non-physical function","Foundation","OT",false,{"$f":"IF(Table5[[#This Row],[Complete ]],\"Complete\",\"Pending\")","v":"Pending"}]
[null,"Identify reversible causes for disorders of consciousness.","Non-physical function","Foundation","SLT",false,{"$f":"IF(Table5[[#This Row],[Complete ]],\"Complete\",\"Pending\")","v":"Pending"}]
[null,"Identify reversible causes for disorders of consciousness.","Non-physical function","Foundation","OT",false,{"$f":"IF(Table5[[#This Row],[Complete ]],\"Complete\",\"Pending\")","v":"Pending"}]
[null,"Assess delirium severity and type through functional assessment, including observation of daily routines and activities.","Non-physical function","Foundation","OT",false,{"$f":"IF(Table5[[#This Row],[Complete ]],\"Complete\",\"Pending\")","v":"Pending"}]
[null,"Assess cognitive, physical and emotional fatigue, identifying contributing factors and evaluating impact on occupational performance and participation.","Non-physical function","Foundation","OT",false,{"$f":"IF(Table5[[#This Row],[Complete ]],\"Complete\",\"Pending\")","v":"Pending"}]
[null,"Assess sleep, identifying the possible barriers to sleep quality, and advocate for the importance of quality sleep, cognitive, and physical rest.","Non-physical function","Foundation","OT",false,{"$f":"IF(Table5[[#This Row],[Complete ]],\"Complete\",\"Pending\")","v":"Pending"}]
[null,"Contribute to discussions with the multi-professional team to decide on optimal timing to commence assessment of disorders of consciousness.","Non-physical function","Foundation","OT",false,{"$f":"IF(Table5[[#This Row],[Complete ]],\"Complete\",\"Pending\")","v":"Pending"}]
[null,"Contribute to discussions with the multi-professional team to decide on optimal timing to commence assessment of disorders of consciousness.","Non-physical function","Foundation","SLT",false,{"$f":"IF(Table5[[#This Row],[Complete ]],\"Complete\",\"Pending\")","v":"Pending"}]
[null,"Contribute to discussions with the multi-professional team to decide on optimal timing to commence assessment of disorders of consciousness.","Non-physical function","Foundation","Physio",false,{"$f":"IF(Table5[[#This Row],[Complete ]],\"Complete\",\"Pending\")","v":"Pending"}]
[null,"Assess the psychological impact of communication and swallowing difficulties and implications on engagement, participation and quality of life.","Non-physical function","Foundation","SLT",false,{"$f":"IF(Table5[[#This Row],[Complete ]],\"Complete\",\"Pending\")","v":"Pending"}]
[null,"Assess cognition in relation to capacity, navigating the patient and multi-professional team through the assessment, advocating for the patient as required.","Non-physical function","Foundation","OT",false,{"$f":"IF(Table5[[#This Row],[Complete ]],\"Complete\",\"Pending\")","v":"Pending"}]
[null,"Recognise when formalised psychological treatment is required and refer appropriately.","Non-physical function","Foundation","Dietitian",false,{"$f":"IF(Table5[[#This Row],[Complete ]],\"Complete\",\"Pending\")","v":"Pending"}]
[null,"Recognise when formalised psychological treatment is required and refer appropriately.","Non-physical function","Foundation","OT",false,{"$f":"IF(Table5[[#This Row],[Complete ]],\"Complete\",\"Pending\")","v":"Pending"}]
[null,"Recognise when formalised psychological treatment is required and refer appropriately.","Non-physical function","Foundation","SLT",false,{"$f":"IF(Table5[[#This Row],[Complete ]],\"Complete\",\"Pending\")","v":"Pending"}]
[null,"Recognise when formalised psychological treatment is required and refer appropriately.","Non-physical function","Foundation","Physio",false,{"$f":"IF(Table5[[#This Row],[Complete ]],\"Complete\",\"Pending\")","v":"Pending"}]
[null,"Initiate a detailed assessment for patients with complex cognitive or perceptual deficits, interpreting findings and appraising the impact for intervention and management.","Non-physical function","Enhanced","OT",false,{"$f":"IF(Table5[[#This Row],[Complete ]],\"Complete\",\"Pending\")","v":"Pending"}]
[null,"Evaluate the possible causes of disorder of consciousness, excluding reversable causes, in collaboration with the multi-professional team.","Non-physical function","Enhanced","SLT",false,{"$f":"IF(Table5[[#This Row],[Complete ]],\"Complete\",\"Pending\")","v":"Pending"}]
[null,"Evaluate the possible causes of disorder of consciousness, excluding reversable causes, in collaboration with the multi-professional team.","Non-physical function","Enhanced","OT",false,{"$f":"IF(Table5[[#This Row],[Complete ]],\"Complete\",\"Pending\")","v":"Pending"}]
[null,"Educate the multi-professional team on the impact of sleep deprivation and poor sleep quality, and importance of cognitive and physical rest in occupational performance and participation.","Non-physical function","Enhanced","OT",false,{"$f":"IF(Table5[[#This Row],[Complete ]],\"Complete\",\"Pending\")","v":"Pending"}]
[null,"Liaise with fatigue services and specialists when managing complex clinical cases.","Non-physical function","Enhanced","OT",false,{"$f":"IF(Table5[[#This Row],[Complete ]],\"Complete\",\"Pending\")","v":"Pending"}]
[null,"Lead on assessments for patients in a disorder of consciousness, contributing to the diagnosis, prognosis and trajectory, providing timely and sensitive feedback to families and carers and the multi-professional team.","Non-physical function","Enhanced","SLT",false,{"$f":"IF(Table5[[#This Row],[Complete ]],\"Complete\",\"Pending\")","v":"Pending"}]
[null,"Lead on assessments for patients in a disorder of consciousness, contributing to the diagnosis, prognosis and trajectory, providing timely and sensitive feedback to families and carers and the multi-professional team.","Non-physical function","Enhanced","OT",false,{"$f":"IF(Table5[[#This Row],[Complete ]],\"Complete\",\"Pending\")","v":"Pending"}]
[null,"Support others to recognise and address the impact of communication, eating, drinking and swallowing difficulties on psychological health.","Non-physical function","Enhanced","SLT",false,{"$f":"IF(Table5[[#This Row],[Complete ]],\"Complete\",\"Pending\")","v":"Pending"}]
[null,"Appraise barriers and challenges to meeting spiritual and cultural needs, ensuring all patient values, interests, roles and usual routines are acknowledged by the multi-professional team to inform their care and practice.","Non-physical function","Enhanced","OT",false,{"$f":"IF(Table5[[#This Row],[Complete ]],\"Complete\",\"Pending\")","v":"Pending"}]
[null,"Recognise the impact of occupational deprivation on health and wellbeing and the causes contributing to occupational deprivation.","Meaningful occupation","Assistive","OT",false,{"$f":"IF(Table5[[#This Row],[Complete ]],\"Complete\",\"Pending\")","v":"Pending"}]
[null,"Discuss principles of activity analysis and how this can be applied during functional assessments.","Meaningful occupation","Assistive","OT",false,{"$f":"IF(Table5[[#This Row],[Complete ]],\"Complete\",\"Pending\")","v":"Pending"}]
[null,"Contribute to the assessment process by identifying meaningful occupations with the patient and families and carers, utilising documents including 'This is Me'.","Meaningful occupation","Assistive","OT",false,{"$f":"IF(Table5[[#This Row],[Complete ]],\"Complete\",\"Pending\")","v":"Pending"}]
[null,"Assess a patient's current occupational status, considering previous level of function, life experiences, interests and challenges, to promote understanding and encourage humanisation of the environment.","Meaningful occupation","Foundation","OT",false,{"$f":"IF(Table5[[#This Row],[Complete ]],\"Complete\",\"Pending\")","v":"Pending"}]
[null,"Initiate an activity analysis and interpret findings, combining activity analysis with an appropriate frame of reference or model to ensure patient-centred care.","Meaningful occupation","Foundation","OT",false,{"$f":"IF(Table5[[#This Row],[Complete ]],\"Complete\",\"Pending\")","v":"Pending"}]
[null,"Recognise the impact of the critical care environment on patient occupational engagement in physical, cognitive and psychological domains.","Meaningful occupation","Foundation","OT",false,{"$f":"IF(Table5[[#This Row],[Complete ]],\"Complete\",\"Pending\")","v":"Pending"}]
[null,"Assess for occupational deprivation, recognising the barriers to engagement and meaningful participation.","Meaningful occupation","Foundation","OT",false,{"$f":"IF(Table5[[#This Row],[Complete ]],\"Complete\",\"Pending\")","v":"Pending"}]
[null,"Educate the multi-professional team on occupational deprivation, creating a culture of meaningful occupation, to enhance optimum levels of performance and productivity.","Meaningful occupation","Enhanced","OT",false,{"$f":"IF(Table5[[#This Row],[Complete ]],\"Complete\",\"Pending\")","v":"Pending"}]
[null,"Assist in modifying and preparing communication assessment resources to suit individual needs.","Communication assesment","Assistive","SLT",false,{"$f":"IF(Table5[[#This Row],[Complete ]],\"Complete\",\"Pending\")","v":"Pending"}]
[null,"Monitor changes in communication function and escalate as required.","Communication assesment","Assistive","SLT",false,{"$f":"IF(Table5[[#This Row],[Complete ]],\"Complete\",\"Pending\")","v":"Pending"}]
[null,"Recognise impact of critical care environment and equipment on a patient's ability to communicate, advocating for these to be addressed where possible.","Communication assesment","Assistive","SLT",false,{"$f":"IF(Table5[[#This Row],[Complete ]],\"Complete\",\"Pending\")","v":"Pending"}]
[null,"Recognise impact of critical care environment and equipment on a patient's ability to communicate, advocating for these to be addressed where possible.","Communication assesment","Assistive","Physio",false,{"$f":"IF(Table5[[#This Row],[Complete ]],\"Complete\",\"Pending\")","v":"Pending"}]
[null,"Recognise impact of critical care environment and equipment on a patient's ability to communicate, advocating for these to be addressed where possible.","Communication assesment","Assistive","OT",false,{"$f":"IF(Table5[[#This Row],[Complete ]],\"Complete\",\"Pending\")","v":"Pending"}]
[null,"Assess and identify features of speech, language, voice and cognitive communication disorders, considering their cause, presence and implications to inform ongoing management and rehabilitation.","Communication assesment","Foundation","SLT",false,{"$f":"IF(Table5[[#This Row],[Complete ]],\"Complete\",\"Pending\")","v":"Pending"}]
[null,"Identify communication barriers experienced by patients, families and carers and the multi-professional team and address these where possible.","Communication assesment","Foundation","SLT",false,{"$f":"IF(Table5[[#This Row],[Complete ]],\"Complete\",\"Pending\")","v":"Pending"}]
[null,"Apply information from case history, diagnosis, current medical status and other individual factors, to inform selection and application of appropriate communication assessments.","Communication assesment","Foundation","SLT",false,{"$f":"IF(Table5[[#This Row],[Complete ]],\"Complete\",\"Pending\")","v":"Pending"}]
[null,"Assess impact of respiratory conditions and treatment on speech, voice and communicative effectiveness.","Communication assesment","Foundation","SLT",false,{"$f":"IF(Table5[[#This Row],[Complete ]],\"Complete\",\"Pending\")","v":"Pending"}]
[null,"Assess impact of voicelessness in patients unable to communicate verbally, advocating for the patient and educating families, carers and the multi-professional team.","Communication assesment","Foundation","SLT",false,{"$f":"IF(Table5[[#This Row],[Complete ]],\"Complete\",\"Pending\")","v":"Pending"}]
[null,"Assess ability to restore verbal communication in spontaneously breathing, tracheostomised patients using a range of approaches, including manipulation of tracheostomy and one-way valves.","Communication assesment","Foundation","SLT",false,{"$f":"IF(Table5[[#This Row],[Complete ]],\"Complete\",\"Pending\")","v":"Pending"}]
[null,"Assess and identify alternative and augmentative methods of communication for patients who are unable to communicate verbally.","Communication assesment","Foundation","SLT",false,{"$f":"IF(Table5[[#This Row],[Complete ]],\"Complete\",\"Pending\")","v":"Pending"}]
[null,"Assess communication skills for patients experiencing delirium, contributing to differential diagnosis of delirium from post-traumatic amnesia and cognitive communication disorder.","Communication assesment","Foundation","SLT",false,{"$f":"IF(Table5[[#This Row],[Complete ]],\"Complete\",\"Pending\")","v":"Pending"}]
[null,"Assess communication skills in relation to consent and capacity, using a range of individualised methods, techniques and strategies to support the patient to provide valid consent, participate in care decisions and capacity assessments.","Communication assesment","Foundation","SLT",false,{"$f":"IF(Table5[[#This Row],[Complete ]],\"Complete\",\"Pending\")","v":"Pending"}]
[null,"Evaluate the complex interactions between speech, language and communication difficulties and their impact on a patient's social interaction, inclusion and mental health.","Communication assesment","Enhanced","SLT",false,{"$f":"IF(Table5[[#This Row],[Complete ]],\"Complete\",\"Pending\")","v":"Pending"}]
[null,"Lead on communication assessments, utilising a range of methods and using information to inform diagnosis, complex decision making and ongoing management.","Communication assesment","Enhanced","SLT",false,{"$f":"IF(Table5[[#This Row],[Complete ]],\"Complete\",\"Pending\")","v":"Pending"}]
[null,"Evaluate effects of respiratory conditions and treatment and their impact on speech, voice and communication.","Communication assesment","Enhanced","SLT",false,{"$f":"IF(Table5[[#This Row],[Complete ]],\"Complete\",\"Pending\")","v":"Pending"}]
[null,"Evaluate the impact of acquired communication disorders on the assessment and management of patients experiencing delirium or disorder of consciousness.","Communication assesment","Enhanced","SLT",false,{"$f":"IF(Table5[[#This Row],[Complete ]],\"Complete\",\"Pending\")","v":"Pending"}]
[null,"Weigh up the advantages and disadvantages of different alternative and augmentative communication options, recognising that they require complex processes, patient motivation and involvement from communication partners, which may vary at different time points on the critical care pathway.","Communication assesment","Enhanced","SLT",false,{"$f":"IF(Table5[[#This Row],[Complete ]],\"Complete\",\"Pending\")","v":"Pending"}]
[null,"Lead on communication assessments for complex patients experiencing delirium, differentiating between a range of communication disorders and contributing factors.","Communication assesment","Enhanced","SLT",false,{"$f":"IF(Table5[[#This Row],[Complete ]],\"Complete\",\"Pending\")","v":"Pending"}]
[null,"Evaluate the effectiveness of communication techniques and strategies to support individualisation of mental capacity assessments, ensuring these are utilised when working across multiple teams.","Communication assesment","Enhanced","SLT",false,{"$f":"IF(Table5[[#This Row],[Complete ]],\"Complete\",\"Pending\")","v":"Pending"}]
[null,"Evaluate ability to restore verbal communication in mechanically ventilated, tracheostomised patients using a range of approaches, including tracheostomy and ventilator manipulation, one-way valves and above cuff vocalisation.","Communication assesment","Enhanced","SLT",false,{"$f":"IF(Table5[[#This Row],[Complete ]],\"Complete\",\"Pending\")","v":"Pending"}]
[null,"Assist speech and language therapist in preparation and clear up for instrumental assessments and clinics.","Eating drinkingand swallowing","Assistive","SLT",false,{"$f":"IF(Table5[[#This Row],[Complete ]],\"Complete\",\"Pending\")","v":"Pending"}]
[null,"Assess suitability for swallowing assessment, interpreting information from a range of sources and weighing up benefits versus risks of oral intake.","Eating drinkingand swallowing","Foundation","SLT",false,{"$f":"IF(Table5[[#This Row],[Complete ]],\"Complete\",\"Pending\")","v":"Pending"}]
[null,"Perform eating, drinking and swallowing assessments, using information to develop a hypothesis on underlying cause and guide ongoing management and rehabilitation.","Eating drinkingand swallowing","Foundation","SLT",false,{"$f":"IF(Table5[[#This Row],[Complete ]],\"Complete\",\"Pending\")","v":"Pending"}]
[null,"Apply a person-centred approach to eating, drinking and swallowing assessments, ensuring the assessments are responsive to cultural, religious and dietary preferences.","Eating drinkingand swallowing","Foundation","SLT",false,{"$f":"IF(Table5[[#This Row],[Complete ]],\"Complete\",\"Pending\")","v":"Pending"}]
[null,"Refer for further investigations or specialist input to inform differential diagnosis of dysphagia.","Eating drinkingand swallowing","Foundation","SLT",false,{"$f":"IF(Table5[[#This Row],[Complete ]],\"Complete\",\"Pending\")","v":"Pending"}]
[null,"Perform eating, drinking and swallowing assessments for spontaneously breathing, tracheostomised patients, utilising a variety of tracheostomy manipulation techniques to inform ongoing intervention and management.","Eating drinkingand swallowing","Foundation","SLT",false,{"$f":"IF(Table5[[#This Row],[Complete ]],\"Complete\",\"Pending\")","v":"Pending"}]
[null,"Assess impact of respiratory conditions, non-invasive ventilation and high flow nasal oxygen therapy on safety and efficiency of eating, drinking, swallowing and secretion management.","Eating drinkingand swallowing","Foundation","SLT",false,{"$f":"IF(Table5[[#This Row],[Complete ]],\"Complete\",\"Pending\")","v":"Pending"}]
[null,"Perform eating, drinking and swallowing assessments for individuals in a disorder of consciousness, recognising the need for adaptations to incorporate a multi-sensory approach.","Eating drinkingand swallowing","Foundation","SLT",false,{"$f":"IF(Table5[[#This Row],[Complete ]],\"Complete\",\"Pending\")","v":"Pending"}]
[null,"Implement recommendations from instrumental assessments into individualised dysphagia and communication management plans and tracheostomy weaning plans.","Eating drinkingand swallowing","Foundation","SLT",false,{"$f":"IF(Table5[[#This Row],[Complete ]],\"Complete\",\"Pending\")","v":"Pending"}]
[null,"Select appropriate instrumental assessment, guided by clinical indications, dysphagia hypothesis and appropriate visualisation modality, recognising the benefits and limitations at different points in critical care pathway.","Eating drinkingand swallowing","Foundation","SLT",false,{"$f":"IF(Table5[[#This Row],[Complete ]],\"Complete\",\"Pending\")","v":"Pending"}]
[null,"Assess the requirement for adaptation to utensils and specialist equipment to promote independence when eating and drinking.","Eating drinkingand swallowing","Foundation","SLT",false,{"$f":"IF(Table5[[#This Row],[Complete ]],\"Complete\",\"Pending\")","v":"Pending"}]
[null,"Assess the requirement for adaptation to utensils and specialist equipment to promote independence when eating and drinking.","Eating drinkingand swallowing","Foundation","OT",false,{"$f":"IF(Table5[[#This Row],[Complete ]],\"Complete\",\"Pending\")","v":"Pending"}]
[null,"Evaluate information from various sources to hypothesise underlying causes and pathophysiology of abnormal swallowing, to inform likely prognosis, trajectory, management and rehabilitation plan.","Eating drinkingand swallowing","Enhanced","SLT",false,{"$f":"IF(Table5[[#This Row],[Complete ]],\"Complete\",\"Pending\")","v":"Pending"}]
[null,"Facilitate collaboration between the patient and the multi-professional team, negotiating the implications of dysphagia assessment, balancing risk and quality of life and wider implications on health and patient pathway.","Eating drinkingand swallowing","Enhanced","SLT",false,{"$f":"IF(Table5[[#This Row],[Complete ]],\"Complete\",\"Pending\")","v":"Pending"}]
[null,"Lead on eating, drinking and swallowing assessments, using information to inform diagnosis, complex decision making and ongoing management and rehabilitation.","Eating drinkingand swallowing","Enhanced","SLT",false,{"$f":"IF(Table5[[#This Row],[Complete ]],\"Complete\",\"Pending\")","v":"Pending"}]
[null,"Lead on eating, drinking and swallowing assessments in tracheostomised and mechanically ventilated patients, utilising a variety of tracheostomy and ventilatory manipulation techniques to inform ongoing management and rehabilitation.","Eating drinkingand swallowing","Enhanced","SLT",false,{"$f":"IF(Table5[[#This Row],[Complete ]],\"Complete\",\"Pending\")","v":"Pending"}]
[null,"Evaluate the appropriate clinical contexts for eating and drinking with an inflated cuff, utilising instrumental assessments, prognosis, and patient preferences to inform decision making.","Eating drinkingand swallowing","Enhanced","SLT",false,{"$f":"IF(Table5[[#This Row],[Complete ]],\"Complete\",\"Pending\")","v":"Pending"}]
[null,"Evaluate impact of respiratory support on upper airway function, swallowing and secretion management, informing the multi-professional team of diagnosis and management plan.","Eating drinkingand swallowing","Enhanced","SLT",false,{"$f":"IF(Table5[[#This Row],[Complete ]],\"Complete\",\"Pending\")","v":"Pending"}]
[null,"Lead on the assessment of eating, drinking and swallowing for complex patients in disorders of consciousness, weighing up the risk versus benefits when considering trajectory of care, time point on critical care pathway and consideration of ethical and legal issues.","Eating drinkingand swallowing","Enhanced","SLT",false,{"$f":"IF(Table5[[#This Row],[Complete ]],\"Complete\",\"Pending\")","v":"Pending"}]
[null,"Implement the use of fibreoptic endoscopic evaluation of swallowing to visualise the effects of respiratory therapies, ventilatory support and tracheostomy manipulation on laryngeal function, upper airway, swallow and communication.","Eating drinkingand swallowing","Enhanced","SLT",false,{"$f":"IF(Table5[[#This Row],[Complete ]],\"Complete\",\"Pending\")","v":"Pending"}]
[null,"Collaborate with specialist teams to seek opinion and diagnosis when structural abnormalities are observed during instrumental assessment.","Eating drinkingand swallowing","Enhanced","SLT",false,{"$f":"IF(Table5[[#This Row],[Complete ]],\"Complete\",\"Pending\")","v":"Pending"}]
[null,"Lead on and perform fibreoptic endoscopic evaluation of swallowing assessments, using outcomes to develop swallowing, voice, communication and tracheostomy management and rehabilitation plans, utilising biofeedback to enhance motivation and self management.","Eating drinkingand swallowing","Enhanced","SLT",false,{"$f":"IF(Table5[[#This Row],[Complete ]],\"Complete\",\"Pending\")","v":"Pending"}]
[null,"Implement the use of new, innovative or emerging instrumental assessment techniques, following relevant training.","Eating drinkingand swallowing","Enhanced","SLT",false,{"$f":"IF(Table5[[#This Row],[Complete ]],\"Complete\",\"Pending\")","v":"Pending"}]
[null,"Appraise and critically evaluate information from a range of sources, to guide selection of further investigations, referrals or specialist input to inform dysphagia diagnostics, decision making and management.","Eating drinkingand swallowing","Enhanced","SLT",false,{"$f":"IF(Table5[[#This Row],[Complete ]],\"Complete\",\"Pending\")","v":"Pending"}]
[null,"Identify if a patient is receiving nutrition support, and the rationale for the route.","Nutrition","Supportive","All Professions",false,{"$f":"IF(Table5[[#This Row],[Complete ]],\"Complete\",\"Pending\")","v":"Pending"}]
[null,"Recognise if a patient is nil by mouth, the rationale, and implications of nil by mouth state.","Nutrition","Supportive","All Professions",false,{"$f":"IF(Table5[[#This Row],[Complete ]],\"Complete\",\"Pending\")","v":"Pending"}]
[null,"Liaise with nursing staff prior to moving or repositioning a patient receiving enteral nutrition, to avoid misplacing enteral nutrition tubes.","Nutrition","Supportive","All Professions",false,{"$f":"IF(Table5[[#This Row],[Complete ]],\"Complete\",\"Pending\")","v":"Pending"}]
[null,"Perform and record body measurements, including weight, weight history, height, ulna measurements, calf and mid upper arm circumference, handgrip dynamometry, and recognise values outside of the normal range.","Nutrition","Assistive","Dietitian",false,{"$f":"IF(Table5[[#This Row],[Complete ]],\"Complete\",\"Pending\")","v":"Pending"}]
[null,"Interpret percentage weight loss and recognise patients at risk of malnutrition.","Nutrition","Assistive","Dietitian",false,{"$f":"IF(Table5[[#This Row],[Complete ]],\"Complete\",\"Pending\")","v":"Pending"}]
[null,"Recognise and record common medications that are known to impact nutritional intervention plans, including laxatives, anti-diarrhoeals, antiemetics, vitamins, electrolytes.","Nutrition","Assistive","Dietitian",false,{"$f":"IF(Table5[[#This Row],[Complete ]],\"Complete\",\"Pending\")","v":"Pending"}]
[null,"Report on the normal and abnormal gastrointestinal function values and recognise when these could impact on the ability to eat and drink adequately.","Nutrition","Assistive","Dietitian",false,{"$f":"IF(Table5[[#This Row],[Complete ]],\"Complete\",\"Pending\")","v":"Pending"}]
[null,"Assist in obtaining current and past nutritional intake history from patients and their families and carers, including symptoms affecting intake, swallowing, food allergies, therapeutic and religious and cultural dietary needs and food preferences.","Nutrition","Assistive","Dietitian",false,{"$f":"IF(Table5[[#This Row],[Complete ]],\"Complete\",\"Pending\")","v":"Pending"}]
[null,"Assist in obtaining current and past nutritional intake history from patients and their families and carers, including symptoms affecting intake, swallowing, food allergies, therapeutic and religious and cultural dietary needs and food preferences.","Nutrition","Assistive","SLT",false,{"$f":"IF(Table5[[#This Row],[Complete ]],\"Complete\",\"Pending\")","v":"Pending"}]
[null,"Assess anthropometry and perform a basic physical examination of body composition, including assessing for loss of muscle, fat and presence of ascites and oedema.","Nutrition","Foundation","Dietitian",false,{"$f":"IF(Table5[[#This Row],[Complete ]],\"Complete\",\"Pending\")","v":"Pending"}]
[null,"Assess gastrointestinal function, including medical history, bowel function, gastric residual volumes, nausea and vomiting, physical examination, pharmacology and interpret results of imaging.","Nutrition","Foundation","Dietitian",false,{"$f":"IF(Table5[[#This Row],[Complete ]],\"Complete\",\"Pending\")","v":"Pending"}]
[null,"Interpret typical pharmacological interventions used in critical care, recognising their potential influence on nutrition intervention plans including prokinetics, proton pump inhibitors, pancreatic enzymes, analgesics, and those requiring a temporary interruption of enteral nutrition.","Nutrition","Foundation","Dietitian",false,{"$f":"IF(Table5[[#This Row],[Complete ]],\"Complete\",\"Pending\")","v":"Pending"}]
[null,"Recognise the clinical signs and symptoms associated with the metabolic response to critical illness.","Nutrition","Foundation","Dietitian",false,{"$f":"IF(Table5[[#This Row],[Complete ]],\"Complete\",\"Pending\")","v":"Pending"}]
[null,"Assess clinical indications for oral, enteral and parenteral nutrition, recognising whether current method of nutrition support is sufficient.","Nutrition","Foundation","Dietitian",false,{"$f":"IF(Table5[[#This Row],[Complete ]],\"Complete\",\"Pending\")","v":"Pending"}]
[null,"Assess current and past nutritional intake history, including symptoms affecting intake, swallowing, food allergies, therapeutic and religious and cultural diets, recognising areas of concern and referring on to dietetics or speech and language therapy as appropriate.","Nutrition","Foundation","Dietitian",false,{"$f":"IF(Table5[[#This Row],[Complete ]],\"Complete\",\"Pending\")","v":"Pending"}]
[null,"Assess current and past nutritional intake history, including symptoms affecting intake, swallowing, food allergies, therapeutic and religious and cultural diets, recognising areas of concern and referring on to dietetics or speech and language therapy as appropriate.","Nutrition","Foundation","SLT",false,{"$f":"IF(Table5[[#This Row],[Complete ]],\"Complete\",\"Pending\")","v":"Pending"}]
[null,"Recognise the risk of refeeding syndrome from assessment of current and past nutritional history and use to inform nutritional targets and intervention plans.","Nutrition","Foundation","Dietitian",false,{"$f":"IF(Table5[[#This Row],[Complete ]],\"Complete\",\"Pending\")","v":"Pending"}]
[null,"Perform an assessment of nutritional adequacy from oral, enteral or parenteral nutrition, recognising the critical care associated factors impacting on nutritional delivery.","Nutrition","Foundation","Dietitian",false,{"$f":"IF(Table5[[#This Row],[Complete ]],\"Complete\",\"Pending\")","v":"Pending"}]
[null,"Support in the undertaking of indirect calorimetry measurements of resting energy expenditure in spontaneously breathing patients.","Nutrition","Foundation","Dietitian",false,{"$f":"IF(Table5[[#This Row],[Complete ]],\"Complete\",\"Pending\")","v":"Pending"}]
[null,"Calculate macronutrient targets using critical illness specific predictive equations.","Nutrition","Foundation","Dietitian",false,{"$f":"IF(Table5[[#This Row],[Complete ]],\"Complete\",\"Pending\")","v":"Pending"}]
[null,"Calculate micronutrient targets, applying reference ranges.","Nutrition","Foundation","Dietitian",false,{"$f":"IF(Table5[[#This Row],[Complete ]],\"Complete\",\"Pending\")","v":"Pending"}]
[null,"Evaluate findings of anthropometry and comprehensive physical examination of body composition in complex patients, and use data to inform nutritional targets and intervention plans.","Nutrition","Enhanced","Dietitian",false,{"$f":"IF(Table5[[#This Row],[Complete ]],\"Complete\",\"Pending\")","v":"Pending"}]
[null,"Evaluate gastrointestinal function in more complex cases, judging how this will influence nutrition intervention plans.","Nutrition","Enhanced","Dietitian",false,{"$f":"IF(Table5[[#This Row],[Complete ]],\"Complete\",\"Pending\")","v":"Pending"}]
[null,"Evaluate and interpret the impact of pharmacology in complex cases, working closely with the multi-professional team.","Nutrition","Enhanced","Dietitian",false,{"$f":"IF(Table5[[#This Row],[Complete ]],\"Complete\",\"Pending\")","v":"Pending"}]
[null,"Escalate risks associated with not achieving nutritional targets and outcomes to the multi-professional team.","Nutrition","Enhanced","Dietitian",false,{"$f":"IF(Table5[[#This Row],[Complete ]],\"Complete\",\"Pending\")","v":"Pending"}]
[null,"Evaluate the risk of malnutrition or swallowing difficulties in complex and deteriorating patients and use this to inform interventions plans.","Nutrition","Enhanced","Dietitian",false,{"$f":"IF(Table5[[#This Row],[Complete ]],\"Complete\",\"Pending\")","v":"Pending"}]
[null,"Evaluate the risk of malnutrition or swallowing difficulties in complex and deteriorating patients and use this to inform interventions plans.","Nutrition","Enhanced","SLT",false,{"$f":"IF(Table5[[#This Row],[Complete ]],\"Complete\",\"Pending\")","v":"Pending"}]
[null,"Evaluate the risk of refeeding syndrome in complex and deteriorating patients and use to inform interventions plans, which may include recommendations to the multi-professional team.","Nutrition","Enhanced","Dietitian",false,{"$f":"IF(Table5[[#This Row],[Complete ]],\"Complete\",\"Pending\")","v":"Pending"}]
[null,"Evaluate which metabolic phase a patient is in, interpreting how this will inform nutrition intervention plans.","Nutrition","Enhanced","Dietitian",false,{"$f":"IF(Table5[[#This Row],[Complete ]],\"Complete\",\"Pending\")","v":"Pending"}]
[null,"Evaluate when a route of nutrition is inadequate or inappropriate in patients with complex presentations.","Nutrition","Enhanced","Dietitian",false,{"$f":"IF(Table5[[#This Row],[Complete ]],\"Complete\",\"Pending\")","v":"Pending"}]
[null,"Recommend the most appropriate nutrition support route for patients with complex presentations.","Nutrition","Enhanced","Dietitian",false,{"$f":"IF(Table5[[#This Row],[Complete ]],\"Complete\",\"Pending\")","v":"Pending"}]
[null,"Initiate indirect calorimetry measurements of resting energy expenditure in spontaneously breathing and ventilated patients, in collaboration with other multi-professional team members.","Nutrition","Enhanced","Dietitian",false,{"$f":"IF(Table5[[#This Row],[Complete ]],\"Complete\",\"Pending\")","v":"Pending"}]
[null,"Calculate macronutrient targets in complex cases for enteral and parenteral nutritional intervention plans.","Nutrition","Enhanced","Dietitian",false,{"$f":"IF(Table5[[#This Row],[Complete ]],\"Complete\",\"Pending\")","v":"Pending"}]
[null,"Calculate micronutrient targets in complex cases for enteral and parenteral nutritional intervention plans.","Nutrition","Enhanced","Dietitian",false,{"$f":"IF(Table5[[#This Row],[Complete ]],\"Complete\",\"Pending\")","v":"Pending"}]
[null,"Interpret the findings of indirect calorimetry measurements.","Nutrition","Enhanced","Dietitian",false,{"$f":"IF(Table5[[#This Row],[Complete ]],\"Complete\",\"Pending\")","v":"Pending"}]
[null,"Perform a protocol guided rehabilitation screen, recognising risk factors that indicate the individual is at risk of developing physical and non-physical morbidity.","Screening","Supportive","Physio",false,{"$f":"IF(Table5[[#This Row],[Complete ]],\"Complete\",\"Pending\")","v":"Pending"}]
[null,"Perform a protocol guided rehabilitation screen, recognising risk factors that indicate the individual is at risk of developing physical and non-physical morbidity.","Screening","Supportive","SLT",false,{"$f":"IF(Table5[[#This Row],[Complete ]],\"Complete\",\"Pending\")","v":"Pending"}]
[null,"Perform a protocol guided rehabilitation screen, recognising risk factors that indicate the individual is at risk of developing physical and non-physical morbidity.","Screening","Supportive","OT",false,{"$f":"IF(Table5[[#This Row],[Complete ]],\"Complete\",\"Pending\")","v":"Pending"}]
[null,"Perform a protocol guided rehabilitation screen, recognising risk factors that indicate the individual is at risk of developing physical and non-physical morbidity.","Screening","Supportive","Dietitian",false,{"$f":"IF(Table5[[#This Row],[Complete ]],\"Complete\",\"Pending\")","v":"Pending"}]
[null,"Perform an assessment of frailty, using a recognised tool.","Screening","Supportive","All Professions",false,{"$f":"IF(Table5[[#This Row],[Complete ]],\"Complete\",\"Pending\")","v":"Pending"}]
[null,"Recognise and monitor mood changes during interactions, identifying when further support is required.","Screening","Supportive","All Professions",false,{"$f":"IF(Table5[[#This Row],[Complete ]],\"Complete\",\"Pending\")","v":"Pending"}]
[null,"Perform a basic mood screen and contribute to the assessment of anxiety by talking to the patient and gaining background history from patient records, families and carers.","Screening","Assistive","OT",false,{"$f":"IF(Table5[[#This Row],[Complete ]],\"Complete\",\"Pending\")","v":"Pending"}]
[null,"Perform a communication screen or communication observation checklist, across a range of contexts, to assist in the early identification of risk factors and communication difficulties.","Screening","Assistive","SLT",false,{"$f":"IF(Table5[[#This Row],[Complete ]],\"Complete\",\"Pending\")","v":"Pending"}]
[null,"Perform a protocol-guided swallow screen, which could include swallow screen or eating and drinking observation checklist, recognising exclusion criteria and communicating findings to the multi-professional team.","Screening","Assistive","SLT",false,{"$f":"IF(Table5[[#This Row],[Complete ]],\"Complete\",\"Pending\")","v":"Pending"}]
[null,"Assess rehabilitation needs as early as clinically possible, using assessment and clinical judgement to identify patients at risk of physical and non-physical morbidity and implications for engagement and participation.","Screening","Foundation","SLT",false,{"$f":"IF(Table5[[#This Row],[Complete ]],\"Complete\",\"Pending\")","v":"Pending"}]
[null,"Assess rehabilitation needs as early as clinically possible, using assessment and clinical judgement to identify patients at risk of physical and non-physical morbidity and implications for engagement and participation.","Screening","Foundation","OT",false,{"$f":"IF(Table5[[#This Row],[Complete ]],\"Complete\",\"Pending\")","v":"Pending"}]
[null,"Assess rehabilitation needs as early as clinically possible, using assessment and clinical judgement to identify patients at risk of physical and non-physical morbidity and implications for engagement and participation.","Screening","Foundation","Dietitian",false,{"$f":"IF(Table5[[#This Row],[Complete ]],\"Complete\",\"Pending\")","v":"Pending"}]
[null,"Assess rehabilitation needs as early as clinically possible, using assessment and clinical judgement to identify patients at risk of physical and non-physical morbidity and implications for engagement and participation.","Screening","Foundation","Physio",false,{"$f":"IF(Table5[[#This Row],[Complete ]],\"Complete\",\"Pending\")","v":"Pending"}]
[null,"Perform a comprehensive rehabilitation assessment, modifying approach depending on patient's stage of critical illness and individual factors.","Screening","Foundation","SLT",false,{"$f":"IF(Table5[[#This Row],[Complete ]],\"Complete\",\"Pending\")","v":"Pending"}]
[null,"Perform a comprehensive rehabilitation assessment, modifying approach depending on patient's stage of critical illness and individual factors.","Screening","Foundation","OT",false,{"$f":"IF(Table5[[#This Row],[Complete ]],\"Complete\",\"Pending\")","v":"Pending"}]
[null,"Perform a comprehensive rehabilitation assessment, modifying approach depending on patient's stage of critical illness and individual factors.","Screening","Foundation","Dietitian",false,{"$f":"IF(Table5[[#This Row],[Complete ]],\"Complete\",\"Pending\")","v":"Pending"}]
[null,"Perform a comprehensive rehabilitation assessment, modifying approach depending on patient's stage of critical illness and individual factors.","Screening","Foundation","Physio",false,{"$f":"IF(Table5[[#This Row],[Complete ]],\"Complete\",\"Pending\")","v":"Pending"}]
[null,"Identify and review patient-centred rehabilitation goals, across the critical care pathway.","Screening","Foundation","SLT",false,{"$f":"IF(Table5[[#This Row],[Complete ]],\"Complete\",\"Pending\")","v":"Pending"}]
[null,"Identify and review patient-centred rehabilitation goals, across the critical care pathway.","Screening","Foundation","OT",false,{"$f":"IF(Table5[[#This Row],[Complete ]],\"Complete\",\"Pending\")","v":"Pending"}]
[null,"Identify and review patient-centred rehabilitation goals, across the critical care pathway.","Screening","Foundation","Dietitian",false,{"$f":"IF(Table5[[#This Row],[Complete ]],\"Complete\",\"Pending\")","v":"Pending"}]
[null,"Identify and review patient-centred rehabilitation goals, across the critical care pathway.","Screening","Foundation","Physio",false,{"$f":"IF(Table5[[#This Row],[Complete ]],\"Complete\",\"Pending\")","v":"Pending"}]
[null,"Assess frailty using a recognised tool, interpreting findings to inform either rehabilitation or intervention and management plans.","Screening","Foundation","All Professions",false,{"$f":"IF(Table5[[#This Row],[Complete ]],\"Complete\",\"Pending\")","v":"Pending"}]
[null,"Refer patients for further psychological assessment and support, where appropriate.","Screening","Foundation","All Professions",false,{"$f":"IF(Table5[[#This Row],[Complete ]],\"Complete\",\"Pending\")","v":"Pending"}]
[null,"Differentiate and identify the differences between fluctuations in mood caused by natural response to circumstances versus complex psychological needs.","Screening","Foundation","All Professions",false,{"$f":"IF(Table5[[#This Row],[Complete ]],\"Complete\",\"Pending\")","v":"Pending"}]
[null,"Inform psychological assessments, monitoring patient mood during interactions and making onward referrals to psychology and hospital's liaison services, where relevant.","Screening","Foundation","OT",false,{"$f":"IF(Table5[[#This Row],[Complete ]],\"Complete\",\"Pending\")","v":"Pending"}]
[null,"Assess anxiety using standardised assessment tools suitable for the clinical situation of the patient, alongside input from a practitioner psychologist, as available.","Screening","Foundation","OT",false,{"$f":"IF(Table5[[#This Row],[Complete ]],\"Complete\",\"Pending\")","v":"Pending"}]
[null,"Recognise the impact of poor sleep quality, sleep deprivation, fatigue and importance of rest on wellbeing and the ability to engage with care.","Screening","Foundation","Physio",false,{"$f":"IF(Table5[[#This Row],[Complete ]],\"Complete\",\"Pending\")","v":"Pending"}]
[null,"Evaluate patient readiness for ventilator and tracheostomy weaning, including extubation and decannulation.","Screening","Enhanced","SLT",false,{"$f":"IF(Table5[[#This Row],[Complete ]],\"Complete\",\"Pending\")","v":"Pending"}]
[null,"Evaluate patient readiness for ventilator and tracheostomy weaning, including extubation and decannulation.","Screening","Enhanced","ODP",false,{"$f":"IF(Table5[[#This Row],[Complete ]],\"Complete\",\"Pending\")","v":"Pending"}]
[null,"Evaluate patient readiness for ventilator and tracheostomy weaning, including extubation and decannulation.","Screening","Enhanced","Physio",false,{"$f":"IF(Table5[[#This Row],[Complete ]],\"Complete\",\"Pending\")","v":"Pending"}]
[null,"Assess anxiety through occupation-focused activities and relational skills, using yourself as a therapeutic tool.","Screening","Enhanced","OT",false,{"$f":"IF(Table5[[#This Row],[Complete ]],\"Complete\",\"Pending\")","v":"Pending"}]
[null,"Perform interventions as directed by a registered healthcare professional, recognising the intended action of the intervention.","Clinical reasoning ","Supportive","All Professions",false,{"$f":"IF(Table5[[#This Row],[Complete ]],\"Complete\",\"Pending\")","v":"Pending"}]
[null,"Recognise unexpected deviation of vital signs during intervention and feedback any changes to a registered healthcare professional.","Clinical reasoning ","Supportive","All Professions",false,{"$f":"IF(Table5[[#This Row],[Complete ]],\"Complete\",\"Pending\")","v":"Pending"}]
[null,"Apply understanding of the field of critical care to delegated tasks.","Clinical reasoning ","Supportive","All Professions",false,{"$f":"IF(Table5[[#This Row],[Complete ]],\"Complete\",\"Pending\")","v":"Pending"}]
[null,"Perform a basic risk assessment prior to clinical intervention and feedback any concerns to a registered healthcare professional.","Clinical reasoning ","Supportive","All Professions",false,{"$f":"IF(Table5[[#This Row],[Complete ]],\"Complete\",\"Pending\")","v":"Pending"}]
[null,"Recognise deviations from expected patient presentation and report findings to a registered healthcare professional.","Clinical reasoning ","Supportive","All Professions",false,{"$f":"IF(Table5[[#This Row],[Complete ]],\"Complete\",\"Pending\")","v":"Pending"}]
[null,"Apply a protocol to select appropriate interventions for routine, low-risk patients, such as spontaneously breathing, elective post-operative patients.","Clinical reasoning ","Assistive","All Professions",false,{"$f":"IF(Table5[[#This Row],[Complete ]],\"Complete\",\"Pending\")","v":"Pending"}]
[null,"Monitor response to intervention based on pre-determined criteria and feedback any unanticipated responses to a registered healthcare professional.","Clinical reasoning ","Assistive","All Professions",false,{"$f":"IF(Table5[[#This Row],[Complete ]],\"Complete\",\"Pending\")","v":"Pending"}]
[null,"Apply basic knowledge of critical care to own decision making in a specific context.","Clinical reasoning ","Assistive","All Professions",false,{"$f":"IF(Table5[[#This Row],[Complete ]],\"Complete\",\"Pending\")","v":"Pending"}]
[null,"Recognise the clinical risk associated with care provided and take action to minimise risk.","Clinical reasoning ","Assistive","All Professions",false,{"$f":"IF(Table5[[#This Row],[Complete ]],\"Complete\",\"Pending\")","v":"Pending"}]
[null,"Perform elements of a patient assessment, following protocols and guidelines to inform selection of interventions.","Clinical reasoning ","Assistive","All Professions",false,{"$f":"IF(Table5[[#This Row],[Complete ]],\"Complete\",\"Pending\")","v":"Pending"}]
[null,"Initiate appropriate interventions, applying knowledge of the indications, contraindications and precautions of each technique or management plan to inform the selection.","Clinical reasoning ","Foundation","All Professions",false,{"$f":"IF(Table5[[#This Row],[Complete ]],\"Complete\",\"Pending\")","v":"Pending"}]
[null,"Assess response to intervention using a recognised outcome measure, appropriate to stage of the patient's critical illness.","Clinical reasoning ","Foundation","All Professions",false,{"$f":"IF(Table5[[#This Row],[Complete ]],\"Complete\",\"Pending\")","v":"Pending"}]
[null,"Apply a broad knowledge of critical care to clinical decision making.","Clinical reasoning ","Foundation","All Professions",false,{"$f":"IF(Table5[[#This Row],[Complete ]],\"Complete\",\"Pending\")","v":"Pending"}]
[null,"Assess the risks associated with assessment techniques, interventions and management plans, including risk of adverse physiological response, dislodgement of lines and equipment and injury to workforce or patient.","Clinical reasoning ","Foundation","All Professions",false,{"$f":"IF(Table5[[#This Row],[Complete ]],\"Complete\",\"Pending\")","v":"Pending"}]
[null,"Interpret findings from a systematic A to E assessment, determining the patient's medical status and suitability for intervention.","Clinical reasoning ","Foundation","All Professions",false,{"$f":"IF(Table5[[#This Row],[Complete ]],\"Complete\",\"Pending\")","v":"Pending"}]
[null,"Apply clinical reasoning to identify problems or impairments based on the assessment findings, set goals in collaboration with the patient, where possible, and construct an evidence-informed management plan to address and achieve these, reviewing regularly.","Clinical reasoning ","Foundation","All Professions",false,{"$f":"IF(Table5[[#This Row],[Complete ]],\"Complete\",\"Pending\")","v":"Pending"}]
[null,"Apply knowledge of relevant critical care specialism to modify assessment and intervention.","Clinical reasoning ","Foundation","All Professions",false,{"$f":"IF(Table5[[#This Row],[Complete ]],\"Complete\",\"Pending\")","v":"Pending"}]
[null,"Use equipment appropriately and effectively to reduce risk of harm, escalating promptly and following up to ensure resolution where patient safety may be impacted.","Clinical reasoning ","Foundation","ODP",false,{"$f":"IF(Table5[[#This Row],[Complete ]],\"Complete\",\"Pending\")","v":"Pending"}]
[null,"Negotiate and problem solve with the multi-professional team when indications are unclear, or contraindications and precautions are identified.","Clinical reasoning ","Enhanced","All Professions",false,{"$f":"IF(Table5[[#This Row],[Complete ]],\"Complete\",\"Pending\")","v":"Pending"}]
[null,"Evaluate both immediate and longer-term response to intervention and management plan, analysing a range of indicators, including patient-reported outcome measures where possible.","Clinical reasoning ","Enhanced","All Professions",false,{"$f":"IF(Table5[[#This Row],[Complete ]],\"Complete\",\"Pending\")","v":"Pending"}]
[null,"Interpret complex information from multiple sources, applying specialised knowledge of critical care to clinical decision making.","Clinical reasoning ","Enhanced","All Professions",false,{"$f":"IF(Table5[[#This Row],[Complete ]],\"Complete\",\"Pending\")","v":"Pending"}]
[null,"Weigh the risks and benefits of assessment techniques, interventions and management plans in collaboration with the multi-professional team, and the patient, where possible, and communicate identified risks with the multi-professional team.","Clinical reasoning ","Enhanced","All Professions",false,{"$f":"IF(Table5[[#This Row],[Complete ]],\"Complete\",\"Pending\")","v":"Pending"}]
[null,"Evaluate a patient's clinical status following a systematic assessment, including complex presentations, and negotiate the requirement for further intervention and management with the multi-professional team.","Clinical reasoning ","Enhanced","All Professions",false,{"$f":"IF(Table5[[#This Row],[Complete ]],\"Complete\",\"Pending\")","v":"Pending"}]
[null,"Discuss and identify key clinical priorities and treatment goals with the multi-professional team, patient and family, ensuring collaborative management across the critical care pathway.","Clinical reasoning ","Enhanced","All Professions",false,{"$f":"IF(Table5[[#This Row],[Complete ]],\"Complete\",\"Pending\")","v":"Pending"}]
[null,"Evaluate complex patient presentations and care pathways autonomously through critical understanding, and application of advanced critical care knowledge, skills and behaviours relevant to the role, setting and professional scope of practice.","Clinical reasoning ","Advanced","All Professions",false,{"$f":"IF(Table5[[#This Row],[Complete ]],\"Complete\",\"Pending\")","v":"Pending"}]
[null,"Utilise complex critical thinking to inform various clinical reasoning approaches when dealing with complex presentations, synthesising information from multiple sources to make autonomous decisions, in coordination with the multi-professional team.","Clinical reasoning ","Advanced","All Professions",false,{"$f":"IF(Table5[[#This Row],[Complete ]],\"Complete\",\"Pending\")","v":"Pending"}]
[null,"Perform clinical assessments and relevant interventions, including requesting diagnostic tests and investigations, based on high level diagnostic and clinical reasoning skills, balancing accountability as an autonomous practitioner and wider team collaboration.","Clinical reasoning ","Advanced","All Professions",false,{"$f":"IF(Table5[[#This Row],[Complete ]],\"Complete\",\"Pending\")","v":"Pending"}]
[null,"Implement an evidence-informed, reasoned and negotiated management plan promoting person-centred approaches within and beyond critical care.","Clinical reasoning ","Advanced","All Professions",false,{"$f":"IF(Table5[[#This Row],[Complete ]],\"Complete\",\"Pending\")","v":"Pending"}]
[null,"Manage, document and communicate clinical risk autonomously in complex or unpredictable events, exercising professional judgement and collaborating with a range of multi-agency and interprofessional resources.","Clinical reasoning ","Advanced","All Professions",false,{"$f":"IF(Table5[[#This Row],[Complete ]],\"Complete\",\"Pending\")","v":"Pending"}]
[null,"Initiate, evaluate and modify a range of advanced therapeutic interventions, using professional judgement and demonstrating a critical understanding of a broadened scope of responsibility, autonomy and competence.","Clinical reasoning ","Advanced","All Professions",false,{"$f":"IF(Table5[[#This Row],[Complete ]],\"Complete\",\"Pending\")","v":"Pending"}]
[null,"Anticipate and design solutions for known or potential barriers to therapeutic intervention success, taking into consideration patient goals, overall management plan, stage of critical illness and environmental context.","Clinical reasoning ","Advanced","All Professions",false,{"$f":"IF(Table5[[#This Row],[Complete ]],\"Complete\",\"Pending\")","v":"Pending"}]
[null,"Contribute to values-based practice within identified scope of role, across the critical care pathway, crossing organisational boundaries, working with individuals, families, carers, communities, and others.","Clinical reasoning ","Advanced","All Professions",false,{"$f":"IF(Table5[[#This Row],[Complete ]],\"Complete\",\"Pending\")","v":"Pending"}]
[null,"Utilise reflective and dynamic judgement to synthesise a variety of clinical, abstract and system information to manage complexity and uncertainty, in the absence of precedence, adapting rapidly to changing situations, recognising cognitive bias, diagnostic accuracy and relevant clinical scoring systems.","Clinical reasoning ","Consultant ","All Professions",false,{"$f":"IF(Table5[[#This Row],[Complete ]],\"Complete\",\"Pending\")","v":"Pending"}]
[null,"Develop and refine a range of comprehensive assessments, tools, and processes across multiple patient groups, utilising opinions and expertise of the multi-professional team, to apply predictive modelling and inform individualised care, impacting critical care or hospital discharge destination or mortality.","Clinical reasoning ","Consultant ","All Professions",false,{"$f":"IF(Table5[[#This Row],[Complete ]],\"Complete\",\"Pending\")","v":"Pending"}]
[null,"Construct informed and co-produced care planning across the critical care pathway and wider healthcare systems, demonstrating effective clinical reasoning, communication, and negotiation skills, ensuring patient advocacy.","Clinical reasoning ","Consultant ","All Professions",false,{"$f":"IF(Table5[[#This Row],[Complete ]],\"Complete\",\"Pending\")","v":"Pending"}]
[null,"Implement and continuously evaluate systems to manage complex and unpredictable clinical risk, being accountable for professional judgement and supporting teams to ensure safety of individuals, families, workforce and the organisation.","Clinical reasoning ","Consultant ","All Professions",false,{"$f":"IF(Table5[[#This Row],[Complete ]],\"Complete\",\"Pending\")","v":"Pending"}]
[null,"Interpret, evaluate, and implement elements of values-based professional practice, integrated care or novel interventions delivered by the multi-professional team, achieving a significant impact across critical care pathways, services, organisations, and systems.","Clinical reasoning ","Consultant","All Professions",false,{"$f":"IF(Table5[[#This Row],[Complete ]],\"Complete\",\"Pending\")","v":"Pending"}]

{"sheet":"Intervention and Rehabilitation","index":4,"n_rows":396,"n_cols":13,"rows_kept":396,"cut":false,"hidden":false,"merged":[[0,0,2,11],[0,12,2,23]]}
["Interventions and Rehabiliation "]
[]
[]
[]
[]
[null,"Capability statement ","Area ","Level ","Profession ","Complete ","Progress","Signed ","Dated","Evidence ","Evidence 2","Evidence 3","Evidence 4"]
[null,"Perform active airway clearance techniques with spontaneously breathing patients who are maintaining their own airway.","Airway ","Assistive","Physio",true,{"$f":"IF(Table59[[#This Row],[Complete ]],\"Complete\",\"Pending\")","v":"Complete"},null,"2025-10-07"]
[null,"Perform active airway clearance techniques with spontaneously breathing patients who are maintaining their own airway.","Airway ","Assistive","ODP ",true,{"$f":"IF(Table59[[#This Row],[Complete ]],\"Complete\",\"Pending\")","v":"Complete"},null,"2025-10-07"]
[null,"Select the equipment required to suction a patient's airway with a Yankauer suction device or suction catheter.","Airway ","Assistive","Physio",true,{"$f":"IF(Table59[[#This Row],[Complete ]],\"Complete\",\"Pending\")","v":"Complete"},null,"2025-10-07"]
[null,"Select the equipment required to suction a patient's airway with a Yankauer suction device or suction catheter.","Airway ","Assistive","ODP ",true,{"$f":"IF(Table59[[#This Row],[Complete ]],\"Complete\",\"Pending\")","v":"Complete"},null,"2025-10-07"]
[null,"Select the equipment required for manual ventilation with bag valve mask or Mapleson C breathing system (Water's circuit).","Airway ","Assistive","Physio",false,{"$f":"IF(Table59[[#This Row],[Complete ]],\"Complete\",\"Pending\")","v":"Pending"}]
[null,"Select the equipment required for manual ventilation with bag valve mask or Mapleson C breathing system (Water's circuit).","Airway ","Assistive","ODP ",false,{"$f":"IF(Table59[[#This Row],[Complete ]],\"Complete\",\"Pending\")","v":"Pending"}]
[null,"Select the equipment required for endotracheal intubation, including preparation of required monitoring.","Airway ","Assistive","ODP ",false,{"$f":"IF(Table59[[#This Row],[Complete ]],\"Complete\",\"Pending\")","v":"Pending"}]
[null,"Assist the multi-professional team in airway patency management interventions.","Airway ","Assistive","ODP ",false,{"$f":"IF(Table59[[#This Row],[Complete ]],\"Complete\",\"Pending\")","v":"Pending"}]
[null,"Recognise various airway adjuncts and assist the multi-professional team in the management of a patient's airway.","Airway ","Assistive","ODP ",false,{"$f":"IF(Table59[[#This Row],[Complete ]],\"Complete\",\"Pending\")","v":"Pending"}]
[null,"Assist multi-professional team in the selection of equipment for tracheostomy insertion, reporting any equipment issues.","Airway ","Assistive","ODP ",false,{"$f":"IF(Table59[[#This Row],[Complete ]],\"Complete\",\"Pending\")","v":"Pending"}]
[null,"Perform suction of oral secretions using a Yankauer suction device.","Airway ","Assistive","SLT",false,{"$f":"IF(Table59[[#This Row],[Complete ]],\"Complete\",\"Pending\")","v":"Pending"}]
[null,"Perform suction of oral secretions using a Yankauer suction device.","Airway ","Assistive","Physio",false,{"$f":"IF(Table59[[#This Row],[Complete ]],\"Complete\",\"Pending\")","v":"Pending"}]
[null,"Apply a range of active and passive airway clearance techniques to patients who are self ventilating or receiving invasive or non-invasive mechanical ventilation, including those with an artificial airway.","Airway ","Foundation","Physio",false,{"$f":"IF(Table59[[#This Row],[Complete ]],\"Complete\",\"Pending\")","v":"Pending"}]
[null,"Apply a range of active and passive airway clearance techniques to patients who are self ventilating or receiving invasive or non-invasive mechanical ventilation, including those with an artificial airway.","Airway ","Foundation","ODP ",false,{"$f":"IF(Table59[[#This Row],[Complete ]],\"Complete\",\"Pending\")","v":"Pending"}]
[null,"Implement recommendations of a tracheostomy weaning plan.","Airway ","Foundation","Physio",false,{"$f":"IF(Table59[[#This Row],[Complete ]],\"Complete\",\"Pending\")","v":"Pending"}]
[null,"Implement recommendations of a tracheostomy weaning plan.","Airway ","Foundation","SLT",false,{"$f":"IF(Table59[[#This Row],[Complete ]],\"Complete\",\"Pending\")","v":"Pending"}]
[null,"Perform open and closed suction via a range of different artificial airways.","Airway ","Foundation","Physio",false,{"$f":"IF(Table59[[#This Row],[Complete ]],\"Complete\",\"Pending\")","v":"Pending"}]
[null,"Perform open and closed suction via a range of different artificial airways.","Airway ","Foundation","ODP ",false,{"$f":"IF(Table59[[#This Row],[Complete ]],\"Complete\",\"Pending\")","v":"Pending"}]
[null,"Utilise a systematic approach to identify airway obstruction and implement a range of airway manoeuvres to ensure patency while awaiting assistance from the multi-professional team.","Airway ","Foundation","ODP ",false,{"$f":"IF(Table59[[#This Row],[Complete ]],\"Complete\",\"Pending\")","v":"Pending"}]
[null,"Initiate airway support by inserting oropharyngeal, nasopharyngeal or supraglottic airway devices and escalate to the multi-professional team.","Airway ","Foundation","ODP ",false,{"$f":"IF(Table59[[#This Row],[Complete ]],\"Complete\",\"Pending\")","v":"Pending"}]
[null,"Support percutaneous tracheostomy insertion, including preparation of required equipment, monitoring and escalation during procedure, utilising knowledge of difficult airway and tracheostomy guidance.","Airway ","Foundation","ODP ",false,{"$f":"IF(Table59[[#This Row],[Complete ]],\"Complete\",\"Pending\")","v":"Pending"}]
[null,"Initiate airway suctioning with a Yankauer suction device.","Airway ","Foundation","Physio",false,{"$f":"IF(Table59[[#This Row],[Complete ]],\"Complete\",\"Pending\")","v":"Pending"}]
[null,"Initiate airway suctioning with a Yankauer suction device.","Airway ","Foundation","SLT",false,{"$f":"IF(Table59[[#This Row],[Complete ]],\"Complete\",\"Pending\")","v":"Pending"}]
[null,"Initiate airway suctioning with a Yankauer suction device.","Airway ","Foundation","OT",false,{"$f":"IF(Table59[[#This Row],[Complete ]],\"Complete\",\"Pending\")","v":"Pending"}]
[null,"Initiate airway suctioning with a Yankauer suction device.","Airway ","Foundation","ODP ",false,{"$f":"IF(Table59[[#This Row],[Complete ]],\"Complete\",\"Pending\")","v":"Pending"}]
[null,"Support with endotracheal intubation, including preparation of required equipment, monitoring, and escalation during procedure, utilising knowledge of difficult airway guidance.","Airway ","Foundation","ODP ",false,{"$f":"IF(Table59[[#This Row],[Complete ]],\"Complete\",\"Pending\")","v":"Pending"}]
[null,"Initiate collection of a sputum sample via the most appropriate route, including endotracheal suction.","Airway ","Foundation","Physio",false,{"$f":"IF(Table59[[#This Row],[Complete ]],\"Complete\",\"Pending\")","v":"Pending"}]
[null,"Initiate collection of a sputum sample via the most appropriate route, including endotracheal suction.","Airway ","Foundation","ODP ",false,{"$f":"IF(Table59[[#This Row],[Complete ]],\"Complete\",\"Pending\")","v":"Pending"}]
[null,"Utilise ventilation techniques to assist respiration with a bag valve mask or Mapleson C breathing system (Water's circuit), while applying background knowledge of intermediate life support and discussing with the multi-professional team.","Airway ","Foundation","ODP ",false,{"$f":"IF(Table59[[#This Row],[Complete ]],\"Complete\",\"Pending\")","v":"Pending"}]
[null,"Perform open tracheal suctioning for spontaneously breathing tracheostomised patients.","Airway ","Foundation","SLT",false,{"$f":"IF(Table59[[#This Row],[Complete ]],\"Complete\",\"Pending\")","v":"Pending"}]
[null,"Monitor effectiveness of pre-prescribed programme of above cuff vocalisation on voice, communicative effectiveness, secretions and swallow, escalating concerns where appropriate.","Airway ","Foundation","SLT",false,{"$f":"IF(Table59[[#This Row],[Complete ]],\"Complete\",\"Pending\")","v":"Pending"}]
[null,"Negotiate the delivery of airway clearance techniques for complex and potentially unstable patients across the critical care pathway.","Airway ","Enhanced","Physio",true,{"$f":"IF(Table59[[#This Row],[Complete ]],\"Complete\",\"Pending\")","v":"Complete"}]
[null,"Assess requirement for and perform insertion of airway adjunct to facilitate airway clearance.","Airway ","Enhanced","Physio",true,{"$f":"IF(Table59[[#This Row],[Complete ]],\"Complete\",\"Pending\")","v":"Complete"}]
[null,"Assess requirement for and perform insertion of airway adjunct to facilitate airway clearance.","Airway ","Enhanced","ODP ",false,{"$f":"IF(Table59[[#This Row],[Complete ]],\"Complete\",\"Pending\")","v":"Pending"}]
[null,"Negotiate tracheostomy weaning plan to optimise respiratory function, communication and restoration of upper airway.","Airway ","Enhanced","SLT",false,{"$f":"IF(Table59[[#This Row],[Complete ]],\"Complete\",\"Pending\")","v":"Pending"}]
[null,"Negotiate tracheostomy weaning plan to optimise respiratory function, communication and restoration of upper airway.","Airway ","Enhanced","Physio",true,{"$f":"IF(Table59[[#This Row],[Complete ]],\"Complete\",\"Pending\")","v":"Complete"}]
[null,"Evaluate the requirement for and perform tracheostomy change and decannulation.","Airway ","Enhanced","Physio",true,{"$f":"IF(Table59[[#This Row],[Complete ]],\"Complete\",\"Pending\")","v":"Complete"}]
[null,"Evaluate the requirement for and perform tracheostomy change and decannulation.","Airway ","Enhanced","SLT",false,{"$f":"IF(Table59[[#This Row],[Complete ]],\"Complete\",\"Pending\")","v":"Pending"}]
[null,"Evaluate the requirement for and perform tracheostomy change and decannulation.","Airway ","Enhanced","ODP ",false,{"$f":"IF(Table59[[#This Row],[Complete ]],\"Complete\",\"Pending\")","v":"Pending"}]
[null,"Initiate airway support by inserting oropharyngeal, nasopharyngeal or supraglottic airway devices and recommend treatment plan, escalating to the multi-professional team, where required.","Airway ","Enhanced","ODP ",false,{"$f":"IF(Table59[[#This Row],[Complete ]],\"Complete\",\"Pending\")","v":"Pending"}]
[null,"Evaluate airway obstruction and implement a range of airway manoeuvres for patency, while implementing treatment in line with advanced life support guidelines.","Airway ","Enhanced","ODP ",false,{"$f":"IF(Table59[[#This Row],[Complete ]],\"Complete\",\"Pending\")","v":"Pending"}]
[null,"Negotiate tracheostomy cuff status, one-way valve use and ventilator settings with the multi-professional team to optimise upper airway and respiratory function.","Airway ","Enhanced","Physio",true,{"$f":"IF(Table59[[#This Row],[Complete ]],\"Complete\",\"Pending\")","v":"Complete"}]
[null,"Negotiate tracheostomy cuff status, one-way valve use and ventilator settings with the multi-professional team to optimise upper airway and respiratory function.","Airway ","Enhanced","SLT",false,{"$f":"IF(Table59[[#This Row],[Complete ]],\"Complete\",\"Pending\")","v":"Pending"}]
[null,"Recommend management options to aid tracheostomy weaning if inadequate upper airflow is suspected or detected.","Airway ","Enhanced","Physio",true,{"$f":"IF(Table59[[#This Row],[Complete ]],\"Complete\",\"Pending\")","v":"Complete"}]
[null,"Recommend management options to aid tracheostomy weaning if inadequate upper airflow is suspected or detected.","Airway ","Enhanced","SLT",false,{"$f":"IF(Table59[[#This Row],[Complete ]],\"Complete\",\"Pending\")","v":"Pending"}]
[null,"Implement laryngeal and dysphagia rehabilitation interventions to optimise function and support tracheostomy weaning plan.","Airway ","Enhanced","SLT",false,{"$f":"IF(Table59[[#This Row],[Complete ]],\"Complete\",\"Pending\")","v":"Pending"}]
[null,"Initiate suction for patients unable to clear their own airway, prescribing the recommended route and method.","Airway ","Enhanced","Physio",false,{"$f":"IF(Table59[[#This Row],[Complete ]],\"Complete\",\"Pending\")","v":"Pending"}]
[null,"Initiate suction for patients unable to clear their own airway, prescribing the recommended route and method.","Airway ","Enhanced","ODP ",false,{"$f":"IF(Table59[[#This Row],[Complete ]],\"Complete\",\"Pending\")","v":"Pending"}]
[null,"Troubleshoot sputum sample collection for complex, unstable or non-productive patients requiring microbiological sputum culture.","Airway ","Enhanced","Physio",false,{"$f":"IF(Table59[[#This Row],[Complete ]],\"Complete\",\"Pending\")","v":"Pending"}]
[null,"Troubleshoot sputum sample collection for complex, unstable or non-productive patients requiring microbiological sputum culture.","Airway ","Enhanced","ODP ",false,{"$f":"IF(Table59[[#This Row],[Complete ]],\"Complete\",\"Pending\")","v":"Pending"}]
[null,"Contribute to improvements when percutaneous tracheostomy is performed, including troubleshooting of equipment and educating the multi-professional team on difficult airway guidance and tracheostomy procedure.","Airway ","Enhanced","ODP ",false,{"$f":"IF(Table59[[#This Row],[Complete ]],\"Complete\",\"Pending\")","v":"Pending"}]
[null,"Initiate emergency tracheostomy management using a recognised algorithm.","Airway ","Enhanced","Physio",false,{"$f":"IF(Table59[[#This Row],[Complete ]],\"Complete\",\"Pending\")","v":"Pending"}]
[null,"Initiate emergency tracheostomy management using a recognised algorithm.","Airway ","Enhanced","SLT",false,{"$f":"IF(Table59[[#This Row],[Complete ]],\"Complete\",\"Pending\")","v":"Pending"}]
[null,"Initiate emergency tracheostomy management using a recognised algorithm.","Airway ","Enhanced","OT",false,{"$f":"IF(Table59[[#This Row],[Complete ]],\"Complete\",\"Pending\")","v":"Pending"}]
[null,"Initiate emergency tracheostomy management using a recognised algorithm.","Airway ","Enhanced","ODP ",false,{"$f":"IF(Table59[[#This Row],[Complete ]],\"Complete\",\"Pending\")","v":"Pending"}]
[null,"Perform closed circuit tracheal suctioning for mechanically ventilated, tracheostomised patients.","Airway ","Enhanced","SLT",false,{"$f":"IF(Table59[[#This Row],[Complete ]],\"Complete\",\"Pending\")","v":"Pending"}]
[null,"Perform closed circuit tracheal suctioning for mechanically ventilated, tracheostomised patients.","Airway ","Enhanced","OT",false,{"$f":"IF(Table59[[#This Row],[Complete ]],\"Complete\",\"Pending\")","v":"Pending"}]
[null,"Evaluate safety and effectiveness of above cuff vocalisation on voice, upper airway function, and swallowing, utilising instrumental assessments where appropriate to guide ongoing intervention and management.","Airway ","Enhanced","SLT",false,{"$f":"IF(Table59[[#This Row],[Complete ]],\"Complete\",\"Pending\")","v":"Pending"}]
[null,"Perform respiratory muscle strengthening in spontaneously breathing patients, using an approved device and following a strengthening prescription.","Breathing ","Assistive","Physio",false,{"$f":"IF(Table59[[#This Row],[Complete ]],\"Complete\",\"Pending\")","v":"Pending"}]
[null,"Perform respiratory muscle strengthening in spontaneously breathing patients, using an approved device and following a strengthening prescription.","Breathing ","Assistive","ODP ",false,{"$f":"IF(Table59[[#This Row],[Complete ]],\"Complete\",\"Pending\")","v":"Pending"}]
[null,"Perform breathlessness management activities with spontaneously breathing patients, following a directed plan.","Breathing ","Assistive","Physio",false,{"$f":"IF(Table59[[#This Row],[Complete ]],\"Complete\",\"Pending\")","v":"Pending"}]
[null,"Perform active lung recruitment techniques with spontaneously breathing patients who are maintaining their own airway.","Breathing ","Assistive","Physio",false,{"$f":"IF(Table59[[#This Row],[Complete ]],\"Complete\",\"Pending\")","v":"Pending"}]
[null,"Perform active lung recruitment techniques with spontaneously breathing patients who are maintaining their own airway.","Breathing ","Assistive","ODP ",false,{"$f":"IF(Table59[[#This Row],[Complete ]],\"Complete\",\"Pending\")","v":"Pending"}]
[null,"Select the equipment required for the insertion of a chest drain as guided by the managing team.","Breathing ","Assistive","ODP ",false,{"$f":"IF(Table59[[#This Row],[Complete ]],\"Complete\",\"Pending\")","v":"Pending"}]
[null,"Recognise equipment required to prepare mechanical ventilators for use in critical care, and assist in the set up utilising local and manufacturers guidance.","Breathing ","Assistive","ODP ",false,{"$f":"IF(Table59[[#This Row],[Complete ]],\"Complete\",\"Pending\")","v":"Pending"}]
[null,"Assist with decontamination of mechanical ventilators and ventilation-related equipment following patient use.","Breathing ","Assistive","ODP ",false,{"$f":"IF(Table59[[#This Row],[Complete ]],\"Complete\",\"Pending\")","v":"Pending"}]
[null,"Select required equipment and assist with set up of non-invasive ventilation and facial continuous positive airways pressure.","Breathing ","Assistive","ODP ",false,{"$f":"IF(Table59[[#This Row],[Complete ]],\"Complete\",\"Pending\")","v":"Pending"}]
[null,"Assist the multi-professional team to optimise oxygen delivery by face mask, venturi mask, nasal cannula and high flow nasal oxygen.","Breathing ","Assistive","Physio",false,{"$f":"IF(Table59[[#This Row],[Complete ]],\"Complete\",\"Pending\")","v":"Pending"}]
[null,"Assist the multi-professional team to optimise oxygen delivery by face mask, venturi mask, nasal cannula and high flow nasal oxygen.","Breathing ","Assistive","ODP ",false,{"$f":"IF(Table59[[#This Row],[Complete ]],\"Complete\",\"Pending\")","v":"Pending"}]
[null,"Support the multi-professional team in ventilator optimisation.","Breathing ","Assistive","ODP ",false,{"$f":"IF(Table59[[#This Row],[Complete ]],\"Complete\",\"Pending\")","v":"Pending"}]
[null,"Select the equipment required to perform a bronchoscopy and report any equipment issues to the multi-professional team.","Breathing ","Assistive","ODP ",false,{"$f":"IF(Table59[[#This Row],[Complete ]],\"Complete\",\"Pending\")","v":"Pending"}]
[null,"Apply a range of active and passive lung recruitment interventions to patients who are mechanically ventilated or self-ventilating, including those with an artificial airway.","Breathing ","Foundation","Physio",false,{"$f":"IF(Table59[[#This Row],[Complete ]],\"Complete\",\"Pending\")","v":"Pending"}]
[null,"Apply a range of active and passive lung recruitment interventions to patients who are mechanically ventilated or self-ventilating, including those with an artificial airway.","Breathing ","Foundation","ODP ",false,{"$f":"IF(Table59[[#This Row],[Complete ]],\"Complete\",\"Pending\")","v":"Pending"}]
[null,"Apply respiratory muscle-strengthening device to spontaneously breathing and mechanically-ventilated patients.","Breathing ","Foundation","Physio",false,{"$f":"IF(Table59[[#This Row],[Complete ]],\"Complete\",\"Pending\")","v":"Pending"}]
[null,"Manage breathing pattern abnormalities and breathlessness using basic techniques across the critical care pathway.","Breathing ","Foundation","Physio",false,{"$f":"IF(Table59[[#This Row],[Complete ]],\"Complete\",\"Pending\")","v":"Pending"}]
[null,"Select and prepare equipment for chest drain insertion while monitoring the patient undergoing the procedure with the multi-professional team.","Breathing ","Foundation","ODP ",false,{"$f":"IF(Table59[[#This Row],[Complete ]],\"Complete\",\"Pending\")","v":"Pending"}]
[null,"Select and prepare ventilators and ventilation-related equipment for planned or urgent use, utilising local and manufacturer guidance.","Breathing ","Foundation","ODP ",false,{"$f":"IF(Table59[[#This Row],[Complete ]],\"Complete\",\"Pending\")","v":"Pending"}]
[null,"Manage decontamination of ventilators and ventilation-related equipment, liaising with the multi-professional team to ensure equipment is available when required.","Breathing ","Foundation","ODP ",false,{"$f":"IF(Table59[[#This Row],[Complete ]],\"Complete\",\"Pending\")","v":"Pending"}]
[null,"Facilitate the optimisation of oxygen delivery by face mask, venturi mask, nasal cannula and high flow nasal oxygen.","Breathing ","Foundation","Physio",false,{"$f":"IF(Table59[[#This Row],[Complete ]],\"Complete\",\"Pending\")","v":"Pending"}]
[null,"Facilitate the optimisation of oxygen delivery by face mask, venturi mask, nasal cannula and high flow nasal oxygen.","Breathing ","Foundation","ODP ",false,{"$f":"IF(Table59[[#This Row],[Complete ]],\"Complete\",\"Pending\")","v":"Pending"}]
[null,"Initiate selection, preparation, and decontamination of bronchoscopy equipment while monitoring the patient undergoing bronchoscopy with the multi-professional team.","Breathing ","Foundation","ODP ",false,{"$f":"IF(Table59[[#This Row],[Complete ]],\"Complete\",\"Pending\")","v":"Pending"}]
[null,"Initiate equipment set up and monitor mechanisms of support for respiration, including non-invasive ventilation and facial continuous positive airways pressure (CPAP).","Breathing ","Foundation","ODP ",false,{"$f":"IF(Table59[[#This Row],[Complete ]],\"Complete\",\"Pending\")","v":"Pending"}]
[null,"Negotiate lung recruitment interventions for complex and potentially unstable patients across the critical care pathway.","Breathing ","Enhanced","Physio",false,{"$f":"IF(Table59[[#This Row],[Complete ]],\"Complete\",\"Pending\")","v":"Pending"}]
[null,"Negotiate lung recruitment interventions for complex and potentially unstable patients across the critical care pathway.","Breathing ","Enhanced","ODP ",false,{"$f":"IF(Table59[[#This Row],[Complete ]],\"Complete\",\"Pending\")","v":"Pending"}]
[null,"Evaluate the requirement for additional invasive or non-invasive ventilatory support during physical rehabilitation and initiate support during the activity.","Breathing ","Enhanced","Physio",false,{"$f":"IF(Table59[[#This Row],[Complete ]],\"Complete\",\"Pending\")","v":"Pending"}]
[null,"Evaluate the requirement for additional invasive or non-invasive ventilatory support during physical rehabilitation and initiate support during the activity.","Breathing ","Enhanced","OT",false,{"$f":"IF(Table59[[#This Row],[Complete ]],\"Complete\",\"Pending\")","v":"Pending"}]
[null,"Evaluate the requirement for additional invasive or non-invasive ventilatory support during physical rehabilitation and initiate support during the activity.","Breathing ","Enhanced","ODP ",false,{"$f":"IF(Table59[[#This Row],[Complete ]],\"Complete\",\"Pending\")","v":"Pending"}]
[null,"Review invasive and non-invasive ventilator settings to optimise patient-ventilator synchrony, meet respiratory demand and facilitate weaning from mechanical ventilation.","Breathing ","Enhanced","Physio",false,{"$f":"IF(Table59[[#This Row],[Complete ]],\"Complete\",\"Pending\")","v":"Pending"}]
[null,"Review invasive and non-invasive ventilator settings to optimise patient-ventilator synchrony, meet respiratory demand and facilitate weaning from mechanical ventilation.","Breathing ","Enhanced","SLT",false,{"$f":"IF(Table59[[#This Row],[Complete ]],\"Complete\",\"Pending\")","v":"Pending"}]
[null,"Review invasive and non-invasive ventilator settings to optimise patient-ventilator synchrony, meet respiratory demand and facilitate weaning from mechanical ventilation.","Breathing ","Enhanced","ODP ",false,{"$f":"IF(Table59[[#This Row],[Complete ]],\"Complete\",\"Pending\")","v":"Pending"}]
[null,"Negotiate weaning from invasive or non-invasive ventilation with the multi-professional team.","Breathing ","Enhanced","Physio",false,{"$f":"IF(Table59[[#This Row],[Complete ]],\"Complete\",\"Pending\")","v":"Pending"}]
[null,"Review oxygen delivery and optimise through implementation of humidification and high flow, selection of appropriate interface and titration.","Breathing ","Enhanced","Physio",false,{"$f":"IF(Table59[[#This Row],[Complete ]],\"Complete\",\"Pending\")","v":"Pending"}]
[null,"Review oxygen delivery and optimise through implementation of humidification and high flow, selection of appropriate interface and titration.","Breathing ","Enhanced","ODP ",false,{"$f":"IF(Table59[[#This Row],[Complete ]],\"Complete\",\"Pending\")","v":"Pending"}]
[null,"Initiate and prescribe a respiratory muscle-strengthening programme for patients during and following mechanical ventilation.","Breathing ","Enhanced","Physio",false,{"$f":"IF(Table59[[#This Row],[Complete ]],\"Complete\",\"Pending\")","v":"Pending"}]
[null,"Prescribe paced activity for patients who are affected by fatigue, breathlessness or anxiety across the critical care pathway.","Breathing ","Enhanced","Physio",false,{"$f":"IF(Table59[[#This Row],[Complete ]],\"Complete\",\"Pending\")","v":"Pending"}]
[null,"Prescribe paced activity for patients who are affected by fatigue, breathlessness or anxiety across the critical care pathway.","Breathing ","Enhanced","OT",false,{"$f":"IF(Table59[[#This Row],[Complete ]],\"Complete\",\"Pending\")","v":"Pending"}]
[null,"Troubleshoot equipment issues that arise during bronchoscopy, liaising with the multi-professional team to resolve.","Breathing ","Enhanced","ODP ",false,{"$f":"IF(Table59[[#This Row],[Complete ]],\"Complete\",\"Pending\")","v":"Pending"}]
[null,"Initiate and optimise the delivery of non-invasive ventilation, titrating support as required.","Breathing ","Enhanced","ODP ",false,{"$f":"IF(Table59[[#This Row],[Complete ]],\"Complete\",\"Pending\")","v":"Pending"}]
[null,"Initiate and optimise the delivery of non-invasive ventilation, titrating support as required.","Breathing ","Enhanced","Physio",false,{"$f":"IF(Table59[[#This Row],[Complete ]],\"Complete\",\"Pending\")","v":"Pending"}]
[null,"Make recommendations related to ventilator optimisation in collaboration with the multi-professional team.","Breathing ","Enhanced","ODP ",false,{"$f":"IF(Table59[[#This Row],[Complete ]],\"Complete\",\"Pending\")","v":"Pending"}]
[null,"Troubleshoot set up and use of ventilators and ventilation-related equipment for planned or urgent use, utilising local and manufacturer guidance.","Breathing ","Enhanced","ODP ",false,{"$f":"IF(Table59[[#This Row],[Complete ]],\"Complete\",\"Pending\")","v":"Pending"}]
[null,"Recommend processes for decontamination of ventilators and ventilation-related equipment.","Breathing ","Enhanced","ODP ",false,{"$f":"IF(Table59[[#This Row],[Complete ]],\"Complete\",\"Pending\")","v":"Pending"}]
[null,"Contribute to chest drain insertion, troubleshooting equipment and supporting the multi-professional team during the procedure.","Breathing ","Enhanced","ODP ",false,{"$f":"IF(Table59[[#This Row],[Complete ]],\"Complete\",\"Pending\")","v":"Pending"}]
[null,"Facilitate the co-ordination of weaning from respiratory support and physical rehabilitation.","Breathing ","Enhanced","Physio",false,{"$f":"IF(Table59[[#This Row],[Complete ]],\"Complete\",\"Pending\")","v":"Pending"}]
[null,"Select required equipment and assist the multi-professional team with insertion of peripheral and central vascular access.","Circulation ","Assistive","ODP ",false,{"$f":"IF(Table59[[#This Row],[Complete ]],\"Complete\",\"Pending\")","v":"Pending"}]
[null,"Select and perform regular checks of equipment for insertion of intraosseous access, alerting the multi-professional team when maintenance or replacement of equipment is required.","Circulation ","Assistive","ODP ",false,{"$f":"IF(Table59[[#This Row],[Complete ]],\"Complete\",\"Pending\")","v":"Pending"}]
[null,"Support the multi-professional team with sample collection and processing of arterial and venous blood gas measurements.","Circulation ","Assistive","ODP ",false,{"$f":"IF(Table59[[#This Row],[Complete ]],\"Complete\",\"Pending\")","v":"Pending"}]
[null,"Manage and insert peripheral venous cannulae.","Circulation ","Foundation","ODP ",false,{"$f":"IF(Table59[[#This Row],[Complete ]],\"Complete\",\"Pending\")","v":"Pending"}]
[null,"Initiate and perform arterial or venous blood gas analysis.","Circulation ","Foundation","ODP ",false,{"$f":"IF(Table59[[#This Row],[Complete ]],\"Complete\",\"Pending\")","v":"Pending"}]
[null,"Select and prepare equipment for arterial or central venous cannulae insertion, ensuring principles of asepsis are maintained and monitoring the patient undergoing the procedure with the multi-professional team.","Circulation ","Foundation","ODP ",false,{"$f":"IF(Table59[[#This Row],[Complete ]],\"Complete\",\"Pending\")","v":"Pending"}]
[null,"Initiate and interpret arterial or venous blood gas results, making recommendations for treatment in conjunction with multi-professional team.","Circulation ","Enhanced","ODP ",false,{"$f":"IF(Table59[[#This Row],[Complete ]],\"Complete\",\"Pending\")","v":"Pending"}]
[null,"Lead insertion and management of intraosseous access in emergencies, where local training has been undertaken.","Circulation ","Enhanced","ODP ",false,{"$f":"IF(Table59[[#This Row],[Complete ]],\"Complete\",\"Pending\")","v":"Pending"}]
[null,"Initiate use of ultrasound to facilitate insertion of peripheral venous cannulae whilst troubleshooting any issues.","Circulation ","Enhanced","ODP ",false,{"$f":"IF(Table59[[#This Row],[Complete ]],\"Complete\",\"Pending\")","v":"Pending"}]
[null,"Contribute to arterial or central venous cannulae insertion, troubleshooting equipment and supporting the multi-professional team.","Circulation ","Enhanced","ODP ",false,{"$f":"IF(Table59[[#This Row],[Complete ]],\"Complete\",\"Pending\")","v":"Pending"}]
[null,"Perform basic life support in accordance with the appropriate level of life support training, until assistance arrives.","Deterioration intervention","Supportive","All professions ",false,{"$f":"IF(Table59[[#This Row],[Complete ]],\"Complete\",\"Pending\")","v":"Pending"}]
[null,"Support the multi-professional team to select safety equipment available at the critical care bedside during a clinical emergency.","Deterioration intervention","Supportive","All professions ",false,{"$f":"IF(Table59[[#This Row],[Complete ]],\"Complete\",\"Pending\")","v":"Pending"}]
[null,"Manage a deteriorating patient and provide immediate life support following a recognised pathway.","Deterioration intervention","Foundation","Physio",false,{"$f":"IF(Table59[[#This Row],[Complete ]],\"Complete\",\"Pending\")","v":"Pending"}]
[null,"Manage a deteriorating patient and provide immediate life support following a recognised pathway.","Deterioration intervention","Foundation","ODP ",false,{"$f":"IF(Table59[[#This Row],[Complete ]],\"Complete\",\"Pending\")","v":"Pending"}]
[null,"Recognise and select the equipment required for the administration of prescribed intravenous fluids, blood and blood products.","Fluids ","Assistive","ODP ",false,{"$f":"IF(Table59[[#This Row],[Complete ]],\"Complete\",\"Pending\")","v":"Pending"}]
[null,"Perform and record urinalysis, recognising abnormal values and reporting to the multi-professional team.","Fluids ","Assistive","ODP ",false,{"$f":"IF(Table59[[#This Row],[Complete ]],\"Complete\",\"Pending\")","v":"Pending"}]
[null,"Manage insertion and care of urinary catheters in critically ill patients, using knowledge of anatomy and local guidelines.","Fluids ","Foundation","ODP ",false,{"$f":"IF(Table59[[#This Row],[Complete ]],\"Complete\",\"Pending\")","v":"Pending"}]
[null,"Initiate preparation and administration of prescribed blood and blood products, monitoring and responding to their effects.","Fluids ","Foundation","ODP ",false,{"$f":"IF(Table59[[#This Row],[Complete ]],\"Complete\",\"Pending\")","v":"Pending"}]
[null,"Initiate bladder scan in patients where urinary retention is suspected and liaise with multi-professional team about results and treatment.","Fluids ","Foundation","ODP ",false,{"$f":"IF(Table59[[#This Row],[Complete ]],\"Complete\",\"Pending\")","v":"Pending"}]
[null,"Manage peripheral oedema using a range of methods, in conjunction with a 24 hour positioning regime.","Fluids ","Foundation","SLT",false,{"$f":"IF(Table59[[#This Row],[Complete ]],\"Complete\",\"Pending\")","v":"Pending"}]
[null,"Manage peripheral oedema using a range of methods, in conjunction with a 24 hour positioning regime.","Fluids ","Foundation","Physio",false,{"$f":"IF(Table59[[#This Row],[Complete ]],\"Complete\",\"Pending\")","v":"Pending"}]
[null,"Assist with rehabilitation of patients across critical care pathway, including performing rehabilitation interventions, following a rehabilitation plan.","Physical Function ","Supportive","All professions ",false,{"$f":"IF(Table59[[#This Row],[Complete ]],\"Complete\",\"Pending\")","v":"Pending"}]
[null,"Perform chair transfers, ambulation and bed mobility for spontaneously breathing patients.","Physical Function ","Supportive","All professions ",false,{"$f":"IF(Table59[[#This Row],[Complete ]],\"Complete\",\"Pending\")","v":"Pending"}]
[null,"Assist with positioning of conscious and unconscious patients.","Physical Function ","Supportive","All professions ",false,{"$f":"IF(Table59[[#This Row],[Complete ]],\"Complete\",\"Pending\")","v":"Pending"}]
[null,"Recognise the impact of prolonged positioning and apply required orthoses.","Physical Function ","Supportive","All professions ",false,{"$f":"IF(Table59[[#This Row],[Complete ]],\"Complete\",\"Pending\")","v":"Pending"}]
[null,"Assist with the safe manual handling of patients with complex needs, using appropriate positioning and equipment.","Physical Function ","Supportive","Physio",false,{"$f":"IF(Table59[[#This Row],[Complete ]],\"Complete\",\"Pending\")","v":"Pending"}]
[null,"Assist with the safe manual handling of patients with complex needs, using appropriate positioning and equipment.","Physical Function ","Supportive","OT",false,{"$f":"IF(Table59[[#This Row],[Complete ]],\"Complete\",\"Pending\")","v":"Pending"}]
[null,"Perform rehabilitation interventions, following a rehabilitation plan, including simple progression and regression of activity based upon patient's status.","Physical Function ","Assistive","Physio",false,{"$f":"IF(Table59[[#This Row],[Complete ]],\"Complete\",\"Pending\")","v":"Pending"}]
[null,"Perform rehabilitation interventions, following a rehabilitation plan, including simple progression and regression of activity based upon patient's status.","Physical Function ","Assistive","SLT",false,{"$f":"IF(Table59[[#This Row],[Complete ]],\"Complete\",\"Pending\")","v":"Pending"}]
[null,"Perform rehabilitation interventions, following a rehabilitation plan, including simple progression and regression of activity based upon patient's status.","Physical Function ","Assistive","OT",false,{"$f":"IF(Table59[[#This Row],[Complete ]],\"Complete\",\"Pending\")","v":"Pending"}]
[null,"Perform rehabilitation interventions, following a rehabilitation plan, including simple progression and regression of activity based upon patient's status.","Physical Function ","Assistive","Dietitian",false,{"$f":"IF(Table59[[#This Row],[Complete ]],\"Complete\",\"Pending\")","v":"Pending"}]
[null,"Contribute to prolonged positioning strategies by following a prescribed regime, including applying orthoses as directed.","Physical Function ","Assistive","Physio",false,{"$f":"IF(Table59[[#This Row],[Complete ]],\"Complete\",\"Pending\")","v":"Pending"}]
[null,"Contribute to prolonged positioning strategies by following a prescribed regime, including applying orthoses as directed.","Physical Function ","Assistive","OT",false,{"$f":"IF(Table59[[#This Row],[Complete ]],\"Complete\",\"Pending\")","v":"Pending"}]
[null,"Perform active and passive exercises to improve or maintain range of movement.","Physical Function ","Assistive","Physio",false,{"$f":"IF(Table59[[#This Row],[Complete ]],\"Complete\",\"Pending\")","v":"Pending"}]
[null,"Perform active and passive exercises to improve or maintain range of movement.","Physical Function ","Assistive","OT",false,{"$f":"IF(Table59[[#This Row],[Complete ]],\"Complete\",\"Pending\")","v":"Pending"}]
[null,"Perform aerobic exercise interventions with spontaneously breathing patients, following a prescribed regime.","Physical Function ","Assistive","Physio",false,{"$f":"IF(Table59[[#This Row],[Complete ]],\"Complete\",\"Pending\")","v":"Pending"}]
[null,"Support in the set up and adjustment of seating options to optimise safety, comfort whilst enabling patients to engage in their chosen occupation-focused activity.","Physical Function ","Assistive","OT",false,{"$f":"IF(Table59[[#This Row],[Complete ]],\"Complete\",\"Pending\")","v":"Pending"}]
[null,"Manage oedema of the upper limb in consultation with an occupational therapist, using elevation and contributing to the 24-hour positioning programme.","Physical Function ","Assistive","OT",false,{"$f":"IF(Table59[[#This Row],[Complete ]],\"Complete\",\"Pending\")","v":"Pending"}]
[null,"Monitor and adapt the use of orthotics and regimes, changing positioning methods to maintain alignment.","Physical Function ","Assistive","Physio",false,{"$f":"IF(Table59[[#This Row],[Complete ]],\"Complete\",\"Pending\")","v":"Pending"}]
[null,"Monitor and adapt the use of orthotics and regimes, changing positioning methods to maintain alignment.","Physical Function ","Assistive","OT",false,{"$f":"IF(Table59[[#This Row],[Complete ]],\"Complete\",\"Pending\")","v":"Pending"}]
[null,"Perform tailored treatment plan devised by the therapist, supporting the therapist with the set up of sensory re-education treatment programmes.","Physical Function ","Assistive","OT",false,{"$f":"IF(Table59[[#This Row],[Complete ]],\"Complete\",\"Pending\")","v":"Pending"}]
[null,"Manage the patient's environment in relation to sensory needs during therapy session and make reasonable adjustments as required.","Physical Function ","Assistive","OT",false,{"$f":"IF(Table59[[#This Row],[Complete ]],\"Complete\",\"Pending\")","v":"Pending"}]
[null,"Manage the patient's environment in relation to sensory needs during therapy session and make reasonable adjustments as required.","Physical Function ","Assistive","SLT",false,{"$f":"IF(Table59[[#This Row],[Complete ]],\"Complete\",\"Pending\")","v":"Pending"}]
[null,"Initiate a range of rehabilitation interventions required to meet identified goals, ensuring patient priorities are at the centre of care.","Physical Function ","Foundation","Physio",false,{"$f":"IF(Table59[[#This Row],[Complete ]],\"Complete\",\"Pending\")","v":"Pending"}]
[null,"Initiate a range of rehabilitation interventions required to meet identified goals, ensuring patient priorities are at the centre of care.","Physical Function ","Foundation","SLT",false,{"$f":"IF(Table59[[#This Row],[Complete ]],\"Complete\",\"Pending\")","v":"Pending"}]
[null,"Initiate a range of rehabilitation interventions required to meet identified goals, ensuring patient priorities are at the centre of care.","Physical Function ","Foundation","OT",false,{"$f":"IF(Table59[[#This Row],[Complete ]],\"Complete\",\"Pending\")","v":"Pending"}]
[null,"Initiate a range of rehabilitation interventions required to meet identified goals, ensuring patient priorities are at the centre of care.","Physical Function ","Foundation","Dietitian",false,{"$f":"IF(Table59[[#This Row],[Complete ]],\"Complete\",\"Pending\")","v":"Pending"}]
[null,"Recommend prolonged positioning techniques to increase or maintain range of movement.","Physical Function ","Foundation","Physio",false,{"$f":"IF(Table59[[#This Row],[Complete ]],\"Complete\",\"Pending\")","v":"Pending"}]
[null,"Recommend prolonged positioning techniques to increase or maintain range of movement.","Physical Function ","Foundation","OT",false,{"$f":"IF(Table59[[#This Row],[Complete ]],\"Complete\",\"Pending\")","v":"Pending"}]
[null,"Apply active and passive techniques to improve or maintain range of movement in intubated and non-intubated patients across the critical care pathway.","Physical Function ","Foundation","Physio",false,{"$f":"IF(Table59[[#This Row],[Complete ]],\"Complete\",\"Pending\")","v":"Pending"}]
[null,"Apply active and passive techniques to improve or maintain range of movement in intubated and non-intubated patients across the critical care pathway.","Physical Function ","Foundation","OT",false,{"$f":"IF(Table59[[#This Row],[Complete ]],\"Complete\",\"Pending\")","v":"Pending"}]
[null,"Apply active and passive techniques to improve or maintain range of movement in intubated and non-intubated patients across the critical care pathway.","Physical Function ","Foundation","ODP ",false,{"$f":"IF(Table59[[#This Row],[Complete ]],\"Complete\",\"Pending\")","v":"Pending"}]
[null,"Apply active and active-assisted muscle strengthening interventions to patients across the critical care pathway.","Physical Function ","Foundation","Physio",false,{"$f":"IF(Table59[[#This Row],[Complete ]],\"Complete\",\"Pending\")","v":"Pending"}]
[null,"Apply active and active-assisted muscle strengthening interventions to patients across the critical care pathway.","Physical Function ","Foundation","OT",false,{"$f":"IF(Table59[[#This Row],[Complete ]],\"Complete\",\"Pending\")","v":"Pending"}]
[null,"Apply aerobic and endurance exercise interventions to prevent and reverse deconditioning for patients who are self ventilating or receiving invasive or non-invasive mechanical ventilation, across the critical care pathway.","Physical Function ","Foundation","Physio",false,{"$f":"IF(Table59[[#This Row],[Complete ]],\"Complete\",\"Pending\")","v":"Pending"}]
[null,"Manage the chair transfer, ambulation and bed mobility of mechanically ventilated and spontaneously ventilating patients.","Physical Function ","Foundation","Physio",false,{"$f":"IF(Table59[[#This Row],[Complete ]],\"Complete\",\"Pending\")","v":"Pending"}]
[null,"Manage the chair transfer, ambulation and bed mobility of mechanically ventilated and spontaneously ventilating patients.","Physical Function ","Foundation","OT",false,{"$f":"IF(Table59[[#This Row],[Complete ]],\"Complete\",\"Pending\")","v":"Pending"}]
[null,"Recommend limb and neck positioning to prevent secondary neuromusculoskeletal complications, particularly during severe weakness or heavy sedation.","Physical Function ","Foundation","Physio",false,{"$f":"IF(Table59[[#This Row],[Complete ]],\"Complete\",\"Pending\")","v":"Pending"}]
[null,"Recommend limb and neck positioning to prevent secondary neuromusculoskeletal complications, particularly during severe weakness or heavy sedation.","Physical Function ","Foundation","OT",false,{"$f":"IF(Table59[[#This Row],[Complete ]],\"Complete\",\"Pending\")","v":"Pending"}]
[null,"Implement whole body positioning strategies to prevent neuromusculoskeletal and pressure area damage, promote ventilation-perfusion matching and condition the patient to the upright position.","Physical Function ","Foundation","Physio",false,{"$f":"IF(Table59[[#This Row],[Complete ]],\"Complete\",\"Pending\")","v":"Pending"}]
[null,"Implement whole body positioning strategies to prevent neuromusculoskeletal and pressure area damage, promote ventilation-perfusion matching and condition the patient to the upright position.","Physical Function ","Foundation","ODP ",false,{"$f":"IF(Table59[[#This Row],[Complete ]],\"Complete\",\"Pending\")","v":"Pending"}]
[null,"Manage the positioning of patients using a range of equipment, recognising when specialist positioning is required.","Physical Function ","Foundation","OT",false,{"$f":"IF(Table59[[#This Row],[Complete ]],\"Complete\",\"Pending\")","v":"Pending"}]
[null,"Prescribe the most appropriate pressure cushion, in relation to the patient's clinical information, stability and positioning requirements.","Physical Function ","Foundation","OT",false,{"$f":"IF(Table59[[#This Row],[Complete ]],\"Complete\",\"Pending\")","v":"Pending"}]
[null,"Refer to a specialist hand therapy service where a specific need has arisen and carry out their recommendations.","Physical Function ","Foundation","OT",false,{"$f":"IF(Table59[[#This Row],[Complete ]],\"Complete\",\"Pending\")","v":"Pending"}]
[null,"Recommend a specific orthotic regime, communicating this to the multi-professional team, patient and their families and carers, reviewing and adapting as appropriate.","Physical Function ","Foundation","OT",false,{"$f":"IF(Table59[[#This Row],[Complete ]],\"Complete\",\"Pending\")","v":"Pending"}]
[null,"Recommend and initiate personalised occupational focused upper limb activities.","Physical Function ","Foundation","OT",false,{"$f":"IF(Table59[[#This Row],[Complete ]],\"Complete\",\"Pending\")","v":"Pending"}]
[null,"Recommend and initiate a wide range of bilateral integrated upper limb exercises.","Physical Function ","Foundation","OT",false,{"$f":"IF(Table59[[#This Row],[Complete ]],\"Complete\",\"Pending\")","v":"Pending"}]
[null,"Recommend specialist positioning for the upper limb in order to maintain joint range and prevent neuromusculoskeletal injury.","Physical Function ","Foundation","OT",false,{"$f":"IF(Table59[[#This Row],[Complete ]],\"Complete\",\"Pending\")","v":"Pending"}]
[null,"Recommend seating for patients across the critical care pathway, considering level of acuity, skin integrity, weaning and rehabilitation stage.","Physical Function ","Foundation","Physio",false,{"$f":"IF(Table59[[#This Row],[Complete ]],\"Complete\",\"Pending\")","v":"Pending"}]
[null,"Recommend seating for patients across the critical care pathway, considering level of acuity, skin integrity, weaning and rehabilitation stage.","Physical Function ","Foundation","OT",false,{"$f":"IF(Table59[[#This Row],[Complete ]],\"Complete\",\"Pending\")","v":"Pending"}]
[null,"Manage patients with complex manual handling needs, advocating for the patient's needs and educating the multi-professional team in how to safely move and reposition patients.","Physical Function ","Foundation","Physio",false,{"$f":"IF(Table59[[#This Row],[Complete ]],\"Complete\",\"Pending\")","v":"Pending"}]
[null,"Manage patients with complex manual handling needs, advocating for the patient's needs and educating the multi-professional team in how to safely move and reposition patients.","Physical Function ","Foundation","OT",false,{"$f":"IF(Table59[[#This Row],[Complete ]],\"Complete\",\"Pending\")","v":"Pending"}]
[null,"Advocate for the benefits of nutrition and exercise in the critical care rehabilitation setting, recognising the specific contributions of the multi-professional team.","Physical Function ","Foundation","Dietitian",false,{"$f":"IF(Table59[[#This Row],[Complete ]],\"Complete\",\"Pending\")","v":"Pending"}]
[null,"Recommend a tailored sensory re-education programme, identifying specific sensory needs.","Physical Function ","Foundation","OT",false,{"$f":"IF(Table59[[#This Row],[Complete ]],\"Complete\",\"Pending\")","v":"Pending"}]
[null,"Liaise with the multi-professional team regarding the patient's tailored intervention programme and make recommendations to manage the patient's sensory environment.","Physical Function ","Foundation","SLT",false,{"$f":"IF(Table59[[#This Row],[Complete ]],\"Complete\",\"Pending\")","v":"Pending"}]
[null,"Liaise with the multi-professional team regarding the patient's tailored intervention programme and make recommendations to manage the patient's sensory environment.","Physical Function ","Foundation","OT",false,{"$f":"IF(Table59[[#This Row],[Complete ]],\"Complete\",\"Pending\")","v":"Pending"}]
[null,"Prescribe and perform rehabilitation interventions to meet identified goals for complex patients, establishing timing, duration and intensity required.","Physical Function ","Enhanced","Physio",false,{"$f":"IF(Table59[[#This Row],[Complete ]],\"Complete\",\"Pending\")","v":"Pending"}]
[null,"Prescribe and perform rehabilitation interventions to meet identified goals for complex patients, establishing timing, duration and intensity required.","Physical Function ","Enhanced","SLT",false,{"$f":"IF(Table59[[#This Row],[Complete ]],\"Complete\",\"Pending\")","v":"Pending"}]
[null,"Prescribe and perform rehabilitation interventions to meet identified goals for complex patients, establishing timing, duration and intensity required.","Physical Function ","Enhanced","OT",false,{"$f":"IF(Table59[[#This Row],[Complete ]],\"Complete\",\"Pending\")","v":"Pending"}]
[null,"Prescribe and perform rehabilitation interventions to meet identified goals for complex patients, establishing timing, duration and intensity required.","Physical Function ","Enhanced","Dietitian",false,{"$f":"IF(Table59[[#This Row],[Complete ]],\"Complete\",\"Pending\")","v":"Pending"}]
[null,"Negotiate the safe mobilisation of patients with the multi-professional team, initiating the mobilisation as early as clinically possible and troubleshooting any modifiable barriers to mobilisation.","Physical Function ","Enhanced","Physio",false,{"$f":"IF(Table59[[#This Row],[Complete ]],\"Complete\",\"Pending\")","v":"Pending"}]
[null,"Negotiate the safe mobilisation of patients with the multi-professional team, initiating the mobilisation as early as clinically possible and troubleshooting any modifiable barriers to mobilisation.","Physical Function ","Enhanced","OT",false,{"$f":"IF(Table59[[#This Row],[Complete ]],\"Complete\",\"Pending\")","v":"Pending"}]
[null,"Prescribe exercise using the frequency, intensity, type and time framework to patients across the critical care pathway, including mechanically-ventilated patients.","Physical Function ","Enhanced","Physio",false,{"$f":"IF(Table59[[#This Row],[Complete ]],\"Complete\",\"Pending\")","v":"Pending"}]
[null,"Review the exercise prescription regularly, including upon step-down from critical care, hospital discharge and at critical care follow-up.","Physical Function ","Enhanced","Physio",false,{"$f":"IF(Table59[[#This Row],[Complete ]],\"Complete\",\"Pending\")","v":"Pending"}]
[null,"Negotiate positioning strategies for complex or potentially unstable patients where competing priorities exist.","Physical Function ","Enhanced","Physio",false,{"$f":"IF(Table59[[#This Row],[Complete ]],\"Complete\",\"Pending\")","v":"Pending"}]
[null,"Negotiate positioning strategies for complex or potentially unstable patients where competing priorities exist.","Physical Function ","Enhanced","OT",false,{"$f":"IF(Table59[[#This Row],[Complete ]],\"Complete\",\"Pending\")","v":"Pending"}]
[null,"Negotiate positioning strategies for complex or potentially unstable patients where competing priorities exist.","Physical Function ","Enhanced","ODP ",false,{"$f":"IF(Table59[[#This Row],[Complete ]],\"Complete\",\"Pending\")","v":"Pending"}]
[null,"Educate the multi-professional team, family and patients on the importance of 24-hour positioning strategies.","Physical Function ","Enhanced","OT",false,{"$f":"IF(Table59[[#This Row],[Complete ]],\"Complete\",\"Pending\")","v":"Pending"}]
[null,"Prescribe and troubleshoot the most appropriate seating, facilitating safe mobilisation as early as clinically possible.","Physical Function ","Enhanced","Physio",false,{"$f":"IF(Table59[[#This Row],[Complete ]],\"Complete\",\"Pending\")","v":"Pending"}]
[null,"Prescribe and troubleshoot the most appropriate seating, facilitating safe mobilisation as early as clinically possible.","Physical Function ","Enhanced","OT",false,{"$f":"IF(Table59[[#This Row],[Complete ]],\"Complete\",\"Pending\")","v":"Pending"}]
[null,"Prescribe appropriate seating accessories to facilitate the most energy-efficient position and to promote engagement with meaningful activities.","Physical Function ","Enhanced","OT",false,{"$f":"IF(Table59[[#This Row],[Complete ]],\"Complete\",\"Pending\")","v":"Pending"}]
[null,"Prescribe appropriate seating accessories to facilitate the most energy-efficient position and to promote engagement with meaningful activities.","Physical Function ","Enhanced","OT",false,{"$f":"IF(Table59[[#This Row],[Complete ]],\"Complete\",\"Pending\")","v":"Pending"}]
[null,"Lead ongoing treatment planning for patients who have received upper limb therapeutic application of botulinum neurotoxin.","Physical Function ","Enhanced","OT",false,{"$f":"IF(Table59[[#This Row],[Complete ]],\"Complete\",\"Pending\")","v":"Pending"}]
[null,"Lead complex upper limb oedema management.","Physical Function ","Enhanced","OT",false,{"$f":"IF(Table59[[#This Row],[Complete ]],\"Complete\",\"Pending\")","v":"Pending"}]
[null,"Demonstrate a wide range of splinting and orthotic techniques, including, fitting and adjustment of an off-the-shelf orthosis, fabrication of a thermoplastic splint, splinting for function, tenodesis splinting and custom-made splint by problem solving.","Physical Function ","Enhanced","OT",false,{"$f":"IF(Table59[[#This Row],[Complete ]],\"Complete\",\"Pending\")","v":"Pending"}]
[null,"Design and fabricate the most appropriate orthosis or splint for patients experiencing high or low upper limb tone.","Physical Function ","Enhanced","OT",false,{"$f":"IF(Table59[[#This Row],[Complete ]],\"Complete\",\"Pending\")","v":"Pending"}]
[null,"Facilitate a range of personalised sensory re-education programmes for the upper limb, taking into consideration the patient's skin integrity and communication needs.","Physical Function ","Enhanced","OT",false,{"$f":"IF(Table59[[#This Row],[Complete ]],\"Complete\",\"Pending\")","v":"Pending"}]
[null,"Prescribe a bespoke 24-hour positioning regime for complex patients across the critical care pathway.","Physical Function ","Enhanced","OT",false,{"$f":"IF(Table59[[#This Row],[Complete ]],\"Complete\",\"Pending\")","v":"Pending"}]
[null,"Negotiate appropriate equipment for the critical care unit that enhances positioning for patients over a 24-hour period.","Physical Function ","Enhanced","OT",false,{"$f":"IF(Table59[[#This Row],[Complete ]],\"Complete\",\"Pending\")","v":"Pending"}]
[null,"Evaluate occupational considerations to seating and positioning, considering volition, fatigue and planned functional activity.","Physical Function ","Enhanced","OT",false,{"$f":"IF(Table59[[#This Row],[Complete ]],\"Complete\",\"Pending\")","v":"Pending"}]
[null,"Prescribe the appropriate pressure management tool for all critical care seating options, considering with the multi-professional team the appropriate time in one position and how this may limit a patient's activity engagement.","Physical Function ","Enhanced","OT",false,{"$f":"IF(Table59[[#This Row],[Complete ]],\"Complete\",\"Pending\")","v":"Pending"}]
[null,"Advocate for the provision of a range of seating and transfer options for the critical care unit, informed by local need.","Physical Function ","Enhanced","OT",false,{"$f":"IF(Table59[[#This Row],[Complete ]],\"Complete\",\"Pending\")","v":"Pending"}]
[null,"Lead the development of an exit strategy from a prescribed seating option, in preparedness for medical emergencies, and communicate this to the multi-professional team.","Physical Function ","Enhanced","OT",false,{"$f":"IF(Table59[[#This Row],[Complete ]],\"Complete\",\"Pending\")","v":"Pending"}]
[null,"Liaise with tertiary centres, procuring specialist advice, to create bespoke manual handling regimes for patients with highly complex needs and upskill the multi-professional team to meet their requirements.","Physical Function ","Enhanced","OT",false,{"$f":"IF(Table59[[#This Row],[Complete ]],\"Complete\",\"Pending\")","v":"Pending"}]
[null,"Contribute to nutrition and exercise prescriptions, with relevant additional training, in collaboration with other multi-professional team members.","Physical Function ","Enhanced","Physio",false,{"$f":"IF(Table59[[#This Row],[Complete ]],\"Complete\",\"Pending\")","v":"Pending"}]
[null,"Contribute to nutrition and exercise prescriptions, with relevant additional training, in collaboration with other multi-professional team members.","Physical Function ","Enhanced","Dietitian",false,{"$f":"IF(Table59[[#This Row],[Complete ]],\"Complete\",\"Pending\")","v":"Pending"}]
[null,"Evaluate the impact of external factors on a patient's engagement with rehabilitation, minimising barriers where possible.","Physical Function ","Enhanced","Physio",false,{"$f":"IF(Table59[[#This Row],[Complete ]],\"Complete\",\"Pending\")","v":"Pending"}]
[null,"Evaluate the impact of external factors on a patient's engagement with rehabilitation, minimising barriers where possible.","Physical Function ","Enhanced","SLT",false,{"$f":"IF(Table59[[#This Row],[Complete ]],\"Complete\",\"Pending\")","v":"Pending"}]
[null,"Evaluate the impact of external factors on a patient's engagement with rehabilitation, minimising barriers where possible.","Physical Function ","Enhanced","OT",false,{"$f":"IF(Table59[[#This Row],[Complete ]],\"Complete\",\"Pending\")","v":"Pending"}]
[null,"Evaluate the impact of external factors on a patient's engagement with rehabilitation, minimising barriers where possible.","Physical Function ","Enhanced","Dietitian",false,{"$f":"IF(Table59[[#This Row],[Complete ]],\"Complete\",\"Pending\")","v":"Pending"}]
[null,"Lead on sensory re-education programmes, creating resources for tailored interventions and implementing programmes for patients with complex sensory needs or pre-existing sensory disorder.","Physical Function ","Enhanced","OT",false,{"$f":"IF(Table59[[#This Row],[Complete ]],\"Complete\",\"Pending\")","v":"Pending"}]
[null,"Collaborate with the multi-professional team to coordinate a graded, structured and supervised rehabilitation programme and prescription.","Physical Function ","Enhanced","Physio",false,{"$f":"IF(Table59[[#This Row],[Complete ]],\"Complete\",\"Pending\")","v":"Pending"}]
[null,"Collaborate with the multi-professional team to coordinate a graded, structured and supervised rehabilitation programme and prescription.","Physical Function ","Enhanced","SLT",false,{"$f":"IF(Table59[[#This Row],[Complete ]],\"Complete\",\"Pending\")","v":"Pending"}]
[null,"Collaborate with the multi-professional team to coordinate a graded, structured and supervised rehabilitation programme and prescription.","Physical Function ","Enhanced","OT",false,{"$f":"IF(Table59[[#This Row],[Complete ]],\"Complete\",\"Pending\")","v":"Pending"}]
[null,"Collaborate with the multi-professional team to coordinate a graded, structured and supervised rehabilitation programme and prescription.","Physical Function ","Enhanced","Dietitian",false,{"$f":"IF(Table59[[#This Row],[Complete ]],\"Complete\",\"Pending\")","v":"Pending"}]
[null,"Evaluate the indications for muscle strengthening adjuncts, such as electrical muscle stimulation, on a case by case basis.","Physical Function ","Enhanced","Physio",false,{"$f":"IF(Table59[[#This Row],[Complete ]],\"Complete\",\"Pending\")","v":"Pending"}]
[null,"Evaluate the indications for muscle strengthening adjuncts, such as electrical muscle stimulation, on a case by case basis.","Physical Function ","Enhanced","OT",false,{"$f":"IF(Table59[[#This Row],[Complete ]],\"Complete\",\"Pending\")","v":"Pending"}]
[null,"Orientate a patient experiencing delirium using effective communication techniques.","Non-physical function","Supportive","All professions ",false,{"$f":"IF(Table59[[#This Row],[Complete ]],\"Complete\",\"Pending\")","v":"Pending"}]
[null,"Assist in the prevention and management of delirium by minimising environmental impacts, such as noise, bright lights and disorientation to time and place during therapy sessions.","Non-physical function","Supportive","All professions ",false,{"$f":"IF(Table59[[#This Row],[Complete ]],\"Complete\",\"Pending\")","v":"Pending"}]
[null,"Apply the individual's spiritual and cultural beliefs to their psychological wellbeing.","Non-physical function","Assistive","OT",false,{"$f":"IF(Table59[[#This Row],[Complete ]],\"Complete\",\"Pending\")","v":"Pending"}]
[null,"Ensure the environment is optimised to meet patient's cognitive and sensory needs to aid recovery.","Non-physical function","Assistive","OT",false,{"$f":"IF(Table59[[#This Row],[Complete ]],\"Complete\",\"Pending\")","v":"Pending"}]
[null,"Contribute to overall management of low mood, providing a patient with time to talk and extra time or adaptive methods to express themselves.","Non-physical function","Assistive","OT",false,{"$f":"IF(Table59[[#This Row],[Complete ]],\"Complete\",\"Pending\")","v":"Pending"}]
[null,"Recognise the importance of cognitive and perceptual rehabilitation and follow a treatment plan prescribed by the therapist.","Non-physical function","Assistive","OT",false,{"$f":"IF(Table59[[#This Row],[Complete ]],\"Complete\",\"Pending\")","v":"Pending"}]
[null,"Contribute to multi-professional team discussions regarding patient wellbeing and mood, explaining use of meaningful activity options.","Non-physical function","Assistive","OT",false,{"$f":"IF(Table59[[#This Row],[Complete ]],\"Complete\",\"Pending\")","v":"Pending"}]
[null,"Facilitate a person-centred approach to delirium prevention and management.","Non-physical function","Foundation","All professions ",false,{"$f":"IF(Table59[[#This Row],[Complete ]],\"Complete\",\"Pending\")","v":"Pending"}]
[null,"Apply understanding of the pharmacological and non-pharmacological management of delirium to inform therapeutic intervention and multi-professional team discussions.","Non-physical function","Foundation","All professions ",false,{"$f":"IF(Table59[[#This Row],[Complete ]],\"Complete\",\"Pending\")","v":"Pending"}]
[null,"Contribute to the assessment of a patient in a disorder of consciousness, using a range of standardised assessments and behaviours, observations, synthesising information to inform a treatment plan.","Non-physical function","Foundation","SLT",false,{"$f":"IF(Table59[[#This Row],[Complete ]],\"Complete\",\"Pending\")","v":"Pending"}]
[null,"Contribute to the assessment of a patient in a disorder of consciousness, using a range of standardised assessments and behaviours, observations, synthesising information to inform a treatment plan.","Non-physical function","Foundation","OT",false,{"$f":"IF(Table59[[#This Row],[Complete ]],\"Complete\",\"Pending\")","v":"Pending"}]
[null,"Educate the multi-professional team, families and carers on the impact of the environment on a patient's sensory system.","Non-physical function","Foundation","OT",false,{"$f":"IF(Table59[[#This Row],[Complete ]],\"Complete\",\"Pending\")","v":"Pending"}]
[null,"Identify early rehabilitation potential for patients in an altered conscious state, including requirement for disability management and appropriate discharge route, in collaboration with the multi-professional team.","Non-physical function","Foundation","SLT",false,{"$f":"IF(Table59[[#This Row],[Complete ]],\"Complete\",\"Pending\")","v":"Pending"}]
[null,"Identify early rehabilitation potential for patients in an altered conscious state, including requirement for disability management and appropriate discharge route, in collaboration with the multi-professional team.","Non-physical function","Foundation","OT",false,{"$f":"IF(Table59[[#This Row],[Complete ]],\"Complete\",\"Pending\")","v":"Pending"}]
[null,"Apply meaningful cognitive stimulation in therapeutic sessions to provide person-centred reminisce therapy.","Non-physical function","Foundation","OT",false,{"$f":"IF(Table59[[#This Row],[Complete ]],\"Complete\",\"Pending\")","v":"Pending"}]
[null,"Recommend meaningful activity integration strategies to promote psychological wellbeing for a patient on critical care, taking into consideration the patient's critical condition, participation and engagement level.","Non-physical function","Foundation","OT",false,{"$f":"IF(Table59[[#This Row],[Complete ]],\"Complete\",\"Pending\")","v":"Pending"}]
[null,"Contribute to the multi-professional team's interventions related to psychological wellbeing, identifying strengths and barriers to participation in rehabilitation.","Non-physical function","Foundation","OT",false,{"$f":"IF(Table59[[#This Row],[Complete ]],\"Complete\",\"Pending\")","v":"Pending"}]
[null,"Recommend individualised cognitive and communication strategies for patients experiencing delirium, involving families, carers and multi-professional team.","Non-physical function","Foundation","SLT",false,{"$f":"IF(Table59[[#This Row],[Complete ]],\"Complete\",\"Pending\")","v":"Pending"}]
[null,"Recommend individualised cognitive and communication strategies for patients experiencing delirium, involving families, carers and multi-professional team.","Non-physical function","Foundation","OT",false,{"$f":"IF(Table59[[#This Row],[Complete ]],\"Complete\",\"Pending\")","v":"Pending"}]
[null,"Liaise with the patient and their families and carers to provide psychological support through occupational engagement, making onward referrals as appropriate and educating and sharing findings with the patient, families and carers and multi-professional team.","Non-physical function","Foundation","OT",false,{"$f":"IF(Table59[[#This Row],[Complete ]],\"Complete\",\"Pending\")","v":"Pending"}]
[null,"Implement multi modal sensory stimulation intervention plans for patients in a disorder of consciousness.","Non-physical function","Foundation","SLT",false,{"$f":"IF(Table59[[#This Row],[Complete ]],\"Complete\",\"Pending\")","v":"Pending"}]
[null,"Implement multi modal sensory stimulation intervention plans for patients in a disorder of consciousness.","Non-physical function","Foundation","OT",false,{"$f":"IF(Table59[[#This Row],[Complete ]],\"Complete\",\"Pending\")","v":"Pending"}]
[null,"Evaluate risk factors for and underlying causes of delirium, suggesting relevant prevention and management strategies to the multi-professional team.","Non-physical function","Enhanced","All professions ",false,{"$f":"IF(Table59[[#This Row],[Complete ]],\"Complete\",\"Pending\")","v":"Pending"}]
[null,"Negotiate the pharmacological and non-pharmacological management of delirium with the multi-professional team.","Non-physical function","Enhanced","All professions ",false,{"$f":"IF(Table59[[#This Row],[Complete ]],\"Complete\",\"Pending\")","v":"Pending"}]
[null,"Lead on personalised, non-pharmacological treatment for delirium, including occupation-focused activities.","Non-physical function","Enhanced","OT",false,{"$f":"IF(Table59[[#This Row],[Complete ]],\"Complete\",\"Pending\")","v":"Pending"}]
[null,"Facilitate multi-professional delirium care, advocating for the importance of inclusive and effective communication to enhance care.","Non-physical function","Enhanced","SLT",false,{"$f":"IF(Table59[[#This Row],[Complete ]],\"Complete\",\"Pending\")","v":"Pending"}]
[null,"Facilitate multi-professional delirium care, advocating for the importance of inclusive and effective communication to enhance care.","Non-physical function","Enhanced","OT",false,{"$f":"IF(Table59[[#This Row],[Complete ]],\"Complete\",\"Pending\")","v":"Pending"}]
[null,"Manage cognitive and perceptual deficits within the critical care environment.","Non-physical function","Enhanced","OT",false,{"$f":"IF(Table59[[#This Row],[Complete ]],\"Complete\",\"Pending\")","v":"Pending"}]
[null,"Ensure cognitive rehabilitation is carried out throughout the critical care pathway and use standard and non-standardised methods of intervention.","Non-physical function","Enhanced","OT",false,{"$f":"IF(Table59[[#This Row],[Complete ]],\"Complete\",\"Pending\")","v":"Pending"}]
[null,"Evaluate the meaningful activity to ensure correct grading and optimisation of achievement for the patient.","Non-physical function","Enhanced","OT",false,{"$f":"IF(Table59[[#This Row],[Complete ]],\"Complete\",\"Pending\")","v":"Pending"}]
[null,"Evaluate the effectiveness of cognitive and perceptual rehabilitation programmes for complex patients.","Non-physical function","Enhanced","OT",false,{"$f":"IF(Table59[[#This Row],[Complete ]],\"Complete\",\"Pending\")","v":"Pending"}]
[null,"Develop rehabilitation programmes that mitigate the negative impact of occupational deprivation and promote optimal levels of participation.","Non-physical function","Enhanced","OT",false,{"$f":"IF(Table59[[#This Row],[Complete ]],\"Complete\",\"Pending\")","v":"Pending"}]
[null,"Assist in the education of the multi-professional team alongside psychology colleagues where available, implementing patient-centred psychological care options for specific critical care patients.","Non-physical function","Enhanced","OT",false,{"$f":"IF(Table59[[#This Row],[Complete ]],\"Complete\",\"Pending\")","v":"Pending"}]
[null,"Facilitate the utilisation of strategies and tools to support the wider treatment of the patient's psychological wellbeing.","Non-physical function","Enhanced","OT",false,{"$f":"IF(Table59[[#This Row],[Complete ]],\"Complete\",\"Pending\")","v":"Pending"}]
[null,"Lead on environmental change to manage complex sensory needs of a patient in a disorder of consciousness or prolonged disorder of consciousness.","Non-physical function","Enhanced","OT",false,{"$f":"IF(Table59[[#This Row],[Complete ]],\"Complete\",\"Pending\")","v":"Pending"}]
[null,"Lead discussions regarding rehabilitation and disability management for patients in a disorder of consciousness with the patient, families, carers and the multi-professional team.","Non-physical function","Enhanced","SLT",false,{"$f":"IF(Table59[[#This Row],[Complete ]],\"Complete\",\"Pending\")","v":"Pending"}]
[null,"Lead discussions regarding rehabilitation and disability management for patients in a disorder of consciousness with the patient, families, carers and the multi-professional team.","Non-physical function","Enhanced","OT",false,{"$f":"IF(Table59[[#This Row],[Complete ]],\"Complete\",\"Pending\")","v":"Pending"}]
[null,"Prescribe a multimodal sensory stimulation intervention plan, for patients in a disorder of consciousness, educating the multi-professional team, families and carers in sensory modulation approaches.","Non-physical function","Enhanced","OT",false,{"$f":"IF(Table59[[#This Row],[Complete ]],\"Complete\",\"Pending\")","v":"Pending"}]
[null,"Prescribe a multimodal sensory stimulation intervention plan, for patients in a disorder of consciousness, educating the multi-professional team, families and carers in sensory modulation approaches.","Non-physical function","Enhanced","SLT",false,{"$f":"IF(Table59[[#This Row],[Complete ]],\"Complete\",\"Pending\")","v":"Pending"}]
[null,"Assist with appropriate individualised sleep hygiene adjuncts, such as eye masks and ear buds.","Meaningful occupation ","Supportive","All professions ",false,{"$f":"IF(Table59[[#This Row],[Complete ]],\"Complete\",\"Pending\")","v":"Pending"}]
[null,"Support the patient to have phone calls and ensure patient has access to personal belongings, including mobile phones, chargers.","Meaningful occupation ","Supportive","All professions ",false,{"$f":"IF(Table59[[#This Row],[Complete ]],\"Complete\",\"Pending\")","v":"Pending"}]
[null,"Perform meaningful occupational activities, progressing the level of function using a graded activity approach.","Meaningful occupation ","Assistive","Physio",false,{"$f":"IF(Table59[[#This Row],[Complete ]],\"Complete\",\"Pending\")","v":"Pending"}]
[null,"Perform meaningful occupational activities, progressing the level of function using a graded activity approach.","Meaningful occupation ","Assistive","SLT",false,{"$f":"IF(Table59[[#This Row],[Complete ]],\"Complete\",\"Pending\")","v":"Pending"}]
[null,"Follow a tailored treatment programme to manage patient fatigue.","Meaningful occupation ","Assistive","OT",false,{"$f":"IF(Table59[[#This Row],[Complete ]],\"Complete\",\"Pending\")","v":"Pending"}]
[null,"Promote the engagement in meaningful occupation, by ensuring patients have access to items and activities.","Meaningful occupation ","Foundation","All professions ",false,{"$f":"IF(Table59[[#This Row],[Complete ]],\"Complete\",\"Pending\")","v":"Pending"}]
[null,"Implement activity analysis, articulating findings to the patient, their families and carers and the multi-professional team.","Meaningful occupation ","Foundation","OT",false,{"$f":"IF(Table59[[#This Row],[Complete ]],\"Complete\",\"Pending\")","v":"Pending"}]
[null,"Apply meaningful occupations to treatment activities that are appropriate to level of physical and cognitive function.","Meaningful occupation ","Foundation","OT",false,{"$f":"IF(Table59[[#This Row],[Complete ]],\"Complete\",\"Pending\")","v":"Pending"}]
[null,"Initiate a person-centred, meaningful occupational approach with graded activities to address cognitive, physical and psychological needs, and enhance the patient's environment to gain further engagement.","Meaningful occupation ","Foundation","OT",false,{"$f":"IF(Table59[[#This Row],[Complete ]],\"Complete\",\"Pending\")","v":"Pending"}]
[null,"Initiate compensatory and adaptive techniques to enable engagement in chosen meaningful activities.","Meaningful occupation ","Foundation","OT",false,{"$f":"IF(Table59[[#This Row],[Complete ]],\"Complete\",\"Pending\")","v":"Pending"}]
[null,"Recognise the need for patients who have sleep-wake cycles to have an appropriate sleep hygiene review.","Meaningful occupation ","Foundation","OT",false,{"$f":"IF(Table59[[#This Row],[Complete ]],\"Complete\",\"Pending\")","v":"Pending"}]
[null,"Devise a tailored treatment programme to manage levels of fatigue for patients across the critical care pathway.","Meaningful occupation ","Foundation","OT",false,{"$f":"IF(Table59[[#This Row],[Complete ]],\"Complete\",\"Pending\")","v":"Pending"}]
[null,"Lead and facilitate participation in chosen meaningful occupations whilst on critical care, and off the unit or outside hospital, if clinically appropriate.","Meaningful occupation ","Enhanced","Physio",false,{"$f":"IF(Table59[[#This Row],[Complete ]],\"Complete\",\"Pending\")","v":"Pending"}]
[null,"Lead and facilitate participation in chosen meaningful occupations whilst on critical care, and off the unit or outside hospital, if clinically appropriate.","Meaningful occupation ","Enhanced","OT",false,{"$f":"IF(Table59[[#This Row],[Complete ]],\"Complete\",\"Pending\")","v":"Pending"}]
[null,"Prescribe meaningful occupations as an integral part of the patient's overall rehabilitation plan.","Meaningful occupation ","Enhanced","OT",false,{"$f":"IF(Table59[[#This Row],[Complete ]],\"Complete\",\"Pending\")","v":"Pending"}]
[null,"Lead discussions with the multi-professional team on clustering care to facilitate sleep and assist in educating families and carers.","Meaningful occupation ","Enhanced","OT",false,{"$f":"IF(Table59[[#This Row],[Complete ]],\"Complete\",\"Pending\")","v":"Pending"}]
[null,"Lead the discussion with the multi-professional team regarding fatigue management, providing education, resources and support across the critical care pathway.","Meaningful occupation ","Enhanced","OT",false,{"$f":"IF(Table59[[#This Row],[Complete ]],\"Complete\",\"Pending\")","v":"Pending"}]
[null,"Negotiate potential solutions to optimise sleep quality on the critical care unit and improve the sleep-wake cycle.","Meaningful occupation ","Enhanced","OT",false,{"$f":"IF(Table59[[#This Row],[Complete ]],\"Complete\",\"Pending\")","v":"Pending"}]
[null,"Facilitate activity analysis with complex patients and interpret findings, supporting team members as required.","Meaningful occupation ","Enhanced","OT",false,{"$f":"IF(Table59[[#This Row],[Complete ]],\"Complete\",\"Pending\")","v":"Pending"}]
[null,"Assist patients, families and carers and multi-professional team to use prescribed alternative and augmentative communication methods, enabling patient participation.","Communication intervention","Supportive","All professions ",false,{"$f":"IF(Table59[[#This Row],[Complete ]],\"Complete\",\"Pending\")","v":"Pending"}]
[null,"Support communication, using a range of methods, to maximise the individual's ability to understand, think and communicate decisions.","Communication intervention","Assistive","SLT",false,{"$f":"IF(Table59[[#This Row],[Complete ]],\"Complete\",\"Pending\")","v":"Pending"}]
[null,"Perform prescribed communication intervention programme, including simple progression and regression based upon patient presentation.","Communication intervention","Assistive","SLT",false,{"$f":"IF(Table59[[#This Row],[Complete ]],\"Complete\",\"Pending\")","v":"Pending"}]
[null,"Utilise information from assessment process to build a communication management plan, targeting individualised interventions whilst appreciating and respecting diversity, individual differences, cultural beliefs and customs.","Communication intervention","Foundation","SLT",false,{"$f":"IF(Table59[[#This Row],[Complete ]],\"Complete\",\"Pending\")","v":"Pending"}]
[null,"Select communication interventions for patients, modifying responsively to changes in presentation and variation in needs at different time points in the critical care pathway.","Communication intervention","Foundation","SLT",false,{"$f":"IF(Table59[[#This Row],[Complete ]],\"Complete\",\"Pending\")","v":"Pending"}]
[null,"Implement augmentative and alternative communication intervention that develops communicative competence, allowing individuals to interact, develop relationships and influence their environment.","Communication intervention","Foundation","SLT",false,{"$f":"IF(Table59[[#This Row],[Complete ]],\"Complete\",\"Pending\")","v":"Pending"}]
[null,"Advocate for the role of speech and language therapists in humanising care by addressing communication challenges, promoting patient choice, dignity and social connections.","Communication intervention","Foundation","SLT",false,{"$f":"IF(Table59[[#This Row],[Complete ]],\"Complete\",\"Pending\")","v":"Pending"}]
[null,"Implement recommendations of a communication plan, including use of one-way valve for tracheostomised patients.","Communication intervention","Foundation","Physio",false,{"$f":"IF(Table59[[#This Row],[Complete ]],\"Complete\",\"Pending\")","v":"Pending"}]
[null,"Implement a range of individualised communication methods, techniques and strategies to navigate patient and multi-professional team through capacity assessments, advocating for the patient as required.","Communication intervention","Foundation","SLT",false,{"$f":"IF(Table59[[#This Row],[Complete ]],\"Complete\",\"Pending\")","v":"Pending"}]
[null,"Facilitate use of new, novel and innovative approaches to communication interventions and alternative and augmentative communication.","Communication intervention","Enhanced","SLT",false,{"$f":"IF(Table59[[#This Row],[Complete ]],\"Complete\",\"Pending\")","v":"Pending"}]
[null,"Advocate for the role of speech and language therapy in supporting decision making, consent and capacity, educating the multi-professional team on the impact on health and quality of life for people who are not supported to participate.","Communication intervention","Enhanced","SLT",false,{"$f":"IF(Table59[[#This Row],[Complete ]],\"Complete\",\"Pending\")","v":"Pending"}]
[null,"Assist and perform oral care, recognising signs of poor oral hygiene and report and refer to relevant multi-professional team members.","Eating, drinking and swallowing ","Supportive","All professions ",false,{"$f":"IF(Table59[[#This Row],[Complete ]],\"Complete\",\"Pending\")","v":"Pending"}]
[null,"Recognise barriers to optimal oral hygiene in critical care, including equipment, nutrition and hydration status, level of consciousness and dependence on oral care.","Eating, drinking and swallowing ","Supportive","All professions ",false,{"$f":"IF(Table59[[#This Row],[Complete ]],\"Complete\",\"Pending\")","v":"Pending"}]
[null,"Monitor effectiveness of eating, drinking, swallowing and secretion management plan, recording relevant outcomes and reporting back to speech and language therapist.","Eating, drinking and swallowing ","Assistive","SLT",false,{"$f":"IF(Table59[[#This Row],[Complete ]],\"Complete\",\"Pending\")","v":"Pending"}]
[null,"Recognise how individual factors impact on implementation of eating, drinking and swallowing management plan, including psychological state, oral hygiene, alertness levels, communication abilities.","Eating, drinking and swallowing ","Assistive","SLT",false,{"$f":"IF(Table59[[#This Row],[Complete ]],\"Complete\",\"Pending\")","v":"Pending"}]
[null,"Recognise the impact of the environment, posture, muscle tone, mood and sensory stimulation on eating, drinking and swallowing and make active modifications to mitigate this.","Eating, drinking and swallowing ","Assistive","SLT",false,{"$f":"IF(Table59[[#This Row],[Complete ]],\"Complete\",\"Pending\")","v":"Pending"}]
[null,"Assist patients and families and carers in the preparation of prescribed diet and fluid recommendations, using the International Dysphagia Diet Standardisation Initiative (IDDSI) framework, whilst accounting for individual needs and preferences.","Eating, drinking and swallowing ","Assistive","SLT",false,{"$f":"IF(Table59[[#This Row],[Complete ]],\"Complete\",\"Pending\")","v":"Pending"}]
[null,"Assess barriers to optimal oral hygiene, including equipment, environment, medications, nutrition and hydration status, level of consciousness and dependence on oral care, escalating to multi-professional team.","Eating, drinking and swallowing ","Assistive","SLT",false,{"$f":"IF(Table59[[#This Row],[Complete ]],\"Complete\",\"Pending\")","v":"Pending"}]
[null,"Recommend individualised dysphagia rehabilitation interventions, whilst evaluating the benefits and contraindications for critically ill patients.","Eating, drinking and swallowing ","Assistive","SLT",false,{"$f":"IF(Table59[[#This Row],[Complete ]],\"Complete\",\"Pending\")","v":"Pending"}]
[null,"Implement desensitisation programmes for patients showing signs of oral hypersensitivity.","Eating, drinking and swallowing ","Foundation","SLT",false,{"$f":"IF(Table59[[#This Row],[Complete ]],\"Complete\",\"Pending\")","v":"Pending"}]
[null,"Formulate an eating, drinking and swallowing management plan, incorporating a range of intervention approaches.","Eating, drinking and swallowing ","Foundation","SLT",false,{"$f":"IF(Table59[[#This Row],[Complete ]],\"Complete\",\"Pending\")","v":"Pending"}]
[null,"Recommend, monitor and review use of adaptive utensils and specialist equipment, modifying as appropriate.","Eating, drinking and swallowing ","Foundation","SLT",false,{"$f":"IF(Table59[[#This Row],[Complete ]],\"Complete\",\"Pending\")","v":"Pending"}]
[null,"Recommend, monitor and review use of adaptive utensils and specialist equipment, modifying as appropriate.","Eating, drinking and swallowing ","Foundation","OT",false,{"$f":"IF(Table59[[#This Row],[Complete ]],\"Complete\",\"Pending\")","v":"Pending"}]
[null,"Lead the implementation, monitoring and evaluation of an eating, drinking, swallowing and secretion management plan for patients with complex presentations.","Eating, drinking and swallowing ","Enhanced","SLT",false,{"$f":"IF(Table59[[#This Row],[Complete ]],\"Complete\",\"Pending\")","v":"Pending"}]
[null,"Negotiate management plans with the multi-professional team, ensuring the implications of eating, drinking, swallowing and secretion management difficulties are understood within the wider context of nutrition, hydration, health status and potential impact on critical care pathway.","Eating, drinking and swallowing ","Enhanced","SLT",false,{"$f":"IF(Table59[[#This Row],[Complete ]],\"Complete\",\"Pending\")","v":"Pending"}]
[null,"Implement new, innovative or enhanced therapeutic dysphagia interventions and rehabilitation, including neurostimulation and biofeedback techniques, following relevant training.","Eating, drinking and swallowing ","Enhanced","SLT",false,{"$f":"IF(Table59[[#This Row],[Complete ]],\"Complete\",\"Pending\")","v":"Pending"}]
[null,"Evaluate risks versus benefits of interventions for oral desensitisation and sensory deprivation.","Eating, drinking and swallowing ","Enhanced","SLT",false,{"$f":"IF(Table59[[#This Row],[Complete ]],\"Complete\",\"Pending\")","v":"Pending"}]
[null,"Contribute to multi-professional team discussions where other forms of interventions are being considered for oral hypersensitivity.","Eating, drinking and swallowing ","Enhanced","SLT",false,{"$f":"IF(Table59[[#This Row],[Complete ]],\"Complete\",\"Pending\")","v":"Pending"}]
[null,"Recognise barriers to achieving adequate oral nutrition in the recovery phase.","Nutrition ","Supportive","All professions ",false,{"$f":"IF(Table59[[#This Row],[Complete ]],\"Complete\",\"Pending\")","v":"Pending"}]
[null,"Perform a stock take of nutrition support products and place cost-effective orders.","Nutrition ","Supportive","Dietitian",false,{"$f":"IF(Table59[[#This Row],[Complete ]],\"Complete\",\"Pending\")","v":"Pending"}]
[null,"Assess the nutritional adequacy of patients who are eating and drinking, document when nutrition supplement drinks and additional snacks are required, and organise provision.","Nutrition ","Assistive","Dietitian",false,{"$f":"IF(Table59[[#This Row],[Complete ]],\"Complete\",\"Pending\")","v":"Pending"}]
[null,"Assist patients with selecting the most suitable meal provision for texture modified meals, following speech and language therapist recommendations, and order meals from the kitchen when indicated.","Nutrition ","Assistive","Dietitian",false,{"$f":"IF(Table59[[#This Row],[Complete ]],\"Complete\",\"Pending\")","v":"Pending"}]
[null,"Assist patients with selecting the most suitable meal provision for texture modified meals, following speech and language therapist recommendations, and order meals from the kitchen when indicated.","Nutrition ","Assistive","SLT",false,{"$f":"IF(Table59[[#This Row],[Complete ]],\"Complete\",\"Pending\")","v":"Pending"}]
[null,"Assist patients with selecting the most suitable meal options from the hospital menu and arrange special meals and snack provision from the kitchen for those who need a therapeutic or texture modified diet.","Nutrition ","Assistive","Dietitian",false,{"$f":"IF(Table59[[#This Row],[Complete ]],\"Complete\",\"Pending\")","v":"Pending"}]
[null,"Assist patients with selecting the most suitable meal options from the hospital menu and arrange special meals and snack provision from the kitchen for those who need a therapeutic or texture modified diet.","Nutrition ","Assistive","SLT",false,{"$f":"IF(Table59[[#This Row],[Complete ]],\"Complete\",\"Pending\")","v":"Pending"}]
[null,"Recommend the most appropriate nutritional supplements, ensuring they are prescribed appropriately.","Nutrition ","Foundation","Dietitian",false,{"$f":"IF(Table59[[#This Row],[Complete ]],\"Complete\",\"Pending\")","v":"Pending"}]
[null,"Recommend appropriate therapeutic diets required to meet nutritional targets.","Nutrition ","Foundation","Dietitian",false,{"$f":"IF(Table59[[#This Row],[Complete ]],\"Complete\",\"Pending\")","v":"Pending"}]
[null,"Recommend nutritional or texture modifications required to meals to meet nutritional targets or dysphagia recommendations.","Nutrition ","Foundation","Dietitian",false,{"$f":"IF(Table59[[#This Row],[Complete ]],\"Complete\",\"Pending\")","v":"Pending"}]
[null,"Recommend nutritional or texture modifications required to meals to meet nutritional targets or dysphagia recommendations.","Nutrition ","Foundation","SLT",false,{"$f":"IF(Table59[[#This Row],[Complete ]],\"Complete\",\"Pending\")","v":"Pending"}]
[null,"Recommend suitable oral nutrition support products to meet nutritional targets following speech and language therapy recommendations.","Nutrition ","Foundation","Dietitian",false,{"$f":"IF(Table59[[#This Row],[Complete ]],\"Complete\",\"Pending\")","v":"Pending"}]
[null,"Recommend nutritional intervention plans to help patients overcome barriers to adequate oral nutrition and provide patient culturally competent and inclusive nutrition resources where appropriate.","Nutrition ","Foundation","Dietitian",false,{"$f":"IF(Table59[[#This Row],[Complete ]],\"Complete\",\"Pending\")","v":"Pending"}]
[null,"Liaise with the multi-professional team to provide recommendations for when a long-term enteral nutrition tube is indicated and collaborate in making the referral.","Nutrition ","Foundation","Dietitian",false,{"$f":"IF(Table59[[#This Row],[Complete ]],\"Complete\",\"Pending\")","v":"Pending"}]
[null,"Liaise with the multi-professional team to provide recommendations for when a long-term enteral nutrition tube is indicated and collaborate in making the referral.","Nutrition ","Foundation","SLT",false,{"$f":"IF(Table59[[#This Row],[Complete ]],\"Complete\",\"Pending\")","v":"Pending"}]
[null,"Implement and review enteral nutrition treatment plans for non-complex, intubated and self-ventilating critically ill patients, selecting the appropriate formulations.","Nutrition ","Foundation","Dietitian",false,{"$f":"IF(Table59[[#This Row],[Complete ]],\"Complete\",\"Pending\")","v":"Pending"}]
[null,"Advise the multi-professional team on the correct methods for short-term enteral nutrition tube position confirmation and ongoing enteral nutrition tube care.","Nutrition ","Foundation","Dietitian",false,{"$f":"IF(Table59[[#This Row],[Complete ]],\"Complete\",\"Pending\")","v":"Pending"}]
[null,"Identify the indications for nasojejunal enteral nutrition tubes and nasal bridles, making referral where required.","Nutrition ","Foundation","Dietitian",false,{"$f":"IF(Table59[[#This Row],[Complete ]],\"Complete\",\"Pending\")","v":"Pending"}]
[null,"Liaise with the enteral nutrition team or gastroenterology for guidance on all aspects of short-term and long-term enteral nutrition tube care.","Nutrition ","Foundation","Dietitian",false,{"$f":"IF(Table59[[#This Row],[Complete ]],\"Complete\",\"Pending\")","v":"Pending"}]
[null,"Advise the multi-professional team on the ongoing long-term enteral nutrition tube care, referring to the enteral nutrition team or gastroenterology where required.","Nutrition ","Foundation","Dietitian",false,{"$f":"IF(Table59[[#This Row],[Complete ]],\"Complete\",\"Pending\")","v":"Pending"}]
[null,"Recommend parenteral nutrition access routes and principles of line care to the multi-professional team.","Nutrition ","Foundation","Dietitian",false,{"$f":"IF(Table59[[#This Row],[Complete ]],\"Complete\",\"Pending\")","v":"Pending"}]
[null,"Implement and review parenteral nutrition treatment plans, based on the nutritional assessment, using standard multi-chamber bags.","Nutrition ","Foundation","Dietitian",false,{"$f":"IF(Table59[[#This Row],[Complete ]],\"Complete\",\"Pending\")","v":"Pending"}]
[null,"Interpret the findings of nutrition-related investigations and implement modifications to nutritional intervention plan.","Nutrition ","Foundation","Dietitian",false,{"$f":"IF(Table59[[#This Row],[Complete ]],\"Complete\",\"Pending\")","v":"Pending"}]
[null,"Interpret the findings of nutrition-related blood tests and implement modifications to nutritional intervention plan.","Nutrition ","Foundation","Dietitian",false,{"$f":"IF(Table59[[#This Row],[Complete ]],\"Complete\",\"Pending\")","v":"Pending"}]
[null,"Recognise clinical barriers to achieving adequate enteral nutrition in the recovery phase, including gastrointestinal intolerance, high output stomas, repeated feed interruptions, increased nutritional needs.","Nutrition ","Foundation","Dietitian",false,{"$f":"IF(Table59[[#This Row],[Complete ]],\"Complete\",\"Pending\")","v":"Pending"}]
[null,"Initiate a full nutritional assessment of post-critical care patients, identifying nutrition rehabilitation needs and recommending a nutrition intervention plan for recovery.","Nutrition ","Foundation","Dietitian",false,{"$f":"IF(Table59[[#This Row],[Complete ]],\"Complete\",\"Pending\")","v":"Pending"}]
[null,"Apply the principles of developing effective patient resources, including co-production, culturally competent and inclusive, easy to read, accurate and evidence informed.","Nutrition ","Foundation","Dietitian",false,{"$f":"IF(Table59[[#This Row],[Complete ]],\"Complete\",\"Pending\")","v":"Pending"}]
[null,"Review external patient nutrition resources alongside people with lived experience to ensure they are fit for use in post critical care recovery.","Nutrition ","Foundation","Dietitian",false,{"$f":"IF(Table59[[#This Row],[Complete ]],\"Complete\",\"Pending\")","v":"Pending"}]
[null,"Liaise with patients and other professionals for managing barriers towards achieving good nutritional intake across a wide range of complex patient conditions and settings in the critical care pathway.","Nutrition ","Enhanced","Dietitian",false,{"$f":"IF(Table59[[#This Row],[Complete ]],\"Complete\",\"Pending\")","v":"Pending"}]
[null,"Negotiate with patients to comply with principles of therapeutic diets or assist patients who are making an informed decision not to comply, and judge when adaptations are required to minimise side effects and improve compliance.","Nutrition ","Enhanced","Dietitian",false,{"$f":"IF(Table59[[#This Row],[Complete ]],\"Complete\",\"Pending\")","v":"Pending"}]
[null,"Negotiate with patients when nutritional recommendations or texture modifications are not in line with religious, cultural or personal lifestyle dietary principles.","Nutrition ","Enhanced","Dietitian",false,{"$f":"IF(Table59[[#This Row],[Complete ]],\"Complete\",\"Pending\")","v":"Pending"}]
[null,"Negotiate with patients when nutritional recommendations or texture modifications are not in line with religious, cultural or personal lifestyle dietary principles.","Nutrition ","Enhanced","SLT",false,{"$f":"IF(Table59[[#This Row],[Complete ]],\"Complete\",\"Pending\")","v":"Pending"}]
[null,"Judge when adaptations to texture modified diets may improve and support compliance in collaboration with the patient and multi-professional team.","Nutrition ","Enhanced","Dietitian",false,{"$f":"IF(Table59[[#This Row],[Complete ]],\"Complete\",\"Pending\")","v":"Pending"}]
[null,"Judge when adaptations to texture modified diets may improve and support compliance in collaboration with the patient and multi-professional team.","Nutrition ","Enhanced","SLT",false,{"$f":"IF(Table59[[#This Row],[Complete ]],\"Complete\",\"Pending\")","v":"Pending"}]
[null,"Recommend short-term and long-term enteral nutrition tube selection to the multi-professional team, based on indications.","Nutrition ","Enhanced","Dietitian",false,{"$f":"IF(Table59[[#This Row],[Complete ]],\"Complete\",\"Pending\")","v":"Pending"}]
[null,"Recommend short-term and long-term enteral nutrition tube selection to the multi-professional team, based on indications.","Nutrition ","Enhanced","SLT",false,{"$f":"IF(Table59[[#This Row],[Complete ]],\"Complete\",\"Pending\")","v":"Pending"}]
[null,"Insert short-term enteral nutrition tubes and nasal bridles with relevant additional training.","Nutrition ","Enhanced","Dietitian",false,{"$f":"IF(Table59[[#This Row],[Complete ]],\"Complete\",\"Pending\")","v":"Pending"}]
[null,"Negotiate indications and contraindications for all enteral nutrition routes with the multi-professional team.","Nutrition ","Enhanced","Dietitian",false,{"$f":"IF(Table59[[#This Row],[Complete ]],\"Complete\",\"Pending\")","v":"Pending"}]
[null,"Recommend and implement management plan for enteral feed complications in complex patients.","Nutrition ","Enhanced","Dietitian",false,{"$f":"IF(Table59[[#This Row],[Complete ]],\"Complete\",\"Pending\")","v":"Pending"}]
[null,"Contribute to the development of local enteral nutrition critical care protocols.","Nutrition ","Enhanced","Dietitian",false,{"$f":"IF(Table59[[#This Row],[Complete ]],\"Complete\",\"Pending\")","v":"Pending"}]
[null,"Initiate and troubleshoot issues with long-term enteral nutrition tubes at the bedside (e.g. balloon gastrostomy tubes) and replace gastrostomy balloon water with relevant additional training.","Nutrition ","Enhanced","Dietitian",false,{"$f":"IF(Table59[[#This Row],[Complete ]],\"Complete\",\"Pending\")","v":"Pending"}]
[null,"Troubleshoot if an enteral nutrition tube or line has been misplaced and escalate to appropriate multi-professional team members.","Nutrition ","Enhanced","Dietitian",false,{"$f":"IF(Table59[[#This Row],[Complete ]],\"Complete\",\"Pending\")","v":"Pending"}]
[null,"Implement solutions for factors impacting on nutritional delivery autonomously or in collaboration with the multi-professional team.","Nutrition ","Enhanced","Dietitian",false,{"$f":"IF(Table59[[#This Row],[Complete ]],\"Complete\",\"Pending\")","v":"Pending"}]
[null,"Refer for insertion of central venous catheters and peripherally inserted central catheters.","Nutrition ","Enhanced","Dietitian",false,{"$f":"IF(Table59[[#This Row],[Complete ]],\"Complete\",\"Pending\")","v":"Pending"}]
[null,"Negotiate indications and contraindications for parenteral nutrition with the multi-professional team.","Nutrition ","Enhanced","Dietitian",false,{"$f":"IF(Table59[[#This Row],[Complete ]],\"Complete\",\"Pending\")","v":"Pending"}]
[null,"Implement and review parenteral nutrition treatment plans for complex patients, formulating prescriptions for patient-specific bags where indicated.","Nutrition ","Enhanced","Dietitian",false,{"$f":"IF(Table59[[#This Row],[Complete ]],\"Complete\",\"Pending\")","v":"Pending"}]
[null,"Recommend management of parenteral nutrition-related complications.","Nutrition ","Enhanced","Dietitian",false,{"$f":"IF(Table59[[#This Row],[Complete ]],\"Complete\",\"Pending\")","v":"Pending"}]
[null,"Contributes to the development of local parenteral nutrition protocols.","Nutrition ","Enhanced","Dietitian",false,{"$f":"IF(Table59[[#This Row],[Complete ]],\"Complete\",\"Pending\")","v":"Pending"}]
[null,"Recommend investigations and discuss findings with the multi-professional team, including x-rays to confirm enteral nutrition tube position, or peripherally inserted central catheter line confirmation, gastrografin studies for gastrointestinal obstructions, tubograms of enteral nutrition tube position and patency​.","Nutrition ","Enhanced","Dietitian",false,{"$f":"IF(Table59[[#This Row],[Complete ]],\"Complete\",\"Pending\")","v":"Pending"}]
[null,"Recommend appropriate nutrition blood tests to the multi-professional team and apply results to nutrition intervention plan.","Nutrition ","Enhanced","Dietitian",false,{"$f":"IF(Table59[[#This Row],[Complete ]],\"Complete\",\"Pending\")","v":"Pending"}]
[null,"Implement nutritional intervention plans for complex patients in the recovery phase, to overcome barriers with achieving adequate enteral or parenteral nutrition.","Nutrition ","Enhanced","Dietitian",false,{"$f":"IF(Table59[[#This Row],[Complete ]],\"Complete\",\"Pending\")","v":"Pending"}]
[null,"Support ward dietitians with the dietetic management of post-critical care patients.","Nutrition ","Enhanced","Dietitian",false,{"$f":"IF(Table59[[#This Row],[Complete ]],\"Complete\",\"Pending\")","v":"Pending"}]
[null,"Lead and facilitate the production of patient nutrition resources which are evidence informed, culturally competent and inclusive for post-critical care recovery.","Nutrition ","Enhanced","Dietitian",false,{"$f":"IF(Table59[[#This Row],[Complete ]],\"Complete\",\"Pending\")","v":"Pending"}]
[null,"Monitor and record patient vital signs throughout transfers, escalating to multi-professional team where deviation from normal identified.","Patient transfer","Assistive","ODP ",false,{"$f":"IF(Table59[[#This Row],[Complete ]],\"Complete\",\"Pending\")","v":"Pending"}]
[null,"Support with preparation of equipment required for inter and intra hospital transfer.","Patient transfer","Assistive","ODP ",false,{"$f":"IF(Table59[[#This Row],[Complete ]],\"Complete\",\"Pending\")","v":"Pending"}]
[null,"Interpret patient vital signs throughout transfers, while applying understanding of patient condition and escalating to multi-professional team when required.","Patient transfer","Foundation","ODP ",false,{"$f":"IF(Table59[[#This Row],[Complete ]],\"Complete\",\"Pending\")","v":"Pending"}]
[null,"Initiate preparation of a patient and required equipment for inter and intra hospital transfer, troubleshooting issues that arise.","Patient transfer","Foundation","ODP ",false,{"$f":"IF(Table59[[#This Row],[Complete ]],\"Complete\",\"Pending\")","v":"Pending"}]
[null,"Liaise with professionals working in departments outside of critical care to share information related to patient care to facilitate safe transfer, using SBAR to structure handover.","Patient transfer","Foundation","ODP ",false,{"$f":"IF(Table59[[#This Row],[Complete ]],\"Complete\",\"Pending\")","v":"Pending"}]
[null,"Interpret patient vital signs throughout transfers and recommend treatment in collaboration with the multi-professional team.","Patient transfer","Enhanced","ODP ",false,{"$f":"IF(Table59[[#This Row],[Complete ]],\"Complete\",\"Pending\")","v":"Pending"}]
[null,"Initiate the preparation and administration of prescribed medications, infusions and intravenous fluids, monitoring and responding to their effects.","Pharmacology","Foundation","ODP ",false,{"$f":"IF(Table59[[#This Row],[Complete ]],\"Complete\",\"Pending\")","v":"Pending"}]
[null,"Liaise with medical staff for prescriptions or amendments to medications that impact nutritional interventions, including intravenous fluids, electrolyte replacement, vitamin and minerals, pancreatic enzymes, laxatives, anti-diarrhoeal, prokinetics, insulin.","Pharmacology","Foundation","Dietitian",false,{"$f":"IF(Table59[[#This Row],[Complete ]],\"Complete\",\"Pending\")","v":"Pending"}]
[null,"Contribute to multi-professional team discussions surrounding pharmacological interventions that may optimise communication, cognition, swallowing and secretion management.","Pharmacology","Foundation","SLT",false,{"$f":"IF(Table59[[#This Row],[Complete ]],\"Complete\",\"Pending\")","v":"Pending"}]
[null,"Liaise with medical and pharmacy staff where patients are unable to swallow tablets.","Pharmacology","Foundation","SLT",false,{"$f":"IF(Table59[[#This Row],[Complete ]],\"Complete\",\"Pending\")","v":"Pending"}]
[null,"Negotiate titration of sedation, analgesia and neuromuscular blockade to facilitate intervention and management.","Pharmacology","Enhanced","Physio",false,{"$f":"IF(Table59[[#This Row],[Complete ]],\"Complete\",\"Pending\")","v":"Pending"}]
[null,"Negotiate titration of sedation, analgesia and neuromuscular blockade to facilitate intervention and management.","Pharmacology","Enhanced","SLT",false,{"$f":"IF(Table59[[#This Row],[Complete ]],\"Complete\",\"Pending\")","v":"Pending"}]
[null,"Negotiate titration of sedation, analgesia and neuromuscular blockade to facilitate intervention and management.","Pharmacology","Enhanced","OT",false,{"$f":"IF(Table59[[#This Row],[Complete ]],\"Complete\",\"Pending\")","v":"Pending"}]
[null,"Recommend pharmacology to manage respiratory secretions and bronchospasm.","Pharmacology","Enhanced","Physio",false,{"$f":"IF(Table59[[#This Row],[Complete ]],\"Complete\",\"Pending\")","v":"Pending"}]
[null,"Facilitate discussions regarding neuropathic analgesia, antispasmodics and botulinum toxin injections in relation to upper limb treatment options.","Pharmacology","Enhanced","OT",false,{"$f":"IF(Table59[[#This Row],[Complete ]],\"Complete\",\"Pending\")","v":"Pending"}]
[null,"Liaise with medical staff for prescriptions or amendments to medications that impact nutritional interventions in complex patients throughout critical care pathway.","Pharmacology","Enhanced","Dietitian",false,{"$f":"IF(Table59[[#This Row],[Complete ]],\"Complete\",\"Pending\")","v":"Pending"}]
[null,"Prescribe and evaluate pharmacological agents that impact nutritional interventions following completion of an accredited non-medical prescribing qualification.","Pharmacology","Enhanced","Dietitian",false,{"$f":"IF(Table59[[#This Row],[Complete ]],\"Complete\",\"Pending\")","v":"Pending"}]
[null,"Recommend pharmacology for upper limb spasticity management.","Pharmacology","Enhanced","OT",false,{"$f":"IF(Table59[[#This Row],[Complete ]],\"Complete\",\"Pending\")","v":"Pending"}]
[null,"Negotiate pharmacological changes with the multi-professional team, evaluating the indications and contraindications of medications in relation to secretion management, swallowing, reflux, laryngeal structural dysfunction, cognition and communication.","Pharmacology","Enhanced","SLT",false,{"$f":"IF(Table59[[#This Row],[Complete ]],\"Complete\",\"Pending\")","v":"Pending"}]
[null,"Recognise how quality of life and end of life processes can guide and influence the dysphagia, communication, tracheostomy management plan.","End of life care ","Assistive","SLT",false,{"$f":"IF(Table59[[#This Row],[Complete ]],\"Complete\",\"Pending\")","v":"Pending"}]
[null,"Recognise when to maintain interventions for patients under consideration for organ donation, liaising with the multi-professional team.","End of life care ","Foundation","Physio",false,{"$f":"IF(Table59[[#This Row],[Complete ]],\"Complete\",\"Pending\")","v":"Pending"}]
[null,"Recognise when to maintain interventions for patients under consideration for organ donation, liaising with the multi-professional team.","End of life care ","Foundation","ODP ",false,{"$f":"IF(Table59[[#This Row],[Complete ]],\"Complete\",\"Pending\")","v":"Pending"}]
[null,"Recognise when to maintain interventions for patients under consideration for organ donation, liaising with the multi-professional team.","End of life care ","Foundation","Dietitian",false,{"$f":"IF(Table59[[#This Row],[Complete ]],\"Complete\",\"Pending\")","v":"Pending"}]
[null,"Contribute to multi-professional team discussions around the ethical and legal implications of withholding and withdrawing nutrition in palliative or end of life care.","End of life care ","Foundation","SLT",false,{"$f":"IF(Table59[[#This Row],[Complete ]],\"Complete\",\"Pending\")","v":"Pending"}]
[null,"Contribute to multi-professional team discussions around the ethical and legal implications of withholding and withdrawing nutrition in palliative or end of life care.","End of life care ","Foundation","Dietitian",false,{"$f":"IF(Table59[[#This Row],[Complete ]],\"Complete\",\"Pending\")","v":"Pending"}]
[null,"Assess and support communication and swallowing in individuals approaching the end of their life, utilising methods to optimise participation and comfort.","End of life care ","Foundation","SLT",false,{"$f":"IF(Table59[[#This Row],[Complete ]],\"Complete\",\"Pending\")","v":"Pending"}]
[null,"Advocate for tracheostomy and ventilator manipulations that maximise comfort in palliative or end of life care.","End of life care","Enhanced","Physio",false,{"$f":"IF(Table59[[#This Row],[Complete ]],\"Complete\",\"Pending\")","v":"Pending"}]
[null,"Advocate for tracheostomy and ventilator manipulations that maximise comfort in palliative or end of life care.","End of life care","Enhanced","SLT",false,{"$f":"IF(Table59[[#This Row],[Complete ]],\"Complete\",\"Pending\")","v":"Pending"}]
[null,"Lead on discussions with colleagues regarding the ethical implications surrounding the withdrawal of nutrition in individuals with dysphagia and poor prognosis.","End of life care","Enhanced","SLT",false,{"$f":"IF(Table59[[#This Row],[Complete ]],\"Complete\",\"Pending\")","v":"Pending"}]
[null,"Lead on discussions with colleagues regarding the ethical implications surrounding the withdrawal of nutrition in individuals with dysphagia and poor prognosis.","End of life care","Enhanced","Dietitian",false,{"$f":"IF(Table59[[#This Row],[Complete ]],\"Complete\",\"Pending\")","v":"Pending"}]

{"sheet":"Governance and safety stadards ","index":5,"n_rows":58,"n_cols":13,"rows_kept":58,"cut":false,"hidden":false,"merged":[[0,1,2,11],[0,12,2,23]]}
[null,"Governance & Safety "]
[]
[]
[null,"Standards "]
[]
[null,null,"Capability statement ","Area ","Level ","Complete ","Progress","Signed ","Dated","Evidence ","Evidence 2","Evidence 3","Evidence 4"]
[null,null,"Keeps complete, clear, accurate and timely records, utilising digital platforms as required.","Legal & ethical","Supportive ",true,{"$f":"IF(Table59102[[#This Row],[Complete ]],\"Complete\",\"Pending\")","v":"Complete"},null,"2025-10-08"]
[null,null,"Act with integrity and honesty, ensuring individuals do not experience harm by reporting situations, behaviours or errors that cause an adverse outcome or lead to a near miss.","Legal & ethical","Supportive ",true,{"$f":"IF(Table59102[[#This Row],[Complete ]],\"Complete\",\"Pending\")","v":"Complete"},null,"2025-10-08"]
[null,null,"Report own interventions in full, clear and accurate medical records in accordance with applicable legislation, protocols and guidelines","Legal & ethical","Foundation",false,{"$f":"IF(Table59102[[#This Row],[Complete ]],\"Complete\",\"Pending\")","v":"Pending"}]
[null,null,"Contribute to duty of candour conversations with patients or, where appropriate, their families and carers, when things have gone wrong.","Legal & ethical","Foundation",false,{"$f":"IF(Table59102[[#This Row],[Complete ]],\"Complete\",\"Pending\")","v":"Pending"}]
[null,null,"Initiate duty of candour conversations with patient or, where appropriate, their advocate, carer or family, when something has gone wrong.","Legal & ethical","Enhanced ",false,{"$f":"IF(Table59102[[#This Row],[Complete ]],\"Complete\",\"Pending\")","v":"Pending"}]
[null,null,"Discuss and accurately document own autonomous clinical judgements and interventions.","Legal & ethical","Enhanced ",false,{"$f":"IF(Table59102[[#This Row],[Complete ]],\"Complete\",\"Pending\")","v":"Pending"}]
[null,null,"Appraise and apply in practice the legislation, regulations and policies that underpin protection and safeguarding of patients during and following critical illness.","Legal & ethical","Advanced ",false,{"$f":"IF(Table59102[[#This Row],[Complete ]],\"Complete\",\"Pending\")","v":"Pending"}]
[null,null,"Investigate and interpret the impact of discrimination, stigma and unconscious bias on patients and their families and carers, fostering a culture that values and respects equity, equality, inclusion and belonging.","Legal & ethical","Advanced ",false,{"$f":"IF(Table59102[[#This Row],[Complete ]],\"Complete\",\"Pending\")","v":"Pending"}]
[null,null,"Address ethical and moral dilemmas which may impact on care delivery, using the reflective process to develop and challenge one's own and others' practice within critical care.","Legal & ethical","Advanced ",false,{"$f":"IF(Table59102[[#This Row],[Complete ]],\"Complete\",\"Pending\")","v":"Pending"}]
[null,null,"Direct the review of incidents and duty of candour, to determine actions or learning, reporting to executives, management, clinical staff and national agencies.","Legal & ethical","Consultant ",false,{"$f":"IF(Table59102[[#This Row],[Complete ]],\"Complete\",\"Pending\")","v":"Pending"}]
[null,null,"Direct the review of incidents and duty of candour, to determine actions or learning, reporting to executives, management, clinical staff and national agencies.","Legal & ethical","Consultant ",false,{"$f":"IF(Table59102[[#This Row],[Complete ]],\"Complete\",\"Pending\")","v":"Pending"}]
[null,null,"Act as an expert witness within scope of practice, to tribunals, coroners court and other agencies, collaborating with national bodies to inform national and local policies, procedures and frameworks.","Legal & ethical","Consultant ",false,{"$f":"IF(Table59102[[#This Row],[Complete ]],\"Complete\",\"Pending\")","v":"Pending"}]
[null,null,"Assist registered staff to identify human factors and systems issues during incident investigation.","Patient safety","Supportive ",false,{"$f":"IF(Table59102[[#This Row],[Complete ]],\"Complete\",\"Pending\")","v":"Pending"}]
[null,null,"Monitor safe use of equipment within scope of role, including fitting, demonstrating and teaching safe and appropriate use to other healthcare support workers, students, or less experienced staff.","Patient safety","Supportive ",false,{"$f":"IF(Table59102[[#This Row],[Complete ]],\"Complete\",\"Pending\")","v":"Pending"}]
[null,null,"Recognise the importance of adhering to local and national policies, procedures and standards relevant to critical care.","Patient safety","Supportive ",false,{"$f":"IF(Table59102[[#This Row],[Complete ]],\"Complete\",\"Pending\")","v":"Pending"}]
[null,null,"Measure a range of patient outcomes following a standardised process across the critical care pathway.","Patient safety","Supportive ",false,{"$f":"IF(Table59102[[#This Row],[Complete ]],\"Complete\",\"Pending\")","v":"Pending"}]
[null,null,"Recognise and implement policies and procedures, ensuring patient safety.","Patient safety","Assistive ",false,{"$f":"IF(Table59102[[#This Row],[Complete ]],\"Complete\",\"Pending\")","v":"Pending"}]
[null,null,"Apply relevant local, national and international clinical guidelines to own clinical practice across the critical care pathway.","Patient safety","Foundation",false,{"$f":"IF(Table59102[[#This Row],[Complete ]],\"Complete\",\"Pending\")","v":"Pending"}]
[null,null,"Apply understanding of human factors to own clinical practice, identifying system issues and suggesting improvements.","Patient safety","Foundation",false,{"$f":"IF(Table59102[[#This Row],[Complete ]],\"Complete\",\"Pending\")","v":"Pending"}]
[null,null,"Assess and document risk, applying knowledge of the principles of clinical governance in the NHS and applicability to professional role.","Patient safety","Foundation",false,{"$f":"IF(Table59102[[#This Row],[Complete ]],\"Complete\",\"Pending\")","v":"Pending"}]
[null,null,"Contribute to the development of local clinical guidelines","Patient safety","Enhanced ",false,{"$f":"IF(Table59102[[#This Row],[Complete ]],\"Complete\",\"Pending\")","v":"Pending"}]
[null,null,"Review clinical incidents from a human factors perspective, in collaboration with the multi-professional team, recommending systems improvements to prioritise patient safety.","Patient safety","Enhanced ",false,{"$f":"IF(Table59102[[#This Row],[Complete ]],\"Complete\",\"Pending\")","v":"Pending"}]
[null,null,"Discuss patient outcomes at forums which review quality of care and patient safety, identifying areas of improvement","Patient safety","Enhanced ",false,{"$f":"IF(Table59102[[#This Row],[Complete ]],\"Complete\",\"Pending\")","v":"Pending"}]
[null,null,"Escalate and manage risk within local service relevant to profession or across professions, facilitating patient safety and supporting others to do the same.","Patient safety","Enhanced ",false,{"$f":"IF(Table59102[[#This Row],[Complete ]],\"Complete\",\"Pending\")","v":"Pending"}]
[null,null,"Facilitate team learning through incidents and near misses and contribute to the action plan.","Patient safety","Enhanced ",false,{"$f":"IF(Table59102[[#This Row],[Complete ]],\"Complete\",\"Pending\")","v":"Pending"}]
[null,null,"Facilitate effectiveness and efficacy of service provision, through regular critical review of local, regional and national clinical guidelines, adapting, integrating and proposing modifications where necessary.","Patient safety","Advanced ",false,{"$f":"IF(Table59102[[#This Row],[Complete ]],\"Complete\",\"Pending\")","v":"Pending"}]
[null,null,"Contribute to values-based service delivery within identified practice scope, across care pathways, services, organisations, and systems, working with individuals, families, carers, communities, and others.","Patient safety","Advanced ",false,{"$f":"IF(Table59102[[#This Row],[Complete ]],\"Complete\",\"Pending\")","v":"Pending"}]
[null,null,"Advocate for the adoption of the “Accessible Information Standard” including requirements for policy, procedures, human behaviour and electronic systems.","Patient safety","Advanced ",false,{"$f":"IF(Table59102[[#This Row],[Complete ]],\"Complete\",\"Pending\")","v":"Pending"}]
[null,null,"Facilitate patient safety, across care pathways, services and systems, policy development, service improvement and related quality activities by leading review of incidents, determining actions, learning and evaluating outcomes.","Patient safety","Advanced ",false,{"$f":"IF(Table59102[[#This Row],[Complete ]],\"Complete\",\"Pending\")","v":"Pending"}]
[null,null,"Appraise and evaluate tools used to measure service impact, intervention approaches and productivity to enable continuous monitoring of outcome metrics.","Patient safety","Advanced ",false,{"$f":"IF(Table59102[[#This Row],[Complete ]],\"Complete\",\"Pending\")","v":"Pending"}]
[null,null,"Promote accountability, within planned evaluation of interventions, outcomes, or systems of care, establishing reporting structures to impact clinical governance and enable dissemination of findings.","Patient safety","Advanced ",false,{"$f":"IF(Table59102[[#This Row],[Complete ]],\"Complete\",\"Pending\")","v":"Pending"}]
[null,null,"Collaborate with the wider team to develop safer systems for critical care working and critical care discharge workflow, incorporating human factors recognition and other patient safety approaches.","Patient safety","Advanced ",false,{"$f":"IF(Table59102[[#This Row],[Complete ]],\"Complete\",\"Pending\")","v":"Pending"}]
[null,null,"Lead and contribute to development of national and international guidelines in area of clinical expertise, critically appraising existing guidance and identifying best practice through review of critical care literature.","Patient safety","Consultant ",false,{"$f":"IF(Table59102[[#This Row],[Complete ]],\"Complete\",\"Pending\")","v":"Pending"}]
[null,null,"Lead and develop values-based approach to practice across the care pathway, service, organisation, and system, working with individuals, families, carers, communities, and others.","Patient safety","Consultant ",false,{"$f":"IF(Table59102[[#This Row],[Complete ]],\"Complete\",\"Pending\")","v":"Pending"}]
[null,null,"Lead development and ensure adherence to local, national and international policies, protocols, procedures, and standards, with relevance to the specialism of critical care.","Patient safety","Consultant ",false,{"$f":"IF(Table59102[[#This Row],[Complete ]],\"Complete\",\"Pending\")","v":"Pending"}]
[null,null,"Perform routine interventions and specific delegated tasks according to local policies, procedures, guidelines and protocols.","Professional standards & Guidance","Supportive ",false,{"$f":"IF(Table59102[[#This Row],[Complete ]],\"Complete\",\"Pending\")","v":"Pending"}]
[null,null,"Recognise the importance of working within Skills for Health Code of Conduct for Healthcare Support Workers, to provide safe, effective, and compassionate healthcare.","Professional standards & Guidance","Supportive ",false,{"$f":"IF(Table59102[[#This Row],[Complete ]],\"Complete\",\"Pending\")","v":"Pending"}]
[null,null,"Recognise the importance of maintaining the dignity and privacy at all times and report any breaches of dignity or privacy to the multi-professional team.","Professional standards & Guidance","Supportive ",false,{"$f":"IF(Table59102[[#This Row],[Complete ]],\"Complete\",\"Pending\")","v":"Pending"}]
[null,null,"Contribute to the ethos of person-centred care by demonstrating respect, kindness and empathy and supporting others to do the same.","Professional standards & Guidance","Supportive ",false,{"$f":"IF(Table59102[[#This Row],[Complete ]],\"Complete\",\"Pending\")","v":"Pending"}]
[null,null,"Works under direction from a registered healthcare professional, guided by standard operating procedures, protocols, or systems of work.","Professional standards & Guidance","Assistive ",false,{"$f":"IF(Table59102[[#This Row],[Complete ]],\"Complete\",\"Pending\")","v":"Pending"}]
[null,null,"Escalate to senior members of the multi-professional team if the care or treatment is outside your scope of practice or personal limitations.","Professional standards & Guidance","Foundation",false,{"$f":"IF(Table59102[[#This Row],[Complete ]],\"Complete\",\"Pending\")","v":"Pending"}]
[null,null,"Advocate for patients in response to the maintenance of dignity and privacy within the work environment at all times, escalating lapses in good practice.","Professional standards & Guidance","Foundation",false,{"$f":"IF(Table59102[[#This Row],[Complete ]],\"Complete\",\"Pending\")","v":"Pending"}]
[null,null,"Support multi-professional team adherence to standards of conduct, performance and ethics.","Professional standards & Guidance","Enhanced ",false,{"$f":"IF(Table59102[[#This Row],[Complete ]],\"Complete\",\"Pending\")","v":"Pending"}]
[null,null,"Advocate for standards of care relating to respect, kindness, empathy and care of individuals, whilst troubleshooting any breakdown in the standards.","Professional standards & Guidance","Enhanced ",false,{"$f":"IF(Table59102[[#This Row],[Complete ]],\"Complete\",\"Pending\")","v":"Pending"}]
[null,null,"Ensure adherence to professional, behavioural and conduct standards, demonstrating responsibility and accountability for actions and omissions.","Professional standards & Guidance","Advanced ",false,{"$f":"IF(Table59102[[#This Row],[Complete ]],\"Complete\",\"Pending\")","v":"Pending"}]
[null,null,"Lead the maintenance of HCPC and professional body behavioural and conduct standards, educating multi-professional team members in the standards required and investigating any breach of professional standards.","Professional standards & Guidance","Advanced ",false,{"$f":"IF(Table59102[[#This Row],[Complete ]],\"Complete\",\"Pending\")","v":"Pending"}]
[null,null,"Act on professional judgement about when to seek help, demonstrating critical reflection on own practice, self-awareness, emotional intelligence, and openness to change.","Professional standards & Guidance","Advanced ",false,{"$f":"IF(Table59102[[#This Row],[Complete ]],\"Complete\",\"Pending\")","v":"Pending"}]
[null,null,"Negotiate an individual scope of advanced critical care practice within legal, ethical, professional and organisational policies, governance and procedures, with a focus on accountability, autonomous decision making, managing risk and upholding safety in critical care.","Professional standards & Guidance","Advanced ",false,{"$f":"IF(Table59102[[#This Row],[Complete ]],\"Complete\",\"Pending\")","v":"Pending"}]
[null,null,"Direct implementation and evaluation, ensuring the standards of conduct, performance and ethics and standards of proficiency set by HCPC and professional bodies are met, for all multi-professional team members within role remit.","Professional standards & Guidance","Consultant ",false,{"$f":"IF(Table59102[[#This Row],[Complete ]],\"Complete\",\"Pending\")","v":"Pending"}]
[null,null,"Lead the maintenance of standards relating to patient dignity and privacy whilst ensuring all relevant professionals meet the standards required and troubleshoot any breakdown in the standards of care.","Professional standards & Guidance","Consultant ",false,{"$f":"IF(Table59102[[#This Row],[Complete ]],\"Complete\",\"Pending\")","v":"Pending"}]
[null,null,"Negotiate an individual and service level scope of practice within legal, ethical, professionals and organisational policies, governance, and procedures with a focus on managing risk and upholding safety in critical care.","Professional standards & Guidance","Consultant ",false,{"$f":"IF(Table59102[[#This Row],[Complete ]],\"Complete\",\"Pending\")","v":"Pending"}]
[null,null,"Negotiate with professional leads, from both AHP and critical care leadership and management structures, to define own professional scope of practice and agree job plan.","Professional standards & Guidance","Consultant ",false,{"$f":"IF(Table59102[[#This Row],[Complete ]],\"Complete\",\"Pending\")","v":"Pending"}]

{"sheet":"Patient Centred Care ","index":6,"n_rows":123,"n_cols":14,"rows_kept":123,"cut":false,"hidden":false,"merged":[[0,0,2,11],[0,12,2,22]]}
["Patient Centred care "]
[]
[]
[]
[]
[null,"Capability statement ","Area ","Level ","Profession ","Complete ","Progress","Signed ","Dated","Evidence ","Evidence 2","Evidence 3","Evidence 4","Level sorted "]
[null,"Recognise the impact of a critical care admission on patients, families and carers, providing basic explanation of rehabilitation interventions.","Communication","Supportive ","All professions ",true,{"$f":"IF(Table5910[[#This Row],[Complete ]],\"Complete\",\"Pending\")","v":"Complete"},null,"2025-10-07",null,null,null,null,{"$f":"REPT(_xlfn.UNICHAR(8203),_xlfn.XMATCH(Table5910[[#This Row],[Level ]],#REF!,3))&Table5910[[#This Row],[Level ]]","v":{"$error":"#REF!"}}]
[null,"Assist conversations by adapting and modifying information in ways that are appropriate to the individual's cultural, language and communication needs.","Communication","Supportive ","All professions ",false,{"$f":"IF(Table5910[[#This Row],[Complete ]],\"Complete\",\"Pending\")","v":"Pending"},null,null,null,null,null,null,{"$f":"REPT(_xlfn.UNICHAR(8203),_xlfn.XMATCH(Table5910[[#This Row],[Level ]],#REF!,3))&Table5910[[#This Row],[Level ]]","v":{"$error":"#REF!"}}]
[null,"Recognise and use of all methods and forms of communication, ensuring individuals feel valued, respected and have opportunities to meaningfully participate.","Communication","Supportive ","All professions ",false,{"$f":"IF(Table5910[[#This Row],[Complete ]],\"Complete\",\"Pending\")","v":"Pending"},null,null,null,null,null,null,{"$f":"REPT(_xlfn.UNICHAR(8203),_xlfn.XMATCH(Table5910[[#This Row],[Level ]],#REF!,3))&Table5910[[#This Row],[Level ]]","v":{"$error":"#REF!"}}]
[null,"Effectively communicate to build and maintain relationships within the multi-professional team, actively listening, requesting, and sharing information appropriately and efficiently to enhance patient care.","Communication","Supportive ","All professions ",false,{"$f":"IF(Table5910[[#This Row],[Complete ]],\"Complete\",\"Pending\")","v":"Pending"},null,null,null,null,null,null,{"$f":"REPT(_xlfn.UNICHAR(8203),_xlfn.XMATCH(Table5910[[#This Row],[Level ]],#REF!,3))&Table5910[[#This Row],[Level ]]","v":{"$error":"#REF!"}}]
[null,"Effectively communicate and connect with patients, families and carers and multi-professional team from diverse backgrounds, cultures, identities and perspectives, adapting communication approaches to suit individual preferences.","Communication","Supportive ","All professions ",false,{"$f":"IF(Table5910[[#This Row],[Complete ]],\"Complete\",\"Pending\")","v":"Pending"},null,null,null,null,null,null,{"$f":"REPT(_xlfn.UNICHAR(8203),_xlfn.XMATCH(Table5910[[#This Row],[Level ]],#REF!,3))&Table5910[[#This Row],[Level ]]","v":{"$error":"#REF!"}}]
[null,"Communicate respectfully with multi-professional team, patients and families during times of differing opinions and priorities.","Communication","Supportive ","All professions ",false,{"$f":"IF(Table5910[[#This Row],[Complete ]],\"Complete\",\"Pending\")","v":"Pending"},null,null,null,null,null,null,{"$f":"REPT(_xlfn.UNICHAR(8203),_xlfn.XMATCH(Table5910[[#This Row],[Level ]],#REF!,3))&Table5910[[#This Row],[Level ]]","v":{"$error":"#REF!"}}]
[null,"Modify communication style appropriately during non-face to face contexts with patients, families and carers and multi-professional team, including telephone, video calls and digital communication.","Communication","Supportive ","All professions ",false,{"$f":"IF(Table5910[[#This Row],[Complete ]],\"Complete\",\"Pending\")","v":"Pending"},null,null,null,null,null,null,{"$f":"REPT(_xlfn.UNICHAR(8203),_xlfn.XMATCH(Table5910[[#This Row],[Level ]],#REF!,3))&Table5910[[#This Row],[Level ]]","v":{"$error":"#REF!"}}]
[null,"Support communication for patients and family members who require individualised approaches, seeking guidance from family and multi-professional team.","Communication","Supportive ","All professions ",false,{"$f":"IF(Table5910[[#This Row],[Complete ]],\"Complete\",\"Pending\")","v":"Pending"},null,null,null,null,null,null,{"$f":"REPT(_xlfn.UNICHAR(8203),_xlfn.XMATCH(Table5910[[#This Row],[Level ]],#REF!,3))&Table5910[[#This Row],[Level ]]","v":{"$error":"#REF!"}}]
[null,"Recognise barriers to effective communication with patient, families and carers and multi-professional team, including emotional, physical, cultural, cognitive and systematic, and actively seek to remedy these.","Communication","Supportive ","All professions ",false,{"$f":"IF(Table5910[[#This Row],[Complete ]],\"Complete\",\"Pending\")","v":"Pending"},null,null,null,null,null,null,{"$f":"REPT(_xlfn.UNICHAR(8203),_xlfn.XMATCH(Table5910[[#This Row],[Level ]],#REF!,3))&Table5910[[#This Row],[Level ]]","v":{"$error":"#REF!"}}]
[null,"Advocate for equality, fairness and respect for all patients, families and colleagues.","Communication","Supportive ","All professions ",false,{"$f":"IF(Table5910[[#This Row],[Complete ]],\"Complete\",\"Pending\")","v":"Pending"},null,null,null,null,null,null,{"$f":"REPT(_xlfn.UNICHAR(8203),_xlfn.XMATCH(Table5910[[#This Row],[Level ]],#REF!,3))&Table5910[[#This Row],[Level ]]","v":{"$error":"#REF!"}}]
[null,"Recognise the impact and consequences of a critical care admission on a patient, family and carers, providing explanation of rehabilitation interventions, including potential benefits and risks.","Communication","Assistive ","All professions ",false,{"$f":"IF(Table5910[[#This Row],[Complete ]],\"Complete\",\"Pending\")","v":"Pending"},null,null,null,null,null,null,{"$f":"REPT(_xlfn.UNICHAR(8203),_xlfn.XMATCH(Table5910[[#This Row],[Level ]],#REF!,3))&Table5910[[#This Row],[Level ]]","v":{"$error":"#REF!"}}]
[null,"Initiate conversations to develop shared perspectives with the multi-professional team, patients and families.","Communication","Foundation","All professions ",false,{"$f":"IF(Table5910[[#This Row],[Complete ]],\"Complete\",\"Pending\")","v":"Pending"},null,null,null,null,null,null,{"$f":"REPT(_xlfn.UNICHAR(8203),_xlfn.XMATCH(Table5910[[#This Row],[Level ]],#REF!,3))&Table5910[[#This Row],[Level ]]","v":{"$error":"#REF!"}}]
[null,"Implement communication styles appropriate to the clinical situation","Communication","Foundation","All professions ",false,{"$f":"IF(Table5910[[#This Row],[Complete ]],\"Complete\",\"Pending\")","v":"Pending"},null,null,null,null,null,null,{"$f":"REPT(_xlfn.UNICHAR(8203),_xlfn.XMATCH(Table5910[[#This Row],[Level ]],#REF!,3))&Table5910[[#This Row],[Level ]]","v":{"$error":"#REF!"}}]
[null,"Implement necessary communication adjustments with patients, fostering inclusion and equity, whilst promoting psychological wellbeing and participation.","Communication","Foundation","All professions ",false,{"$f":"IF(Table5910[[#This Row],[Complete ]],\"Complete\",\"Pending\")","v":"Pending"},null,null,null,null,null,null,{"$f":"REPT(_xlfn.UNICHAR(8203),_xlfn.XMATCH(Table5910[[#This Row],[Level ]],#REF!,3))&Table5910[[#This Row],[Level ]]","v":{"$error":"#REF!"}}]
[null,"Apply problem solving and persuasive communication skills when advocating important messages or issues for patients and families and carers to the multi-professional team.","Communication","Foundation","All professions ",false,{"$f":"IF(Table5910[[#This Row],[Complete ]],\"Complete\",\"Pending\")","v":"Pending"},null,null,null,null,null,null,{"$f":"REPT(_xlfn.UNICHAR(8203),_xlfn.XMATCH(Table5910[[#This Row],[Level ]],#REF!,3))&Table5910[[#This Row],[Level ]]","v":{"$error":"#REF!"}}]
[null,"Advocate for the vital bridging role families and carers provide on admission to critical care, actively seeking their input and working in partnership when developing and implementing personalised care plans.","Communication","Foundation","All professions ",false,{"$f":"IF(Table5910[[#This Row],[Complete ]],\"Complete\",\"Pending\")","v":"Pending"},null,null,null,null,null,null,{"$f":"REPT(_xlfn.UNICHAR(8203),_xlfn.XMATCH(Table5910[[#This Row],[Level ]],#REF!,3))&Table5910[[#This Row],[Level ]]","v":{"$error":"#REF!"}}]
[null,"Evaluate and modify own communication approaches, depending on audience and context, communicating in a way that is inclusive of different perspectives.","Communication","Enhanced ","All professions ",false,{"$f":"IF(Table5910[[#This Row],[Complete ]],\"Complete\",\"Pending\")","v":"Pending"},null,null,null,null,null,null,{"$f":"REPT(_xlfn.UNICHAR(8203),_xlfn.XMATCH(Table5910[[#This Row],[Level ]],#REF!,3))&Table5910[[#This Row],[Level ]]","v":{"$error":"#REF!"}}]
[null,"Evaluate impact of multi-professional team communication on safety and effectiveness of care, addressing barriers to effective communication with patients, families and carers and the multi-professional team.","Communication","Enhanced ","All professions ",false,{"$f":"IF(Table5910[[#This Row],[Complete ]],\"Complete\",\"Pending\")","v":"Pending"},null,null,null,null,null,null,{"$f":"REPT(_xlfn.UNICHAR(8203),_xlfn.XMATCH(Table5910[[#This Row],[Level ]],#REF!,3))&Table5910[[#This Row],[Level ]]","v":{"$error":"#REF!"}}]
[null,"Facilitate the multi-professional team to promote autonomy through advocacy, enabling patients and families and carers to participate in decision making processes based around their values and preferences","Communication","Enhanced ","All professions ",false,{"$f":"IF(Table5910[[#This Row],[Complete ]],\"Complete\",\"Pending\")","v":"Pending"},null,null,null,null,null,null,{"$f":"REPT(_xlfn.UNICHAR(8203),_xlfn.XMATCH(Table5910[[#This Row],[Level ]],#REF!,3))&Table5910[[#This Row],[Level ]]","v":{"$error":"#REF!"}}]
[null,"Lead the multi-professional team in advocating for an environment where all patients are supported to meaningfully participate in their care, enhancing collaboration, decision making and safety.","Communication","Enhanced ","All professions ",false,{"$f":"IF(Table5910[[#This Row],[Complete ]],\"Complete\",\"Pending\")","v":"Pending"},null,null,null,null,null,null,{"$f":"REPT(_xlfn.UNICHAR(8203),_xlfn.XMATCH(Table5910[[#This Row],[Level ]],#REF!,3))&Table5910[[#This Row],[Level ]]","v":{"$error":"#REF!"}}]
[null,"Utilise advanced communication skills to engage in complex interactions with patients, families and carers and multi-professional team in a way that is enabling and responsive to an individual's needs and concerns, including collaborating to manage significant risk.","Communication","Advanced ","All professions ",false,{"$f":"IF(Table5910[[#This Row],[Complete ]],\"Complete\",\"Pending\")","v":"Pending"},null,null,null,null,null,null,{"$f":"REPT(_xlfn.UNICHAR(8203),_xlfn.XMATCH(Table5910[[#This Row],[Level ]],#REF!,3))&Table5910[[#This Row],[Level ]]","v":{"$error":"#REF!"}}]
[null,"Lead by example, utilising inclusive communication approaches to help build and manage relationships, encourage reframing of challenges and fostering psychological safety","Communication","Advanced ","All professions ",false,{"$f":"IF(Table5910[[#This Row],[Complete ]],\"Complete\",\"Pending\")","v":"Pending"},null,null,null,null,null,null,{"$f":"REPT(_xlfn.UNICHAR(8203),_xlfn.XMATCH(Table5910[[#This Row],[Level ]],#REF!,3))&Table5910[[#This Row],[Level ]]","v":{"$error":"#REF!"}}]
[null,"Advocate for receptiveness to challenge and preparedness to constructively challenge others, escalating concerns that affect patients, families, carers, community and workforce safety and wellbeing when necessary.","Communication","Advanced ","All professions ",false,{"$f":"IF(Table5910[[#This Row],[Complete ]],\"Complete\",\"Pending\")","v":"Pending"},null,null,null,null,null,null,{"$f":"REPT(_xlfn.UNICHAR(8203),_xlfn.XMATCH(Table5910[[#This Row],[Level ]],#REF!,3))&Table5910[[#This Row],[Level ]]","v":{"$error":"#REF!"}}]
[null,"Apply the most appropriate communication approaches according to different needs, abilities and preferences of patients and their families and carers, adapting communication strategies to foster empowerment and promote co-creation.","Communication","Advanced ","All professions ",false,{"$f":"IF(Table5910[[#This Row],[Complete ]],\"Complete\",\"Pending\")","v":"Pending"},null,null,null,null,null,null,{"$f":"REPT(_xlfn.UNICHAR(8203),_xlfn.XMATCH(Table5910[[#This Row],[Level ]],#REF!,3))&Table5910[[#This Row],[Level ]]","v":{"$error":"#REF!"}}]
[null,"Utilise inclusive and appropriate language to create an aspirational vision, to inspire across professional and organisational boundaries and negotiate challenge and conflict.","Communication","Consultant ","All professions ",false,{"$f":"IF(Table5910[[#This Row],[Complete ]],\"Complete\",\"Pending\")","v":"Pending"},null,null,null,null,null,null,{"$f":"REPT(_xlfn.UNICHAR(8203),_xlfn.XMATCH(Table5910[[#This Row],[Level ]],#REF!,3))&Table5910[[#This Row],[Level ]]","v":{"$error":"#REF!"}}]
[null,"Evaluate impact of multi-professional and multi-agency communication on safety and effectiveness of care, actively identifying, anticipating, and minimising barriers to effective team and patient communication.","Communication","Consultant ","All professions ",false,{"$f":"IF(Table5910[[#This Row],[Complete ]],\"Complete\",\"Pending\")","v":"Pending"},null,null,null,null,null,null,{"$f":"REPT(_xlfn.UNICHAR(8203),_xlfn.XMATCH(Table5910[[#This Row],[Level ]],#REF!,3))&Table5910[[#This Row],[Level ]]","v":{"$error":"#REF!"}}]
[null,"Create an environment which ensures patient and family voices are adequately represented in design and evaluation of patient pathways, including co-production of novel approaches along the critical care pathway.","Communication","Consultant ","All professions ",false,{"$f":"IF(Table5910[[#This Row],[Complete ]],\"Complete\",\"Pending\")","v":"Pending"},null,null,null,null,null,null,{"$f":"REPT(_xlfn.UNICHAR(8203),_xlfn.XMATCH(Table5910[[#This Row],[Level ]],#REF!,3))&Table5910[[#This Row],[Level ]]","v":{"$error":"#REF!"}}]
[null,"Demonstrate expert communication skills and individualised approaches while working across professional and speciality boundaries, which may include collaborative management of complex and significant clinical, service or organisational risks.","Communication","Consultant ","All professions ",false,{"$f":"IF(Table5910[[#This Row],[Complete ]],\"Complete\",\"Pending\")","v":"Pending"},null,null,null,null,null,null,{"$f":"REPT(_xlfn.UNICHAR(8203),_xlfn.XMATCH(Table5910[[#This Row],[Level ]],#REF!,3))&Table5910[[#This Row],[Level ]]","v":{"$error":"#REF!"}}]
[null,"Implement a positive approach to working with a broad and diverse population, challenging stigma, optimising communication for patient and service benefit.","Communication","Consultant ","All professions ",false,{"$f":"IF(Table5910[[#This Row],[Complete ]],\"Complete\",\"Pending\")","v":"Pending"},null,null,null,null,null,null,{"$f":"REPT(_xlfn.UNICHAR(8203),_xlfn.XMATCH(Table5910[[#This Row],[Level ]],#REF!,3))&Table5910[[#This Row],[Level ]]","v":{"$error":"#REF!"}}]
[null,"Assist with signposting and referrals to critical care information and support materials, such as leaflets, websites and peer support groups.","Coordination of care","Supportive ","All professions ",false,{"$f":"IF(Table5910[[#This Row],[Complete ]],\"Complete\",\"Pending\")","v":"Pending"},null,null,null,null,null,null,{"$f":"REPT(_xlfn.UNICHAR(8203),_xlfn.XMATCH(Table5910[[#This Row],[Level ]],#REF!,3))&Table5910[[#This Row],[Level ]]","v":{"$error":"#REF!"}}]
[null,"Perform handover of patients, using a structured process, to identified registered professionals along an established care pathway.","Coordination of care","Supportive ","All professions ",false,{"$f":"IF(Table5910[[#This Row],[Complete ]],\"Complete\",\"Pending\")","v":"Pending"},null,null,null,null,null,null,{"$f":"REPT(_xlfn.UNICHAR(8203),_xlfn.XMATCH(Table5910[[#This Row],[Level ]],#REF!,3))&Table5910[[#This Row],[Level ]]","v":{"$error":"#REF!"}}]
[null,"Manage a delegated caseload of patients that have had an assessment completed and management plan identified by a registered healthcare professional.","Coordination of care","Supportive ","All professions ",false,{"$f":"IF(Table5910[[#This Row],[Complete ]],\"Complete\",\"Pending\")","v":"Pending"},null,null,null,null,null,null,{"$f":"REPT(_xlfn.UNICHAR(8203),_xlfn.XMATCH(Table5910[[#This Row],[Level ]],#REF!,3))&Table5910[[#This Row],[Level ]]","v":{"$error":"#REF!"}}]
[null,"Manage own caseload of routine and non-routine patients, under direction of a registered healthcare professional.","Coordination of care","Assistive ","All professions ",false,{"$f":"IF(Table5910[[#This Row],[Complete ]],\"Complete\",\"Pending\")","v":"Pending"},null,null,null,null,null,null,{"$f":"REPT(_xlfn.UNICHAR(8203),_xlfn.XMATCH(Table5910[[#This Row],[Level ]],#REF!,3))&Table5910[[#This Row],[Level ]]","v":{"$error":"#REF!"}}]
[null,"Refer patients for post-critical care services, following established referral pathways.","Coordination of care","Assistive ","All professions ",false,{"$f":"IF(Table5910[[#This Row],[Complete ]],\"Complete\",\"Pending\")","v":"Pending"},null,null,null,null,null,null,{"$f":"REPT(_xlfn.UNICHAR(8203),_xlfn.XMATCH(Table5910[[#This Row],[Level ]],#REF!,3))&Table5910[[#This Row],[Level ]]","v":{"$error":"#REF!"}}]
[null,"Manage handover of own caseload of patients along an established care pathway.","Coordination of care","Assistive ","All professions ",false,{"$f":"IF(Table5910[[#This Row],[Complete ]],\"Complete\",\"Pending\")","v":"Pending"},null,null,null,null,null,null,{"$f":"REPT(_xlfn.UNICHAR(8203),_xlfn.XMATCH(Table5910[[#This Row],[Level ]],#REF!,3))&Table5910[[#This Row],[Level ]]","v":{"$error":"#REF!"}}]
[null,"Contribute to discharge planning of patients across the critical care pathway, assessing and recognising their ongoing needs and addressing any potential barriers to ward or home discharge to improve patient flow.","Coordination of care","Foundation","All professions ",false,{"$f":"IF(Table5910[[#This Row],[Complete ]],\"Complete\",\"Pending\")","v":"Pending"},null,null,null,null,null,null,{"$f":"REPT(_xlfn.UNICHAR(8203),_xlfn.XMATCH(Table5910[[#This Row],[Level ]],#REF!,3))&Table5910[[#This Row],[Level ]]","v":{"$error":"#REF!"}}]
[null,"Consider the potential discharge options, depending on medical stability, patient choice and family engagement, in collaboration with the multi-professional team","Coordination of care","Foundation","All professions ",false,{"$f":"IF(Table5910[[#This Row],[Complete ]],\"Complete\",\"Pending\")","v":"Pending"},null,null,null,null,null,null,{"$f":"REPT(_xlfn.UNICHAR(8203),_xlfn.XMATCH(Table5910[[#This Row],[Level ]],#REF!,3))&Table5910[[#This Row],[Level ]]","v":{"$error":"#REF!"}}]
[null,"Manage own caseload of both spontaneously breathing and ventilated patients, prioritising based on clinical status and urgency of clinical need.","Coordination of care","Foundation","All professions ",false,{"$f":"IF(Table5910[[#This Row],[Complete ]],\"Complete\",\"Pending\")","v":"Pending"},null,null,null,null,null,null,{"$f":"REPT(_xlfn.UNICHAR(8203),_xlfn.XMATCH(Table5910[[#This Row],[Level ]],#REF!,3))&Table5910[[#This Row],[Level ]]","v":{"$error":"#REF!"}}]
[null,"Refer patients for required services at key points in the patient journey and initiate care for patients referred into critical care pathway.","Coordination of care","Foundation","All professions ",false,{"$f":"IF(Table5910[[#This Row],[Complete ]],\"Complete\",\"Pending\")","v":"Pending"},null,null,null,null,null,null,{"$f":"REPT(_xlfn.UNICHAR(8203),_xlfn.XMATCH(Table5910[[#This Row],[Level ]],#REF!,3))&Table5910[[#This Row],[Level ]]","v":{"$error":"#REF!"}}]
[null,"Assess patient status at key milestones, informing a comprehensive handover to the relevant receiving teams, with recommendations for ongoing care.","Coordination of care","Foundation","All professions ",false,{"$f":"IF(Table5910[[#This Row],[Complete ]],\"Complete\",\"Pending\")","v":"Pending"},null,null,null,null,null,null,{"$f":"REPT(_xlfn.UNICHAR(8203),_xlfn.XMATCH(Table5910[[#This Row],[Level ]],#REF!,3))&Table5910[[#This Row],[Level ]]","v":{"$error":"#REF!"}}]
[null,"Apply critical care clinical skills to support patients pre- and post-admission to critical care.","Coordination of care","Foundation","All professions ",false,{"$f":"IF(Table5910[[#This Row],[Complete ]],\"Complete\",\"Pending\")","v":"Pending"},null,null,null,null,null,null,{"$f":"REPT(_xlfn.UNICHAR(8203),_xlfn.XMATCH(Table5910[[#This Row],[Level ]],#REF!,3))&Table5910[[#This Row],[Level ]]","v":{"$error":"#REF!"}}]
[null,"Refer to local charities and outside agencies, as an adjunct to physical and cognitive rehabilitation, to improve psychological wellbeing and other rehabilitative care options.","Coordination of care","Foundation","All professions ",false,{"$f":"IF(Table5910[[#This Row],[Complete ]],\"Complete\",\"Pending\")","v":"Pending"},null,null,null,null,null,null,{"$f":"REPT(_xlfn.UNICHAR(8203),_xlfn.XMATCH(Table5910[[#This Row],[Level ]],#REF!,3))&Table5910[[#This Row],[Level ]]","v":{"$error":"#REF!"}}]
[null,"Assess a patient's home environment to ensure suitability for discharge, feeding back relevant information concisely to the multi-professional team.","Coordination of care","Foundation","OT",false,{"$f":"IF(Table5910[[#This Row],[Complete ]],\"Complete\",\"Pending\")","v":"Pending"},null,null,null,null,null,null,{"$f":"REPT(_xlfn.UNICHAR(8203),_xlfn.XMATCH(Table5910[[#This Row],[Level ]],#REF!,3))&Table5910[[#This Row],[Level ]]","v":{"$error":"#REF!"}}]
[null,"Liaise with local rehabilitation coordinators, where available and as soon as clinically appropriate, ensuring a coordinated approach across the multi-professional team and family.","Coordination of care","Foundation","All professions ",false,{"$f":"IF(Table5910[[#This Row],[Complete ]],\"Complete\",\"Pending\")","v":"Pending"},null,null,null,null,null,null,{"$f":"REPT(_xlfn.UNICHAR(8203),_xlfn.XMATCH(Table5910[[#This Row],[Level ]],#REF!,3))&Table5910[[#This Row],[Level ]]","v":{"$error":"#REF!"}}]
[null,"Discuss the suitability of patients for discharge from the critical care environment, considering any ongoing organ support, overall care needs and patient concerns.","Coordination of care","Enhanced ","All professions ",false,{"$f":"IF(Table5910[[#This Row],[Complete ]],\"Complete\",\"Pending\")","v":"Pending"},null,null,null,null,null,null,{"$f":"REPT(_xlfn.UNICHAR(8203),_xlfn.XMATCH(Table5910[[#This Row],[Level ]],#REF!,3))&Table5910[[#This Row],[Level ]]","v":{"$error":"#REF!"}}]
[null,"Negotiate a safe discharge from critical care, identifying the role of AHPs in minimising risk.","Coordination of care","Enhanced ","All professions ",false,{"$f":"IF(Table5910[[#This Row],[Complete ]],\"Complete\",\"Pending\")","v":"Pending"},null,null,null,null,null,null,{"$f":"REPT(_xlfn.UNICHAR(8203),_xlfn.XMATCH(Table5910[[#This Row],[Level ]],#REF!,3))&Table5910[[#This Row],[Level ]]","v":{"$error":"#REF!"}}]
[null,"Discuss caseload with the multi-professional team, identifying most suitable professions to meet clinical need.","Coordination of care","Enhanced ","All professions ",false,{"$f":"IF(Table5910[[#This Row],[Complete ]],\"Complete\",\"Pending\")","v":"Pending"},null,null,null,null,null,null,{"$f":"REPT(_xlfn.UNICHAR(8203),_xlfn.XMATCH(Table5910[[#This Row],[Level ]],#REF!,3))&Table5910[[#This Row],[Level ]]","v":{"$error":"#REF!"}}]
[null,"Support team members to manage their own caseloads, including identification of patients suitable for support workers","Coordination of care","Enhanced ","All professions ",false,{"$f":"IF(Table5910[[#This Row],[Complete ]],\"Complete\",\"Pending\")","v":"Pending"},null,null,null,null,null,null,{"$f":"REPT(_xlfn.UNICHAR(8203),_xlfn.XMATCH(Table5910[[#This Row],[Level ]],#REF!,3))&Table5910[[#This Row],[Level ]]","v":{"$error":"#REF!"}}]
[null,"Liaise with multi-professional team across critical care pathway to identify need and implement referral to services within tertiary, secondary and primary care, both pre- and post- critical care admission","Coordination of care","Enhanced ","All professions ",false,{"$f":"IF(Table5910[[#This Row],[Complete ]],\"Complete\",\"Pending\")","v":"Pending"},null,null,null,null,null,null,{"$f":"REPT(_xlfn.UNICHAR(8203),_xlfn.XMATCH(Table5910[[#This Row],[Level ]],#REF!,3))&Table5910[[#This Row],[Level ]]","v":{"$error":"#REF!"}}]
[null,"Liaise with receiving and referring teams to discuss complex patient handover and negotiate optimal care plan with multi-professional team, modifying the handover information according to the recipient.","Coordination of care","Enhanced ","All professions ",false,{"$f":"IF(Table5910[[#This Row],[Complete ]],\"Complete\",\"Pending\")","v":"Pending"},null,null,null,null,null,null,{"$f":"REPT(_xlfn.UNICHAR(8203),_xlfn.XMATCH(Table5910[[#This Row],[Level ]],#REF!,3))&Table5910[[#This Row],[Level ]]","v":{"$error":"#REF!"}}]
[null,"Support the multi-professional team to manage patients pre- and post-admission to critical care.","Coordination of care","Enhanced ","All professions ",false,{"$f":"IF(Table5910[[#This Row],[Complete ]],\"Complete\",\"Pending\")","v":"Pending"},null,null,null,null,null,null,{"$f":"REPT(_xlfn.UNICHAR(8203),_xlfn.XMATCH(Table5910[[#This Row],[Level ]],#REF!,3))&Table5910[[#This Row],[Level ]]","v":{"$error":"#REF!"}}]
[null,"Facilitate a complex critical care discharge, ensuring all equipment requirements are considered by the multi-professional team and are coordinated with the patient and family.","Coordination of care","Enhanced ","OT",false,{"$f":"IF(Table5910[[#This Row],[Complete ]],\"Complete\",\"Pending\")","v":"Pending"},null,null,null,null,null,null,{"$f":"REPT(_xlfn.UNICHAR(8203),_xlfn.XMATCH(Table5910[[#This Row],[Level ]],#REF!,3))&Table5910[[#This Row],[Level ]]","v":{"$error":"#REF!"}}]
[null,"Facilitate complex decision-making and discharge planning meetings with patients, their families and carers, the multi-professional team and related agencies within and outside critical care","Coordination of care","Advanced ","All professions ",false,{"$f":"IF(Table5910[[#This Row],[Complete ]],\"Complete\",\"Pending\")","v":"Pending"},null,null,null,null,null,null,{"$f":"REPT(_xlfn.UNICHAR(8203),_xlfn.XMATCH(Table5910[[#This Row],[Level ]],#REF!,3))&Table5910[[#This Row],[Level ]]","v":{"$error":"#REF!"}}]
[null,"Prioritise own complex critical care caseload based on autonomous assessment of clinical need, managing competing priorities across services, in an unpredictable environment.","Coordination of care","Advanced ","All professions ",false,{"$f":"IF(Table5910[[#This Row],[Complete ]],\"Complete\",\"Pending\")","v":"Pending"},null,null,null,null,null,null,{"$f":"REPT(_xlfn.UNICHAR(8203),_xlfn.XMATCH(Table5910[[#This Row],[Level ]],#REF!,3))&Table5910[[#This Row],[Level ]]","v":{"$error":"#REF!"}}]
[null,"Advocate for equity of service access for patients across the critical care pathway, identifying and addressing potential barriers to healthcare utilisation, particularly those related to health inequalities","Coordination of care","Advanced ","All professions ",false,{"$f":"IF(Table5910[[#This Row],[Complete ]],\"Complete\",\"Pending\")","v":"Pending"},null,null,null,null,null,null,{"$f":"REPT(_xlfn.UNICHAR(8203),_xlfn.XMATCH(Table5910[[#This Row],[Level ]],#REF!,3))&Table5910[[#This Row],[Level ]]","v":{"$error":"#REF!"}}]
[null,"Establish and lead values-based practice within identified scope and across the critical care pathway, crossing organisational boundaries, working with individuals, families, carers, communities, and others.","Coordination of care","Consultant ","All professions ",false,{"$f":"IF(Table5910[[#This Row],[Complete ]],\"Complete\",\"Pending\")","v":"Pending"},null,null,null,null,null,null,{"$f":"REPT(_xlfn.UNICHAR(8203),_xlfn.XMATCH(Table5910[[#This Row],[Level ]],#REF!,3))&Table5910[[#This Row],[Level ]]","v":{"$error":"#REF!"}}]
[null,"Coordinate discharge planning of patients with highly complex needs across the critical care pathway, assessing and recognising ongoing requirements and addressing potential barriers to ward or home discharge, or referral to specialist centres as required.","Coordination of care","Consultant ","All professions ",false,{"$f":"IF(Table5910[[#This Row],[Complete ]],\"Complete\",\"Pending\")","v":"Pending"},null,null,null,null,null,null,{"$f":"REPT(_xlfn.UNICHAR(8203),_xlfn.XMATCH(Table5910[[#This Row],[Level ]],#REF!,3))&Table5910[[#This Row],[Level ]]","v":{"$error":"#REF!"}}]
[null,"Exhibit accountability for own complex caseload based on autonomous assessment of wider service, clinical needs and managerial responsibilities, including managing competing priorities in potentially unpredictable or changing environments.","Coordination of care","Consultant ","All professions ",false,{"$f":"IF(Table5910[[#This Row],[Complete ]],\"Complete\",\"Pending\")","v":"Pending"},null,null,null,null,null,null,{"$f":"REPT(_xlfn.UNICHAR(8203),_xlfn.XMATCH(Table5910[[#This Row],[Level ]],#REF!,3))&Table5910[[#This Row],[Level ]]","v":{"$error":"#REF!"}}]
[null,"Develop innovative systems and structures to ensure equity of access to services for patients across the critical care pathway.","Coordination of care","Consultant ","All professions ",false,{"$f":"IF(Table5910[[#This Row],[Complete ]],\"Complete\",\"Pending\")","v":"Pending"},null,null,null,null,null,null,{"$f":"REPT(_xlfn.UNICHAR(8203),_xlfn.XMATCH(Table5910[[#This Row],[Level ]],#REF!,3))&Table5910[[#This Row],[Level ]]","v":{"$error":"#REF!"}}]
[null,"Create seamless system-wide approaches and promote a culture that supports patients to live well following critical illness.","Coordination of care","Consultant ","All professions ",false,{"$f":"IF(Table5910[[#This Row],[Complete ]],\"Complete\",\"Pending\")","v":"Pending"},null,null,null,null,null,null,{"$f":"REPT(_xlfn.UNICHAR(8203),_xlfn.XMATCH(Table5910[[#This Row],[Level ]],#REF!,3))&Table5910[[#This Row],[Level ]]","v":{"$error":"#REF!"}}]
[null,"Contribute to the promotion of equality, culturally sensitive care, diversity and social cohesion demonstrating inclusion through interactions with individuals and providing care without prejudice.","Multiprofessional teamwork","Supportive ","All professions ",false,{"$f":"IF(Table5910[[#This Row],[Complete ]],\"Complete\",\"Pending\")","v":"Pending"},null,null,null,null,null,null,{"$f":"REPT(_xlfn.UNICHAR(8203),_xlfn.XMATCH(Table5910[[#This Row],[Level ]],#REF!,3))&Table5910[[#This Row],[Level ]]","v":{"$error":"#REF!"}}]
[null,"Recognise own values and bias and how they may impact on others.","Multiprofessional teamwork","Supportive ","All professions ",false,{"$f":"IF(Table5910[[#This Row],[Complete ]],\"Complete\",\"Pending\")","v":"Pending"},null,null,null,null,null,null,{"$f":"REPT(_xlfn.UNICHAR(8203),_xlfn.XMATCH(Table5910[[#This Row],[Level ]],#REF!,3))&Table5910[[#This Row],[Level ]]","v":{"$error":"#REF!"}}]
[null,"Treat people with dignity, respecting diversity, different beliefs, culture, needs, values and preferences.","Multiprofessional teamwork","Supportive ","All professions ",false,{"$f":"IF(Table5910[[#This Row],[Complete ]],\"Complete\",\"Pending\")","v":"Pending"},null,null,null,null,null,null,{"$f":"REPT(_xlfn.UNICHAR(8203),_xlfn.XMATCH(Table5910[[#This Row],[Level ]],#REF!,3))&Table5910[[#This Row],[Level ]]","v":{"$error":"#REF!"}}]
[null,"Recognise and act on own mental and physical health and wellbeing needs.","Multiprofessional teamwork","Supportive ","All professions ",false,{"$f":"IF(Table5910[[#This Row],[Complete ]],\"Complete\",\"Pending\")","v":"Pending"},null,null,null,null,null,null,{"$f":"REPT(_xlfn.UNICHAR(8203),_xlfn.XMATCH(Table5910[[#This Row],[Level ]],#REF!,3))&Table5910[[#This Row],[Level ]]","v":{"$error":"#REF!"}}]
[null,"Recognise the different roles of the multi-professional team, supporting the timely referral of appropriate patients for specialist input.","Multiprofessional teamwork","Assistive ","All professions ",false,{"$f":"IF(Table5910[[#This Row],[Complete ]],\"Complete\",\"Pending\")","v":"Pending"},null,null,null,null,null,null,{"$f":"REPT(_xlfn.UNICHAR(8203),_xlfn.XMATCH(Table5910[[#This Row],[Level ]],#REF!,3))&Table5910[[#This Row],[Level ]]","v":{"$error":"#REF!"}}]
[null,"Contribute to group decision making and planning when attending ward rounds, handovers or case meetings.","Multiprofessional teamwork","Foundation","All professions ",false,{"$f":"IF(Table5910[[#This Row],[Complete ]],\"Complete\",\"Pending\")","v":"Pending"},null,null,null,null,null,null,{"$f":"REPT(_xlfn.UNICHAR(8203),_xlfn.XMATCH(Table5910[[#This Row],[Level ]],#REF!,3))&Table5910[[#This Row],[Level ]]","v":{"$error":"#REF!"}}]
[null,"Refer patients to the relevant professional, recognising the unique contribution of each profession to patient care across the critical care pathway.","Multiprofessional teamwork","Foundation","All professions ",false,{"$f":"IF(Table5910[[#This Row],[Complete ]],\"Complete\",\"Pending\")","v":"Pending"},null,null,null,null,null,null,{"$f":"REPT(_xlfn.UNICHAR(8203),_xlfn.XMATCH(Table5910[[#This Row],[Level ]],#REF!,3))&Table5910[[#This Row],[Level ]]","v":{"$error":"#REF!"}}]
[null,"Assess and act on own health and wellbeing needs and support the health and wellbeing of the multi-professional team","Multiprofessional teamwork","Foundation","All professions ",false,{"$f":"IF(Table5910[[#This Row],[Complete ]],\"Complete\",\"Pending\")","v":"Pending"},null,null,null,null,null,null,{"$f":"REPT(_xlfn.UNICHAR(8203),_xlfn.XMATCH(Table5910[[#This Row],[Level ]],#REF!,3))&Table5910[[#This Row],[Level ]]","v":{"$error":"#REF!"}}]
[null,"Facilitate collaborative care through regular input into ward rounds and multi-professional forums, including the patient and their family in discussions whenever feasible.","Multiprofessional teamwork","Enhanced ","All professions ",false,{"$f":"IF(Table5910[[#This Row],[Complete ]],\"Complete\",\"Pending\")","v":"Pending"},null,null,null,null,null,null,{"$f":"REPT(_xlfn.UNICHAR(8203),_xlfn.XMATCH(Table5910[[#This Row],[Level ]],#REF!,3))&Table5910[[#This Row],[Level ]]","v":{"$error":"#REF!"}}]
[null,"Liaise with the multi-professional team to collaboratively develop local service delivery, identifying and negotiating any professional overlap.","Multiprofessional teamwork","Enhanced ","All professions ",false,{"$f":"IF(Table5910[[#This Row],[Complete ]],\"Complete\",\"Pending\")","v":"Pending"},null,null,null,null,null,null,{"$f":"REPT(_xlfn.UNICHAR(8203),_xlfn.XMATCH(Table5910[[#This Row],[Level ]],#REF!,3))&Table5910[[#This Row],[Level ]]","v":{"$error":"#REF!"}}]
[null,"Support multi-professional team members who have been involved in and affected by traumatic events at work using a psychological first aid approach.","Multiprofessional teamwork","Enhanced ","All professions ",false,{"$f":"IF(Table5910[[#This Row],[Complete ]],\"Complete\",\"Pending\")","v":"Pending"},null,null,null,null,null,null,{"$f":"REPT(_xlfn.UNICHAR(8203),_xlfn.XMATCH(Table5910[[#This Row],[Level ]],#REF!,3))&Table5910[[#This Row],[Level ]]","v":{"$error":"#REF!"}}]
[null,"Evaluate signs of burnout and moral distress in multi-professional team and facilitate team attendance at reflective forums.","Multiprofessional teamwork","Enhanced ","All professions ",false,{"$f":"IF(Table5910[[#This Row],[Complete ]],\"Complete\",\"Pending\")","v":"Pending"},null,null,null,null,null,null,{"$f":"REPT(_xlfn.UNICHAR(8203),_xlfn.XMATCH(Table5910[[#This Row],[Level ]],#REF!,3))&Table5910[[#This Row],[Level ]]","v":{"$error":"#REF!"}}]
[null,"Facilitate a multi-professional team approach to promoting equality, diversity and social cohesion and challenging discriminatory behaviour","Multiprofessional teamwork","Enhanced ","All professions ",false,{"$f":"IF(Table5910[[#This Row],[Complete ]],\"Complete\",\"Pending\")","v":"Pending"},null,null,null,null,null,null,{"$f":"REPT(_xlfn.UNICHAR(8203),_xlfn.XMATCH(Table5910[[#This Row],[Level ]],#REF!,3))&Table5910[[#This Row],[Level ]]","v":{"$error":"#REF!"}}]
[null,"Promote effective multi-professional relationships, evaluating team dynamics, addressing barriers to optimal performance and fostering clarity of roles to encourage collaborative working.","Multiprofessional teamwork","Advanced ","All professions ",false,{"$f":"IF(Table5910[[#This Row],[Complete ]],\"Complete\",\"Pending\")","v":"Pending"},null,null,null,null,null,null,{"$f":"REPT(_xlfn.UNICHAR(8203),_xlfn.XMATCH(Table5910[[#This Row],[Level ]],#REF!,3))&Table5910[[#This Row],[Level ]]","v":{"$error":"#REF!"}}]
[null,"Create collaborations to develop novel critical care pathways and services, innovating and using strategic influence, in line with local, regional, and national strategies and priorities.","Multiprofessional teamwork","Advanced ","All professions ",false,{"$f":"IF(Table5910[[#This Row],[Complete ]],\"Complete\",\"Pending\")","v":"Pending"},null,null,null,null,null,null,{"$f":"REPT(_xlfn.UNICHAR(8203),_xlfn.XMATCH(Table5910[[#This Row],[Level ]],#REF!,3))&Table5910[[#This Row],[Level ]]","v":{"$error":"#REF!"}}]
[null,"Facilitate collaborative working with multi-agency and multi-professional teams, developing, maintaining, and evaluating links to manage risk and issues across organisations and settings.","Multiprofessional teamwork","Advanced ","All professions ",false,{"$f":"IF(Table5910[[#This Row],[Complete ]],\"Complete\",\"Pending\")","v":"Pending"},null,null,null,null,null,null,{"$f":"REPT(_xlfn.UNICHAR(8203),_xlfn.XMATCH(Table5910[[#This Row],[Level ]],#REF!,3))&Table5910[[#This Row],[Level ]]","v":{"$error":"#REF!"}}]
[null,"Ensure effective multi-professional working as an expert team member, promoting effective team dynamics across service, departmental and organisational boundaries.","Multiprofessional teamwork","Advanced ","All professions ",false,{"$f":"IF(Table5910[[#This Row],[Complete ]],\"Complete\",\"Pending\")","v":"Pending"},null,null,null,null,null,null,{"$f":"REPT(_xlfn.UNICHAR(8203),_xlfn.XMATCH(Table5910[[#This Row],[Level ]],#REF!,3))&Table5910[[#This Row],[Level ]]","v":{"$error":"#REF!"}}]
[null,"Develop structures and processes that facilitate regular, patient-centred, multi-professional discussions across the critical care pathway, collaborating with patients and their families and carers, and promoting an environment of professional advocacy and autonomy","Multiprofessional teamwork","Advanced ","All professions ",false,{"$f":"IF(Table5910[[#This Row],[Complete ]],\"Complete\",\"Pending\")","v":"Pending"},null,null,null,null,null,null,{"$f":"REPT(_xlfn.UNICHAR(8203),_xlfn.XMATCH(Table5910[[#This Row],[Level ]],#REF!,3))&Table5910[[#This Row],[Level ]]","v":{"$error":"#REF!"}}]
[null,"Direct multi-professional team collaboration across the critical care pathway, to optimise assessment, diagnosis and integrated care for critically ill patients, developing, maintaining and evaluating professional links and relationships","Multiprofessional teamwork","Advanced ","All professions ",false,{"$f":"IF(Table5910[[#This Row],[Complete ]],\"Complete\",\"Pending\")","v":"Pending"},null,null,null,null,null,null,{"$f":"REPT(_xlfn.UNICHAR(8203),_xlfn.XMATCH(Table5910[[#This Row],[Level ]],#REF!,3))&Table5910[[#This Row],[Level ]]","v":{"$error":"#REF!"}}]
[null,"Facilitate constructive discussion, including offering mediation, where there is personal or professional conflict, negotiating resolution with fairness and transparency and seeking advice or support when needed.","Multiprofessional teamwork","Advanced ","All professions ",false,{"$f":"IF(Table5910[[#This Row],[Complete ]],\"Complete\",\"Pending\")","v":"Pending"},null,null,null,null,null,null,{"$f":"REPT(_xlfn.UNICHAR(8203),_xlfn.XMATCH(Table5910[[#This Row],[Level ]],#REF!,3))&Table5910[[#This Row],[Level ]]","v":{"$error":"#REF!"}}]
[null,"Influence cross-boundary multi-professional relationships across the critical care pathway, empowering collaborative working towards a shared vision.","Multiprofessional teamwork","Consultant ","All professions ",false,{"$f":"IF(Table5910[[#This Row],[Complete ]],\"Complete\",\"Pending\")","v":"Pending"},null,null,null,null,null,null,{"$f":"REPT(_xlfn.UNICHAR(8203),_xlfn.XMATCH(Table5910[[#This Row],[Level ]],#REF!,3))&Table5910[[#This Row],[Level ]]","v":{"$error":"#REF!"}}]
[null,"Create a culture of multi-professional working which places the patient at the centre, recognising the unique contribution of each profession and team member.","Multiprofessional teamwork","Consultant ","All professions ",false,{"$f":"IF(Table5910[[#This Row],[Complete ]],\"Complete\",\"Pending\")","v":"Pending"},null,null,null,null,null,null,{"$f":"REPT(_xlfn.UNICHAR(8203),_xlfn.XMATCH(Table5910[[#This Row],[Level ]],#REF!,3))&Table5910[[#This Row],[Level ]]","v":{"$error":"#REF!"}}]
[null,"Advocate for multi-professional collaboration locally, regionally, nationally and internationally, driving innovation and improvement of patient pathways, focusing on patient and service level outcomes.","Multiprofessional teamwork","Consultant ","All professions ",false,{"$f":"IF(Table5910[[#This Row],[Complete ]],\"Complete\",\"Pending\")","v":"Pending"},null,null,null,null,null,null,{"$f":"REPT(_xlfn.UNICHAR(8203),_xlfn.XMATCH(Table5910[[#This Row],[Level ]],#REF!,3))&Table5910[[#This Row],[Level ]]","v":{"$error":"#REF!"}}]
[null,"Develop structures and processes that facilitate patient-centred, multi-professional discussions across traditional specialty boundaries, collaborating with patients, families and carers, to promote an environment of patient advocacy and professional autonomy.","Multiprofessional teamwork","Consultant ","All professions ",false,{"$f":"IF(Table5910[[#This Row],[Complete ]],\"Complete\",\"Pending\")","v":"Pending"},null,null,null,null,null,null,{"$f":"REPT(_xlfn.UNICHAR(8203),_xlfn.XMATCH(Table5910[[#This Row],[Level ]],#REF!,3))&Table5910[[#This Row],[Level ]]","v":{"$error":"#REF!"}}]
[null,"Direct collaborative working with multi-agency and multi-professional teams to identify, assess and manage risks and issues, across organisations and teams.","Multiprofessional teamwork","Consultant ","All professions ",false,{"$f":"IF(Table5910[[#This Row],[Complete ]],\"Complete\",\"Pending\")","v":"Pending"},null,null,null,null,null,null,{"$f":"REPT(_xlfn.UNICHAR(8203),_xlfn.XMATCH(Table5910[[#This Row],[Level ]],#REF!,3))&Table5910[[#This Row],[Level ]]","v":{"$error":"#REF!"}}]
[null,"Support the individualisation of patient care by acknowledging patient's relationships, values, roles, routines, interests and occupations during interactions.","Personalised care","Supportive ","All professions ",false,{"$f":"IF(Table5910[[#This Row],[Complete ]],\"Complete\",\"Pending\")","v":"Pending"},null,null,null,null,null,null,{"$f":"REPT(_xlfn.UNICHAR(8203),_xlfn.XMATCH(Table5910[[#This Row],[Level ]],#REF!,3))&Table5910[[#This Row],[Level ]]","v":{"$error":"#REF!"}}]
[null,"Recognise the impact a critical care admission has on a patient, families and carers, including potential fear, stress and anxiety, and cycle of grief.","Personalised care","Supportive ","All professions ",false,{"$f":"IF(Table5910[[#This Row],[Complete ]],\"Complete\",\"Pending\")","v":"Pending"},null,null,null,null,null,null,{"$f":"REPT(_xlfn.UNICHAR(8203),_xlfn.XMATCH(Table5910[[#This Row],[Level ]],#REF!,3))&Table5910[[#This Row],[Level ]]","v":{"$error":"#REF!"}}]
[null,"Contribute to the writing of patient diaries, giving appropriate information as advised by the multi-professional team.","Personalised care","Supportive ","All professions ",false,{"$f":"IF(Table5910[[#This Row],[Complete ]],\"Complete\",\"Pending\")","v":"Pending"},null,null,null,null,null,null,{"$f":"REPT(_xlfn.UNICHAR(8203),_xlfn.XMATCH(Table5910[[#This Row],[Level ]],#REF!,3))&Table5910[[#This Row],[Level ]]","v":{"$error":"#REF!"}}]
[null,"Support the multi-professional team in humanising the critical care environment, enhancing a patient's experience based on personal preference.","Personalised care","Supportive ","All professions ",false,{"$f":"IF(Table5910[[#This Row],[Complete ]],\"Complete\",\"Pending\")","v":"Pending"},null,null,null,null,null,null,{"$f":"REPT(_xlfn.UNICHAR(8203),_xlfn.XMATCH(Table5910[[#This Row],[Level ]],#REF!,3))&Table5910[[#This Row],[Level ]]","v":{"$error":"#REF!"}}]
[null,"Recognise when a patient is able to consent to their intervention or when the multi-professional team is acting in the patient's best interests.","Personalised care","Supportive ","All professions ",false,{"$f":"IF(Table5910[[#This Row],[Complete ]],\"Complete\",\"Pending\")","v":"Pending"},null,null,null,null,null,null,{"$f":"REPT(_xlfn.UNICHAR(8203),_xlfn.XMATCH(Table5910[[#This Row],[Level ]],#REF!,3))&Table5910[[#This Row],[Level ]]","v":{"$error":"#REF!"}}]
[null,"Recognise and respect a patient's perspectives regarding their care, including them in decision making wherever possible.","Personalised care","Supportive ","All professions ",false,{"$f":"IF(Table5910[[#This Row],[Complete ]],\"Complete\",\"Pending\")","v":"Pending"},null,null,null,null,null,null,{"$f":"REPT(_xlfn.UNICHAR(8203),_xlfn.XMATCH(Table5910[[#This Row],[Level ]],#REF!,3))&Table5910[[#This Row],[Level ]]","v":{"$error":"#REF!"}}]
[null,"Support and encourage patients to participate in all activities as independently and safely as possible.","Personalised care","Supportive ","All professions ",false,{"$f":"IF(Table5910[[#This Row],[Complete ]],\"Complete\",\"Pending\")","v":"Pending"},null,null,null,null,null,null,{"$f":"REPT(_xlfn.UNICHAR(8203),_xlfn.XMATCH(Table5910[[#This Row],[Level ]],#REF!,3))&Table5910[[#This Row],[Level ]]","v":{"$error":"#REF!"}}]
[null,"Support patient choice during each patient interaction, supporting a patient's decision-making processes in all interactions where possible.","Personalised care","Supportive ","All professions ",false,{"$f":"IF(Table5910[[#This Row],[Complete ]],\"Complete\",\"Pending\")","v":"Pending"},null,null,null,null,null,null,{"$f":"REPT(_xlfn.UNICHAR(8203),_xlfn.XMATCH(Table5910[[#This Row],[Level ]],#REF!,3))&Table5910[[#This Row],[Level ]]","v":{"$error":"#REF!"}}]
[null,"Recognise the barriers to obtaining valid consent from patients in critical care, escalating and documenting appropriately.","Personalised care","Supportive ","All professions ",false,{"$f":"IF(Table5910[[#This Row],[Complete ]],\"Complete\",\"Pending\")","v":"Pending"},null,null,null,null,null,null,{"$f":"REPT(_xlfn.UNICHAR(8203),_xlfn.XMATCH(Table5910[[#This Row],[Level ]],#REF!,3))&Table5910[[#This Row],[Level ]]","v":{"$error":"#REF!"}}]
[null,"Refer to additional wellbeing services, including chaplaincy.","Personalised care","Assistive ","All professions ",false,{"$f":"IF(Table5910[[#This Row],[Complete ]],\"Complete\",\"Pending\")","v":"Pending"},null,null,null,null,null,null,{"$f":"REPT(_xlfn.UNICHAR(8203),_xlfn.XMATCH(Table5910[[#This Row],[Level ]],#REF!,3))&Table5910[[#This Row],[Level ]]","v":{"$error":"#REF!"}}]
[null,"Recognise the importance of patient choice and adapt rehabilitation sessions, where suitable, to reflect this.","Personalised care","Assistive ","All professions ",false,{"$f":"IF(Table5910[[#This Row],[Complete ]],\"Complete\",\"Pending\")","v":"Pending"},null,null,null,null,null,null,{"$f":"REPT(_xlfn.UNICHAR(8203),_xlfn.XMATCH(Table5910[[#This Row],[Level ]],#REF!,3))&Table5910[[#This Row],[Level ]]","v":{"$error":"#REF!"}}]
[null,"Recognise when a patient is able to advance their participation in an activity or exercise and support them to do so safely.","Personalised care","Assistive ","All professions ",false,{"$f":"IF(Table5910[[#This Row],[Complete ]],\"Complete\",\"Pending\")","v":"Pending"},null,null,null,null,null,null,{"$f":"REPT(_xlfn.UNICHAR(8203),_xlfn.XMATCH(Table5910[[#This Row],[Level ]],#REF!,3))&Table5910[[#This Row],[Level ]]","v":{"$error":"#REF!"}}]
[null,"Apply an individual's spiritual and cultural beliefs, within all aspects of their care, to enhance connectedness and belonging throughout their critical care journey.","Personalised care","Foundation","All professions ",false,{"$f":"IF(Table5910[[#This Row],[Complete ]],\"Complete\",\"Pending\")","v":"Pending"},null,null,null,null,null,null,{"$f":"REPT(_xlfn.UNICHAR(8203),_xlfn.XMATCH(Table5910[[#This Row],[Level ]],#REF!,3))&Table5910[[#This Row],[Level ]]","v":{"$error":"#REF!"}}]
[null,"Advocate for a patient where shared decision making has occurred, relaying their preferences to the multi-professional team.","Personalised care","Foundation","All professions ",false,{"$f":"IF(Table5910[[#This Row],[Complete ]],\"Complete\",\"Pending\")","v":"Pending"},null,null,null,null,null,null,{"$f":"REPT(_xlfn.UNICHAR(8203),_xlfn.XMATCH(Table5910[[#This Row],[Level ]],#REF!,3))&Table5910[[#This Row],[Level ]]","v":{"$error":"#REF!"}}]
[null,"Liaise with families and carers regarding patient's care routines, advocating on their behalf, to the multi-professional team to ensure the person is seen as a whole.","Personalised care","Foundation","All professions ",false,{"$f":"IF(Table5910[[#This Row],[Complete ]],\"Complete\",\"Pending\")","v":"Pending"},null,null,null,null,null,null,{"$f":"REPT(_xlfn.UNICHAR(8203),_xlfn.XMATCH(Table5910[[#This Row],[Level ]],#REF!,3))&Table5910[[#This Row],[Level ]]","v":{"$error":"#REF!"}}]
[null,"Support patients to discuss their volition and motivation for a range of patient-centred activities, breaking down tasks into manageable, graded and achievable steps.","Personalised care","Foundation","All professions ",false,{"$f":"IF(Table5910[[#This Row],[Complete ]],\"Complete\",\"Pending\")","v":"Pending"},null,null,null,null,null,null,{"$f":"REPT(_xlfn.UNICHAR(8203),_xlfn.XMATCH(Table5910[[#This Row],[Level ]],#REF!,3))&Table5910[[#This Row],[Level ]]","v":{"$error":"#REF!"}}]
[null,"Assess a patient's capacity to consent, understanding where interventions are undertaken on the basis of best interests","Personalised care","Foundation","All professions ",false,{"$f":"IF(Table5910[[#This Row],[Complete ]],\"Complete\",\"Pending\")","v":"Pending"},null,null,null,null,null,null,{"$f":"REPT(_xlfn.UNICHAR(8203),_xlfn.XMATCH(Table5910[[#This Row],[Level ]],#REF!,3))&Table5910[[#This Row],[Level ]]","v":{"$error":"#REF!"}}]
[null,"Evaluate physical, cognitive, behavioural, psychological, cultural and emotional needs, adapting assessment and intervention accordingly.","Personalised care","Enhanced ","All professions ",false,{"$f":"IF(Table5910[[#This Row],[Complete ]],\"Complete\",\"Pending\")","v":"Pending"},null,null,null,null,null,null,{"$f":"REPT(_xlfn.UNICHAR(8203),_xlfn.XMATCH(Table5910[[#This Row],[Level ]],#REF!,3))&Table5910[[#This Row],[Level ]]","v":{"$error":"#REF!"}}]
[null,"Evaluate the impact that critical care admission has on patients, acknowledging the likely short-term and long-term anxiety, fear grief and stress.","Personalised care","Enhanced ","All professions ",false,{"$f":"IF(Table5910[[#This Row],[Complete ]],\"Complete\",\"Pending\")","v":"Pending"},null,null,null,null,null,null,{"$f":"REPT(_xlfn.UNICHAR(8203),_xlfn.XMATCH(Table5910[[#This Row],[Level ]],#REF!,3))&Table5910[[#This Row],[Level ]]","v":{"$error":"#REF!"}}]
[null,"Initiate use of a critical care diary, in line with local policy and procedures.","Personalised care","Enhanced ","All professions ",false,{"$f":"IF(Table5910[[#This Row],[Complete ]],\"Complete\",\"Pending\")","v":"Pending"},null,null,null,null,null,null,{"$f":"REPT(_xlfn.UNICHAR(8203),_xlfn.XMATCH(Table5910[[#This Row],[Level ]],#REF!,3))&Table5910[[#This Row],[Level ]]","v":{"$error":"#REF!"}}]
[null,"Review a patient's decision-making processes, weighing up presented information and considering their mental capacity","Personalised care","Enhanced ","All professions ",false,{"$f":"IF(Table5910[[#This Row],[Complete ]],\"Complete\",\"Pending\")","v":"Pending"},null,null,null,null,null,null,{"$f":"REPT(_xlfn.UNICHAR(8203),_xlfn.XMATCH(Table5910[[#This Row],[Level ]],#REF!,3))&Table5910[[#This Row],[Level ]]","v":{"$error":"#REF!"}}]
[null,"Discuss complex and holistic information based from person-centred assessment with the multi-professional team","Personalised care","Enhanced ","All professions ",false,{"$f":"IF(Table5910[[#This Row],[Complete ]],\"Complete\",\"Pending\")","v":"Pending"},null,null,null,null,null,null,{"$f":"REPT(_xlfn.UNICHAR(8203),_xlfn.XMATCH(Table5910[[#This Row],[Level ]],#REF!,3))&Table5910[[#This Row],[Level ]]","v":{"$error":"#REF!"}}]
[null,"Prescribe health promoting activities at key points in the critical care pathway within own scope of practice.","Personalised care","Enhanced ","All professions ",false,{"$f":"IF(Table5910[[#This Row],[Complete ]],\"Complete\",\"Pending\")","v":"Pending"},null,null,null,null,null,null,{"$f":"REPT(_xlfn.UNICHAR(8203),_xlfn.XMATCH(Table5910[[#This Row],[Level ]],#REF!,3))&Table5910[[#This Row],[Level ]]","v":{"$error":"#REF!"}}]
[null,"Discuss previous experiences of healthcare with patients, acknowledging how this may impact their engagement and recovery.","Personalised care","Enhanced ","All professions ",false,{"$f":"IF(Table5910[[#This Row],[Complete ]],\"Complete\",\"Pending\")","v":"Pending"},null,null,null,null,null,null,{"$f":"REPT(_xlfn.UNICHAR(8203),_xlfn.XMATCH(Table5910[[#This Row],[Level ]],#REF!,3))&Table5910[[#This Row],[Level ]]","v":{"$error":"#REF!"}}]
[null,"Recommend self management recovery strategies for patients recovering from critical illness.","Personalised care","Enhanced ","All professions ",false,{"$f":"IF(Table5910[[#This Row],[Complete ]],\"Complete\",\"Pending\")","v":"Pending"},null,null,null,null,null,null,{"$f":"REPT(_xlfn.UNICHAR(8203),_xlfn.XMATCH(Table5910[[#This Row],[Level ]],#REF!,3))&Table5910[[#This Row],[Level ]]","v":{"$error":"#REF!"}}]
[null,"Implement patient-reported outcome measures, ensuring they are fully accessible to all patients in differing formats and languages.","Personalised care","Enhanced ","All professions ",false,{"$f":"IF(Table5910[[#This Row],[Complete ]],\"Complete\",\"Pending\")","v":"Pending"},null,null,null,null,null,null,{"$f":"REPT(_xlfn.UNICHAR(8203),_xlfn.XMATCH(Table5910[[#This Row],[Level ]],#REF!,3))&Table5910[[#This Row],[Level ]]","v":{"$error":"#REF!"}}]
[null,"Integrate and apply a person-centred approach to service delivery and development across the critical care pathway, including shared decision making, promoting behaviour change and patient activation.","Personalised care","Advanced ","All professions ",false,{"$f":"IF(Table5910[[#This Row],[Complete ]],\"Complete\",\"Pending\")","v":"Pending"},null,null,null,null,null,null,{"$f":"REPT(_xlfn.UNICHAR(8203),_xlfn.XMATCH(Table5910[[#This Row],[Level ]],#REF!,3))&Table5910[[#This Row],[Level ]]","v":{"$error":"#REF!"}}]
[null,"Empower and enable patients with capacity to make choices that fit with their goals, while evaluating the impact of these decisions on positive risk-taking and duty of care, fostering engagement with family, carers and other health and social care providers.","Personalised care","Advanced ","All professions ",false,{"$f":"IF(Table5910[[#This Row],[Complete ]],\"Complete\",\"Pending\")","v":"Pending"},null,null,null,null,null,null,{"$f":"REPT(_xlfn.UNICHAR(8203),_xlfn.XMATCH(Table5910[[#This Row],[Level ]],#REF!,3))&Table5910[[#This Row],[Level ]]","v":{"$error":"#REF!"}}]
[null,"Advocate for care delivery that is responsive to patient requirements, informed by an understanding of local population health needs, including cultural, spiritual, behavioural, emotional, and psychosocial factors, even if patient choice deviates from professional recommendations, and may not deliver desired outcomes.","Personalised care","Advanced ","All professions ",false,{"$f":"IF(Table5910[[#This Row],[Complete ]],\"Complete\",\"Pending\")","v":"Pending"},null,null,null,null,null,null,{"$f":"REPT(_xlfn.UNICHAR(8203),_xlfn.XMATCH(Table5910[[#This Row],[Level ]],#REF!,3))&Table5910[[#This Row],[Level ]]","v":{"$error":"#REF!"}}]
[null,"Lead a system wide approach which responds and advocates for patient need and choice, even if it is felt that the choice may not be in the patient's best interest, and is informed by an understanding of local population health requirements, including cultural, spiritual, behavioural, emotional, and psychosocial factors.","Personalised care","Consultant ","All professions ",false,{"$f":"IF(Table5910[[#This Row],[Complete ]],\"Complete\",\"Pending\")","v":"Pending"},null,null,null,null,null,null,{"$f":"REPT(_xlfn.UNICHAR(8203),_xlfn.XMATCH(Table5910[[#This Row],[Level ]],#REF!,3))&Table5910[[#This Row],[Level ]]","v":{"$error":"#REF!"}}]
[null,"Lead discussions with patients regarding their care and anticipated clinical trajectory, understanding previous admissions and interventions, and how this could impact on patient engagement, understanding and reaction.","Personalised care","Consultant ","All professions ",false,{"$f":"IF(Table5910[[#This Row],[Complete ]],\"Complete\",\"Pending\")","v":"Pending"},null,null,null,null,null,null,{"$f":"REPT(_xlfn.UNICHAR(8203),_xlfn.XMATCH(Table5910[[#This Row],[Level ]],#REF!,3))&Table5910[[#This Row],[Level ]]","v":{"$error":"#REF!"}}]
[null,"Ensure people’s voices are heard in all key activities across the critical care pathway, evaluating systems and measures to demonstrate progress at local, regional and national levels.","Personalised care","Consultant ","All professions ",false,{"$f":"IF(Table5910[[#This Row],[Complete ]],\"Complete\",\"Pending\")","v":"Pending"},null,null,null,null,null,null,{"$f":"REPT(_xlfn.UNICHAR(8203),_xlfn.XMATCH(Table5910[[#This Row],[Level ]],#REF!,3))&Table5910[[#This Row],[Level ]]","v":{"$error":"#REF!"}}]

{"sheet":"Education ","index":7,"n_rows":99,"n_cols":14,"rows_kept":99,"cut":false,"hidden":false,"merged":[[0,0,2,11],[0,12,2,23]]}
["Education "]
[]
[]
[]
[]
[null,"Capability statement ","Area ","Level ","Profession ","Complete ","Progress","Signed ","Dated","Evidence ","Evidence 2","Evidence 3","Evidence 4","Level Sorted "]
[null,"Actively participate in continuing professional development and record own learning and personal development.","Self development","Supportive","All professions",true,{"$f":"IF(Table59104[[#This Row],[Complete ]],\"Complete\",\"Pending\")","v":"Complete"},null,"2025-10-07",null,null,null,null,{"$f":"REPT(_xlfn.UNICHAR(8203),_xlfn.XMATCH(Table59104[[#This Row],[Level ]],#REF!,0+2))&Table59104[[#This Row],[Level ]]","v":{"$error":"#REF!"}}]
[null,"Recognise and articulate own learning needs across the four pillars of practice, through self-reflection, supervision and evaluation of practice.","Self development","Supportive","All professions",false,{"$f":"IF(Table59104[[#This Row],[Complete ]],\"Complete\",\"Pending\")","v":"Pending"},null,null,null,null,null,null,{"$f":"REPT(_xlfn.UNICHAR(8203),_xlfn.XMATCH(Table59104[[#This Row],[Level ]],#REF!,0+2))&Table59104[[#This Row],[Level ]]","v":{"$error":"#REF!"}}]
[null,"Identify own learning and personal development.","Self development","Supportive","All professions",false,{"$f":"IF(Table59104[[#This Row],[Complete ]],\"Complete\",\"Pending\")","v":"Pending"},null,null,null,null,null,null,{"$f":"REPT(_xlfn.UNICHAR(8203),_xlfn.XMATCH(Table59104[[#This Row],[Level ]],#REF!,0+2))&Table59104[[#This Row],[Level ]]","v":{"$error":"#REF!"}}]
[null,"Perform work-based learning to widen practical skills and knowledge.","Self development","Supportive","All professions",false,{"$f":"IF(Table59104[[#This Row],[Complete ]],\"Complete\",\"Pending\")","v":"Pending"},null,null,null,null,null,null,{"$f":"REPT(_xlfn.UNICHAR(8203),_xlfn.XMATCH(Table59104[[#This Row],[Level ]],#REF!,0+2))&Table59104[[#This Row],[Level ]]","v":{"$error":"#REF!"}}]
[null,"Recognise learning from clinical experience through reflective learning conversations.","Self development","Supportive","All professions",false,{"$f":"IF(Table59104[[#This Row],[Complete ]],\"Complete\",\"Pending\")","v":"Pending"},null,null,null,null,null,null,{"$f":"REPT(_xlfn.UNICHAR(8203),_xlfn.XMATCH(Table59104[[#This Row],[Level ]],#REF!,0+2))&Table59104[[#This Row],[Level ]]","v":{"$error":"#REF!"}}]
[null,"Recognise where to seek peer support within the multi-professional team.","Self development","Supportive","All professions",false,{"$f":"IF(Table59104[[#This Row],[Complete ]],\"Complete\",\"Pending\")","v":"Pending"},null,null,null,null,null,null,{"$f":"REPT(_xlfn.UNICHAR(8203),_xlfn.XMATCH(Table59104[[#This Row],[Level ]],#REF!,0+2))&Table59104[[#This Row],[Level ]]","v":{"$error":"#REF!"}}]
[null,"Recognise own learning needs, identifying and managing opportunities to maintain and extend knowledge.","Self development","Assistive","All professions",false,{"$f":"IF(Table59104[[#This Row],[Complete ]],\"Complete\",\"Pending\")","v":"Pending"},null,null,null,null,null,null,{"$f":"REPT(_xlfn.UNICHAR(8203),_xlfn.XMATCH(Table59104[[#This Row],[Level ]],#REF!,0+2))&Table59104[[#This Row],[Level ]]","v":{"$error":"#REF!"}}]
[null,"Identify opportunities for work-based learning reflections and record these in portfolio.","Self development","Assistive","All professions",false,{"$f":"IF(Table59104[[#This Row],[Complete ]],\"Complete\",\"Pending\")","v":"Pending"},null,null,null,null,null,null,{"$f":"REPT(_xlfn.UNICHAR(8203),_xlfn.XMATCH(Table59104[[#This Row],[Level ]],#REF!,0+2))&Table59104[[#This Row],[Level ]]","v":{"$error":"#REF!"}}]
[null,"Recognise peers within the critical care setting, engaging and creating links to understand other roles.","Self development","Assistive","All professions",false,{"$f":"IF(Table59104[[#This Row],[Complete ]],\"Complete\",\"Pending\")","v":"Pending"},null,null,null,null,null,null,{"$f":"REPT(_xlfn.UNICHAR(8203),_xlfn.XMATCH(Table59104[[#This Row],[Level ]],#REF!,0+2))&Table59104[[#This Row],[Level ]]","v":{"$error":"#REF!"}}]
[null,"Identify and respond appropriately to own learning needs across the four pillars of practice, through proactive participation in regular professional supervision and evaluation of own practice.","Self development","Foundation","All professions",false,{"$f":"IF(Table59104[[#This Row],[Complete ]],\"Complete\",\"Pending\")","v":"Pending"},null,null,null,null,null,null,{"$f":"REPT(_xlfn.UNICHAR(8203),_xlfn.XMATCH(Table59104[[#This Row],[Level ]],#REF!,0+2))&Table59104[[#This Row],[Level ]]","v":{"$error":"#REF!"}}]
[null,"Initiate own work-based learning reflections and record in a profession-specific portfolio.","Self development","Foundation","All professions",false,{"$f":"IF(Table59104[[#This Row],[Complete ]],\"Complete\",\"Pending\")","v":"Pending"},null,null,null,null,null,null,{"$f":"REPT(_xlfn.UNICHAR(8203),_xlfn.XMATCH(Table59104[[#This Row],[Level ]],#REF!,0+2))&Table59104[[#This Row],[Level ]]","v":{"$error":"#REF!"}}]
[null,"Initiate peer support and engagement with others in the multi-professional team, to support own personal development.","Self development","Foundation","All professions",false,{"$f":"IF(Table59104[[#This Row],[Complete ]],\"Complete\",\"Pending\")","v":"Pending"},null,null,null,null,null,null,{"$f":"REPT(_xlfn.UNICHAR(8203),_xlfn.XMATCH(Table59104[[#This Row],[Level ]],#REF!,0+2))&Table59104[[#This Row],[Level ]]","v":{"$error":"#REF!"}}]
[null,"Discuss a long-term and strategic approach to personal and professional development, incorporating own development needs and aligning personal goals with the organisational strategy.","Self development","Enhanced","All professions",false,{"$f":"IF(Table59104[[#This Row],[Complete ]],\"Complete\",\"Pending\")","v":"Pending"},null,null,null,null,null,null,{"$f":"REPT(_xlfn.UNICHAR(8203),_xlfn.XMATCH(Table59104[[#This Row],[Level ]],#REF!,0+2))&Table59104[[#This Row],[Level ]]","v":{"$error":"#REF!"}}]
[null,"Evaluate learning and development opportunities through reflection, seeking further progress in the development of professional self.","Self development","Enhanced","All professions",false,{"$f":"IF(Table59104[[#This Row],[Complete ]],\"Complete\",\"Pending\")","v":"Pending"},null,null,null,null,null,null,{"$f":"REPT(_xlfn.UNICHAR(8203),_xlfn.XMATCH(Table59104[[#This Row],[Level ]],#REF!,0+2))&Table59104[[#This Row],[Level ]]","v":{"$error":"#REF!"}}]
[null,"Engage in internal peer review processes to support own and others' learning and development.","Self development","Enhanced","All professions",false,{"$f":"IF(Table59104[[#This Row],[Complete ]],\"Complete\",\"Pending\")","v":"Pending"},null,null,null,null,null,null,{"$f":"REPT(_xlfn.UNICHAR(8203),_xlfn.XMATCH(Table59104[[#This Row],[Level ]],#REF!,0+2))&Table59104[[#This Row],[Level ]]","v":{"$error":"#REF!"}}]
[null,"Seek feedback from peers, mentors and clinical supervisors from multi-professional backgrounds to inform and critically evaluate learning needs, and negotiate a personal development plan that reflects breadth and depth of progression across the four pillars of practice.","Self development","Advanced","All professions",false,{"$f":"IF(Table59104[[#This Row],[Complete ]],\"Complete\",\"Pending\")","v":"Pending"},null,null,null,null,null,null,{"$f":"REPT(_xlfn.UNICHAR(8203),_xlfn.XMATCH(Table59104[[#This Row],[Level ]],#REF!,0+2))&Table59104[[#This Row],[Level ]]","v":{"$error":"#REF!"}}]
[null,"Facilitate and engage in formal and informal development activities, including peer review, addressing learning needs to maximise opportunities inside and outside the critical care environment to lead and develop care and services.","Self development","Advanced","All professions",false,{"$f":"IF(Table59104[[#This Row],[Complete ]],\"Complete\",\"Pending\")","v":"Pending"},null,null,null,null,null,null,{"$f":"REPT(_xlfn.UNICHAR(8203),_xlfn.XMATCH(Table59104[[#This Row],[Level ]],#REF!,0+2))&Table59104[[#This Row],[Level ]]","v":{"$error":"#REF!"}}]
[null,"Initiate learning opportunities to expand clinical, education, research, and leadership skills to inform and promote an advanced level of critical care practice.","Self development","Advanced","All professions",false,{"$f":"IF(Table59104[[#This Row],[Complete ]],\"Complete\",\"Pending\")","v":"Pending"},null,null,null,null,null,null,{"$f":"REPT(_xlfn.UNICHAR(8203),_xlfn.XMATCH(Table59104[[#This Row],[Level ]],#REF!,0+2))&Table59104[[#This Row],[Level ]]","v":{"$error":"#REF!"}}]
[null,"Collaborate with the multi-professional team, leading and supporting peer review and appraisal processes to identify and address development initiatives promoting critical care capacity and capability within the organisation.","Self development","Advanced","All professions",false,{"$f":"IF(Table59104[[#This Row],[Complete ]],\"Complete\",\"Pending\")","v":"Pending"},null,null,null,null,null,null,{"$f":"REPT(_xlfn.UNICHAR(8203),_xlfn.XMATCH(Table59104[[#This Row],[Level ]],#REF!,0+2))&Table59104[[#This Row],[Level ]]","v":{"$error":"#REF!"}}]
[null,"Facilitate post-graduate clinical supervision for own and other professional backgrounds within the critical care multi-professional team.","Self development","Advanced","All professions",false,{"$f":"IF(Table59104[[#This Row],[Complete ]],\"Complete\",\"Pending\")","v":"Pending"},null,null,null,null,null,null,{"$f":"REPT(_xlfn.UNICHAR(8203),_xlfn.XMATCH(Table59104[[#This Row],[Level ]],#REF!,0+2))&Table59104[[#This Row],[Level ]]","v":{"$error":"#REF!"}}]
[null,"Seek feedback on own practice and behaviours from peers, mentors, and clinical supervisors from a range of clinical backgrounds, informing personal learning needs and negotiating a personal development plan that reflects development potential across pillars of practice and overarching critical care strategy.","Self development","Consultant ","All professions",false,{"$f":"IF(Table59104[[#This Row],[Complete ]],\"Complete\",\"Pending\")","v":"Pending"},null,null,null,null,null,null,{"$f":"REPT(_xlfn.UNICHAR(8203),_xlfn.XMATCH(Table59104[[#This Row],[Level ]],#REF!,0+2))&Table59104[[#This Row],[Level ]]","v":{"$error":"#REF!"}}]
[null,"Formulate the development and maintenance of own skills and knowledge, seeking intraprofessional and interprofessional peer support and demonstrating commitment to life-long learning.","Self development","Consultant ","All professions",false,{"$f":"IF(Table59104[[#This Row],[Complete ]],\"Complete\",\"Pending\")","v":"Pending"},null,null,null,null,null,null,{"$f":"REPT(_xlfn.UNICHAR(8203),_xlfn.XMATCH(Table59104[[#This Row],[Level ]],#REF!,0+2))&Table59104[[#This Row],[Level ]]","v":{"$error":"#REF!"}}]
[null,"Develop a wide breadth of clinical and non-clinical knowledge, transferable from other clinical areas and professions, and lead and contribute to local, national and international education forums including conferences and seminars.","Self development","Consultant ","All professions",false,{"$f":"IF(Table59104[[#This Row],[Complete ]],\"Complete\",\"Pending\")","v":"Pending"},null,null,null,null,null,null,{"$f":"REPT(_xlfn.UNICHAR(8203),_xlfn.XMATCH(Table59104[[#This Row],[Level ]],#REF!,0+2))&Table59104[[#This Row],[Level ]]","v":{"$error":"#REF!"}}]
[null,"Investigate secondment opportunities in national and international environments, with specific focus on the specialism of critical care or transferable skills.","Self development","Consultant ","All professions",false,{"$f":"IF(Table59104[[#This Row],[Complete ]],\"Complete\",\"Pending\")","v":"Pending"},null,null,null,null,null,null,{"$f":"REPT(_xlfn.UNICHAR(8203),_xlfn.XMATCH(Table59104[[#This Row],[Level ]],#REF!,0+2))&Table59104[[#This Row],[Level ]]","v":{"$error":"#REF!"}}]
[null,"Negotiate post-graduate learning opportunities relevant to the scope of role within critical care speciality, acknowledging existing role nuance and purpose, which may include doctorate level qualification, including traditional, professional, portfolio and publication routes.","Self development","Consultant ","All professions",false,{"$f":"IF(Table59104[[#This Row],[Complete ]],\"Complete\",\"Pending\")","v":"Pending"},null,null,null,null,null,null,{"$f":"REPT(_xlfn.UNICHAR(8203),_xlfn.XMATCH(Table59104[[#This Row],[Level ]],#REF!,0+2))&Table59104[[#This Row],[Level ]]","v":{"$error":"#REF!"}}]
[null,"Lead peer learning and ongoing learning reviews, including developing systems for evaluating effects on patients, families and carers, workforce , and wider critical care services.","Self development","Consultant ","All professions",false,{"$f":"IF(Table59104[[#This Row],[Complete ]],\"Complete\",\"Pending\")","v":"Pending"},null,null,null,null,null,null,{"$f":"REPT(_xlfn.UNICHAR(8203),_xlfn.XMATCH(Table59104[[#This Row],[Level ]],#REF!,0+2))&Table59104[[#This Row],[Level ]]","v":{"$error":"#REF!"}}]
[null,"Support pre-registration student learning by providing observational opportunities and demonstrating skills.","Facilitating Learning","Supportive","All professions",false,{"$f":"IF(Table59104[[#This Row],[Complete ]],\"Complete\",\"Pending\")","v":"Pending"},null,null,null,null,null,null,{"$f":"REPT(_xlfn.UNICHAR(8203),_xlfn.XMATCH(Table59104[[#This Row],[Level ]],#REF!,0+2))&Table59104[[#This Row],[Level ]]","v":{"$error":"#REF!"}}]
[null,"Support training of new support workers, pre-registration students and apprentices in relation to your own role or activities.","Facilitating Learning","Supportive","All professions",false,{"$f":"IF(Table59104[[#This Row],[Complete ]],\"Complete\",\"Pending\")","v":"Pending"},null,null,null,null,null,null,{"$f":"REPT(_xlfn.UNICHAR(8203),_xlfn.XMATCH(Table59104[[#This Row],[Level ]],#REF!,0+2))&Table59104[[#This Row],[Level ]]","v":{"$error":"#REF!"}}]
[null,"Identify strengths and weaknesses of educational sessions and use this to improve further sessions.","Facilitating Learning","Supportive","All professions",false,{"$f":"IF(Table59104[[#This Row],[Complete ]],\"Complete\",\"Pending\")","v":"Pending"},null,null,null,null,null,null,{"$f":"REPT(_xlfn.UNICHAR(8203),_xlfn.XMATCH(Table59104[[#This Row],[Level ]],#REF!,0+2))&Table59104[[#This Row],[Level ]]","v":{"$error":"#REF!"}}]
[null,"Contribute to a pre-registration students placement experience by sharing their caseload and by providing feedback to their supervisor.","Facilitating Learning","Assistive","All professions",false,{"$f":"IF(Table59104[[#This Row],[Complete ]],\"Complete\",\"Pending\")","v":"Pending"},null,null,null,null,null,null,{"$f":"REPT(_xlfn.UNICHAR(8203),_xlfn.XMATCH(Table59104[[#This Row],[Level ]],#REF!,0+2))&Table59104[[#This Row],[Level ]]","v":{"$error":"#REF!"}}]
[null,"Contribute to delivery of educational activities to peers, pre-qualification students, un-registered staff, patients, families and carers.","Facilitating Learning","Assistive","All professions",false,{"$f":"IF(Table59104[[#This Row],[Complete ]],\"Complete\",\"Pending\")","v":"Pending"},null,null,null,null,null,null,{"$f":"REPT(_xlfn.UNICHAR(8203),_xlfn.XMATCH(Table59104[[#This Row],[Level ]],#REF!,0+2))&Table59104[[#This Row],[Level ]]","v":{"$error":"#REF!"}}]
[null,"Supervise pre-registration students using a variety of supervision models, following completion of practice educator training, reflecting on own abilities as a supervisor, seeking support as required.","Facilitating Learning","Foundation","All professions",false,{"$f":"IF(Table59104[[#This Row],[Complete ]],\"Complete\",\"Pending\")","v":"Pending"},null,null,null,null,null,null,{"$f":"REPT(_xlfn.UNICHAR(8203),_xlfn.XMATCH(Table59104[[#This Row],[Level ]],#REF!,0+2))&Table59104[[#This Row],[Level ]]","v":{"$error":"#REF!"}}]
[null,"Discuss individual learning preferences, providing clear, constructive and structured feedback.","Facilitating Learning","Foundation","All professions",false,{"$f":"IF(Table59104[[#This Row],[Complete ]],\"Complete\",\"Pending\")","v":"Pending"},null,null,null,null,null,null,{"$f":"REPT(_xlfn.UNICHAR(8203),_xlfn.XMATCH(Table59104[[#This Row],[Level ]],#REF!,0+2))&Table59104[[#This Row],[Level ]]","v":{"$error":"#REF!"}}]
[null,"Liaise with clinical supervisor to suggest educational topics relevant to role, identify opportunities to deliver education, and seek feedback on own teaching.","Facilitating Learning","Foundation","All professions",false,{"$f":"IF(Table59104[[#This Row],[Complete ]],\"Complete\",\"Pending\")","v":"Pending"},null,null,null,null,null,null,{"$f":"REPT(_xlfn.UNICHAR(8203),_xlfn.XMATCH(Table59104[[#This Row],[Level ]],#REF!,0+2))&Table59104[[#This Row],[Level ]]","v":{"$error":"#REF!"}}]
[null,"Contribute to creating an inclusive learning environment that promotes learner and educator wellbeing.","Facilitating Learning","Foundation","All professions",false,{"$f":"IF(Table59104[[#This Row],[Complete ]],\"Complete\",\"Pending\")","v":"Pending"},null,null,null,null,null,null,{"$f":"REPT(_xlfn.UNICHAR(8203),_xlfn.XMATCH(Table59104[[#This Row],[Level ]],#REF!,0+2))&Table59104[[#This Row],[Level ]]","v":{"$error":"#REF!"}}]
[null,"Facilitate clinical supervision using a variety of supervision models, for other professional backgrounds within the multi-professional team","Facilitating Learning","Enhanced","All professions",false,{"$f":"IF(Table59104[[#This Row],[Complete ]],\"Complete\",\"Pending\")","v":"Pending"},null,null,null,null,null,null,{"$f":"REPT(_xlfn.UNICHAR(8203),_xlfn.XMATCH(Table59104[[#This Row],[Level ]],#REF!,0+2))&Table59104[[#This Row],[Level ]]","v":{"$error":"#REF!"}}]
[null,"Support team to develop their clinical decision-making across the critical care pathway, including managing and prioritising a caseload of critically ill patients.","Facilitating Learning","Enhanced","All professions",false,{"$f":"IF(Table59104[[#This Row],[Complete ]],\"Complete\",\"Pending\")","v":"Pending"},null,null,null,null,null,null,{"$f":"REPT(_xlfn.UNICHAR(8203),_xlfn.XMATCH(Table59104[[#This Row],[Level ]],#REF!,0+2))&Table59104[[#This Row],[Level ]]","v":{"$error":"#REF!"}}]
[null,"Apply knowledge of theoretical teaching models to provide diverse educational opportunities appropriate for different learning preferences and levels of practice.","Facilitating Learning","Enhanced","All professions",false,{"$f":"IF(Table59104[[#This Row],[Complete ]],\"Complete\",\"Pending\")","v":"Pending"},null,null,null,null,null,null,{"$f":"REPT(_xlfn.UNICHAR(8203),_xlfn.XMATCH(Table59104[[#This Row],[Level ]],#REF!,0+2))&Table59104[[#This Row],[Level ]]","v":{"$error":"#REF!"}}]
[null,"Develop clear learning outcomes for educational activities that align with individual, multi-professional team and critical care objectives.","Facilitating Learning","Enhanced","All professions",false,{"$f":"IF(Table59104[[#This Row],[Complete ]],\"Complete\",\"Pending\")","v":"Pending"},null,null,null,null,null,null,{"$f":"REPT(_xlfn.UNICHAR(8203),_xlfn.XMATCH(Table59104[[#This Row],[Level ]],#REF!,0+2))&Table59104[[#This Row],[Level ]]","v":{"$error":"#REF!"}}]
[null,"Advocate for interprofessional education, working collaboratively with the critical care team to co-design and co-deliver education","Facilitating Learning","Enhanced","All professions",false,{"$f":"IF(Table59104[[#This Row],[Complete ]],\"Complete\",\"Pending\")","v":"Pending"},null,null,null,null,null,null,{"$f":"REPT(_xlfn.UNICHAR(8203),_xlfn.XMATCH(Table59104[[#This Row],[Level ]],#REF!,0+2))&Table59104[[#This Row],[Level ]]","v":{"$error":"#REF!"}}]
[null,"Evaluate the effectiveness of the educational content, making improvements in response to feedback and changes to resources, including policies and guidelines.","Facilitating Learning","Enhanced","All professions",false,{"$f":"IF(Table59104[[#This Row],[Complete ]],\"Complete\",\"Pending\")","v":"Pending"},null,null,null,null,null,null,{"$f":"REPT(_xlfn.UNICHAR(8203),_xlfn.XMATCH(Table59104[[#This Row],[Level ]],#REF!,0+2))&Table59104[[#This Row],[Level ]]","v":{"$error":"#REF!"}}]
[null,"Facilitate appraisal of the multi-professional team to identify critical care learning and development needs.","Facilitating Learning","Advanced","All professions",false,{"$f":"IF(Table59104[[#This Row],[Complete ]],\"Complete\",\"Pending\")","v":"Pending"},null,null,null,null,null,null,{"$f":"REPT(_xlfn.UNICHAR(8203),_xlfn.XMATCH(Table59104[[#This Row],[Level ]],#REF!,0+2))&Table59104[[#This Row],[Level ]]","v":{"$error":"#REF!"}}]
[null,"Develop and deliver education tailored to post-graduate critical care learners inside and outside the organisation, evaluating the effectiveness of learning interventions.","Facilitating Learning","Advanced","All professions",false,{"$f":"IF(Table59104[[#This Row],[Complete ]],\"Complete\",\"Pending\")","v":"Pending"},null,null,null,null,null,null,{"$f":"REPT(_xlfn.UNICHAR(8203),_xlfn.XMATCH(Table59104[[#This Row],[Level ]],#REF!,0+2))&Table59104[[#This Row],[Level ]]","v":{"$error":"#REF!"}}]
[null,"Design, deliver, disseminate and evaluate innovative high quality, evidenced informed post-graduate critical care teaching strategies across professional boundaries, inside and outside the organisation.","Facilitating Learning","Advanced","All professions",false,{"$f":"IF(Table59104[[#This Row],[Complete ]],\"Complete\",\"Pending\")","v":"Pending"},null,null,null,null,null,null,{"$f":"REPT(_xlfn.UNICHAR(8203),_xlfn.XMATCH(Table59104[[#This Row],[Level ]],#REF!,0+2))&Table59104[[#This Row],[Level ]]","v":{"$error":"#REF!"}}]
[null,"Implement effective facilitation skills and varied learning strategies within different situations, developing person-centred, safe, effective workplace learning, from bedside critical care practice to system-wide levels.","Facilitating Learning","Consultant ","All professions",false,{"$f":"IF(Table59104[[#This Row],[Complete ]],\"Complete\",\"Pending\")","v":"Pending"},null,null,null,null,null,null,{"$f":"REPT(_xlfn.UNICHAR(8203),_xlfn.XMATCH(Table59104[[#This Row],[Level ]],#REF!,0+2))&Table59104[[#This Row],[Level ]]","v":{"$error":"#REF!"}}]
[null,"Facilitate effective learning and ways of working, including use of innovative educational approaches and technologies, ensuring use of evidence-informed learning within the specialism of critical care and beyond.","Facilitating Learning","Consultant ","All professions",false,{"$f":"IF(Table59104[[#This Row],[Complete ]],\"Complete\",\"Pending\")","v":"Pending"},null,null,null,null,null,null,{"$f":"REPT(_xlfn.UNICHAR(8203),_xlfn.XMATCH(Table59104[[#This Row],[Level ]],#REF!,0+2))&Table59104[[#This Row],[Level ]]","v":{"$error":"#REF!"}}]
[null,"Formulate measurable outcomes on organisational learning as a skilled facilitator, which may include supervision and assessment of professionals undertaking level 7 and level 8 qualifications both within and across professional boundaries.","Facilitating Learning","Consultant ","All professions",false,{"$f":"IF(Table59104[[#This Row],[Complete ]],\"Complete\",\"Pending\")","v":"Pending"},null,null,null,null,null,null,{"$f":"REPT(_xlfn.UNICHAR(8203),_xlfn.XMATCH(Table59104[[#This Row],[Level ]],#REF!,0+2))&Table59104[[#This Row],[Level ]]","v":{"$error":"#REF!"}}]
[null,"Design, deliver, disseminate and evaluate innovative and evidenced-informed post-graduate critical care teaching strategies across professional boundaries, inside and outside the organisation","Facilitating Learning","Consultant ","All professions",false,{"$f":"IF(Table59104[[#This Row],[Complete ]],\"Complete\",\"Pending\")","v":"Pending"},null,null,null,null,null,null,{"$f":"REPT(_xlfn.UNICHAR(8203),_xlfn.XMATCH(Table59104[[#This Row],[Level ]],#REF!,0+2))&Table59104[[#This Row],[Level ]]","v":{"$error":"#REF!"}}]
[null,"Assist in finding external learning resources to ensure they are fit for purpose and feed back to colleagues.","Learning resources","Supportive","All professions",false,{"$f":"IF(Table59104[[#This Row],[Complete ]],\"Complete\",\"Pending\")","v":"Pending"},null,null,null,null,null,null,{"$f":"REPT(_xlfn.UNICHAR(8203),_xlfn.XMATCH(Table59104[[#This Row],[Level ]],#REF!,0+2))&Table59104[[#This Row],[Level ]]","v":{"$error":"#REF!"}}]
[null,"Apply for funding to support personal learning and development in critical care.","Learning resources","Supportive","All professions",false,{"$f":"IF(Table59104[[#This Row],[Complete ]],\"Complete\",\"Pending\")","v":"Pending"},null,null,null,null,null,null,{"$f":"REPT(_xlfn.UNICHAR(8203),_xlfn.XMATCH(Table59104[[#This Row],[Level ]],#REF!,0+2))&Table59104[[#This Row],[Level ]]","v":{"$error":"#REF!"}}]
[null,"Assist with a range of teaching and learning activities.","Learning resources","Supportive","All professions",false,{"$f":"IF(Table59104[[#This Row],[Complete ]],\"Complete\",\"Pending\")","v":"Pending"},null,null,null,null,null,null,{"$f":"REPT(_xlfn.UNICHAR(8203),_xlfn.XMATCH(Table59104[[#This Row],[Level ]],#REF!,0+2))&Table59104[[#This Row],[Level ]]","v":{"$error":"#REF!"}}]
[null,"Assist in the evaluation of learning resources for the team.","Learning resources","Assistive","All professions",false,{"$f":"IF(Table59104[[#This Row],[Complete ]],\"Complete\",\"Pending\")","v":"Pending"},null,null,null,null,null,null,{"$f":"REPT(_xlfn.UNICHAR(8203),_xlfn.XMATCH(Table59104[[#This Row],[Level ]],#REF!,0+2))&Table59104[[#This Row],[Level ]]","v":{"$error":"#REF!"}}]
[null,"Assist with the delivery of simulation-based education, including preparation of equipment.","Learning resources","Assistive","All professions",false,{"$f":"IF(Table59104[[#This Row],[Complete ]],\"Complete\",\"Pending\")","v":"Pending"},null,null,null,null,null,null,{"$f":"REPT(_xlfn.UNICHAR(8203),_xlfn.XMATCH(Table59104[[#This Row],[Level ]],#REF!,0+2))&Table59104[[#This Row],[Level ]]","v":{"$error":"#REF!"}}]
[null,"Apply various teaching methods in the clinical area to meet defined learning outcomes","Learning resources","Assistive","All professions",false,{"$f":"IF(Table59104[[#This Row],[Complete ]],\"Complete\",\"Pending\")","v":"Pending"},null,null,null,null,null,null,{"$f":"REPT(_xlfn.UNICHAR(8203),_xlfn.XMATCH(Table59104[[#This Row],[Level ]],#REF!,0+2))&Table59104[[#This Row],[Level ]]","v":{"$error":"#REF!"}}]
[null,"Liaise with individuals in the practice education team, who will be able to support onward learning and development.","Learning resources","Foundation","All professions",false,{"$f":"IF(Table59104[[#This Row],[Complete ]],\"Complete\",\"Pending\")","v":"Pending"},null,null,null,null,null,null,{"$f":"REPT(_xlfn.UNICHAR(8203),_xlfn.XMATCH(Table59104[[#This Row],[Level ]],#REF!,0+2))&Table59104[[#This Row],[Level ]]","v":{"$error":"#REF!"}}]
[null,"Review existing educational resources and discuss appropriateness to implement into local practice with the team.","Learning resources","Foundation","All professions",false,{"$f":"IF(Table59104[[#This Row],[Complete ]],\"Complete\",\"Pending\")","v":"Pending"},null,null,null,null,null,null,{"$f":"REPT(_xlfn.UNICHAR(8203),_xlfn.XMATCH(Table59104[[#This Row],[Level ]],#REF!,0+2))&Table59104[[#This Row],[Level ]]","v":{"$error":"#REF!"}}]
[null,"Contribute to the development of accessible resources and teaching materials for learning and development of self and others.","Learning resources","Foundation","All professions",false,{"$f":"IF(Table59104[[#This Row],[Complete ]],\"Complete\",\"Pending\")","v":"Pending"},null,null,null,null,null,null,{"$f":"REPT(_xlfn.UNICHAR(8203),_xlfn.XMATCH(Table59104[[#This Row],[Level ]],#REF!,0+2))&Table59104[[#This Row],[Level ]]","v":{"$error":"#REF!"}}]
[null,"Contribute to the evaluation of learning resources, considering accessibility and potential for improvement.","Learning resources","Foundation","All professions",false,{"$f":"IF(Table59104[[#This Row],[Complete ]],\"Complete\",\"Pending\")","v":"Pending"},null,null,null,null,null,null,{"$f":"REPT(_xlfn.UNICHAR(8203),_xlfn.XMATCH(Table59104[[#This Row],[Level ]],#REF!,0+2))&Table59104[[#This Row],[Level ]]","v":{"$error":"#REF!"}}]
[null,"Contribute to the delivery of simulation-based education for own profession, discussing ways to improve the training.","Learning resources","Foundation","All professions",false,{"$f":"IF(Table59104[[#This Row],[Complete ]],\"Complete\",\"Pending\")","v":"Pending"},null,null,null,null,null,null,{"$f":"REPT(_xlfn.UNICHAR(8203),_xlfn.XMATCH(Table59104[[#This Row],[Level ]],#REF!,0+2))&Table59104[[#This Row],[Level ]]","v":{"$error":"#REF!"}}]
[null,"Contribute to the implementation of evidence-based developments into educational practice","Learning resources","Foundation","All professions",false,{"$f":"IF(Table59104[[#This Row],[Complete ]],\"Complete\",\"Pending\")","v":"Pending"},null,null,null,null,null,null,{"$f":"REPT(_xlfn.UNICHAR(8203),_xlfn.XMATCH(Table59104[[#This Row],[Level ]],#REF!,0+2))&Table59104[[#This Row],[Level ]]","v":{"$error":"#REF!"}}]
[null,"Contribute to the review of educational innovations and recommend their implementation into practice.","Learning resources","Foundation","All professions",false,{"$f":"IF(Table59104[[#This Row],[Complete ]],\"Complete\",\"Pending\")","v":"Pending"},null,null,null,null,null,null,{"$f":"REPT(_xlfn.UNICHAR(8203),_xlfn.XMATCH(Table59104[[#This Row],[Level ]],#REF!,0+2))&Table59104[[#This Row],[Level ]]","v":{"$error":"#REF!"}}]
[null,"Evaluate current educational resources, critiquing relevance, quality and effectiveness for use in own practice.","Learning resources","Enhanced","All professions",false,{"$f":"IF(Table59104[[#This Row],[Complete ]],\"Complete\",\"Pending\")","v":"Pending"},null,null,null,null,null,null,{"$f":"REPT(_xlfn.UNICHAR(8203),_xlfn.XMATCH(Table59104[[#This Row],[Level ]],#REF!,0+2))&Table59104[[#This Row],[Level ]]","v":{"$error":"#REF!"}}]
[null,"Advocate for educational opportunities for AHPs locally and regionally.","Learning resources","Enhanced","All professions",false,{"$f":"IF(Table59104[[#This Row],[Complete ]],\"Complete\",\"Pending\")","v":"Pending"},null,null,null,null,null,null,{"$f":"REPT(_xlfn.UNICHAR(8203),_xlfn.XMATCH(Table59104[[#This Row],[Level ]],#REF!,0+2))&Table59104[[#This Row],[Level ]]","v":{"$error":"#REF!"}}]
[null,"Develop evidence-informed educational resources in various accessible formats to support education of pre-registration students and the multi-professional team.","Learning resources","Enhanced","All professions",false,{"$f":"IF(Table59104[[#This Row],[Complete ]],\"Complete\",\"Pending\")","v":"Pending"},null,null,null,null,null,null,{"$f":"REPT(_xlfn.UNICHAR(8203),_xlfn.XMATCH(Table59104[[#This Row],[Level ]],#REF!,0+2))&Table59104[[#This Row],[Level ]]","v":{"$error":"#REF!"}}]
[null,"Evaluate the effectiveness, safety and sustainability of new educational resources.","Learning resources","Enhanced","All professions",false,{"$f":"IF(Table59104[[#This Row],[Complete ]],\"Complete\",\"Pending\")","v":"Pending"},null,null,null,null,null,null,{"$f":"REPT(_xlfn.UNICHAR(8203),_xlfn.XMATCH(Table59104[[#This Row],[Level ]],#REF!,0+2))&Table59104[[#This Row],[Level ]]","v":{"$error":"#REF!"}}]
[null,"Develop a team approach to appraisal and evaluation of learning resources.","Learning resources","Enhanced","All professions",false,{"$f":"IF(Table59104[[#This Row],[Complete ]],\"Complete\",\"Pending\")","v":"Pending"},null,null,null,null,null,null,{"$f":"REPT(_xlfn.UNICHAR(8203),_xlfn.XMATCH(Table59104[[#This Row],[Level ]],#REF!,0+2))&Table59104[[#This Row],[Level ]]","v":{"$error":"#REF!"}}]
[null,"Support the delivery of multi-professional simulation-based education and evaluate ways to improve content and delivery.","Learning resources","Enhanced","All professions",false,{"$f":"IF(Table59104[[#This Row],[Complete ]],\"Complete\",\"Pending\")","v":"Pending"},null,null,null,null,null,null,{"$f":"REPT(_xlfn.UNICHAR(8203),_xlfn.XMATCH(Table59104[[#This Row],[Level ]],#REF!,0+2))&Table59104[[#This Row],[Level ]]","v":{"$error":"#REF!"}}]
[null,"Advocate for funding applications for learning and development for AHPs in critical care.","Learning resources","Enhanced","All professions",false,{"$f":"IF(Table59104[[#This Row],[Complete ]],\"Complete\",\"Pending\")","v":"Pending"},null,null,null,null,null,null,{"$f":"REPT(_xlfn.UNICHAR(8203),_xlfn.XMATCH(Table59104[[#This Row],[Level ]],#REF!,0+2))&Table59104[[#This Row],[Level ]]","v":{"$error":"#REF!"}}]
[null,"Develop, implement and evaluate a wide range of theoretical teaching and training models according to target audience, desired learning outcomes and resources.","Learning resources","Advanced","All professions",false,{"$f":"IF(Table59104[[#This Row],[Complete ]],\"Complete\",\"Pending\")","v":"Pending"},null,null,null,null,null,null,{"$f":"REPT(_xlfn.UNICHAR(8203),_xlfn.XMATCH(Table59104[[#This Row],[Level ]],#REF!,0+2))&Table59104[[#This Row],[Level ]]","v":{"$error":"#REF!"}}]
[null,"Contribute to creation of post-graduate critical care learning modules utilising a wide range of dissemination strategies, including providing support and education across professional or organisational boundaries.","Learning resources","Advanced","All professions",false,{"$f":"IF(Table59104[[#This Row],[Complete ]],\"Complete\",\"Pending\")","v":"Pending"},null,null,null,null,null,null,{"$f":"REPT(_xlfn.UNICHAR(8203),_xlfn.XMATCH(Table59104[[#This Row],[Level ]],#REF!,0+2))&Table59104[[#This Row],[Level ]]","v":{"$error":"#REF!"}}]
[null,"Contribute to organisational learning culture, inspiring the workforce through leadership of multi-professional learning initiatives and post-graduate education, implementing active learning opportunities.","Learning resources","Advanced","All professions",false,{"$f":"IF(Table59104[[#This Row],[Complete ]],\"Complete\",\"Pending\")","v":"Pending"},null,null,null,null,null,null,{"$f":"REPT(_xlfn.UNICHAR(8203),_xlfn.XMATCH(Table59104[[#This Row],[Level ]],#REF!,0+2))&Table59104[[#This Row],[Level ]]","v":{"$error":"#REF!"}}]
[null,"Create and promote innovative and multimodal educational resources that meet the needs of the multi-professional team","Learning resources","Consultant ","All professions",false,{"$f":"IF(Table59104[[#This Row],[Complete ]],\"Complete\",\"Pending\")","v":"Pending"},null,null,null,null,null,null,{"$f":"REPT(_xlfn.UNICHAR(8203),_xlfn.XMATCH(Table59104[[#This Row],[Level ]],#REF!,0+2))&Table59104[[#This Row],[Level ]]","v":{"$error":"#REF!"}}]
[null,"Collaborate with higher education institutions and professional bodies, influencing professional curriculums at pre and post-registration level, reflecting excellence, service needs, co-production, evidence-informed practice, and ways of working that inspire students and academic staff to contribute to future health and care, regionally and nationally.","Learning resources","Consultant ","All professions",false,{"$f":"IF(Table59104[[#This Row],[Complete ]],\"Complete\",\"Pending\")","v":"Pending"},null,null,null,null,null,null,{"$f":"REPT(_xlfn.UNICHAR(8203),_xlfn.XMATCH(Table59104[[#This Row],[Level ]],#REF!,0+2))&Table59104[[#This Row],[Level ]]","v":{"$error":"#REF!"}}]
[null,"Contribute towards a positive culture in which everyone is encouraged to constantly learn from and with each other, including from mistakes and receiving and giving feedback.","Learning culture ","Supportive","All professions",false,{"$f":"IF(Table59104[[#This Row],[Complete ]],\"Complete\",\"Pending\")","v":"Pending"},null,null,null,null,null,null,{"$f":"REPT(_xlfn.UNICHAR(8203),_xlfn.XMATCH(Table59104[[#This Row],[Level ]],#REF!,0+2))&Table59104[[#This Row],[Level ]]","v":{"$error":"#REF!"}}]
[null,"Support with providing equitable learning for individuals with disabilities, learning differences and preferences","Learning culture ","Supportive","All professions",false,{"$f":"IF(Table59104[[#This Row],[Complete ]],\"Complete\",\"Pending\")","v":"Pending"},null,null,null,null,null,null,{"$f":"REPT(_xlfn.UNICHAR(8203),_xlfn.XMATCH(Table59104[[#This Row],[Level ]],#REF!,0+2))&Table59104[[#This Row],[Level ]]","v":{"$error":"#REF!"}}]
[null,"Assist in creating an inclusive learning environment which values diversity by listening, advocating and providing adjustments for individuals with disabilities, learning differences and preferences.","Learning culture ","Assistive","All professions",false,{"$f":"IF(Table59104[[#This Row],[Complete ]],\"Complete\",\"Pending\")","v":"Pending"},null,null,null,null,null,null,{"$f":"REPT(_xlfn.UNICHAR(8203),_xlfn.XMATCH(Table59104[[#This Row],[Level ]],#REF!,0+2))&Table59104[[#This Row],[Level ]]","v":{"$error":"#REF!"}}]
[null,"Promote the role of AHPs in critical care, explaining the core principles of own profession.","Learning culture ","Foundation","All professions",false,{"$f":"IF(Table59104[[#This Row],[Complete ]],\"Complete\",\"Pending\")","v":"Pending"},null,null,null,null,null,null,{"$f":"REPT(_xlfn.UNICHAR(8203),_xlfn.XMATCH(Table59104[[#This Row],[Level ]],#REF!,0+2))&Table59104[[#This Row],[Level ]]","v":{"$error":"#REF!"}}]
[null,"Support the development of pre-registration healthcare professionals in the critical care environment.","Learning culture ","Foundation","All professions",false,{"$f":"IF(Table59104[[#This Row],[Complete ]],\"Complete\",\"Pending\")","v":"Pending"},null,null,null,null,null,null,{"$f":"REPT(_xlfn.UNICHAR(8203),_xlfn.XMATCH(Table59104[[#This Row],[Level ]],#REF!,0+2))&Table59104[[#This Row],[Level ]]","v":{"$error":"#REF!"}}]
[null,"Advocate for an inclusive learning environment that values and supports diverse preferences of the workforce and pre-registration students.","Learning culture ","Foundation","All professions",false,{"$f":"IF(Table59104[[#This Row],[Complete ]],\"Complete\",\"Pending\")","v":"Pending"},null,null,null,null,null,null,{"$f":"REPT(_xlfn.UNICHAR(8203),_xlfn.XMATCH(Table59104[[#This Row],[Level ]],#REF!,0+2))&Table59104[[#This Row],[Level ]]","v":{"$error":"#REF!"}}]
[null,"Advocate for educational opportunities for own profession and AHPs locally and regionally, facilitating a positive learning environment.","Learning culture ","Enhanced","All professions",false,{"$f":"IF(Table59104[[#This Row],[Complete ]],\"Complete\",\"Pending\")","v":"Pending"},null,null,null,null,null,null,{"$f":"REPT(_xlfn.UNICHAR(8203),_xlfn.XMATCH(Table59104[[#This Row],[Level ]],#REF!,0+2))&Table59104[[#This Row],[Level ]]","v":{"$error":"#REF!"}}]
[null,"Advocate and promote a culture of life-long learning and non-judgmental reflective practice within and between professions in critical care","Learning culture ","Enhanced","All professions",false,{"$f":"IF(Table59104[[#This Row],[Complete ]],\"Complete\",\"Pending\")","v":"Pending"},null,null,null,null,null,null,{"$f":"REPT(_xlfn.UNICHAR(8203),_xlfn.XMATCH(Table59104[[#This Row],[Level ]],#REF!,0+2))&Table59104[[#This Row],[Level ]]","v":{"$error":"#REF!"}}]
[null,"Contribute to the development of pre-registration and postgraduate critical care curricula with relevant stakeholders.","Learning culture ","Enhanced","All professions",false,{"$f":"IF(Table59104[[#This Row],[Complete ]],\"Complete\",\"Pending\")","v":"Pending"},null,null,null,null,null,null,{"$f":"REPT(_xlfn.UNICHAR(8203),_xlfn.XMATCH(Table59104[[#This Row],[Level ]],#REF!,0+2))&Table59104[[#This Row],[Level ]]","v":{"$error":"#REF!"}}]
[null,"Advocate for innovative strategies to enhance and broaden AHPs at pre and post registration clinical placements in the critical care environment.","Learning culture ","Enhanced","All professions",false,{"$f":"IF(Table59104[[#This Row],[Complete ]],\"Complete\",\"Pending\")","v":"Pending"},null,null,null,null,null,null,{"$f":"REPT(_xlfn.UNICHAR(8203),_xlfn.XMATCH(Table59104[[#This Row],[Level ]],#REF!,0+2))&Table59104[[#This Row],[Level ]]","v":{"$error":"#REF!"}}]
[null,"Promote an inclusive learning environment by facilitating development that values and supports diverse workforce and students, across professions.","Learning culture ","Enhanced","All professions",false,{"$f":"IF(Table59104[[#This Row],[Complete ]],\"Complete\",\"Pending\")","v":"Pending"},null,null,null,null,null,null,{"$f":"REPT(_xlfn.UNICHAR(8203),_xlfn.XMATCH(Table59104[[#This Row],[Level ]],#REF!,0+2))&Table59104[[#This Row],[Level ]]","v":{"$error":"#REF!"}}]
[null,"Lead a team approach to create an inclusive learning environment, advocating for learners with additional needs.","Learning culture ","Enhanced","All professions",false,{"$f":"IF(Table59104[[#This Row],[Complete ]],\"Complete\",\"Pending\")","v":"Pending"},null,null,null,null,null,null,{"$f":"REPT(_xlfn.UNICHAR(8203),_xlfn.XMATCH(Table59104[[#This Row],[Level ]],#REF!,0+2))&Table59104[[#This Row],[Level ]]","v":{"$error":"#REF!"}}]
[null,"Role model and champion the principles of lifelong learning and continuous professional development","Learning culture ","Advanced","All professions",false,{"$f":"IF(Table59104[[#This Row],[Complete ]],\"Complete\",\"Pending\")","v":"Pending"},null,null,null,null,null,null,{"$f":"REPT(_xlfn.UNICHAR(8203),_xlfn.XMATCH(Table59104[[#This Row],[Level ]],#REF!,0+2))&Table59104[[#This Row],[Level ]]","v":{"$error":"#REF!"}}]
[null,"Create opportunities to actively share best practice, knowledge skills and learning outcomes with a wide variety of organisations, local and regional networks, and higher educational institutions","Learning culture ","Advanced","All professions",false,{"$f":"IF(Table59104[[#This Row],[Complete ]],\"Complete\",\"Pending\")","v":"Pending"},null,null,null,null,null,null,{"$f":"REPT(_xlfn.UNICHAR(8203),_xlfn.XMATCH(Table59104[[#This Row],[Level ]],#REF!,0+2))&Table59104[[#This Row],[Level ]]","v":{"$error":"#REF!"}}]
[null,"Utilise the critical care multi-professional team and patient experience for educational opportunity, incorporating experiences and perspectives of all equally.","Learning culture ","Advanced","All professions",false,{"$f":"IF(Table59104[[#This Row],[Complete ]],\"Complete\",\"Pending\")","v":"Pending"},null,null,null,null,null,null,{"$f":"REPT(_xlfn.UNICHAR(8203),_xlfn.XMATCH(Table59104[[#This Row],[Level ]],#REF!,0+2))&Table59104[[#This Row],[Level ]]","v":{"$error":"#REF!"}}]
[null,"Establish the workplace as a key resource for active learning and improvement, giving and receiving feedback and reviewing quality and safety data, including outcomes and experience.","Learning culture ","Consultant ","All professions",false,{"$f":"IF(Table59104[[#This Row],[Complete ]],\"Complete\",\"Pending\")","v":"Pending"},null,null,null,null,null,null,{"$f":"REPT(_xlfn.UNICHAR(8203),_xlfn.XMATCH(Table59104[[#This Row],[Level ]],#REF!,0+2))&Table59104[[#This Row],[Level ]]","v":{"$error":"#REF!"}}]
[null,"Create systems and structures focused on developing workforce to fulfil their potential, progress in their careers, and meet future needs of the system.","Learning culture ","Consultant ","All professions",false,{"$f":"IF(Table59104[[#This Row],[Complete ]],\"Complete\",\"Pending\")","v":"Pending"},null,null,null,null,null,null,{"$f":"REPT(_xlfn.UNICHAR(8203),_xlfn.XMATCH(Table59104[[#This Row],[Level ]],#REF!,0+2))&Table59104[[#This Row],[Level ]]","v":{"$error":"#REF!"}}]
[null,"Formulate development of a learning culture across services and the system, significantly influencing the multi-professional team working across the critical care pathway.","Learning culture ","Consultant ","All professions",false,{"$f":"IF(Table59104[[#This Row],[Complete ]],\"Complete\",\"Pending\")","v":"Pending"},null,null,null,null,null,null,{"$f":"REPT(_xlfn.UNICHAR(8203),_xlfn.XMATCH(Table59104[[#This Row],[Level ]],#REF!,0+2))&Table59104[[#This Row],[Level ]]","v":{"$error":"#REF!"}}]
[null,"Role model exemplar organisational learning culture, inspiring the workforce through leadership of multi-professional learning initiatives, post-graduate education and implementing frequent learning opportunities within the workplace","Learning culture ","Consultant ","All professions",false,{"$f":"IF(Table59104[[#This Row],[Complete ]],\"Complete\",\"Pending\")","v":"Pending"},null,null,null,null,null,null,{"$f":"REPT(_xlfn.UNICHAR(8203),_xlfn.XMATCH(Table59104[[#This Row],[Level ]],#REF!,0+2))&Table59104[[#This Row],[Level ]]","v":{"$error":"#REF!"}}]
[null,"Role model lifelong learning and continuous professional development in increasingly complex environments, consistently reflecting on own practice and identifying areas for further development across all pillars of practice.","Learning culture ","Consultant ","All professions",false,{"$f":"IF(Table59104[[#This Row],[Complete ]],\"Complete\",\"Pending\")","v":"Pending"},null,null,null,null,null,null,{"$f":"REPT(_xlfn.UNICHAR(8203),_xlfn.XMATCH(Table59104[[#This Row],[Level ]],#REF!,0+2))&Table59104[[#This Row],[Level ]]","v":{"$error":"#REF!"}}]

{"sheet":"Leadership ","index":8,"n_rows":126,"n_cols":13,"rows_kept":126,"cut":false,"hidden":false,"merged":[[0,0,2,9],[0,10,2,21]]}
["Leadership "]
[]
[]
[]
[]
[null,"Capability statement ","Area ","Level ","Profession ","Complete ","Progress","Signed ","Dated","Evidence ","Evidence 2","Evidence 3","Evidence 4"]
[null,"Contribute to appropriate local initiatives through collaboration and sharing information and ideas.","Collaborative working","Supportive","All Professions",true,{"$f":"IF(Table5910457[[#This Row],[Complete ]],\"Complete\",\"Pending\")","v":"Complete"},null,"2025-10-07"]
[null,"Support team collaboration by demonstrating the principles of team working and culture.","Collaborative working","Supportive","All Professions",false,{"$f":"IF(Table5910457[[#This Row],[Complete ]],\"Complete\",\"Pending\")","v":"Pending"}]
[null,"Support the effective performance of teams by identifying enablers of and barriers to collaborative working, and use this information to identify solutions.","Collaborative working","Assistive","All Professions",false,{"$f":"IF(Table5910457[[#This Row],[Complete ]],\"Complete\",\"Pending\")","v":"Pending"}]
[null,"Manage and maintain positive, appropriate team relationships, demonstrating kindness, respect and compassion.","Collaborative working","Assistive","All Professions",false,{"$f":"IF(Table5910457[[#This Row],[Complete ]],\"Complete\",\"Pending\")","v":"Pending"}]
[null,"Contribute to solutions to maintain and develop effective team performance by reflecting on own experience of collaborative working.","Collaborative working","Assistive","All Professions",false,{"$f":"IF(Table5910457[[#This Row],[Complete ]],\"Complete\",\"Pending\")","v":"Pending"}]
[null,"Identify where working collaboratively, sharing information and ideas, can enhance local service delivery.","Collaborative working","Foundation","All Professions",false,{"$f":"IF(Table5910457[[#This Row],[Complete ]],\"Complete\",\"Pending\")","v":"Pending"}]
[null,"Facilitate an effective multi-professional teamworking culture, respecting, valuing and celebrating individual differences.","Collaborative working","Foundation","All Professions",false,{"$f":"IF(Table5910457[[#This Row],[Complete ]],\"Complete\",\"Pending\")","v":"Pending"}]
[null,"Develop professional partnerships to foster collaboration and share best practice examples across trusts.","Collaborative working","Enhanced","All Professions",false,{"$f":"IF(Table5910457[[#This Row],[Complete ]],\"Complete\",\"Pending\")","v":"Pending"}]
[null,"Influence and build effective relationships with a range of stakeholders, adapting communication and approach as necessary.","Collaborative working","Enhanced","All Professions",false,{"$f":"IF(Table5910457[[#This Row],[Complete ]],\"Complete\",\"Pending\")","v":"Pending"}]
[null,"Lead visibly, by engaging with own team demonstrating the ability to listen, share ideas, feedback and share insights in a respectful and transparent way.","Collaborative working","Enhanced","All Professions",false,{"$f":"IF(Table5910457[[#This Row],[Complete ]],\"Complete\",\"Pending\")","v":"Pending"}]
[null,"Implement knowledge of team structure, human factors, interpersonal relationships and team performance to facilitate effective team working.","Collaborative working","Enhanced","All Professions",false,{"$f":"IF(Table5910457[[#This Row],[Complete ]],\"Complete\",\"Pending\")","v":"Pending"}]
[null,"Develop own internal and external networks, to enhance strategic leadership abilities.","Collaborative working","Enhanced","All Professions",false,{"$f":"IF(Table5910457[[#This Row],[Complete ]],\"Complete\",\"Pending\")","v":"Pending"}]
[null,"Advocate for AHPs in critical care by participating in regional peer-review visits and offering remote support and advice when required.","Collaborative working","Enhanced","All Professions",false,{"$f":"IF(Table5910457[[#This Row],[Complete ]],\"Complete\",\"Pending\")","v":"Pending"}]
[null,"Collaborate with the multi-professional team, utilising the expertise from a range of professions to optimise the assessment, diagnosis and integrated management of patients with critical illness.","Collaborative working","Advanced","All Professions",false,{"$f":"IF(Table5910457[[#This Row],[Complete ]],\"Complete\",\"Pending\")","v":"Pending"}]
[null,"Develop strategic relationships with service commissioners to influence ongoing capacity and capability for evidence-informed critical care service provision and systems.","Collaborative working","Advanced","All Professions",false,{"$f":"IF(Table5910457[[#This Row],[Complete ]],\"Complete\",\"Pending\")","v":"Pending"}]
[null,"Initiate and pursue opportunities to create and nurture collaborative partnerships, establishing suitable networks and relationships, within and external to the organisation.","Collaborative working","Advanced","All Professions",false,{"$f":"IF(Table5910457[[#This Row],[Complete ]],\"Complete\",\"Pending\")","v":"Pending"}]
[null,"Evaluate own practice, and participate in multi-disciplinary service and team evaluation, demonstrating impact of advanced clinical practice on critical care service function, effectiveness, and quality.","Collaborative working","Advanced","All Professions",false,{"$f":"IF(Table5910457[[#This Row],[Complete ]],\"Complete\",\"Pending\")","v":"Pending"}]
[null,"Transform and develop clinical care and service leaders, demonstrating innovations in changing and complex situations.","Collaborative working","Consultant","All Professions",false,{"$f":"IF(Table5910457[[#This Row],[Complete ]],\"Complete\",\"Pending\")","v":"Pending"}]
[null,"Create networks of leaders who can work together to deliver service, organisational and system objectives and respond positively and creatively to changing situations within critical care.","Collaborative working","Consultant","All Professions",false,{"$f":"IF(Table5910457[[#This Row],[Complete ]],\"Complete\",\"Pending\")","v":"Pending"}]
[null,"Develop person-centred workplaces and transform practice and services across the critical care system, ensuring needs of people are met, which may include utilising a range of recognised and innovative strategies to engage and improve.","Collaborative working","Consultant","All Professions",false,{"$f":"IF(Table5910457[[#This Row],[Complete ]],\"Complete\",\"Pending\")","v":"Pending"}]
[null,"Create and maintain sustainable partnerships across the system, nationally and internationally, drawing on standards and best practice evidence to guide decision-making.","Collaborative working","Consultant","All Professions",false,{"$f":"IF(Table5910457[[#This Row],[Complete ]],\"Complete\",\"Pending\")","v":"Pending"}]
[null,"Collaborate with the multi-professional team and wider specialities and sectors, utilising expertise from a range of professions to optimise the assessment, diagnosis and integrated management of patients with critical illness, while delivering large scale service change.","Collaborative working","Consultant","All Professions",false,{"$f":"IF(Table5910457[[#This Row],[Complete ]],\"Complete\",\"Pending\")","v":"Pending"}]
[null,"Contribute to a nurturing and supportive culture, where diverse views and experiences are accepted, differences are celebrated, and inclusion and belonging is demonstrated through compassionate interactions.","Compassionate and inclusive leadership","Supportive","All Professions",false,{"$f":"IF(Table5910457[[#This Row],[Complete ]],\"Complete\",\"Pending\")","v":"Pending"}]
[null,"Identify and develop own leadership skills.","Compassionate and inclusive leadership","Supportive","All Professions",false,{"$f":"IF(Table5910457[[#This Row],[Complete ]],\"Complete\",\"Pending\")","v":"Pending"}]
[null,"Recognise the importance of promoting the role of support workers in critical care.","Compassionate and inclusive leadership","Supportive","All Professions",false,{"$f":"IF(Table5910457[[#This Row],[Complete ]],\"Complete\",\"Pending\")","v":"Pending"}]
[null,"Assist in promoting a culture of equality and diversity, including challenging discriminatory behaviours.","Compassionate and inclusive leadership","Assistive","All Professions",false,{"$f":"IF(Table5910457[[#This Row],[Complete ]],\"Complete\",\"Pending\")","v":"Pending"}]
[null,"Contribute to building self-awareness, emotional intelligence and resilience, advocating for self and others.","Compassionate and inclusive leadership","Assistive","All Professions",false,{"$f":"IF(Table5910457[[#This Row],[Complete ]],\"Complete\",\"Pending\")","v":"Pending"}]
[null,"Apply principles of role modelling, including advocating for other support workers.","Compassionate and inclusive leadership","Assistive","All Professions",false,{"$f":"IF(Table5910457[[#This Row],[Complete ]],\"Complete\",\"Pending\")","v":"Pending"}]
[null,"Advocate for inclusion and belonging, acknowledging bias and impact of own actions, and seeking to recognise and challenge exclusion and discrimination faced by team members.","Compassionate and inclusive leadership","Foundation","All Professions",false,{"$f":"IF(Table5910457[[#This Row],[Complete ]],\"Complete\",\"Pending\")","v":"Pending"}]
[null,"Support others using person-centred, compassionate and values based principles and behaviours.","Compassionate and inclusive leadership","Foundation","All Professions",false,{"$f":"IF(Table5910457[[#This Row],[Complete ]],\"Complete\",\"Pending\")","v":"Pending"}]
[null,"Inspire and motivate others through continued reflection and development of own leadership skills, encompassing qualities such as vision, integrity, honesty, respect, fair treatment, communication and empathy.","Compassionate and inclusive leadership","Foundation","All Professions",false,{"$f":"IF(Table5910457[[#This Row],[Complete ]],\"Complete\",\"Pending\")","v":"Pending"}]
[null,"Recognise own role as a leader, acting as a positive role model for best practice in critical care.","Compassionate and inclusive leadership","Foundation","All Professions",false,{"$f":"IF(Table5910457[[#This Row],[Complete ]],\"Complete\",\"Pending\")","v":"Pending"}]
[null,"Contribute to regional critical care groups, special interest groups or other multi-professional critical care networks.","Compassionate and inclusive leadership","Foundation","All Professions",false,{"$f":"IF(Table5910457[[#This Row],[Complete ]],\"Complete\",\"Pending\")","v":"Pending"}]
[null,"Facilitate and support people from diverse backgrounds to take on leadership responsibilities, identifying the challenges they may face.","Compassionate and inclusive leadership","Enhanced","All Professions",false,{"$f":"IF(Table5910457[[#This Row],[Complete ]],\"Complete\",\"Pending\")","v":"Pending"}]
[null,"Collaborate with staff and patients to seek diverse views and experiences, recognising the importance of understanding and addressing their needs during decision-making.","Compassionate and inclusive leadership","Enhanced","All Professions",false,{"$f":"IF(Table5910457[[#This Row],[Complete ]],\"Complete\",\"Pending\")","v":"Pending"}]
[null,"Advocate for equity of access to critical care services, providing holistic treatment for patients with diverse needs and life experiences in a non-judgemental way.","Compassionate and inclusive leadership","Enhanced","All Professions",false,{"$f":"IF(Table5910457[[#This Row],[Complete ]],\"Complete\",\"Pending\")","v":"Pending"}]
[null,"Lead a nurturing and supportive culture, where team members provide mutual support and psychological safety, to thrive in the work place .","Compassionate and inclusive leadership","Enhanced","All Professions",false,{"$f":"IF(Table5910457[[#This Row],[Complete ]],\"Complete\",\"Pending\")","v":"Pending"}]
[null,"Select and apply appropriate leadership styles and approaches, identifying the impact this has on the growth, motivation, diversity, belonging and success of a dynamic critical care team.","Compassionate and inclusive leadership","Enhanced","All Professions",false,{"$f":"IF(Table5910457[[#This Row],[Complete ]],\"Complete\",\"Pending\")","v":"Pending"}]
[null,"Lead by example, role modelling behavious such as coaching, accountability, honesty, fairness, compassion and transparency.","Compassionate and inclusive leadership","Enhanced","All Professions",false,{"$f":"IF(Table5910457[[#This Row],[Complete ]],\"Complete\",\"Pending\")","v":"Pending"}]
[null,"Advocate for profession as a member of a regional critical care group, professional body special interest group or other multi-professional critical care networks.","Compassionate and inclusive leadership","Enhanced","All Professions",false,{"$f":"IF(Table5910457[[#This Row],[Complete ]],\"Complete\",\"Pending\")","v":"Pending"}]
[null,"Incorporate views and opinions of all team members, building the confidence of others, and delivering a trustworthy and consistent approach to transparent decision making.","Compassionate and inclusive leadership","Advanced","All Professions",false,{"$f":"IF(Table5910457[[#This Row],[Complete ]],\"Complete\",\"Pending\")","v":"Pending"}]
[null,"Role model the values implicit in compassionate, inclusive and authentic leadership, ensuring person-centred approaches to clinical care, team engagement and workforce development.","Compassionate and inclusive leadership","Advanced","All Professions",false,{"$f":"IF(Table5910457[[#This Row],[Complete ]],\"Complete\",\"Pending\")","v":"Pending"}]
[null,"Implement advanced leadership, management and team-working skills including influencing, negotiating, reassessing priorities and effectively managing complex, dynamic situations, including when transitioning or working across multiple teams.","Compassionate and inclusive leadership","Advanced","All Professions",false,{"$f":"IF(Table5910457[[#This Row],[Complete ]],\"Complete\",\"Pending\")","v":"Pending"}]
[null,"Initiate, develop and nurture effective inter-personal relationships, fostering clarity of roles within critical care teams, using recognised tools or strategies to analyse, measure or evaluate team culture and performance.","Compassionate and inclusive leadership","Advanced","All Professions",false,{"$f":"IF(Table5910457[[#This Row],[Complete ]],\"Complete\",\"Pending\")","v":"Pending"}]
[null,"Critically evaluate own leadership and management practice and its impact on the wider team, proactively seeking opportunities to address these.","Compassionate and inclusive leadership","Advanced","All Professions",false,{"$f":"IF(Table5910457[[#This Row],[Complete ]],\"Complete\",\"Pending\")","v":"Pending"}]
[null,"Role models values of compassionate, inclusive and authentic leadership, actively demonstrating person-centred approaches to clinical care, team engagement and staff development, delivering a trustworthy, inclusive and consistent approach to decision making.","Compassionate and inclusive leadership","Consultant","All Professions",false,{"$f":"IF(Table5910457[[#This Row],[Complete ]],\"Complete\",\"Pending\")","v":"Pending"}]
[null,"Perform as an expert AHP leader and spokesperson for the critical care community, internally and externally.","Compassionate and inclusive leadership","Consultant","All Professions",false,{"$f":"IF(Table5910457[[#This Row],[Complete ]],\"Complete\",\"Pending\")","v":"Pending"}]
[null,"Lead a culture of effectiveness, inclusiveness and excellence, developing high performing, autonomous teams across the critical care pathway, ensuring team members from all backgrounds can excel.","Compassionate and inclusive leadership","Consultant","All Professions",false,{"$f":"IF(Table5910457[[#This Row],[Complete ]],\"Complete\",\"Pending\")","v":"Pending"}]
[null,"Recognise and promote the rights and responsibilities for self, identifying the uniqueness of the critical care environment and advocating for own needs appropriately.","Influencing people","Supportive","All Professions",false,{"$f":"IF(Table5910457[[#This Row],[Complete ]],\"Complete\",\"Pending\")","v":"Pending"}]
[null,"Recognise where own performance and that of others should be celebrated, to facilitate a culture where people can excel.","Influencing people","Supportive","All Professions",false,{"$f":"IF(Table5910457[[#This Row],[Complete ]],\"Complete\",\"Pending\")","v":"Pending"}]
[null,"Prepare for and participate in appraisals, agreeing a personal development plan and review process.","Influencing people","Supportive","All Professions",false,{"$f":"IF(Table5910457[[#This Row],[Complete ]],\"Complete\",\"Pending\")","v":"Pending"}]
[null,"Recognise the continually changing environment that the team works within and demonstrate adaptability to these changes.","Influencing people","Supportive","All Professions",false,{"$f":"IF(Table5910457[[#This Row],[Complete ]],\"Complete\",\"Pending\")","v":"Pending"}]
[null,"Identify strengths and areas for improvement, to inform appraisal objectives and personal development plan.","Influencing people","Assistive","All Professions",false,{"$f":"IF(Table5910457[[#This Row],[Complete ]],\"Complete\",\"Pending\")","v":"Pending"}]
[null,"Identify alternative ways to work within a changing environment whilst maintaining service quality.","Influencing people","Assistive","All Professions",false,{"$f":"IF(Table5910457[[#This Row],[Complete ]],\"Complete\",\"Pending\")","v":"Pending"}]
[null,"Recognise and promote the rights and responsibilities for self and others, identifying the uniqueness of the critical care environment and potential impact on health, safety and wellbeing.","Influencing people","Foundation","All Professions",false,{"$f":"IF(Table5910457[[#This Row],[Complete ]],\"Complete\",\"Pending\")","v":"Pending"}]
[null,"Facilitate team members to identify learning and development needs to inform appraisal objectives and personal development plan.","Influencing people","Foundation","All Professions",false,{"$f":"IF(Table5910457[[#This Row],[Complete ]],\"Complete\",\"Pending\")","v":"Pending"}]
[null,"Identify internal and external drivers for change within critical care services, providing suggestions for change with rationale.","Influencing people","Foundation","All Professions",false,{"$f":"IF(Table5910457[[#This Row],[Complete ]],\"Complete\",\"Pending\")","v":"Pending"}]
[null,"Support individuals and teams to have more control over decisions that affect them by promoting allyship, seeking, listening to and representing their views.","Influencing people","Enhanced","All Professions",false,{"$f":"IF(Table5910457[[#This Row],[Complete ]],\"Complete\",\"Pending\")","v":"Pending"}]
[null,"Promote and celebrate a culture of positivity for self, team, and organisation, where people feel valued, heard and have a sense of belonging.","Influencing people","Enhanced","All Professions",false,{"$f":"IF(Table5910457[[#This Row],[Complete ]],\"Complete\",\"Pending\")","v":"Pending"}]
[null,"Facilitate team members to link their personal development plan and appraisal objectives with trust values and critical care service strategy.","Influencing people","Enhanced","All Professions",false,{"$f":"IF(Table5910457[[#This Row],[Complete ]],\"Complete\",\"Pending\")","v":"Pending"}]
[null,"Lead and encourage the workforce to implement changes to improve a critical care service, recognising how everyone's roles can enhance care quality.","Influencing people","Enhanced","All Professions",false,{"$f":"IF(Table5910457[[#This Row],[Complete ]],\"Complete\",\"Pending\")","v":"Pending"}]
[null,"Promote a range of system-based approaches for learning from patient safety incidents, such as Systems Engineering Initiative for Patient Safety (SEIPS), in line with the Patient Safety Incident Response Framework (PSIRF).","Influencing people","Advanced","All Professions",false,{"$f":"IF(Table5910457[[#This Row],[Complete ]],\"Complete\",\"Pending\")","v":"Pending"}]
[null,"Demonstrate receptiveness to challenge and preparedness to constructively challenge others, escalating concerns that affect patients, families and carers, communities and workforce safety and wellbeing when necessary.","Influencing people","Advanced","All Professions",false,{"$f":"IF(Table5910457[[#This Row],[Complete ]],\"Complete\",\"Pending\")","v":"Pending"}]
[null,"Support professional development that improves people’s leadership abilities, including mentorship, coaching, and feedback skills, and how they learn from mistakes and build on what works well.","Influencing people","Consultant","All Professions",false,{"$f":"IF(Table5910457[[#This Row],[Complete ]],\"Complete\",\"Pending\")","v":"Pending"}]
[null,"Create transforming and lasting effects on the workforce and people accessing care or services, demonstrating receptiveness to challenge and preparedness to constructively challenge others.","Influencing people","Consultant","All Professions",false,{"$f":"IF(Table5910457[[#This Row],[Complete ]],\"Complete\",\"Pending\")","v":"Pending"}]
[null,"Provide expert opinion and consultancy across professional and service boundaries, influencing clinical practice to enhance quality, reduce unwarranted variation and promote the sharing and adoption of best practice.","Influencing people","Consultant","All Professions",false,{"$f":"IF(Table5910457[[#This Row],[Complete ]],\"Complete\",\"Pending\")","v":"Pending"}]
[null,"Lead the celebration of high-performing teams that support workforce wellbeing and demonstrate commitment and empowerment in line with clear principles, values, and ways of working.","Influencing people","Consultant","All Professions",false,{"$f":"IF(Table5910457[[#This Row],[Complete ]],\"Complete\",\"Pending\")","v":"Pending"}]
[null,"Contribute to mentoring of other support workers and pre-registration students.","Developing teams and individuals","Assistive","All Professions",false,{"$f":"IF(Table5910457[[#This Row],[Complete ]],\"Complete\",\"Pending\")","v":"Pending"}]
[null,"Contribute to coaching and mentoring of team members, developing the necessary skills through participation in mentoring and coaching programmes.","Developing teams and individuals","Foundation","All Professions",false,{"$f":"IF(Table5910457[[#This Row],[Complete ]],\"Complete\",\"Pending\")","v":"Pending"}]
[null,"Evaluate the political, social, economic and institutional factors, including the impact of health inequalities, that inform the delivery of critical care services.","Developing teams and individuals","Enhanced","All Professions",false,{"$f":"IF(Table5910457[[#This Row],[Complete ]],\"Complete\",\"Pending\")","v":"Pending"}]
[null,"Collaborate with the multi-professional team and other organisations to influence local policies that impact on critical care services.","Developing teams and individuals","Enhanced","All Professions",false,{"$f":"IF(Table5910457[[#This Row],[Complete ]],\"Complete\",\"Pending\")","v":"Pending"}]
[null,"Mentor and coach multi-professional team members to develop themselves and plan their career journeys.","Developing teams and individuals","Enhanced","All Professions",false,{"$f":"IF(Table5910457[[#This Row],[Complete ]],\"Complete\",\"Pending\")","v":"Pending"}]
[null,"Implement advanced clinical expertise in facilitatory ways to provide support and advice across professional and service boundaries, influencing clinical practice to enhance quality, reduce unwarranted variation and promote sharing and adoption of best practice.","Developing teams and individuals","Advanced","All Professions",false,{"$f":"IF(Table5910457[[#This Row],[Complete ]],\"Complete\",\"Pending\")","v":"Pending"}]
[null,"Actively seek feedback, involvement and inclusion of patients, families and carers, communities and the workforce in the person-centred co-production of local and regional service development and improvement.","Developing teams and individuals","Advanced","All Professions",false,{"$f":"IF(Table5910457[[#This Row],[Complete ]],\"Complete\",\"Pending\")","v":"Pending"}]
[null,"Mentor, coach and support development of individuals from own and other professional backgrounds within critical care, advocating and developing opportunities for multi-professional and interprofessional learning and application of learning to practice.","Developing teams and individuals","Advanced","All Professions",false,{"$f":"IF(Table5910457[[#This Row],[Complete ]],\"Complete\",\"Pending\")","v":"Pending"}]
[null,"Facilitate others to take on leadership responsibilities, building high-quality leadership from a wide range of professional and diverse backgrounds.","Developing teams and individuals","Consultant","All Professions",false,{"$f":"IF(Table5910457[[#This Row],[Complete ]],\"Complete\",\"Pending\")","v":"Pending"}]
[null,"Mentor and support individuals and teams to perform effectively and meet future workforce demands, improving career progression within and beyond traditional boundaries and develop capacity and capability regionally and nationally, considering health economics.","Developing teams and individuals","Consultant","All Professions",false,{"$f":"IF(Table5910457[[#This Row],[Complete ]],\"Complete\",\"Pending\")","v":"Pending"}]
[null,"Facilitate collaboration with patients, families and carers and communities to co-produce local, region, national and international critical care services which meet the needs of all across the pathway.","Developing teams and individuals","Consultant","All Professions",false,{"$f":"IF(Table5910457[[#This Row],[Complete ]],\"Complete\",\"Pending\")","v":"Pending"}]
[null,"Support team efficiency by using initiative to solve simple problems.","Managing services ","Supportive","All Professions",false,{"$f":"IF(Table5910457[[#This Row],[Complete ]],\"Complete\",\"Pending\")","v":"Pending"}]
[null,"Assist in inducting new support workers or pre-registration students to your own area of work.","Managing services ","Supportive","All Professions",false,{"$f":"IF(Table5910457[[#This Row],[Complete ]],\"Complete\",\"Pending\")","v":"Pending"}]
[null,"Recognise when performance of others requires improvement and take appropriate actions, escalating concerns and supporting team members with development.","Managing services ","Assistive","All Professions",false,{"$f":"IF(Table5910457[[#This Row],[Complete ]],\"Complete\",\"Pending\")","v":"Pending"}]
[null,"Assist with organising workload of other support workers.","Managing services ","Assistive","All Professions",false,{"$f":"IF(Table5910457[[#This Row],[Complete ]],\"Complete\",\"Pending\")","v":"Pending"}]
[null,"Review and provide feedback on local policies and guidelines within own area of practice.","Managing services ","Assistive","All Professions",false,{"$f":"IF(Table5910457[[#This Row],[Complete ]],\"Complete\",\"Pending\")","v":"Pending"}]
[null,"Assist with implementation of sustainability initiatives within critical care.","Managing services ","Assistive","All Professions",false,{"$f":"IF(Table5910457[[#This Row],[Complete ]],\"Complete\",\"Pending\")","v":"Pending"}]
[null,"Support with caseload management for students and support workers on a regular basis.","Managing services ","Foundation","All Professions",false,{"$f":"IF(Table5910457[[#This Row],[Complete ]],\"Complete\",\"Pending\")","v":"Pending"}]
[null,"Recognise when services are under pressure, acting in a responsible and considered way to ensure safe practice.","Managing services ","Foundation","All Professions",false,{"$f":"IF(Table5910457[[#This Row],[Complete ]],\"Complete\",\"Pending\")","v":"Pending"}]
[null,"Contribute to the development of policies and guidelines.","Managing services ","Foundation","All Professions",false,{"$f":"IF(Table5910457[[#This Row],[Complete ]],\"Complete\",\"Pending\")","v":"Pending"}]
[null,"Contribute and advocate for embedding sustainability initiatives in critical care.","Managing services ","Foundation","All Professions",false,{"$f":"IF(Table5910457[[#This Row],[Complete ]],\"Complete\",\"Pending\")","v":"Pending"}]
[null,"Contribute to setting and monitoring performance standards, addressing areas where performance objectives are not achieved.","Managing services ","Enhanced","All Professions",false,{"$f":"IF(Table5910457[[#This Row],[Complete ]],\"Complete\",\"Pending\")","v":"Pending"}]
[null,"Lead operational delivery of own profession-specific service, showing awareness of team dynamics and effective team working.","Managing services ","Enhanced","All Professions",false,{"$f":"IF(Table5910457[[#This Row],[Complete ]],\"Complete\",\"Pending\")","v":"Pending"}]
[null,"Contribute to financial, budgeting and workforce planning practices.","Managing services ","Enhanced","All Professions",false,{"$f":"IF(Table5910457[[#This Row],[Complete ]],\"Complete\",\"Pending\")","v":"Pending"}]
[null,"Support with the recruitment of workforce.","Managing services ","Enhanced","All Professions",false,{"$f":"IF(Table5910457[[#This Row],[Complete ]],\"Complete\",\"Pending\")","v":"Pending"}]
[null,"Advocate for risk awareness of staffing levels, prioritising and escalating risks that affect service delivery or objectives.","Managing services ","Enhanced","All Professions",false,{"$f":"IF(Table5910457[[#This Row],[Complete ]],\"Complete\",\"Pending\")","v":"Pending"}]
[null,"Contribute to business case development, ensuring workforce and skill mix is appropriate for service delivery and in line with critical care service standards.","Managing services ","Enhanced","All Professions",false,{"$f":"IF(Table5910457[[#This Row],[Complete ]],\"Complete\",\"Pending\")","v":"Pending"}]
[null,"Lead the development and implementation of multi-professional policies and guidelines.","Managing services ","Enhanced","All Professions",false,{"$f":"IF(Table5910457[[#This Row],[Complete ]],\"Complete\",\"Pending\")","v":"Pending"}]
[null,"Facilitate safe staffing levels, skill mix and appropriate delegation of critically ill patients amongst the team, using appropriate workforce safeguarding tools.","Managing services ","Enhanced","All Professions",false,{"$f":"IF(Table5910457[[#This Row],[Complete ]],\"Complete\",\"Pending\")","v":"Pending"}]
[null,"Initiate the development of a critical care sustainability plan, including workplace environment and workforce components.","Managing services ","Enhanced","All Professions",false,{"$f":"IF(Table5910457[[#This Row],[Complete ]],\"Complete\",\"Pending\")","v":"Pending"}]
[null,"Direct the operational delivery and standards evaluation of the relevant professional service within the trust.","Managing services ","Advanced","All Professions",false,{"$f":"IF(Table5910457[[#This Row],[Complete ]],\"Complete\",\"Pending\")","v":"Pending"}]
[null,"Negotiate an individual scope of advanced critical care practice within relevant legal, ethical, professional and organisational policies, structures, governance and procedures, managing risk and upholding safety.","Managing services ","Advanced","All Professions",false,{"$f":"IF(Table5910457[[#This Row],[Complete ]],\"Complete\",\"Pending\")","v":"Pending"}]
[null,"Influence and lead service development and delivery at a regional and national level.","Managing services ","Consultant","All Professions",false,{"$f":"IF(Table5910457[[#This Row],[Complete ]],\"Complete\",\"Pending\")","v":"Pending"}]
[null,"Lead the operational delivery of AHP services within the speciality of critical care, acknowledging wider stakeholders, lines of responsibility and overarching service structures.","Managing services ","Consultant","All Professions",false,{"$f":"IF(Table5910457[[#This Row],[Complete ]],\"Complete\",\"Pending\")","v":"Pending"}]
[null,"Influence and lead the development of specialist areas of practice or service within the critical care speciality.","Managing services ","Consultant","All Professions",false,{"$f":"IF(Table5910457[[#This Row],[Complete ]],\"Complete\",\"Pending\")","v":"Pending"}]
[null,"Negotiate and regularly re-evaluate own individual scope of practice, and the scope of the service for which responsibility is held across the critical care pathway, ensuring alignment with legal, ethical, professional and organisational policies, governance and procedures.","Managing services ","Consultant","All Professions",false,{"$f":"IF(Table5910457[[#This Row],[Complete ]],\"Complete\",\"Pending\")","v":"Pending"}]
[null,"Recognise how own appraisal objectives and actions are aligned to team and service objectives.","Strategic thinking and innovation","Supportive","All Professions",false,{"$f":"IF(Table5910457[[#This Row],[Complete ]],\"Complete\",\"Pending\")","v":"Pending"}]
[null,"Contribute to achieving team and service objectives.","Strategic thinking and innovation","Assistive","All Professions",false,{"$f":"IF(Table5910457[[#This Row],[Complete ]],\"Complete\",\"Pending\")","v":"Pending"}]
[null,"Assist in implementing the use of new and emerging technologies.","Strategic thinking and innovation","Assistive","All Professions",false,{"$f":"IF(Table5910457[[#This Row],[Complete ]],\"Complete\",\"Pending\")","v":"Pending"}]
[null,"Review and question established practices, using imagination, creativity and curiosity to suggest new ideas.","Strategic thinking and innovation","Foundation","All Professions",false,{"$f":"IF(Table5910457[[#This Row],[Complete ]],\"Complete\",\"Pending\")","v":"Pending"}]
[null,"Review service delivery as part of a multi-professional team, contributing ideas about future direction and vision of the team and service.","Strategic thinking and innovation","Foundation","All Professions",false,{"$f":"IF(Table5910457[[#This Row],[Complete ]],\"Complete\",\"Pending\")","v":"Pending"}]
[null,"Recognise the complexities and interactions of healthcare systems and their influence on critical care services.","Strategic thinking and innovation","Foundation","All Professions",false,{"$f":"IF(Table5910457[[#This Row],[Complete ]],\"Complete\",\"Pending\")","v":"Pending"}]
[null,"Apply digital literacy knowledge and skills to contribute to quality improvement and change.","Strategic thinking and innovation","Foundation","All Professions",false,{"$f":"IF(Table5910457[[#This Row],[Complete ]],\"Complete\",\"Pending\")","v":"Pending"}]
[null,"Advocate for and deliver innovations in clinical practice that demonstrate quality, productivity, efficiency or cost benefits.","Strategic thinking and innovation","Enhanced","All Professions",false,{"$f":"IF(Table5910457[[#This Row],[Complete ]],\"Complete\",\"Pending\")","v":"Pending"}]
[null,"Lead through inspiring shared purpose and vision, including strategy development for critical care services at local and regional level.","Strategic thinking and innovation","Enhanced","All Professions",false,{"$f":"IF(Table5910457[[#This Row],[Complete ]],\"Complete\",\"Pending\")","v":"Pending"}]
[null,"Contribute to service development by creating and improving current systems and processes, resulting in improved patient outcomes and effective critical care services.","Strategic thinking and innovation","Enhanced","All Professions",false,{"$f":"IF(Table5910457[[#This Row],[Complete ]],\"Complete\",\"Pending\")","v":"Pending"}]
[null,"Identify opportunities and implement technologies, digital resources, social media and online networks to enhance teamwork and deliver evidenced-informed practice.","Strategic thinking and innovation","Enhanced","All Professions",false,{"$f":"IF(Table5910457[[#This Row],[Complete ]],\"Complete\",\"Pending\")","v":"Pending"}]
[null,"Develop practice in response to changing population health and service need, engaging in horizon scanning for future developments in critical care practice.","Strategic thinking and innovation","Advanced","All Professions",false,{"$f":"IF(Table5910457[[#This Row],[Complete ]],\"Complete\",\"Pending\")","v":"Pending"}]
[null,"Evaluate key drivers and policies which influence national critical care strategy and service development and analyse how these can be used to improve service delivery, new practice and service redesign, working across boundaries and broadening sphere of influence.","Strategic thinking and innovation","Advanced","All Professions",false,{"$f":"IF(Table5910457[[#This Row],[Complete ]],\"Complete\",\"Pending\")","v":"Pending"}]
[null,"Lead strategic development, improvement, inquiry and innovation across specific workstreams that inform and respond to system objectives and support commissioners and senior leaders with decision-making.","Strategic thinking and innovation","Consultant","All Professions",false,{"$f":"IF(Table5910457[[#This Row],[Complete ]],\"Complete\",\"Pending\")","v":"Pending"}]
[null,"Collaborate with key partners to create a bold and innovative shared vision, in line with the future needs and aims of the critical care speciality across health systems.","Strategic thinking and innovation","Consultant","All Professions",false,{"$f":"IF(Table5910457[[#This Row],[Complete ]],\"Complete\",\"Pending\")","v":"Pending"}]
[null,"Anticipate the impact of health trends in the context of population health, and take part in planning that will have a significant effect on people’s care and their experience of critical care and the wider system, using best-practice examples from other areas of healthcare.","Strategic thinking and innovation","Consultant","All Professions",false,{"$f":"IF(Table5910457[[#This Row],[Complete ]],\"Complete\",\"Pending\")","v":"Pending"}]
[null,"Facilitate, consult or contribute to regional and national AHP critical care development.","Strategic thinking and innovation","Consultant","All Professions",false,{"$f":"IF(Table5910457[[#This Row],[Complete ]],\"Complete\",\"Pending\")","v":"Pending"}]

{"sheet":"Research ","index":9,"n_rows":116,"n_cols":13,"rows_kept":116,"cut":false,"hidden":false,"merged":[[0,0,2,10],[0,11,2,22]]}
["Research "]
[]
[]
[]
[]
[null,"Capability statement ","Area ","Level ","Profession ","Complete ","Progress","Signed ","Dated","Evidence ","Evidence 2","Evidence 3","Evidence 4"]
[null,"Recognise the importance of evidence-informed practice and an awareness of where to find relevant sources of evidence.","Evidence-informed practice","Supportive","All Professions",true,{"$f":"IF(Table591045[[#This Row],[Complete ]],\"Complete\",\"Pending\")","v":"Complete"},null,"2025-10-07"]
[null,"Perform literature searches to support evidence-informed practice, under the guidance of registered healthcare professionals.","Evidence-informed practice","Assistive","All Professions",true,{"$f":"IF(Table591045[[#This Row],[Complete ]],\"Complete\",\"Pending\")","v":"Complete"},null,"2025-10-07"]
[null,"Apply knowledge and understanding of evidence-based and evidence-informed practice to critical care.","Evidence-informed practice","Foundation","All Professions",false,{"$f":"IF(Table591045[[#This Row],[Complete ]],\"Complete\",\"Pending\")","v":"Pending"}]
[null,"Utilise evidence-informed approaches to clinical practice and teaching.","Evidence-informed practice","Foundation","All Professions",false,{"$f":"IF(Table591045[[#This Row],[Complete ]],\"Complete\",\"Pending\")","v":"Pending"}]
[null,"Initiate self-directed literature searches to inform clinical practice.","Evidence-informed practice","Foundation","All Professions",false,{"$f":"IF(Table591045[[#This Row],[Complete ]],\"Complete\",\"Pending\")","v":"Pending"}]
[null,"Implement evidence-informed practice and lead the multi-professional team in its application.","Evidence-informed practice","Enhanced","All Professions",false,{"$f":"IF(Table591045[[#This Row],[Complete ]],\"Complete\",\"Pending\")","v":"Pending"}]
[null,"Lead the multi-professional team in the implementation of evidence-informed teaching and clinical practice.","Evidence-informed practice","Enhanced","All Professions",false,{"$f":"IF(Table591045[[#This Row],[Complete ]],\"Complete\",\"Pending\")","v":"Pending"}]
[null,"Initiate literature reviews, interpreting and sharing findings regularly, supporting others to do the same including leading journal clubs.","Evidence-informed practice","Enhanced","All Professions",false,{"$f":"IF(Table591045[[#This Row],[Complete ]],\"Complete\",\"Pending\")","v":"Pending"}]
[null,"Critically appraise and synthesise the outcome of relevant critical care research, evaluation and audit, using the results to underpin own practice and to inform that of others.","Evidence-informed practice","Advanced","All Professions",false,{"$f":"IF(Table591045[[#This Row],[Complete ]],\"Complete\",\"Pending\")","v":"Pending"}]
[null,"Critically evaluate the critical care evidence base to identify gaps in application to practice and operational service delivery, designing strategies to explore these gaps and supporting individuals and organisations to address them safely, ethically, and pragmatically.","Evidence-informed practice","Advanced","All Professions",false,{"$f":"IF(Table591045[[#This Row],[Complete ]],\"Complete\",\"Pending\")","v":"Pending"}]
[null,"Direct and be accountable for application of new evidence into critical care practice through the production of local, national or international clinical service guidelines, policy, educational delivery and resource development.","Evidence-informed practice","Advanced","All Professions",false,{"$f":"IF(Table591045[[#This Row],[Complete ]],\"Complete\",\"Pending\")","v":"Pending"}]
[null,"Critically appraise and apply up-to-date evidence-informed knowledge and understanding of critical care and other specialisms, shaping local, regional, national and international clinical practice.","Evidence-informed practice","Consultant","All Professions",false,{"$f":"IF(Table591045[[#This Row],[Complete ]],\"Complete\",\"Pending\")","v":"Pending"}]
[null,"Identify gaps in available evidence and current clinical practice, seeking better and more effective ways of delivering quality for those requiring critical care.","Evidence-informed practice","Consultant","All Professions",false,{"$f":"IF(Table591045[[#This Row],[Complete ]],\"Complete\",\"Pending\")","v":"Pending"}]
[null,"Critically appraise available evidence, informed by recognised theory and interpretative frameworks, for example, qualitative, audit and quality improvement.","Evidence-informed practice","Consultant","All Professions",false,{"$f":"IF(Table591045[[#This Row],[Complete ]],\"Complete\",\"Pending\")","v":"Pending"}]
[null,"Synthesise knowledge, evidence and experience of national and international developments in the field of critical care to influence how future health and care services are developed across disciplines and beyond institutions.","Evidence-informed practice","Consultant","All Professions",false,{"$f":"IF(Table591045[[#This Row],[Complete ]],\"Complete\",\"Pending\")","v":"Pending"}]
[null,"Develop new insights from appraising, analysing, evaluating and blending different types of evidence and knowledge from a variety of sources, including the experiences of people accessing the service, and considering implications for critical care practice.","Evidence-informed practice","Consultant","All Professions",false,{"$f":"IF(Table591045[[#This Row],[Complete ]],\"Complete\",\"Pending\")","v":"Pending"}]
[null,"Represent profession and service through local, regional, or national peer review of critical care related publications or consultations.","Evidence-informed practice","Consultant","All Professions",false,{"$f":"IF(Table591045[[#This Row],[Complete ]],\"Complete\",\"Pending\")","v":"Pending"}]
[null,"Recognise potential improvements to patient care based on reflections of own practice and report to an appropriate member of the multi-professional team.","Service improvement & evaluation","Supportive","All Professions",false,{"$f":"IF(Table591045[[#This Row],[Complete ]],\"Complete\",\"Pending\")","v":"Pending"}]
[null,"Perform simple audits and surveys, such as service user feedback.","Service improvement & evaluation","Supportive","All Professions",false,{"$f":"IF(Table591045[[#This Row],[Complete ]],\"Complete\",\"Pending\")","v":"Pending"}]
[null,"Measure and record performance indicators as directed by the service improvement lead.","Service improvement & evaluation","Supportive","All Professions",false,{"$f":"IF(Table591045[[#This Row],[Complete ]],\"Complete\",\"Pending\")","v":"Pending"}]
[null,"Recognise and suggest service improvements to mitigate risk of patient harm, and escalate to an appropriate member of the multi-professional team.","Service improvement & evaluation","Assistive","All Professions",false,{"$f":"IF(Table591045[[#This Row],[Complete ]],\"Complete\",\"Pending\")","v":"Pending"}]
[null,"Contribute to the design and development of audit, service evaluation and quality improvement activities.","Service improvement & evaluation","Assistive","All Professions",false,{"$f":"IF(Table591045[[#This Row],[Complete ]],\"Complete\",\"Pending\")","v":"Pending"}]
[null,"Contribute to the implementation and evaluation of service improvement initiatives.","Service improvement & evaluation","Assistive","All Professions",false,{"$f":"IF(Table591045[[#This Row],[Complete ]],\"Complete\",\"Pending\")","v":"Pending"}]
[null,"Review own and others’ practice, identifying opportunities to enhance critical care services.","Service improvement & evaluation","Foundation","All Professions",false,{"$f":"IF(Table591045[[#This Row],[Complete ]],\"Complete\",\"Pending\")","v":"Pending"}]
[null,"Liaise with the critical care multi-professional team and service users to prioritise areas for audit, service evaluation and quality improvement.","Service improvement & evaluation","Foundation","All Professions",false,{"$f":"IF(Table591045[[#This Row],[Complete ]],\"Complete\",\"Pending\")","v":"Pending"}]
[null,"Apply knowledge of quality improvement methodologies to local service evaluation, audit and service improvement initiatives.","Service improvement & evaluation","Foundation","All Professions",false,{"$f":"IF(Table591045[[#This Row],[Complete ]],\"Complete\",\"Pending\")","v":"Pending"}]
[null,"Collect and analyse qualitative and quantitative data to improve the quality of practice.","Service improvement & evaluation","Foundation","All Professions",false,{"$f":"IF(Table591045[[#This Row],[Complete ]],\"Complete\",\"Pending\")","v":"Pending"}]
[null,"Apply findings and recommendations of service improvement initiatives to own practice.","Service improvement & evaluation","Foundation","All Professions",false,{"$f":"IF(Table591045[[#This Row],[Complete ]],\"Complete\",\"Pending\")","v":"Pending"}]
[null,"Contribute to monitoring quality, using outcome measures relevant to the profession in critical care.","Service improvement & evaluation","Foundation","All Professions",false,{"$f":"IF(Table591045[[#This Row],[Complete ]],\"Complete\",\"Pending\")","v":"Pending"}]
[null,"Implement benchmarking, service evaluation and audit activity, critically evaluating the provision of critical care services to identify areas for service improvement.","Service improvement & evaluation","Enhanced","All Professions",false,{"$f":"IF(Table591045[[#This Row],[Complete ]],\"Complete\",\"Pending\")","v":"Pending"}]
[null,"Prioritise the needs of the local population through patient and public engagement when planning and designing service improvement and evaluation projects.","Service improvement & evaluation","Enhanced","All Professions",false,{"$f":"IF(Table591045[[#This Row],[Complete ]],\"Complete\",\"Pending\")","v":"Pending"}]
[null,"Lead collaborative service improvement and audit projects, applying quality improvement methodologies and embracing digital technologies.","Service improvement & evaluation","Enhanced","All Professions",false,{"$f":"IF(Table591045[[#This Row],[Complete ]],\"Complete\",\"Pending\")","v":"Pending"}]
[null,"Support the development of team capability to perform audit, service evaluation and quality improvement activities.","Service improvement & evaluation","Enhanced","All Professions",false,{"$f":"IF(Table591045[[#This Row],[Complete ]],\"Complete\",\"Pending\")","v":"Pending"}]
[null,"Liaise with critical care clinical governance team when proposing and conducting quality improvement, registering each initiative as required by local policy.","Service improvement & evaluation","Enhanced","All Professions",false,{"$f":"IF(Table591045[[#This Row],[Complete ]],\"Complete\",\"Pending\")","v":"Pending"}]
[null,"Contribute to national and regional critical care audit programmes.","Service improvement & evaluation","Enhanced","All Professions",false,{"$f":"IF(Table591045[[#This Row],[Complete ]],\"Complete\",\"Pending\")","v":"Pending"}]
[null,"Critically evaluate the effectiveness of service improvement initiatives for patient care and operational delivery, applying a range of patient-centred outcome measures.","Service improvement & evaluation","Enhanced","All Professions",false,{"$f":"IF(Table591045[[#This Row],[Complete ]],\"Complete\",\"Pending\")","v":"Pending"}]
[null,"Implement identified changes to service delivery, including updating practice protocols, guidelines and procedures.","Service improvement & evaluation","Enhanced","All Professions",false,{"$f":"IF(Table591045[[#This Row],[Complete ]],\"Complete\",\"Pending\")","v":"Pending"}]
[null,"Evaluate and synthesise the findings from local service improvement initiatives with existing critical care literature, developing research questions where required.","Service improvement & evaluation","Enhanced","All Professions",false,{"$f":"IF(Table591045[[#This Row],[Complete ]],\"Complete\",\"Pending\")","v":"Pending"}]
[null,"Liaise with people who access services to evaluate whether service improvements address health inequalities and meet the needs of the local population.","Service improvement & evaluation","Enhanced","All Professions",false,{"$f":"IF(Table591045[[#This Row],[Complete ]],\"Complete\",\"Pending\")","v":"Pending"}]
[null,"Design, lead and undertake quality improvement initiatives, service evaluation and audit projects across professional boundaries, addressing local and regional advanced critical care practice.","Service improvement & evaluation","Advanced","All Professions",false,{"$f":"IF(Table591045[[#This Row],[Complete ]],\"Complete\",\"Pending\")","v":"Pending"}]
[null,"Advocate for a systematic approach to design, evaluation and audit of clinical practice, selecting and applying valid, reliable methods and quality outcome measures to critically analyse and evaluate effectiveness of patient care and service delivery across the critical care pathway.","Service improvement & evaluation","Advanced","All Professions",false,{"$f":"IF(Table591045[[#This Row],[Complete ]],\"Complete\",\"Pending\")","v":"Pending"}]
[null,"Disseminate service evaluation and audit outcomes at local, regional or national forums to lead change in current and future practice, generate research questions and influence quality improvement strategies.","Service improvement & evaluation","Advanced","All Professions",false,{"$f":"IF(Table591045[[#This Row],[Complete ]],\"Complete\",\"Pending\")","v":"Pending"}]
[null,"Critically reflect on own involvement in quality improvement, audit and evaluation to influence the local service evaluation and audit strategy, constantly improving methodology and approaches to implement future change.","Service improvement & evaluation","Advanced","All Professions",false,{"$f":"IF(Table591045[[#This Row],[Complete ]],\"Complete\",\"Pending\")","v":"Pending"}]
[null,"Lead across professional and organisational boundaries to facilitate peer review and appraise service delivery, quality, and health outcomes across the critical care pathway, determining the need for co-produced improvements and disseminating results through local, national and international forums, and relevant stakeholders.","Service improvement & evaluation","Consultant","All Professions",false,{"$f":"IF(Table591045[[#This Row],[Complete ]],\"Complete\",\"Pending\")","v":"Pending"}]
[null,"Coordinate the workforce across professional and organisational boundaries to measure, analyse and evaluate data to appraise the effectiveness of interventions or service delivery and determine need for change or improvement.","Service improvement & evaluation","Consultant","All Professions",false,{"$f":"IF(Table591045[[#This Row],[Complete ]],\"Complete\",\"Pending\")","v":"Pending"}]
[null,"Influence and, where appropriate, lead the regional or national agenda of service evaluation and audit activity programmes or strategies.","Service improvement & evaluation","Consultant","All Professions",false,{"$f":"IF(Table591045[[#This Row],[Complete ]],\"Complete\",\"Pending\")","v":"Pending"}]
[null,"Critically evaluate and audit own and others’ clinical practice, selecting and applying valid, reliable methods and acting on the findings, including dissemination with multi-professional team and relevant stakeholders.","Service improvement & evaluation","Consultant","All Professions",false,{"$f":"IF(Table591045[[#This Row],[Complete ]],\"Complete\",\"Pending\")","v":"Pending"}]
[null,"Lead service evaluation and audit activity to generate research questions and translate into large-scale local, regional or national quality improvement initiatives related to critical care.","Service improvement & evaluation","Consultant","All Professions",false,{"$f":"IF(Table591045[[#This Row],[Complete ]],\"Complete\",\"Pending\")","v":"Pending"}]
[null,"Create a range of quality indicators and outcome measures to critically analyse and evaluate the effectiveness of patient care and service delivery.","Service improvement & evaluation","Consultant","All Professions",false,{"$f":"IF(Table591045[[#This Row],[Complete ]],\"Complete\",\"Pending\")","v":"Pending"}]
[null,"Lead, facilitate and network across professional and organisational boundaries to peer review, analyse and evaluate service delivery, safety, quality, and health outcomes from pathway to system level; acting on required change or improvement and disseminating results to relevant internal and external stakeholders, national and international forums.","Service improvement & evaluation","Consultant","All Professions",false,{"$f":"IF(Table591045[[#This Row],[Complete ]],\"Complete\",\"Pending\")","v":"Pending"}]
[null,"Assist with routine research activities under guidance of research team.","Understanding and performing research","Supportive","All Professions",false,{"$f":"IF(Table591045[[#This Row],[Complete ]],\"Complete\",\"Pending\")","v":"Pending"}]
[null,"Perform routine research activities, adhering to research protocol.","Understanding and performing research","Supportive","All Professions",false,{"$f":"IF(Table591045[[#This Row],[Complete ]],\"Complete\",\"Pending\")","v":"Pending"}]
[null,"Perform delegated parts of the research process, including data collection and analysis.","Understanding and performing research","Assistive","All Professions",false,{"$f":"IF(Table591045[[#This Row],[Complete ]],\"Complete\",\"Pending\")","v":"Pending"}]
[null,"Apply research governance, ethics, protocols and guidelines to research activity.","Understanding and performing research","Assistive","All Professions",false,{"$f":"IF(Table591045[[#This Row],[Complete ]],\"Complete\",\"Pending\")","v":"Pending"}]
[null,"Recognise the importance of working in partnership with people who access services, their families and carers, when contributing to the planning, designing and performance of research.","Understanding and performing research","Assistive","All Professions",false,{"$f":"IF(Table591045[[#This Row],[Complete ]],\"Complete\",\"Pending\")","v":"Pending"}]
[null,"Recognise the importance of working in partnership with people who access services, their families and carers, when contributing to the planning, designing and performance of research.","Understanding and performing research","Foundation","All Professions",false,{"$f":"IF(Table591045[[#This Row],[Complete ]],\"Complete\",\"Pending\")","v":"Pending"}]
[null,"Contribute to studies being undertaken in critical care, liaising with local research delivery teams.","Understanding and performing research","Foundation","All Professions",false,{"$f":"IF(Table591045[[#This Row],[Complete ]],\"Complete\",\"Pending\")","v":"Pending"}]
[null,"Apply knowledge of quantitative and qualitative research methods to differentiate between research, audit, service evaluation and quality improvement, and identify appropriate research methods for each.","Understanding and performing research","Foundation","All Professions",false,{"$f":"IF(Table591045[[#This Row],[Complete ]],\"Complete\",\"Pending\")","v":"Pending"}]
[null,"Review critical care literature and critically appraise using an appropriate tool, acknowledging the hierarchy of scientific evidence.","Understanding and performing research","Foundation","All Professions",false,{"$f":"IF(Table591045[[#This Row],[Complete ]],\"Complete\",\"Pending\")","v":"Pending"}]
[null,"Apply knowledge of research governance, attained through Good Clinical Practice training, when contributing to research activities.","Understanding and performing research","Foundation","All Professions",false,{"$f":"IF(Table591045[[#This Row],[Complete ]],\"Complete\",\"Pending\")","v":"Pending"}]
[null,"Discuss ideas for research identified from own critical care practice, developing research questions with support.","Understanding and performing research","Foundation","All Professions",false,{"$f":"IF(Table591045[[#This Row],[Complete ]],\"Complete\",\"Pending\")","v":"Pending"}]
[null,"Evaluate qualitative and quantitative research, critically analysing the strengths and limitations of studies.","Understanding and performing research","Enhanced","All Professions",false,{"$f":"IF(Table591045[[#This Row],[Complete ]],\"Complete\",\"Pending\")","v":"Pending"}]
[null,"Discuss research methods with local and regional critical care research teams, including developing research questions, working collaboratively to design and implement research protocols.","Understanding and performing research","Enhanced","All Professions",false,{"$f":"IF(Table591045[[#This Row],[Complete ]],\"Complete\",\"Pending\")","v":"Pending"}]
[null,"Contribute to the registration process when applying to undertake research, including legal and ethical requirements.","Understanding and performing research","Enhanced","All Professions",false,{"$f":"IF(Table591045[[#This Row],[Complete ]],\"Complete\",\"Pending\")","v":"Pending"}]
[null,"Support colleagues to comply with research governance requirements in line with Good Clinical Practice.","Understanding and performing research","Enhanced","All Professions",false,{"$f":"IF(Table591045[[#This Row],[Complete ]],\"Complete\",\"Pending\")","v":"Pending"}]
[null,"Evaluate clinical practice and policy to develop research questions, aims and objectives, which align with the research agenda of the organisation, critical care department and profession.","Understanding and performing research","Enhanced","All Professions",false,{"$f":"IF(Table591045[[#This Row],[Complete ]],\"Complete\",\"Pending\")","v":"Pending"}]
[null,"Apply for small-scale research funding in collaboration with research-active colleagues, identifying sources of funding for critical care research.","Understanding and performing research","Enhanced","All Professions",false,{"$f":"IF(Table591045[[#This Row],[Complete ]],\"Complete\",\"Pending\")","v":"Pending"}]
[null,"Prioritise the needs of the local population, engaging service users in the co-design of research projects.","Understanding and performing research","Enhanced","All Professions",false,{"$f":"IF(Table591045[[#This Row],[Complete ]],\"Complete\",\"Pending\")","v":"Pending"}]
[null,"Collaborate with researchers in multi-centre or large-scale critical care research, collating and sharing data across organisations in compliance with local protocols, legal and professional requirements.","Understanding and performing research","Advanced","All Professions",false,{"$f":"IF(Table591045[[#This Row],[Complete ]],\"Complete\",\"Pending\")","v":"Pending"}]
[null,"Develop a portfolio of individual, team and service quality outputs, utilising a range of research, quality improvement and audit methods, potentially including collaborations with clinical academics and other research support resources.","Understanding and performing research","Advanced","All Professions",false,{"$f":"IF(Table591045[[#This Row],[Complete ]],\"Complete\",\"Pending\")","v":"Pending"}]
[null,"Design and implement critical care research activities, applying knowledge of legal requirements and developing evidence-based strategies that enhance quality, safety, productivity and value for money.","Understanding and performing research","Advanced","All Professions",false,{"$f":"IF(Table591045[[#This Row],[Complete ]],\"Complete\",\"Pending\")","v":"Pending"}]
[null,"Advocate for critical care AHP research, identifying priority areas for further research to strengthen the evidence for best practice within the profession, service and organisation.","Understanding and performing research","Advanced","All Professions",false,{"$f":"IF(Table591045[[#This Row],[Complete ]],\"Complete\",\"Pending\")","v":"Pending"}]
[null,"Facilitate research capability of self and others, supporting awareness of research resources and funding opportunities.","Understanding and performing research","Advanced","All Professions",false,{"$f":"IF(Table591045[[#This Row],[Complete ]],\"Complete\",\"Pending\")","v":"Pending"}]
[null,"Demonstrate commitment to addressing health inequality and the wider social determinants of health within research design and delivery.","Understanding and performing research","Advanced","All Professions",false,{"$f":"IF(Table591045[[#This Row],[Complete ]],\"Complete\",\"Pending\")","v":"Pending"}]
[null,"Contribute to the creation of critical care-related knowledge through comprehensive research, innovation and inquiry, helping others to do the same, while building academic networks and research partnerships and working with higher-education institutions, commercial and charity sectors.","Understanding and performing research","Consultant","All Professions",false,{"$f":"IF(Table591045[[#This Row],[Complete ]],\"Complete\",\"Pending\")","v":"Pending"}]
[null,"Lead local, national and international research programmes, contributing to research, inquiry, innovation and evaluation that generates new knowledge and understanding about safe and effective care across the system, involving the public, service users, families and carers.","Understanding and performing research","Consultant","All Professions",false,{"$f":"IF(Table591045[[#This Row],[Complete ]],\"Complete\",\"Pending\")","v":"Pending"}]
[null,"Lead activities that enable the widest access to new research, innovations, outcome indicators and ways of working that benefit healthcare, including high-quality publications and professional and public engagement strategies.","Understanding and performing research","Consultant","All Professions",false,{"$f":"IF(Table591045[[#This Row],[Complete ]],\"Complete\",\"Pending\")","v":"Pending"}]
[null,"Lead a portfolio of research studies and research teams, primarily focused on professional or critical care-related contexts, but may also support wider clinical areas or the multi-professional agenda.","Understanding and performing research","Consultant","All Professions",false,{"$f":"IF(Table591045[[#This Row],[Complete ]],\"Complete\",\"Pending\")","v":"Pending"}]
[null,"Lead and contribute to national and international critical care related guideline development groups and steering groups, acting as a peer reviewer of research, inquiry and innovation and evaluation projects, locally, regionally and nationally.","Understanding and performing research","Consultant","All Professions",false,{"$f":"IF(Table591045[[#This Row],[Complete ]],\"Complete\",\"Pending\")","v":"Pending"}]
[null,"Actively seek grant-funded opportunities for the completion of critical care speciality research at pre-doctorate or post-doctorate level, depending on experience.","Understanding and performing research","Consultant","All Professions",false,{"$f":"IF(Table591045[[#This Row],[Complete ]],\"Complete\",\"Pending\")","v":"Pending"}]
[null,"Influence critical care research policy and strategy, regionally, nationally and internationally.","Understanding and performing research","Consultant","All Professions",false,{"$f":"IF(Table591045[[#This Row],[Complete ]],\"Complete\",\"Pending\")","v":"Pending"}]
[null,"Ensure strategic process are in place within research design and delivery to incorporate and address health inequality, equitable access, quality of experience and the wider social determinants of health.","Understanding and performing research","Consultant","All Professions",false,{"$f":"IF(Table591045[[#This Row],[Complete ]],\"Complete\",\"Pending\")","v":"Pending"}]
[null,"Recognise the importance of research in clinical practice and own role.","Research culture ","Supportive","All Professions",false,{"$f":"IF(Table591045[[#This Row],[Complete ]],\"Complete\",\"Pending\")","v":"Pending"}]
[null,"Contribute to local dissemination of research, audit and service evaluation findings.","Research culture ","Assistive","All Professions",false,{"$f":"IF(Table591045[[#This Row],[Complete ]],\"Complete\",\"Pending\")","v":"Pending"}]
[null,"Advocate for the inclusion of support workers in research opportunities.","Research culture ","Assistive","All Professions",false,{"$f":"IF(Table591045[[#This Row],[Complete ]],\"Complete\",\"Pending\")","v":"Pending"}]
[null,"Recognise opportunities to disseminate research.","Research culture ","Foundation","All Professions",false,{"$f":"IF(Table591045[[#This Row],[Complete ]],\"Complete\",\"Pending\")","v":"Pending"}]
[null,"Recognise the importance of supporting and guiding less experienced multi-professional team members develop their research skills.","Research culture ","Foundation","All Professions",false,{"$f":"IF(Table591045[[#This Row],[Complete ]],\"Complete\",\"Pending\")","v":"Pending"}]
[null,"Recognise the impact of equality, diversity and inclusion on critical care research and practice, demonstrating inclusive behaviour, whilst responding to the needs of the population.","Research culture ","Foundation","All Professions",false,{"$f":"IF(Table591045[[#This Row],[Complete ]],\"Complete\",\"Pending\")","v":"Pending"}]
[null,"Identify opportunities to engage in multi-professional team research, recognising the importance of promoting AHP critical care research as a research ambassador.","Research culture ","Foundation","All Professions",false,{"$f":"IF(Table591045[[#This Row],[Complete ]],\"Complete\",\"Pending\")","v":"Pending"}]
[null,"Contribute to the submission of abstracts and posters for critical care conferences.","Research culture ","Foundation","All Professions",false,{"$f":"IF(Table591045[[#This Row],[Complete ]],\"Complete\",\"Pending\")","v":"Pending"}]
[null,"Contribute to research activities that increase the profile of AHPs, aligning with critical care strategy and guidelines.","Research culture ","Foundation","All Professions",false,{"$f":"IF(Table591045[[#This Row],[Complete ]],\"Complete\",\"Pending\")","v":"Pending"}]
[null,"Disseminate knowledge from research activities regionally and nationally.","Research culture ","Enhanced","All Professions",false,{"$f":"IF(Table591045[[#This Row],[Complete ]],\"Complete\",\"Pending\")","v":"Pending"}]
[null,"Coach less experienced multi-professional team members to engage in research.","Research culture ","Enhanced","All Professions",false,{"$f":"IF(Table591045[[#This Row],[Complete ]],\"Complete\",\"Pending\")","v":"Pending"}]
[null,"Facilitate sustainable and inclusive research practices and culture that are responsive to population need.","Research culture ","Enhanced","All Professions",false,{"$f":"IF(Table591045[[#This Row],[Complete ]],\"Complete\",\"Pending\")","v":"Pending"}]
[null,"Educate the multi-professional team regarding opportunities to engage in critical care research, acting as an AHP research ambassador.","Research culture ","Enhanced","All Professions",false,{"$f":"IF(Table591045[[#This Row],[Complete ]],\"Complete\",\"Pending\")","v":"Pending"}]
[null,"Facilitate multi-professional research, working collaboratively with the critical care multi-professional team to co-design and co-deliver.","Research culture ","Enhanced","All Professions",false,{"$f":"IF(Table591045[[#This Row],[Complete ]],\"Complete\",\"Pending\")","v":"Pending"}]
[null,"Lead on submission of abstracts and posters to critical care conferences and support multi-professional team members to submit.","Research culture ","Enhanced","All Professions",false,{"$f":"IF(Table591045[[#This Row],[Complete ]],\"Complete\",\"Pending\")","v":"Pending"}]
[null,"Support engagement with multi-professional research through role promotion and implementation of critical care research strategy and guidelines.","Research culture ","Enhanced","All Professions",false,{"$f":"IF(Table591045[[#This Row],[Complete ]],\"Complete\",\"Pending\")","v":"Pending"}]
[null,"Create a culture of critical care research enquiry, knowledge exchange and participation across critical care teams, designing activities to foster collaboration and incorporating research skills and impact into team appraisal and service evaluation design.","Research culture ","Advanced","All Professions",false,{"$f":"IF(Table591045[[#This Row],[Complete ]],\"Complete\",\"Pending\")","v":"Pending"}]
[null,"Facilitate collaboration between clinical practice and research through proactive engagement and networking with academic, clinical and other research influencers.","Research culture ","Advanced","All Professions",false,{"$f":"IF(Table591045[[#This Row],[Complete ]],\"Complete\",\"Pending\")","v":"Pending"}]
[null,"Influence critical care research activity within local organisation or higher-education institute, appraising the research activity of others and peer-reviewing research publications.","Research culture ","Advanced","All Professions",false,{"$f":"IF(Table591045[[#This Row],[Complete ]],\"Complete\",\"Pending\")","v":"Pending"}]
[null,"Enable the meaningful and equitable participation and engagement of people who access services, their families, carers and the wider community in the co-production, design and delivery of service improvement and research initiatives, ensuring a diverse and representative range of contributors and participants.","Research culture ","Advanced","All Professions",false,{"$f":"IF(Table591045[[#This Row],[Complete ]],\"Complete\",\"Pending\")","v":"Pending"}]
[null,"Demonstrate commitment to equitable and diverse patient and public stakeholder participation and involvement in the identification and selection of service improvement and research priorities, throughout the research process.","Research culture ","Advanced","All Professions",false,{"$f":"IF(Table591045[[#This Row],[Complete ]],\"Complete\",\"Pending\")","v":"Pending"}]
[null,"Role model meaningful inclusive allyship, ensuring colleagues from diverse, marginalised or under-represented backgrounds have research-related opportunities, experiences and development.","Research culture ","Advanced","All Professions",false,{"$f":"IF(Table591045[[#This Row],[Complete ]],\"Complete\",\"Pending\")","v":"Pending"}]
[null,"Actively develop a culture of sharing knowledge across the system, both within and outside of the critical care speciality, that values research, evaluation and academic inquiry, and adds to capability and capacity across the multi-professional team.","Research culture ","Consultant","All Professions",false,{"$f":"IF(Table591045[[#This Row],[Complete ]],\"Complete\",\"Pending\")","v":"Pending"}]
[null,"Advocate for staff involvement evaluating the impact of critical care-related research, inquiry and innovation through support, supervision and dissemination of knowledge and improvement methodologies, using local review, ethical and governance systems.","Research culture ","Consultant","All Professions",false,{"$f":"IF(Table591045[[#This Row],[Complete ]],\"Complete\",\"Pending\")","v":"Pending"}]
[null,"Provide research supervision and leadership across the organisation and profession, with clear focus on future opportunities and potential to engage in research activity.","Research culture ","Consultant","All Professions",false,{"$f":"IF(Table591045[[#This Row],[Complete ]],\"Complete\",\"Pending\")","v":"Pending"}]
[null,"Develop and establish a four-pillar approach to practice, service and quality, focusing on improvement, strategy, research, academic inquiry and innovation across the critical care service and the impact on overall health and social care.","Research culture ","Consultant","All Professions",false,{"$f":"IF(Table591045[[#This Row],[Complete ]],\"Complete\",\"Pending\")","v":"Pending"}]
[null,"Ensure strategic processes are in place and regularly reviewed to facilitate equitable participation and inclusion of the diverse range of people who access services, their families and carers, communities, workforce and learners in the co-design and co-production of research and quality improvement initiatives.","Research culture ","Consultant","All Professions",false,{"$f":"IF(Table591045[[#This Row],[Complete ]],\"Complete\",\"Pending\")","v":"Pending"}]
[null,"Promote anti-racist and anti-discriminatory practices and allyship, the importance of diversity in all its forms, and equity in access to research-related opportunities and career progression.","Research culture ","Consultant","All Professions",false,{"$f":"IF(Table591045[[#This Row],[Complete ]],\"Complete\",\"Pending\")","v":"Pending"}]

{"sheet":"Tables Lists ","index":10,"n_rows":17,"n_cols":9,"rows_kept":17,"cut":false,"hidden":true,"merged":[]}
["Clinical assment ",null,null,"Interventions ",null,null,"Professions ",null,"Levels "]
["Breathing",null,null,"Deterioration intervention",null,null,"All professions ",null,"Foundation"]
["Circulation",null,null,"Non-physical function",null,null,"Physio",null,"Advanced "]
["Disability",null,null,"Patient transfer",null,null,"SLT",null,"Assistive "]
["Exposure",null,null,"Pharmacology",null,null,"OT",null,"Consultant "]
["Recognition of deterioration",null,null,"Airway ",null,null,"Dietitian",null,"Enhanced "]
["Fluids",null,null,"Breathing ",null,null,"ODP ",null,"Supportive "]
["Non-physical function",null,null,"Circulation "]
["Nutrtion",null,null,"Communication intervention"]
["Screening",null,null,"Eating, drinking and swallowing "]
["Airway ",null,null,"End of life care "]
["Clinical reasoning ",null,null,"Fluids "]
["Communication assesment ",null,null,"Meaningful occupation "]
["Eating, drinking and swallowing ",null,null,"Nutrition "]
["Meaningful occupation ",null,null,"Physical Function "]
["Physical function "]
["Subjective assesment "]